Workbook

Sheet Info
B2: =taal!A961 -> Climafast
B4: =taal!A1148 -> Das Programm hilft Ihnen, schnell ein Preisangebot für eine Climax® oder Climalux® Überdachung zu erstellen.
B5: =taal!A1149 -> Ins Blatt "Input data" (Einfuhr) tragen Sie alle Daten korrekt ein und bekommen Sie gleich einen Vorschlag.
B6: =taal!A1150 -> Climafast berechnet Ihnen die Ideallösung, erstellt ein Angebot inklusive Artikelliste
B7: =taal!A1151 -> und Details aller benötigten Montageabmessungen und bietet die Möglichkeit direkt per E-Mail zu bestellen.
B8: =taal!A1152 -> Sie können den "Climaxvorschlag" auch ausschalten und selber Ihre Wahl in Sets oder Artikel treffen.
B10: =taal!A1156 -> Im Blatt "Sets" (Setwahl) können Sie nach Wunsch den Climafastvorschlag selber anpassen.
B11: =taal!A1157 -> Achtung: wenn Sie das Climafast Programm 'Setniveau' auf Set-Ebene ändern, werden nur die Standardsets angeboten.
B12: =taal!A1158 -> Diese sind im Blatt "Sets" erwähnt.
B13: =taal!A1159 -> Außerdem können Sie im Blatt "Articles" (Artikelwahl) Änderungen anbringen.
B14: =taal!A1160 -> Bei Änderungen auf Artikel-Ebene dient der Climafastvorschlag, wenn eingeschaltet, weiterhin als Basis.
B15: =taal!A1161 -> Im Blatt "Offer" (Angebot) erzeugt Ihnen ein Druck auf einem der 2 Knöpfe das Angebot.
B16: =taal!A1162 -> Knopf "Short list" verleiht Ihnen eine komplette Übersicht der Artikel und Montagedaten.
B17: =taal!A1163 -> Knopf "print" führt zum gleichen Ergebnis, druckt außerdem noch das Angebot ab.
B18: =taal!A1164 -> Über den Knopf "E-Mail" in Excel können Sie dieses Angebot gleich als Auftrag
B19: =taal!A1166 -> Blatt "KS" bietet eine Übersicht der Kunststoffplatten mit der Möglichkeit, eigene Preise zu verwenden.
B20: =taal!A1167 -> 
B21: =taal!A1168 -> Die vom Berechnungsprogramm angegebenen Plattenlängen gelten nur für Kunststoffplatten und
B22: =taal!A1169 -> Einzelverglasung. Sie gelten nicht für Doppelverglasung in einem warmen System. In letzterem Fall
B23: =taal!A1170 -> sollten Sie immer die Vorschriften des Glasherstellers beachten.
B24: =taal!A1167 -> 
B25: =taal!A1172 -> In dieses Programm haben wir unsere Kentnisse und Erfahrung mit Climax® maximal integriert.
B26: =taal!A1173 -> Im Hinblick auf die erweiterten Möglichkeiten um persönliche Änderungen durchzuführen, empfehlen wir
B27: =taal!A1174 -> dem Benutzer, die Angebote gründlich zu prüfen.
B28: =taal!A1175 -> 
B29: =taal!A1176 -> Der Installateur soll sich beim Architekten oder Ingenieur informieren, ob die mitgelieferten Mauer- und Bodenverankerungen
B30: =taal!A1177 -> für die Fassade oder den Boden, wo die Überdachung montiert wird, geeignet sind.
B31: =taal!A1178 -> 
B32: =taal!A1179 -> Nutzungsbedingungen
B33: =taal!A1180 -> Bitte achten Sie darauf, immer die neueste Version zu installieren und zu verwenden.
B34: =taal!A1181 -> Skylux registriert alle Benutzer und informiert diese, wenn eine neue Preisliste auf der Webseite veröffentlicht wird.
B35: =taal!A1182 -> Sicherheitshalber erlischt dieses Programm automatisch am:
B36: =pckeuze!A2 -> 2024-04-30
B37: =taal!A1183 -> Der Benutzer ist automatisch damit einverstanden, dass er Skylux nicht aufgrund dieses Programms verfolgen kann.
B38: =taal!A1184 -> 
B41: X | C41: =taal!A1186 -> Hiermit erklärt der Benutzer sich mit den Benutzungsbedingungen einverstanden ("X" ausfüllen).

Sheet template
B1: =taal!A2 -> Geben Sie Ihre Firmendaten ein
A2: =taal!A3 -> Name | B2: Skylux
A3: =taal!A4 -> Straße | B3: Spinnerijstraat 100
A4: =taal!A5 -> PLZ + Gemeinde | B4: BE 8530 Harelbeke
A5: =taal!A6 -> tel. | B5: tel. : 0032 (0)56 20.00.00
B6: =IF('input data'!C2="","","tel. :"&'input data'!C2&" (direct)") -> 
A7: =taal!A281 -> kontakt | B7: ='input data'!B257 -> 0
A8: e-mail : | B8: ='input data'!F257 -> 0
B10: =taal!A7 -> Fügen Sie Ihr Logo in das unten stehende Feld ein
A11: logo
D14: =taal!A1229 -> TAUSCHRATE / €
B15: =taal!A1228 -> WÄHRUNG | D15: =INDEX(C25:C39,A23) -> 1 | E15: =D24 -> €
B16: =taal!A208&" "&taal!A48 -> RABATT PROFILE | C16: 0
B17: =taal!A208&" "&taal!A47 -> RABATT KUNSTSTOFFPLATTEN | C17: 0
B18: =taal!A186&" ±" -> BRUTTOPREIS ± | C18: 0
A23: 1
A24: =INDEX(A25:A39,A23) -> EUR | B24: =INDEX(B25:B39,A23) -> Euro | C24: =INDEX(C25:C39,A23) -> 1 | D24: =INDEX(D25:D39,A23) -> €
A25: EUR | B25: Euro | C25: 1 | D25: € | E25: (13/09/2023)
A26: USD | B26: VS-dollar | C26: 1.0713 | D26: $
A27: BGN | B27: Bulgaarse lev | C27: 1.9558 | D27: лв
A28: CZK | B28: Tsjechische kroon | C28: 24.605 | D28: Kč
A29: DKK | B29: Deense kroon | C29: 7.4601 | D29: kr
A30: GBP | B30: Brits pond | C30: 0.85925 | D30: £
A31: HUF | B31: Hongaarse forint | C31: 385.08 | D31: ft
A32: PLN | B32: Poolse zloty | C32: 4.66 | D32: zł
A33: RON | B33: Nieuwe Roemeense leu | C33: 4.971 | D33: lei
A34: SEK | B34: Zweedse kroon | C34: 11.8875 | D34: kr
A35: CHF | B35: Zwitserse frank | C35: 0.9561 | D35: CHF
A36: NOK | B36: Noorse kroon | C36: 11.454 | D36: kr
A37: HRK | B37: Kroatische kuna | C37: 7.537 | D37: kn
A38: RUB | B38: Russische roebel | C38: 117.201 | D38: ₽
A39: TRY | B39: Turkse lira | C39: 28.8155 | D39: ₺

Sheet input data
G1: =" "&taal!A279 -> KUNDE
B2: 4/2024 | G2: =" "&taal!A280 -> KONTAKT | P2: =INDEX(P3:P9,taal) -> Sehr geehrte Damen und Herren, | Q2: =INDEX(Q3:Q9,taal) -> Anbei finden Sie unser Angebot fur eine Climalux Überdachung. | V2: =INDEX(V3:V9,taal) -> mit freundlichen Grüßen | X2: =IF(B256=1,"",B257) -> 0
G3: =" "&taal!A9 -> KOMMISSION | N3: =D5 -> 0 | P3: Geachte, | Q3: ="In bijlage sturen wij onze offerte voor een "&IF(type<3,"Climax dak.",IF(type=3,"Climalux dak.","Climalite dak.")) -> In bijlage sturen wij onze offerte voor een Climalux dak. | V3: Met vriendelijke groeten
B4: =taal!A1 -> SPRACHE | G4: =" "&taal!A299 -> LIEFERFRIST | P4: Bonjour, | Q4: ="En annexe vous trouvez notre offre de prix pour une toiture "&IF(type<3,"Climax.",IF(type=3,"Climalux .","Climalite.")) -> En annexe vous trouvez notre offre de prix pour une toiture Climalux . | V4: meilleures salutations
B5: =taal!A326&" / "&taal!A327 -> ANGEBOT / AUFTRAGSBESTÄTIGUNG | G5: EMAIL | P5: Sehr geehrte Damen und Herren, | Q5: ="Anbei finden Sie unser Angebot fur eine "&IF(type<3,"Climax Überdachung.",IF(type=3,"Climalux Überdachung.","Climalite Überdachung.")) -> Anbei finden Sie unser Angebot fur eine Climalux Überdachung. | V5: mit freundlichen Grüßen
B6: =taal!A163 -> CLIMAFAST VORSCHLAG | D6: =taal!A300 -> GÜLTIGKEIT ANGEBOT : 1 MONAT | P6: Dear, | Q6: ="Please find our offer of a "&IF(type<3,"Climax roof ",IF(type=3,"Climalux roof","Climalite roof ")&"in the attached file.") -> Please find our offer of a Climalux roofin the attached file. | V6: best regards
B7: =taal!A162 -> MWST % ANGEBEN | F7: =IF(I113=0,"",I113) ->  | P7: Witam serdecznie, | Q7: ="W załączniku przesyłam ofertę na zadaszenie "&IF(type<3,"Climax roof ",IF(type=3,"Climalux roof","Climalite roof ")) -> W załączniku przesyłam ofertę na zadaszenie Climalux roof | V7: Pozdrawiam serdecznie,
B8: =taal!A19 -> PULTDACH ODER SATTELDACH | F8: =IF(I115=0,"",I115) ->  | P8: Kedves | Q8: ="Keresse ajánlatunkat a "&IF(type<3,"Climax tető ",IF(type=3,"Climalux tető ","Climalite tető ")&"a csatolt fájlban.") -> Keresse ajánlatunkat a Climalux tető a csatolt fájlban. | V8: Üdvözlettel
B9: =taal!A21 -> TYP DER ÜBERDACHUNG | D9: RAL | E9: =IF(AND(type=5,OR(E11="",E11=0,poedercode_out="",poedercode_out=0)),taal!A16&" ?",taal!A16) -> PULVERKODE | P9: Rakas, | Q9: Katso Climalux-kattotarjouksemme oheisesta tiedostosta. | V9: parhain terveisin
B10: =taal!A69&" "&taal!A22 -> FARBWAHL AUßENSEITE | D10: 7016ST | E10: 029/71334 | G10: =IF(RALcode_out=0,taal!$A$18,"") -> 
B11: =IF(type=2,taal!A69&" "&taal!A23,"") ->  | D11: =0 -> 0 | E11: 0 | G11: =IF(IF(type=2,D11=0),taal!$A$18,"") -> 
B12: =taal!A28 -> ANBAU | D12: =articles!L2&IF(ralstandout=1," "&IF(type<>2,taal!A747,""),"") -> RAL7016ST
B13: =IF(AND(type=3,type_input=3),taal!A752,taal!A99) -> UNTERSTÜTZUNG GX
B14: =+taal!A334 -> MAUERPROFIL | C14: =IF(zadel=1,IF(muur<5,taal!A43,taal!A45),taal!A44) -> AUFBAU GEGEN WANDE | D14: =IF(AND(zadel=1,muur>4),OO!A865,"") -> 
B15: =IF(steun=1,"",taal!A70) -> PFEILERWAHL / HÖHE UNTER RINNE Hg | D15: =2500 -> 2500 | E15: =" "&taal!A535 -> PFEILER AUF Maß | G15: =IF(INDEX(E184:E190,paal)=taal!A941,taal!A313,IF(AND(SUM(articles!T218:T227)=0,OR(type=1,type=2),E49>0),taal!A534,IF(AND(calcul!F1135=1,calcul!F1134>3250),"MAX "&3250-IF(muur=6,400,0)&" MM",""))) -> 
B16: =taal!A204 -> ABMESSUNGEN WINTERGARTEN | C16: =taal!A115 -> WINTERGARTENBREITE B (mm) | D16: =0 -> 0 | F16: =IF(Breedte<250,taal!A118,IF(Breedte>105000,taal!A1221,IF(nul=0,"*",IF(AND(muur>2,muur<5,goot=1)=TRUE,taal!A709&" "&Breedte+10&" mm",IF(AND(muur>2,muur<5,goot>1)=TRUE,taal!A709&" "&Breedte+10&" mm",IF(AND(muur=1,type=2)=TRUE,taal!A710&Breedte+2*12&" mm",IF(AND(muur=2,type=2)=TRUE,taal!A710&Breedte+12&" mm","*"))))))) -> BREITE ?
B17: =IF(zadel=2,taal!A136,"") ->  | C17: =IF(type_input=4,taal!$A$124,taal!$A$134) -> TIEFE D : PFEILER INKL | D17: =0 -> 0 | F17: =IF(Diepte<250,taal!A121,IF(type_input=4,IF(Diepte-E17>550,"min "&Diepte-550,IF(Diepte-E17<160,"max "&Diepte-160,IF(OR(E17=0,E17=""),taal!A125&" ?",""))),"")) -> TIEFE ? | G17: =IF(ISNA(calcul!D658)=TRUE,"",IF(calcul!D658=0,""&taal!A200,IF(AND(type_input<>4,D17>0),taal!A135,IF(AND(type_input=4,OR(E17=0,E17=""))," "&taal!A133,""))))&" "&IF(AND(Diepte>100,calcul!E44=0),taal!A199,"")&IF(AND(type=3,calcul!B7>5950)," "&taal!A827,"") -> 
B18: =IF(type=3,taal!A283&" 5° ->10°"&IF(calcul!D7<>""," !",""),IF(AND(OR(GD<5,GD=7),zadel=2),taal!A283&" min 20° - max 45°"&IF(calcul!D7<>""," !",""),IF(AND(OR(GD<5,GD=7),OR(plaat=2,plaat=3)),taal!A283&" min 5° - max 45°"&IF(calcul!D7<>""," !",""),IF(AND(OR(GD<5,GD=7),plaat=1),taal!A283&" min 5° - max 45°"&IF(calcul!D7<>""," !",""),IF(AND(GD>4,zadel=2),taal!A283&" 20°"&IF(calcul!D7<>""," !",""),IF(AND(GD>4,OR(plaat=2,plaat=3)),taal!A283&" min 5° - max 20°"&IF(calcul!D7<>""," !",""),IF(AND(GD>4,plaat=1),taal!A283&" min 5° - max 20°"&IF(calcul!D7<>""," !","")))))))) -> WINKEL 5° ->10° | D18: =5 -> 5 | E18: =IF(maat2<>2," "&ROUND(Helling,2)&"° "," ")&IF(AND(muur>4,calcul!B1138>3250),taal!A1222,"") -> 
C19: =IF(zadel=2,taal!A290,IF(muur>4,taal!A291,taal!A289))&" (mm)" -> HÖHE INKL. WANDPROFIL (mm) | D19: =IF(OR(steun=2,steun=4),IF(muur<5,ROUND(paalhoogte+calcul!D3+calcul!H710,0),calcul!B1136)," ?") -> 2645
C20: =IF(OR(steun=1,steun=3),"",IF(OR(type_input=4,muur>4,zadel=2),taal!A120,taal!A119)) -> TIEFE "d" BIS PFEILER (mm) | D20: =IF(AND(type_input=4,E17<>""),E17-110,(Diepte+IF(muur>4,3))*zadel) -> 0
B21: =taal!A60 -> PLATTENTYP | D21: =IF(nul=0,"*",IF(plaat=1,IF(calcul!B4>KS!C21*10,taal!A292,IF(rest=1,"*"," "&calcul!B60&" mm "&calcul!A60))," "&taal!A1030)) -> * | F21: =IF(AND(plaat=1,KS!B82=0,Helling<5),taal!A285,"") -> 
B22: =IF(AND(type=3,OR(D22>32,D22<8)),taal!A183,IF(AND(type<>3,OR(D22>34,D22<6)),taal!A183,"")) ->  | C22: =IF(plaat>1,taal!A182,taal!A66) -> PLATTENDICKE (mm) | D22: 16 | E22: =IF(OR(plaat=2,plaat=3),calcul!L40&" "&calcul!K41&" "&calcul!K42&calcul!K43,IF(AND(plaat>1,dik>7.9,D28<1000)=TRUE,taal!A194,IF(AND(type=3,dik>16,dik<32),"CLIMALUX 16 /32 MM",""))) -> 
C23: =IF(plaat=1,taal!A64,"*") -> PLATTENBREITE (mm) | D23: 980 | E23: =IF(AND(plaat=1,E133="")=TRUE," "&taal!A197,"") -> 
B24: =taal!A67 -> BREITEVERTEILUNG VERGLASUNG | D24: =IF(nul=0,"*",IF(AND(rest=2,ROUND(calcul!D61,0)=-22)=TRUE,"*",IF(rest=1,ROUND(calcul!B63,0),IF(rest=2,calcul!D61,IF(rest=3,calcul!D62,"*"))))) -> * | E24: =IF(nul=0,"*",IF(AND(calcul!B60=Breedte,rest=3)=TRUE,taal!A207,IF(AND(rest=2,calcul!D61=-22)=TRUE,"",IF(AND(rest=2,calcul!D61<60)=TRUE,taal!A190,IF(AND(rest=2,calcul!D61<250)=TRUE,taal!A191,IF(AND(plaat=1,rest=1)=TRUE,taal!A192,"")))))) -> *
B25: =IF(AND(rest=1,calcul!B63>'input data'!D23+0.5,plaat=1)=TRUE,taal!A200,taal!A178) -> ANZAHL DER VERTEILUNGEN | C25: =IF(AND(plaat=1,rest<>1),IF(Breedte>999,calcul!B56&" + ","")&calcul!B57,taal!A178&" (min "&CEILING((Breedte-60)/IF(plaat=1,D23+22,772),1)&") =>") -> 2 | D25: =7 -> 7 | E25: =IF(plaat=1,IF(nul=0,"",IF(AND(D24<>"*",D23<D24),taal!A826,"")),IF(D24="*","",IF(D24>750,taal!A825,""))) -> 
B26: =IF(plaat>1,"",taal!A111) -> KUNSTSTOFFPLATTENWAHL | D26: =IF(ISNA(H104)=TRUE,"",IF('input data'!H104=2," ! OFFER : "&KS!DM115&" €/m²",""))&IF(KS!C23=0,taal!A962&" ","")&IF(AND(KS!C25=1,D28>500),taal!A200,IF(KS!C25=1,taal!A963,"")) -> 
B27: =IF(plaat=1,taal!A773,"") -> BEHANDLUNG PLATTEN
B28: =taal!A800 -> BESTIMMEN SIE DIE BELASTUNG (N/m²) | C28: =taal!A193 -> BELASTUNG SCHNEE UND VERGLASUNG | D28: 650 | E28: =IF(AND(plaat>1,dik>7.9,D28<550)=TRUE,taal!A195,"") -> 
B29: =taal!A781 -> STATIK RINNE UND TRÄGER | D29: =IF(INDEX(E240:E243,statik)=taal!A941,taal!A311,IF(AND(OR(plaat=2,plaat=3),graphb!A61=1,type=2),taal!A779&IF(OR(taal=3,taal=4,taal=5,taal=6,taal=7),""," "),"")) -> 
B30: =taal!A780 -> BERECHNET NACH DIN 1055-5:2005-07/Eurocode ENV 1991-2-3 | D30: =IF(INDEX(E240:E243,statik)=taal!A941,taal!A311,"") -> 
B31: =taal!A329 -> TRÄGERWAHL | D31: =graphb!B101 -> J | E31: =graphb!B100 -> 
B32: =taal!A57 -> ABSCHLUSS
B33: =IF(type>2,"*",taal!A173) -> *
B34: =IF(type<>4,taal!A838,"") -> SET MIT 3 LED-SPOTS FÜR TRÄGER | E34: =IF(AND(type<>4,OR(spots=1,spots=2),Diepte>1499,calcul!B731<=5970),IF(OR(D34="",D34<2,D34>calcul!B55-1),taal!A845,IF(E247=TRUE,taal!A839,"")),"") -> 
B35: =IF(AND(type<>4,spots<>3),taal!A873,"") -> 
B36: =taal!B270 -> RINNENTRÄGERWAHL | D36: =graphb!H99 ->  | E36: =IF(INDEX(E206:E213,GD)=taal!A941," ???",IF(GD=7,"",IF(type<3,IF(GD<5,OO!A861,OO!A859),IF(type=3,IF(OR(GD=3,GD=4),OO!A865,IF(OR(GD=5,GD=6),OO!A867,OO!A863)),OO!A869)))) -> MAX. ACHSABSTAND 7000 mm 1 STÜTZPUNKTE
B37: =IF(OR(GD=5,GD=6),taal!A105,taal!A105) -> RINNENWAHL | D37: =IF(OR(GD=5,GD=6)=TRUE,"",IF(nul=0,"*",IF(INDEX(E176:E179,B176)=taal!A941,taal!A312,""))) -> * | E37: =IF(E246=TRUE,taal!A538,"") -> 
B38: =IF(AND(type=3,OR(goot=3,goot=5)),"*",taal!A345) -> AUFSATZSTÜCK RINNE | D38: =graphb!H100 -> 
B39: =IF(GD=5,taal!A828,IF(type=3,taal!A829,"")) -> LED FÜR GX/GXLX
B40: =taal!A170 -> DISTANZHALTER | D40: =IF(OR((AND(af=2,type=2)=TRUE),AND(af=2,(OR(plaat=2,plaat=3)))),taal!A205,"") -> 
B41: =taal!A171 -> DISTANZHALTER AUF MASS
B42: =IF(type<>2,taal!A894,"*") -> DREIECK- UND SEITEN-FESTVERGLASUNG
B43: =IF(AND(type=3,GD<3,goot=4,gr=2,Breedte<=7000,calcul!D3+IF(dik=32,173,154)<=750),taal!A880,"*") -> ATTIKA CLIMACROWN | D43: =IF(AND(type=3,goot=4,gr=2,Climacrown=2),IF(Breedte>7000,taal!A880&" "&taal!A309&" . "& taal!A117&" > 7000 mm",IF(calcul!D3+154<=750,"H = "&Climacrown!C11&" mm",taal!A881)),"") -> 
B44: =IFERROR(IF(AND(D33<=7000,type<>2),"CLIMAGLIDE","*"),"*") -> CLIMAGLIDE | D44: =IF(graphb!H98>20,taal!A805,"") -> 
B45: =IFERROR(IF(AND(type<>4,pckeuze!B142=0,SCbreedtefront1<=6000),taal!A1073,"*"),"*") -> SENKRECHTMARKISEN | D45: =IF(AND(paalhoogte>3000,screen=2)," "&taal!A1222,IF(AND(scraantalfront1>0,screen=2),taal!A1224&" : "&'V-Screens'!C24&" mm","")) -> 
B46: =IF(Diepte>=6000,taal!A1115,"*") -> *
B47: =taal!A772 -> ZERSÄGEN AUF MAß | D47: =IF((verzagen=1),"%","") -> % | E47: =0 -> 0 | G47: =IF(zaagcode_profielen=4,"O","") -> 
B48: =IF(type=3,taal!A616,"") -> ZUBEHÖR CLIMALUX | E48: =IF(template!C16+D49+D51+D52+D53+D54+D55+D56=0,taal!A228,taal!A229&IF(E47>0,"-"&E47*100&"%",""))&IF(D49<>0,"",IF(template!C16=0,""," !")) -> BRUTTO | F48: =IF(template!A23>1,template!A24&" "&wisselkoers&" / €","") -> 
A49: 0 | B49: =IF(type=3,taal!A211,IF(type<3,taal!A210,taal!A212))&IF(template!C18=0,""," !") -> CLIMALUX PROFILE BRUTTO | C49: =IF(template!$C$18=0,articles!O464,articles!O464*(100+template!$C$18*100)/100) -> 0 | E49: =IF(D49<>0,articles!W464*(1-D49)*(1-$E$47)*(1+INDEX(E195:E205,percent))*wisselkoers,articles!W464*(1-$E$47)*(1-template!C16)*(1+template!C18)*wisselkoers*(1+INDEX(E195:E205,percent))) -> 0 | F49: =valuta -> €
B50: =taal!A541&" / "&taal!A543 -> FARBWECHSEL / SPEZIELLER PULVERCODE | C50: =IF(template!$C$18=0,articles!O472,articles!O472*(100+template!$C$18*100)/100) -> 0 | E50: =C50*(1+INDEX(E195:E205,percent))*wisselkoers -> 0 | F50: €
B51: =IF(OR(spots<3,pc=2),taal!A220&IF(kabelgoot=2," "&taal!A879,""),"") ->  | C51: =IF(template!$C$18=0,articles!O499,articles!O499*(100+template!$C$18*100)/100) -> 0 | E51: =IF(D51<>0,((articles!O499)*(1-D51)*(1-$E$47)*(1+INDEX(E195:E205,percent))*wisselkoers),(articles!O499*(1-$E$47)*(1-template!C16)*(1+template!C18)*(1+INDEX(E195:E205,percent))*wisselkoers)) -> 0 | F51: €
B52: =IF(OR(Climaglide=2,AND(pc=2,SUM(Climaglide!B27:E27)>0)),taal!A226,"") ->  | C52: =IF(template!$C$18=0,articles!AD585,articles!AD585*(1+template!$C$18)) -> 0 | E52: =IF(D52<>0,articles!AD585*(1-D52)*(1+INDEX(E195:E205,percent))*wisselkoers,articles!AD585*(1-template!C16)*(1+template!C18)*(1+INDEX(E195:E205,percent))*wisselkoers) -> 0 | F52: €
B53: =IF(AND(type=3,type_input=3,Climacrown=2),taal!A218,"") ->  | C53: =IF(template!$C$18=0,articles!O622,articles!O622*(100+template!$C$18*100)/100) -> 0 | E53: =IF(D53<>0,articles!O622*(1-D53)*(1-$E$47)*(1+INDEX(E195:E205,percent))*wisselkoers,articles!O622*(1-$E$47)*(1-template!C16)*(1+template!C18)*(1+INDEX(E195:E205,percent))*wisselkoers) -> 0 | F53: €
B54: =IF(OR(articles!O637>0,articles!O672>0,AND(driehoek>1,'Calcul triangle'!D19>0)),taal!A221,"") ->  | C54: =IF(template!$C$18=0,articles!AD671+articles!AD636,(articles!AD671+articles!AD636)*(1+template!$C$18)*(1+template!$C$18)) -> 0 | E54: =IF(D54<>0,(articles!AD671++articles!AD636)*(1-D54)*(1-$E$47)*(1+INDEX(E195:E205,percent))*wisselkoers,(articles!AD671+articles!AD636)*(1-$E$47)*(1-template!C16)*(1+template!C18)*(1+INDEX(E195:E205,percent))*wisselkoers) -> 0 | F54: €
B55: =IF(AND(driehoek>1,'Calcul triangle'!D129>0),taal!A222,"") ->  | C55: =IF(template!$C$18=0,articles!AD696,articles!AD696*(1+template!$C$18)) -> 0 | E55: =IF(D55<>0,articles!AD696*(1-D55)*(1-$E$47)*(1+INDEX(E195:E205,percent))*wisselkoers,articles!AD696*(1-$E$47)*(1-template!C16)*(1+template!C18)*(1+INDEX(E195:E205,percent))*wisselkoers) -> 0 | F55: €
B56: =IF(SUM('V-Screens'!B30:E30)>0,taal!A223,"") ->  | C56: =IF(template!$C$18=0,articles!AD774,(articles!AD774)*(1+template!$C$18)) -> 0 | E56: =IF(D56<>0,C56*(1-D56)*(1+INDEX(E195:E205,percent))*wisselkoers,C56*(1-template!C16)*(1+template!C18)*(1+INDEX(E195:E205,percent))*wisselkoers) -> 0 | F56: € | G56: =IF(D56>0.4,taal!A209,"") -> 
B57: =IF(SUM('H-Screen'!$B$32:$C$32)>0,taal!A224,"") ->  | C57: =IF(template!$C$18=0,articles!AD810,(articles!AD810)*(1+template!$C$18)) -> 0 | E57: =IF(D57<>0,C57*(1-D57)*(1+INDEX(E195:E205,percent))*wisselkoers,C57*(1-template!C17)*(1+template!C19)*(1+INDEX(E195:E205,percent))*wisselkoers) -> 0 | F57: € | G57: =IF(D57>0.4,taal!A209,"") -> 
B58: =IF(articles!N472=TRUE,taal!A943,IF(A256>0,taal!A942,"")) -> 
B59: =IF(plaat>1,taal!A68,"") ->  | E59: =IF(template!C17+D60+D61=0,taal!A228,taal!A229)&IF(OR(D60<>0,D61<>0),"",IF(template!C17=0,""," !")) -> BRUTTO | F59: =IF(template!A23>1,template!A24&" "&wisselkoers&" / €","") -> 
B60: =IF(plaat=1,taal!A213,"")&IF(template!C18=0,""," !") -> KUNSTSTOFFPLATTEN DACH BRUTTOPREIS | C60: =IF(template!$C$18=0,IF('input data'!H104=1,'input data'!H106,'input data'!I106),IF('input data'!H104=1,'input data'!H106,'input data'!I106)*(1+template!$C$18)) -> 0 | E60: =IF(D60<>0,C60*(1-D60)*(1+INDEX($E$195:$E$205,percent))*wisselkoers,C60*(1-template!$C$17)*(1+INDEX($E$195:$E$205,percent))*wisselkoers) -> 0 | F60: =valuta -> €
B61: =IF(SUM(articles!O829:O833)>0,taal!A214,"")&IF(template!C18=0,""," !") ->  | C61: =IF(OR(AND(calcul!B868>0,calcul!B893>0),DRbegl>2,Wbegl>2),'input data'!H107,0)*IF(template!$C$18=0,1,(1+template!$C$18)) -> 0 | E61: =IF(D61<>0,C61*(1-D61)*(1+INDEX($E$195:$E$205,percent))*wisselkoers,C61*(1-template!$C$17)*(1+INDEX($E$195:$E$205,percent))*wisselkoers) -> 0 | F61: =valuta -> €
B62: =INDEX($E$159:$E$162,afwpl) -> ZERSÄGT AUF MAß + ABGEKLEBT BB/BT | C62: =IF(AND(pc=1,afwpl>1,plaat=1),articles!W835,0) -> 0 | E62: =IF(C62="",0,C62*(1-D62)*(1+INDEX('input data'!E195:E205,percent))*wisselkoers) -> 0 | F62: =valuta -> €
B63: =articles!A834 ->  | C63: =IF(KS!B83=1,articles!W834,0) -> 0 | E63: =IF(C63="",0,C63*(1-D63)*(1+INDEX('input data'!E195:E205,percent))*wisselkoers) -> 0 | F63: =valuta -> €
B64: =IF(C64="","",taal!A306&" "&taal!A272) ->  | C64: =IF(ISNUMBER(articles!O848)=TRUE,articles!O848,"") ->  | E64: =IF(C64<>"",C64*(1-D64),0)*(1+INDEX('input data'!E195:E205,percent))*wisselkoers -> 0 | F64: =valuta -> € | G64: =IF(C64="","",IF(INDEX(E195:E205,percent)>0.001," "&taal!A230&" "&INDEX(E195:E205,percent)*100&" %","*")) -> 
B65: =+taal!A232 -> TRANSPORT / PALETTE | C65: =IF(ISNUMBER(articles!O849)=TRUE,articles!O849/(1-D65/100),"") ->  | F65: =IF(transportkost<>"",valuta,"") ->  | G65: =IF(C65="","",IF(INDEX(E197:E205,B196)>0.001," "&taal!A235&" "&INDEX(E197:E205,B196)*100&" %","*")) -> 
B67: =taal!A187 -> GESAMTPREIS | D67: =+E48 -> BRUTTO | E67: =E49+E50+E51+E52+E53+E54+E55+E56+E57+E60+E61+E62+E63+E64+E65 -> 0 | F67: =valuta -> € | G67: =IF(INDEX(E195:E205,percent)>0.001," "&taal!A230&" "&INDEX(E195:E205,percent)*100&" %","*") -> *
A69: =taal!A330 -> BEMERKUNGEN
A78: =taal!A1176&" "&taal!A1177 -> Der Installateur soll sich beim Architekten oder Ingenieur informieren, ob die mitgelieferten Mauer- und Bodenverankerungen für die Fassade oder den Boden, wo die Überdachung montiert wird, geeignet sind.
A79: copyright © climafast all rights reserved | C79: version | D79: Climafast 18-04-2024 Int.
D87: 1 | E87: =taal!C8 -> NEDERLANDS
D88: 2 | E88: =taal!D8 -> FRANCAIS
B89: 3 | C89: taal | D89: 3 | E89: =taal!E8 -> DEUTSCH | H89: tijd | I89: =pckeuze!A1 -> 2024-04-18T15:33:19.580
D90: 4 | E90: =taal!F8 -> ENGLISH | I90: =pckeuze!A1 -> 2024-04-18T15:33:19.580
D91: 5 | E91: POLSKI | G91: Clx 6
D92: 6 | E92: MAGYAR | G92: Clx M6
D93: 7 | E93: SUOMI (FINLAND)
B94: =1 -> 1 | C94: pc | D94: 1 | E94: =taal!A54 -> JA
D95: 2 | E95: =taal!A55 -> NEIN | G95: Buiten | H95: binnen | I95: Standaard Buiten | J95: Standaard Binnen | K95: Trendkleur RAL
B96: =4 -> 4 | C96: ral | D96: 1 | E96: =taal!A14 -> ROH | F96: =IF(type=2,taal!B14,"") ->  | G96: =taal!C14 -> BRUT | H96: =taal!C14 -> BRUT | I96: =IF(ral=2,9010,IF(ral=4,"7016ST",IF(ral=5,"XXXX","XXXX"&IF(ral=6,"ST","")))) -> 7016ST | J96: =IF(ralin=2,9010,IF(ralin=4,"RAL7016ST",IF(B99=7,"XXXX","YYYY"&IF(ralin=6,"ST","")))) -> RAL7016ST | K96: =IF(AND(OR(ral=5,ral=6),K105<>0,calcul!B1165<>0),1,0) -> 0
B97: =IF(type=2,B98,ral) -> 4 | C97: ralin | D97: 2 | E97: =taal!A10 -> RAL 9010 Weiß (RWB964) | F97: =IF(type=2,taal!B10,"") ->  | G97: RAL9010 | H97: RAL9010 | I97: =IF(ral=5,9001,"") ->  | J97: =IF(ralin=5,9001,"") ->  | K97: =IF(AND(type<>2,ralstandout=1),1,IF(AND(type=2,B99=7),ralstandout,IF(AND(OR(ralin=5,ralin=6),K106<>0,calcul!D1165<>0),1,0))) -> 0
B98: =IF(B99=7,ral,B99) -> 4 | D98: 3 | E98: =taal!A941 -> andere Wahl! | F98: =IF(type=2,taal!A941,"") ->  | G98: RAL9001 | H98: =taal!A941 -> andere Wahl! | I98: =IF(ral=6,"3004ST","") ->  | J98: =IF(ralin=6,"3004ST","") ->  | K98: RAL ST buiten
B99: =7 -> 7 | D99: 4 | E99: =taal!A12 -> RAL 7016ST Anthrazitgrau (029/71334) | F99: =IF(type=2,taal!A13,"") ->  | G99: =taal!A13 -> RAL7016ST | H99: =taal!A13 -> RAL7016ST | I99: =IF(ral=6,"7039ST","") ->  | J99: =IF(ralin=6,"7039ST","") ->  | K99: =IF(ISERROR(SEARCH("ST",UPPER(RALcode_out),1)),0,1) -> 1
D100: 5 | E100: =UPPER("RALXXXX") -> RALXXXX | F100: =IF(type=2,"RALYYYY","") ->  | G100: =UPPER("RAL"&""&RALcode_out) -> RAL7016ST | H100: =UPPER("RAL"&""&IF(type<>2,RALcode_out,$D$11)) -> RAL7016ST | I100: =IF(ral=6,"8014ST","") ->  | J100: =IF(ralin=6,"8014ST","") ->  | K100: =IF(AND(RALcode_out=8019,poedercode_out="AE70018870125"),8019,"") -> 
D101: 6 | E101: =UPPER("STRUCT RALXXXXST") -> STRUCT RALXXXXST | F101: =IF(type=2,"STRUCT RALYYYYST","") ->  | G101: =UPPER("RAL"&""&RALcode_out) -> RAL7016ST | H101: =UPPER("RAL"&""&IF(type<>2,RALcode_out,$D$11)) -> RAL7016ST | I101: =IF(ral=6,"9005ST","") ->  | J101: =IF(ralin=6,"9005ST","") ->  | K101: =IF(RALcode_out=0,0,IF(OR(poedercode_out="",poedercode_out=0),1,0)) -> 0
F102: =IF(type=2,taal!A15,"") ->  | H102: =taal!B15 -> = AUßENFARBE | I102: =IF(ral=6,"9006ST","") ->  | J102: =IF(ralin=6,"9006ST","") ->  | K102: =IF(AND(type=2,B99<>7,OR(E11="",E11=0)),1,0) -> 0
E103: =taal!A24 -> PULTDACH | I103: =IF(ral=6,"9007ST","") ->  | J103: =IF(ralin=6,"9007ST","") -> 
B104: =1 -> 1 | C104: zadel | E104: =taal!A25 -> SATTELDACH | H104: =IF(ISNA(KS!DM115)=TRUE,"",IF(KS!DM115="",1,2)) -> 1 | I104: =IF(ral=6,"9009ST","") ->  | J104: =IF(ralin=6,"9009ST","") ->  | K104: Trendkleur RAL
B105: =B106 -> 3 | C105: type | D105: 1 | E105: =taal!A27 -> CLIMAX THERMISCH NICHT GETRENNT | I105: =IF(ral=6,"9010ST","") ->  | J105: =IF(ralin=6,"9010ST","") ->  | K105: =IFERROR(VLOOKUP(RALcode_out,$I$97:$I$105,1,FALSE),0) -> 0
B106: =IF(type_input=5,1,IF(OR(type_input=4,type_input=6),3,type_input)) -> 3 | D106: 2 | E106: =taal!A26 -> CLIMAX THERMISCH GETRENNT | H106: =IF(plaat=1,articles!O826,"") -> 0 | I106: =IF(ISNA(KS!DM115)=TRUE,0,IF(KS!DM115="",0,ROUND(articles!O826,2))) -> 0 | K106: =IFERROR(VLOOKUP(D11,$J$97:$J$105,1,FALSE),0) -> 0
B107: =3 -> 3 | D107: 3 | E107: =IF(zadel=1,taal!A744,IF(zadel=2,"*","*")) -> CLIMALUX | H107: =IF(OR(AND(calcul!B868>0,calcul!B893>0),DRbegl>2,Wbegl>2),articles!O833,"") -> 0
D108: 4 | E108: =IF(zadel=1,taal!A745,IF(zadel=2,"*","*")) -> CLIMALUX MIT DACHÜBERSTAND | H108: =IF('input data'!H106="",0,IF(D60<>0,('input data'!H106)*(1-'input data'!D60)*(1+INDEX('input data'!E195:E205,percent)),('input data'!H106)*(1-template!C17)*(1+INDEX('input data'!E195:E205,percent)))) -> 0 | I108: =IF('input data'!H106="",0,'input data'!I106*(1-'input data'!D60)*(1+INDEX('input data'!E195:E205,percent))) -> 0
D109: 5 | E109: CLIMAX PANORAMA
D110: 6 | E110: =IF(zadel=1,"CLIMALUX HORIZON","*") -> CLIMALUX HORIZON
I112: aantal set
B113: =1 -> 1 | C113: muur | D113: 1 | E113: =IF(zadel=1,taal!A29,IF(AND(zadel=2,type=3),taal!$A$941,taal!A36)) -> GEGEN 1 MAUER | I113: =sets!X2 -> 0
D114: 2 | E114: =IF(zadel=1,taal!A30,IF(AND(zadel=2,type=3),taal!$A$941,taal!A39)) -> 1 MAUER UND 1 SEITENMAUER | I114: aantal art. | J114: aantal art profielen.
D115: 3 | E115: =IF(zadel=1,taal!A31,IF(AND(zadel=2,type=3),taal!$A$941,taal!A40)) -> 1 MAUER UND 2 SEITENMAUERN | I115: =COUNT(articles!N3:N471,articles!N475:N488,articles!N502:N586,articles!N588:N621,articles!N625:N636,articles!N640:N671,articles!N675:N696,articles!N704:N773,articles!N812:N835,articles!A838:B847,articles!C838:N847,Climacrown!N16:N50,'Triangle 25 mm'!N15:N31) -> 0 | J115: =COUNT(articles!N3:N35,articles!N45:N85,articles!N97:N148,articles!N150:N256,articles!N269:N286,articles!N309:N317,articles!N475:N480,articles!N489:N492,articles!N588:N597,articles!N625:N629,articles!N640:N657,articles!N675:N684,Climacrown!N16:N22,'Triangle 25 mm'!N15:N19) -> 0
D116: 4 | E116: =IF(zadel=1,taal!A32,IF(AND(zadel=2,type=3),taal!$A$941,taal!A41)) -> ZWISCHEN 4 MAUERN | I116: zaagcode
D117: 5 | E117: =IF(AND(zadel=1,OR(type_input=5,type=3)),taal!A33,taal!A941) -> FREISTEHEND MIT BETONANKER | I117: =IF(AND(pc=1,'assembly codes'!V60+'assembly codes'!W60>0),4,IF(verzagen=1,IF(I113+J115=0,1,3),IF(I113+J115=0,0,2))) -> 1 | J117: 0 | K117: niet verzaagd, geen aanpassingen
D118: 6 | E118: =IF(AND(zadel=1,OR(type_input=5,type=3)),taal!A34,taal!A941) -> FREISTEHEND MIT PFOSTEN IN BETONFUNDAMENTEN | J118: 1 | K118: verzaagd, geen aanpassingen
B119: 1 | C119: maat 1 (alleen diepte) | E119: =taal!$A$119 -> TIEFE "d" BIS PFEILER (mm) | G119: =taal!A115 -> WINTERGARTENBREITE B (mm) | J119: 2 | K119: niet verzaagd met aanpassingen
J120: 3 | K120: verzaagd met aanpassingen
J121: 4 | K121: foute data voormontage
A122: =IF(calcul!D7<>"",1,0) -> 0 | B122: =2 -> 2 | C122: maat 2 | E122: =taal!A137 -> DELTA H (mm)
E123: =taal!A149 -> WINKEL IN °
E124: =taal!A156 -> TRÄGERLÄNGE (mm)
A126: =IF(INDEX(E126:E128,plaat)=taal!$A$941,1,0) -> 0 | B126: =1 -> 1 | C126: plaat | D126: 1 | E126: =taal!A46 -> KUNSTSTOFFPLATTE
A127: =IF(AND(type=3,OR(dik<5,dik>32)),1,IF(OR(dik<5,dik>34),1,0)) -> 0 | B127: =D22 -> 16 | C127: dik | D127: 2 | E127: =taal!A49 -> GLAS
D128: 3 | E128: =IF(type=3,taal!A941,taal!A50) -> andere Wahl!
B129: =D23 -> 980 | C129: breed | D129: 3 | E129: =taal!A803 -> mm Durchbiegung Rinne
A130: =IF(INDEX(E130:E132,rest)=taal!A941,1,0) -> 0 | B130: 3 | C130: rest | D130: 1 | E130: =F130 -> GLEICHE BREITEN | F130: =taal!A51 -> GLEICHE BREITEN
D131: 2 | E131: =IF(plaat>1,taal!A941,F131) -> RESTSTÜCK LINKS ODER RECHTS | F131: =IF(plaat>1,"",taal!A52) -> RESTSTÜCK LINKS ODER RECHTS
D132: 3 | E132: =IF(plaat>1,taal!A941,F132) -> RESTSTÜCKE LINKS UND RECHTS | F132: =IF(OR(plaat>1,AND(plaat=1,Breedte<>0,calcul!B59=calcul!B60)),taal!A941,taal!A53) -> RESTSTÜCKE LINKS UND RECHTS
B133: =1 -> 1 | C133: ks | E133: =IF(plaat=1,KS!F44,"") -> POLYCLEAR TOP X5 KLAR
E134: =IF(plaat=1,KS!F45,"") -> POLYCLEAR TOP X5 OPAL
E135: =IF(plaat=1,KS!F46,"") -> POLYCLEAR TOP X6 KLAR
E136: =IF(plaat=1,KS!F47,"") -> POLYCLEAR TOP X6 OPAL
E137: =IF(plaat=1,KS!F48,"") -> POLYCLEAR SPC16.3U 2 UV KLAR
E138: =IF(plaat=1,KS!F49,"") -> POLYCLEAR SPC16.3U 2 UV OPAL
E139: =IF(plaat=1,KS!F50,"") -> POLYCLEAR 3W 16/32 2UV KLAR
E140: =IF(plaat=1,KS!F51,"") -> POLYCLEAR 3W 16/32 2UV OPAL
E141: =IF(plaat=1,KS!F52,"") -> POLYCLEAR RELAX 16 OPAL
E142: =IF(plaat=1,KS!F53,"") -> POLYCLEAR REFLEX PEARL16 OPAL
E143: =IF(plaat=1,KS!F54,"") -> POLYCLEAR PRIMALITE 16 KLAR
E144: =IF(plaat=1,KS!F55,"") -> PLEXIGLAS RESIST S2P 16/64 KLAR
E145: =IF(plaat=1,KS!F56,"") -> PLEXIGLAS RESIST S2P 16/64 OPAL
E146: =IF(plaat=1,KS!F57,"") -> PLEXIGLAS ALLTOP KLAR
E147: =IF(plaat=1,KS!F58,"") -> 
E148: =IF(plaat=1,KS!F59,"") -> 
E149: =IF(plaat=1,KS!F60,"") -> 
E150: =IF(plaat=1,KS!F61,"") -> 
E151: =IF(plaat=1,KS!F62,"") -> 
E152: =IF(plaat=1,KS!F63,"") -> 
E153: =IF(plaat=1,KS!F64,"") -> 
E154: =IF(plaat=1,KS!F65,"") -> 
E155: =IF(plaat=1,KS!F66,"") -> 
E156: =IF(plaat=1,KS!F67,"") -> 
E157: =IF(plaat=1,KS!F68,"") -> 
E158: =IF(plaat=1,KS!F71,"") -> 
B159: 3 | C159: afwpl | D159: 1 | E159: =F159 -> NICHT ZERSÄGT | F159: =IF(plaat=1,taal!A774,"") -> NICHT ZERSÄGT
D160: 2 | E160: andere Wahl! | F160: =IF(AND(plaat=1,KS!C24=1),taal!A775,taal!A941) -> andere Wahl!
D161: 3 | E161: =F161 -> ZERSÄGT AUF MAß + ABGEKLEBT BB/BT | F161: =IF(AND(plaat=1,KS!C24=0),taal!A778,taal!A941) -> ZERSÄGT AUF MAß + ABGEKLEBT BB/BT
D162: 4 | E162: =F162 -> andere Wahl! | F162: =IF(AND(plaat=1,KS!C24=0),taal!A941,taal!A941) -> andere Wahl!
A163: =IF(INDEX(E163:E165,cl)=taal!$A$941,1,0) -> 0 | B163: =1 -> 1 | C163: cl | D163: 1 | E163: KLIPS | F163: =IF(AND(KS!B82=0,OR(dik=16,dik=32,dik=8,dik=9,AND(dik=10,type=3),AND(dik=11,type=3))),taal!A158,taal!A941) -> KLIPS
D164: 2 | E164: andere Wahl! | F164: =IF(OR(KS!B82=1,type=3),taal!A941,taal!A159) -> andere Wahl!
D165: 3 | E165: SCHRAUBBARE KLIPS | F165: =taal!A160 -> SCHRAUBBARE KLIPS
B166: =1 -> 1 | C166: af | D166: 1 | E166: JA | F166: =taal!A54 -> JA
D167: 2 | E167: =IF(type=3,taal!A941,F167) -> andere Wahl! | F167: =taal!A55 -> NEIN
B168: =1 -> 1 | C168: afopmaat | D168: 1 | E168: =F168 -> JA | F168: =taal!A54 -> JA
D169: 2 | E169: =F169 -> NEIN | F169: =taal!A55 -> NEIN
B170: =1 -> 1 | C170: omega | D170: 1 | E170: =IF(OR(type=3,type_input=4)=TRUE,"",F170) ->  | F170: =taal!A54 -> JA
D171: 2 | E171: =IF(type=3,"",F171) ->  | F171: =taal!A55 -> NEIN
A172: =IF(INDEX(E172:E175,steun)=taal!$A$941,1,0) -> 0 | B172: =2 -> 2 | C172: steun | D172: 1 | E172: =taal!A100 -> EIGENE UNTERSTÜTZUNG
D173: 2 | E173: =taal!A101 -> PFEILER
D174: 3 | E174: =IF(OR(type=3,GD=5,GD=6,muur=1)=TRUE,taal!A941,F174) -> andere Wahl! | F174: =taal!A102 -> KONSOLE
D175: 4 | E175: =IF(OR(type=3,GD=5,GD=6,muur=1)=TRUE,taal!A941,F175) -> andere Wahl! | F175: =taal!A103 -> KONSOLE(N) UND PFEILER
A176: =IF(INDEX(E176:E180,goot)=taal!$A$941,1,0) -> 0 | B176: =4 -> 4 | C176: goot | D176: 1 | E176: =IF(AND(type_input=5,OR(GD=5,GD=6))=TRUE,taal!A782,IF(OR(type=3,type_input=4,GD=7,paal=7)=TRUE,taal!A941,F176)) -> andere Wahl! | F176: =taal!A106 -> CLIMAX RINNE
D177: 2 | E177: =IF(AND(GD<7,type<3)=TRUE,taal!A941,IF(type=3,taal!A941,F177)) -> andere Wahl! | F177: =taal!A107 -> CLIMAX SCHARNIER BOTTOM
D178: 3 | E178: =IF(OR(GD=5,GD=6)=TRUE,taal!A941,IF(type=2,taal!A941,IF(AND(type=1,ral=4),taal!A941,F178))) -> RINNE GX + SOFTLINE | F178: =IF(type=3,taal!A110,IF(paal<3,taal!A941,taal!A108)) -> RINNE GX + SOFTLINE
D179: 4 | E179: =IF(OR(GD=5,GD=6)=TRUE,taal!A941,IF(OR(type=1,type=2)=TRUE,taal!A941,F179)) -> RINNE GX | F179: =IF(type=3,taal!A109,"CLIMALITE GL") -> RINNE GX
D180: 5 | E180: =IF(AND(type_input=6,OR(GD=5,GD=6))=TRUE,taal!A783,taal!A941) -> andere Wahl!
B182: =2 -> 2 | C182: gr | D182: 1 | E182: =IF(OR(goot=2,GD=5,GD=6,AND(type=3,goot=3))=TRUE,"",taal!A54) -> JA
D183: 2 | E183: =IF(OR(goot=2,GD=5,GD=6,AND(type=3,goot=3))=TRUE,"",taal!A55) -> NEIN
A184: =IF(INDEX(E184:E190,paal)=taal!$A$941,1,0) -> 0 | B184: =5 -> 5 | C184: paal | D184: 1 | E184: =IF(OR(steun=1,type=2,type=3,type_input=4)=TRUE,taal!A941,F184) -> andere Wahl! | F184: =IF(AND(type=1,GD>4),taal!A72,taal!A71) -> PFEILER NICHT THERMISCH 110/100
D185: 2 | E185: =IF(OR(steun=1,type=2,type=3,type_input=4)=TRUE,taal!A941,F185) -> andere Wahl! | F185: =taal!A174 -> PFEILER NICHT THERMISCH 110/181
D186: 3 | E186: =IF(OR(steun=1,type=1,type=3,type_input=4)=TRUE,taal!A941,F186) -> andere Wahl! | F186: =taal!A176 -> CLIMAX PFEILER THERMISCH 110/116
D187: 4 | E187: =IF(OR(steun=1,type=1,type=3,type_input=4)=TRUE,taal!A941,F187) -> andere Wahl! | F187: =taal!A175 -> CLIMAX PFEILER THERMISCH 110/197
D188: 5 | E188: =IF(AND(steun=2,OR(GD=5,GD=6)),taal!A941,IF(OR(steun=1,AND(steun=3,muur>2)),taal!A104,IF(type=2,taal!A941,IF(AND(type=3,OR(GD=5,GD=6)),taal!A941,F188)))) -> CLIMALUX NICHT THERMISCH 110/141 | F188: =IF(AND(type=3,GD<3,muur<>5),taal!A75,IF(type_input=4,taal!A78,IF(type=1,taal!A941,taal!A941))) -> CLIMALUX NICHT THERMISCH 110/141
D189: 6 | E189: =IF(OR(steun=1,type=2,GD=3,GD=4,GD=5,GD=6)=TRUE,taal!A941,F189) -> CLIMALUX NICHT THERMISCH 150/150 | F189: =IF(AND(type=3,GD<3),taal!A76,taal!A941) -> CLIMALUX NICHT THERMISCH 150/150
D190: 7 | E190: =IF(AND(type=3,OR(GD=5,GD=6))=TRUE,F190,taal!A941) -> andere Wahl! | F190: =IF(AND(type=3,GD>4),taal!A77,taal!A941) -> andere Wahl!
B193: =paalhoogte -> 2500 | C193: paalhoogte | D193: 1 | E193: =IF(OR( steun=1,INDEX(E184:E190,paal)=taal!A941),"*",F193) -> 2500 | F193: 2500
D194: 2 | E194: =IF(OR(steun=1,INDEX(E184:E190,paal)=taal!A941),"*",F194) -> 3250 | F194: 3250
B195: =1 -> 1 | C195: percent | D195: 1 | E195: 0
D196: 2 | E196: 0.24
D197: 3 | E197: 0.21
D198: 4 | E198: 0.2
D199: 5 | E199: 0.19
D200: 6 | E200: 0.16
D201: 7 | E201: 0.15
D202: 8 | E202: 0.1
D203: 9 | E203: 0.06
D204: 10 | E204: 0.055
D205: 11 | E205: =taal!A941 -> andere Wahl!
A206: =IF(INDEX(E206:E213,GD)=taal!$A$941,1,0) -> 0 | B206: =1 -> 1 | C206: GD | D206: 1 | E206: =IF(type_input=5,taal!A941,IF(type_input=6,taal!$A$941,IF(type<3,"GD1",IF(type_input=3,"CLIMALUX GX"&IF(zadel=2," + GDX",""),IF(type_input=4,taal!$A$941,"*"))))) -> CLIMALUX GX
D207: 2 | E207: =IF(type_input=5,taal!A941,IF(type_input=6,taal!$A$941,IF(type<3,"GD 1 + V642",IF(type_input=3,IF(zadel=2,taal!$A$941,"CLIMALUX GX + VS"),taal!$A$941)))) -> CLIMALUX GX + VS
D208: 3 | E208: =IF(OR(type_input=5,type_input=6,muur>4),taal!$A$941,IF(type<3,"GD2",IF(type_input=4,IF(zadel=2,taal!$A$941,"GDX"),taal!$A$941))) -> andere Wahl!
D209: 4 | E209: =IF(OR(type_input=5,type_input=6,muur>4),taal!$A$941,IF(type<3,"GD2 + PL165",IF(type_input=4,IF(zadel=2,taal!$A$941,"GDX + V14105"),taal!$A$941))) -> andere Wahl!
D210: 5 | E210: =IF(type_input=5,"GDG + GDGL PANORAMA",IF(type_input=6,"CLIMALUX GXLX",taal!$A$941)) -> andere Wahl!
D211: 6 | E211: =IF(AND(type_input=5,muur<5),"GDG + IPE 120 + GDGK PANORAMA",IF(type_input=6,"CLIMALUX GXLX + V1243",taal!$A$941)) -> andere Wahl!
D212: 7 | E212: =IF(steun=1,IF(type_input<3,taal!A107,taal!$A$941),taal!A941) -> andere Wahl!
D213: 8 | E213: =IF(goot=4,F213,taal!A941) -> Climalite | F213: Climalite
A214: =IF(INDEX(E214:E219,drager)=taal!$A$941,1,0) -> 0 | B214: 1 | C214: drager | D214: 1 | E214: =F214 -> TRÄGER DX | F214: =IF(type<>3,taal!A347,IF(calcul!B1<4916,taal!A351,taal!A941)) -> TRÄGER DX
D215: 2 | E215: =F215 -> TRÄGER DX2 | F215: =IF(type<>3,taal!A347&" + V642",taal!A352) -> TRÄGER DX2
D216: 3 | E216: =F216 -> TRÄGER DX2 + V853 | F216: =IF(type<>3,taal!A348,taal!A352&" + V853") -> TRÄGER DX2 + V853
D217: 4 | E217: =IF(OR(type=3,type_input=4)=TRUE,taal!A941,F217) -> andere Wahl! | F217: =taal!A348&" + 100 X 40 X 4" -> TRÄGER 2 + 100 X 40 X 4
D218: 5 | E218: =IF(OR(type=3,type_input=4)=TRUE,taal!A941,F218) -> andere Wahl! | F218: =IF(calcul!B1<5501,taal!$A$349,taal!A941) -> TRÄGER 3
D219: 6 | E219: =IF(OR(type=3,type_input=4)=TRUE,taal!A941,F219) -> andere Wahl! | F219: =IF(calcul!B1<5501,taal!$A$350,taal!A941) -> TRÄGER 3 + PL105
B220: =3 -> 3 | C220: spots | D220: 1 | E220: =IF(calcul!B731>=5970,taal!A199,IF(Diepte>1499,taal!A846,taal!A840)) -> UNMÖGLICH : TIEFE <1500
D221: 2 | E221: =IF(calcul!B731>=5970,taal!A199,IF(Diepte>1499,taal!A847,taal!A840)) -> UNMÖGLICH : TIEFE <1500
D222: 3 | E222: =IF(Diepte>1499,taal!A55,taal!A840) -> UNMÖGLICH : TIEFE <1500
... 62 more rows

Sheet Variabelen (hidden)

Sheet sets
A1: =taal!A165 -> WAHL PRO SET | D1: =articles!L2 -> RAL7016ST | X1: overrulen | Y1: =D1 -> RAL7016ST
X2: =SUMIF(X3:X277,">0") -> 0
A3: =taal!A585&" D 1" -> MAUERABSCHLUSS D 1 | C3: 3500 | D3: 3500 | E3: 4250 | F3: 4250 | G3: 5000 | H3: 5000 | I3: 7000 | J3: 7000 | Y3: 3500 | Z3: 4250 | AA3: 5000 | AB3: 7000
A4: =taal!A586 -> NICHT THERMISCH | C4: =IF(pckeuze!B125=0,"",IF(AND(pckeuze!B125=1,calcul!C79>0)=TRUE,calcul!C79,"")) ->  | E4: =IF(pckeuze!B125=0,"",IF(AND(pckeuze!B125=1,calcul!E79>0)=TRUE,calcul!E79,"")) ->  | G4: =IF(pckeuze!B125=0,"",IF(AND(pckeuze!B125=1,calcul!G79>0)=TRUE,calcul!G79,"")) ->  | I4: =IF(pckeuze!B125=0,"",IF(AND(pckeuze!B125=1,calcul!I79>0)=TRUE,calcul!I79,"")) ->  | X4: =COUNTIF(D4,">=0")+COUNTIF(F4,">=0")+COUNTIF(H4,">=0")+COUNTIF(J4,">=0") -> 0 | Y4: =IF(AND(ISBLANK(D4),ISBLANK(C4))=TRUE,"",IF(ISBLANK(D4)=TRUE,C4,D4)) ->  | Z4: =IF(AND(ISBLANK(F4),ISBLANK(E4))=TRUE,"",IF(ISBLANK(F4)=TRUE,E4,F4)) ->  | AA4: =IF(AND(ISBLANK(H4),ISBLANK(G4))=TRUE,"",IF(ISBLANK(H4)=TRUE,G4,H4)) ->  | AB4: =IF(AND(ISBLANK(J4),ISBLANK(I4))=TRUE,"",IF(ISBLANK(J4)=TRUE,I4,J4)) -> 
A5: =taal!A587 -> THERMISCH | C5: =IF(pckeuze!B126=0,"",IF(AND(pckeuze!B126=1,calcul!C79>0)=TRUE,calcul!C79,"")) ->  | E5: =IF(pckeuze!B126=0,"",IF(AND(pckeuze!B126=1,calcul!E79>0)=TRUE,calcul!E79,"")) ->  | G5: =IF(pckeuze!B126=0,"",IF(AND(pckeuze!B126=1,calcul!G79>0)=TRUE,calcul!G79,"")) ->  | I5: =IF(pckeuze!B126=0,"",IF(AND(pckeuze!B126=1,calcul!I79>0)=TRUE,calcul!I79,"")) ->  | X5: =COUNTIF(D5,">=0")+COUNTIF(F5,">=0")+COUNTIF(H5,">=0")+COUNTIF(J5,">=0") -> 0 | Y5: =IF(AND(ISBLANK(D5),ISBLANK(C5))=TRUE,"",IF(ISBLANK(D5)=TRUE,C5,D5)) ->  | Z5: =IF(AND(ISBLANK(F5),ISBLANK(E5))=TRUE,"",IF(ISBLANK(F5)=TRUE,E5,F5)) ->  | AA5: =IF(AND(ISBLANK(H5),ISBLANK(G5))=TRUE,"",IF(ISBLANK(H5)=TRUE,G5,H5)) ->  | AB5: =IF(AND(ISBLANK(J5),ISBLANK(I5))=TRUE,"",IF(ISBLANK(J5)=TRUE,I5,J5)) -> 
A7: =taal!A585&" D2 & D3" -> MAUERABSCHLUSS D2 & D3 | C7: 3500 | D7: 3500 | E7: 4250 | F7: 4250 | G7: 5000 | H7: 5000 | I7: 7000 | J7: 7000 | Y7: 3500 | Z7: 4250 | AA7: 5000 | AB7: 7000
A8: =A4 -> NICHT THERMISCH | C8: =IF(pckeuze!B129=0,"",IF(AND(pckeuze!B129=1,calcul!C79>0)=TRUE,calcul!C79,"")) ->  | E8: =IF(pckeuze!B129=0,"",IF(AND(pckeuze!B129=1,calcul!E79>0)=TRUE,calcul!E79,"")) ->  | G8: =IF(pckeuze!B129=0,"",IF(AND(pckeuze!B129=1,calcul!G79>0)=TRUE,calcul!G79,"")) ->  | I8: =IF(pckeuze!B129=0,"",IF(AND(pckeuze!B129=1,calcul!I79>0)=TRUE,calcul!I79,"")) ->  | X8: =COUNTIF(D8,">=0")+COUNTIF(F8,">=0")+COUNTIF(H8,">=0")+COUNTIF(J8,">=0") -> 0 | Y8: =IF(AND(ISBLANK(D8),ISBLANK(C8))=TRUE,"",IF(ISBLANK(D8)=TRUE,C8,D8)) ->  | Z8: =IF(AND(ISBLANK(F8),ISBLANK(E8))=TRUE,"",IF(ISBLANK(F8)=TRUE,E8,F8)) ->  | AA8: =IF(AND(ISBLANK(H8),ISBLANK(G8))=TRUE,"",IF(ISBLANK(H8)=TRUE,G8,H8)) ->  | AB8: =IF(AND(ISBLANK(J8),ISBLANK(I8))=TRUE,"",IF(ISBLANK(J8)=TRUE,I8,J8)) -> 
A9: =A5 -> THERMISCH | C9: =IF(pckeuze!B130=0,"",IF(AND(pckeuze!B130=1,calcul!C79>0)=TRUE,calcul!C79,"")) ->  | E9: =IF(pckeuze!B130=0,"",IF(AND(pckeuze!B130=1,calcul!E79>0)=TRUE,calcul!E79,"")) ->  | G9: =IF(pckeuze!B130=0,"",IF(AND(pckeuze!B130=1,calcul!G79>0)=TRUE,calcul!G79,"")) ->  | I9: =IF(pckeuze!B130=0,"",IF(AND(pckeuze!B130=1,calcul!I79>0)=TRUE,calcul!I79,"")) ->  | X9: =COUNTIF(D9,">=0")+COUNTIF(F9,">=0")+COUNTIF(H9,">=0")+COUNTIF(J9,">=0") -> 0 | Y9: =IF(AND(ISBLANK(D9),ISBLANK(C9))=TRUE,"",IF(ISBLANK(D9)=TRUE,C9,D9)) ->  | Z9: =IF(AND(ISBLANK(F9),ISBLANK(E9))=TRUE,"",IF(ISBLANK(F9)=TRUE,E9,F9)) ->  | AA9: =IF(AND(ISBLANK(H9),ISBLANK(G9))=TRUE,"",IF(ISBLANK(H9)=TRUE,G9,H9)) ->  | AB9: =IF(AND(ISBLANK(J9),ISBLANK(I9))=TRUE,"",IF(ISBLANK(J9)=TRUE,I9,J9)) -> 
A11: =taal!A585&" CLIMALUX" -> MAUERABSCHLUSS CLIMALUX | C11: 3000 | D11: 3000 | E11: 3500 | F11: 3500 | G11: 4100 | H11: 4000 | I11: 4500 | J11: 4500 | K11: 5000 | L11: 5000 | M11: 5000 | N11: 6000 | O11: 7000 | P11: 7000 | Y11: 3000 | Z11: 3500 | AA11: 4000 | AB11: 4500 | AC11: 5000 | AD11: 6000 | AE11: 7000
A12: MX16 | C12: =IF(pckeuze!B133=0,"",IF(AND(pckeuze!B133=1,calcul!B89>0,dik<>32)=TRUE,calcul!B89,"")) ->  | E12: =IF(pckeuze!B133=0,"",IF(AND(pckeuze!B133=1,calcul!C89>0,dik<>32)=TRUE,calcul!C89,"")) ->  | G12: =IF(pckeuze!B133=0,"",IF(AND(pckeuze!B133=1,calcul!D89>0,dik<>32)=TRUE,calcul!D89,"")) ->  | I12: =IF(pckeuze!B133=0,"",IF(AND(pckeuze!B133=1,calcul!F89>0,dik<>32)=TRUE,calcul!F89,"")) ->  | K12: =IF(pckeuze!B133=0,"",IF(AND(pckeuze!B133=1,calcul!G89>0,dik<>32)=TRUE,calcul!G89,"")) ->  | M12: =IF(pckeuze!B133=0,"",IF(AND(pckeuze!B133=1,calcul!H89>0,dik<>32)=TRUE,calcul!H89,"")) ->  | O12: =IF(pckeuze!B133=0,"",IF(AND(pckeuze!B133=1,calcul!I89>0,dik<>32)=TRUE,calcul!I89,"")) ->  | X12: =COUNTIF(D12,">=0")+COUNTIF(F12,">=0")+COUNTIF(H12,">=0")+COUNTIF(J12,">=0")++COUNTIF(L12,">=0")+COUNTIF(N12,">=0")+COUNTIF(P12,">=0") -> 0 | Y12: =IF(AND(ISBLANK(D12),ISBLANK(C12))=TRUE,"",IF(ISBLANK(D12)=TRUE,C12,D12)) ->  | Z12: =IF(AND(ISBLANK(F12),ISBLANK(E12))=TRUE,"",IF(ISBLANK(F12)=TRUE,E12,F12)) ->  | AA12: =IF(AND(ISBLANK(H12),ISBLANK(G12))=TRUE,"",IF(ISBLANK(H12)=TRUE,G12,H12)) ->  | AB12: =IF(AND(ISBLANK(J12),ISBLANK(I12))=TRUE,"",IF(ISBLANK(J12)=TRUE,I12,J12)) ->  | AC12: =IF(AND(ISBLANK(L12),ISBLANK(K12))=TRUE,"",IF(ISBLANK(L12)=TRUE,K12,L12)) ->  | AD12: =IF(AND(ISBLANK(N12),ISBLANK(M12))=TRUE,"",IF(ISBLANK(N12)=TRUE,M12,N12)) ->  | AE12: =IF(AND(ISBLANK(P12),ISBLANK(O12))=TRUE,"",IF(ISBLANK(P12)=TRUE,O12,P12)) -> 
A13: MX32 | C13: =IF(pckeuze!B134=0,"",IF(AND(pckeuze!B134=1,calcul!B89>0,dik=32)=TRUE,calcul!B89,"")) ->  | E13: =IF(pckeuze!B134=0,"",IF(AND(pckeuze!B134=1,calcul!C89>0,dik=32)=TRUE,calcul!C89,"")) ->  | G13: =IF(pckeuze!B134=0,"",IF(AND(pckeuze!B134=1,calcul!D89>0,dik=32)=TRUE,calcul!D89,"")) ->  | I13: =IF(pckeuze!B134=0,"",IF(AND(pckeuze!B134=1,calcul!F89>0,dik=32)=TRUE,calcul!F89,"")) ->  | K13: =IF(pckeuze!B134=0,"",IF(AND(pckeuze!B134=1,calcul!G89>0,dik=32)=TRUE,calcul!G89,"")) ->  | M13: =IF(pckeuze!B134=0,"",IF(AND(pckeuze!B134=1,calcul!H89>0,dik=32)=TRUE,calcul!H89,"")) ->  | O13: =IF(pckeuze!B134=0,"",IF(AND(pckeuze!B134=1,calcul!I89>0,dik=32)=TRUE,calcul!I89,"")) ->  | X13: =COUNTIF(D13,">=0")+COUNTIF(F13,">=0")+COUNTIF(H13,">=0")+COUNTIF(J13,">=0")++COUNTIF(L13,">=0")+COUNTIF(N13,">=0")+COUNTIF(P13,">=0") -> 0 | Y13: =IF(AND(ISBLANK(D13),ISBLANK(C13))=TRUE,"",IF(ISBLANK(D13)=TRUE,C13,D13)) ->  | Z13: =IF(AND(ISBLANK(F13),ISBLANK(E13))=TRUE,"",IF(ISBLANK(F13)=TRUE,E13,F13)) ->  | AA13: =IF(AND(ISBLANK(H13),ISBLANK(G13))=TRUE,"",IF(ISBLANK(H13)=TRUE,G13,H13)) ->  | AB13: =IF(AND(ISBLANK(J13),ISBLANK(I13))=TRUE,"",IF(ISBLANK(J13)=TRUE,I13,J13)) ->  | AC13: =IF(AND(ISBLANK(L13),ISBLANK(K13))=TRUE,"",IF(ISBLANK(L13)=TRUE,K13,L13)) ->  | AD13: =IF(AND(ISBLANK(N13),ISBLANK(M13))=TRUE,"",IF(ISBLANK(N13)=TRUE,M13,N13)) ->  | AE13: =IF(AND(ISBLANK(P13),ISBLANK(O13))=TRUE,"",IF(ISBLANK(P13)=TRUE,O13,P13)) -> 
L14: =IF(SUM(L21,L26)>0,taal!$A$954&taal!$A$10,"") -> 
A15: =taal!A928 -> QUERPROFIL FREISTEHENDES DACH | C15: 3500 | D15: 3500 | E15: 4100 | F15: 4000 | G15: 5000 | H15: 5000 | I15: 5000 | J15: 6000 | K15: 7000 | L15: 7000 | Y15: 3500 | Z15: 4000 | AA15: 5000 | AB15: 6000 | AC15: 7000
A16: GDX | C16: =IF(pckeuze!B4=0,"",IF(AND(pckeuze!B4=1,calcul!C86>0)=TRUE,calcul!C86,"")) ->  | E16: ="" ->  | G16: =IF(pckeuze!B4=0,"",IF(AND(pckeuze!B4=1,calcul!G86>0)=TRUE,calcul!G86,"")) ->  | I16: =IF(pckeuze!B4=0,"",IF(AND(pckeuze!B4=1,calcul!H86>0)=TRUE,calcul!H86,"")) ->  | K16: =IF(pckeuze!B4=0,"",IF(AND(pckeuze!B4=1,calcul!I86>0)=TRUE,calcul!I86,"")) ->  | X16: =COUNTIF(D16,">=0")+COUNTIF(F16,">=0")+COUNTIF(H16,">=0")+COUNTIF(J16,">=0")+COUNTIF(L16,">=0") -> 0 | Y16: =IF(AND(ISBLANK(D16),ISBLANK(C16))=TRUE,"",IF(ISBLANK(D16)=TRUE,C16,D16)) ->  | Z16: =IF(AND(ISBLANK(F16),ISBLANK(E16))=TRUE,"",IF(ISBLANK(F16)=TRUE,E16,F16)) ->  | AA16: =IF(AND(ISBLANK(H16),ISBLANK(G16))=TRUE,"",IF(ISBLANK(H16)=TRUE,G16,H16)) ->  | AB16: =IF(AND(ISBLANK(J16),ISBLANK(I16))=TRUE,"",IF(ISBLANK(J16)=TRUE,I16,J16)) ->  | AC16: =IF(AND(ISBLANK(L16),ISBLANK(K16))=TRUE,"",IF(ISBLANK(L16)=TRUE,K16,L16)) -> 
A18: =taal!A588&" D 1" -> RINNENABSCHLUSS D 1 | C18: 3500 | D18: 3500 | E18: 4000 | F18: 4000 | G18: 4250 | H18: 4250 | I18: 5000 | J18: 5000 | K18: 6000 | L18: 6000 | M18: 7000 | N18: 7000 | Y18: 3500 | Z18: 4000 | AA18: 4250 | AB18: 5000 | AC18: 6000 | AD18: 7000
A19: =taal!A589 -> NICHT THERMISCH SB | C19: =IF(pckeuze!B137=0,"",IF(AND(pckeuze!B137=1,calcul!C80>0)=TRUE,calcul!C80,"")) ->  | E19: ="" ->  | G19: ="" ->  | I19: =IF(pckeuze!B137=0,"",IF(AND(pckeuze!B137=1,calcul!G80>0)=TRUE,calcul!G80,"")) ->  | K19: ="" ->  | M19: =IF(pckeuze!B137=0,"",IF(AND(pckeuze!B137=1,calcul!I80>0)=TRUE,calcul!I80,"")) ->  | X19: =COUNTIF(D19,">=0")+COUNTIF(F19,">=0")+COUNTIF(H19,">=0")+COUNTIF(J19,">=0")+COUNTIF(L19,">=0")+COUNTIF(N19,">=0") -> 0 | Y19: =IF(AND(ISBLANK(D19),ISBLANK(C19))=TRUE,"",IF(ISBLANK(D19)=TRUE,C19,D19)) ->  | Z19: =IF(AND(ISBLANK(F19),ISBLANK(E19))=TRUE,"",IF(ISBLANK(F19)=TRUE,E19,F19)) ->  | AA19: =IF(AND(ISBLANK(H19),ISBLANK(G19))=TRUE,"",IF(ISBLANK(H19)=TRUE,G19,H19)) ->  | AB19: =IF(AND(ISBLANK(J19),ISBLANK(I19))=TRUE,"",IF(ISBLANK(J19)=TRUE,I19,J19)) ->  | AC19: =IF(AND(ISBLANK(L19),ISBLANK(K19))=TRUE,"",IF(ISBLANK(L19)=TRUE,K19,L19)) ->  | AD19: =IF(AND(ISBLANK(N19),ISBLANK(M19))=TRUE,"",IF(ISBLANK(N19)=TRUE,M19,N19)) -> 
A20: =taal!A591 -> NICHT THERMISCH GD1 + G120A | C20: =IF(pckeuze!B138=0,"",IF(AND(pckeuze!B138=1,calcul!C77>0)=TRUE,calcul!C77,"")) ->  | E20: ="" ->  | G20: =IF(pckeuze!B138=0,"",IF(AND(pckeuze!B138=1,calcul!E77>0)=TRUE,calcul!E77,"")) ->  | I20: =IF(pckeuze!B138=0,"",IF(AND(pckeuze!B138=1,calcul!G77>0)=TRUE,calcul!G77,"")) ->  | K20: ="" ->  | M20: =IF(pckeuze!B138=0,"",IF(AND(pckeuze!B138=1,calcul!I77>0)=TRUE,calcul!I77,"")) ->  | X20: =COUNTIF(D20,">=0")+COUNTIF(F20,">=0")+COUNTIF(H20,">=0")+COUNTIF(J20,">=0")+COUNTIF(L20,">=0")+COUNTIF(N20,">=0") -> 0 | Z20: =IF(AND(ISBLANK(F20),ISBLANK(E20))=TRUE,"",IF(ISBLANK(F20)=TRUE,E20,F20)) -> 
A21: =taal!A592 -> NICHT THERMISCH GD1 + G | C21: =IF(pckeuze!B139=0,"",IF(AND(pckeuze!B139=1,calcul!C77>0)=TRUE,calcul!C77,"")) ->  | E21: ="" ->  | G21: =IF(pckeuze!B139=0,"",IF(AND(pckeuze!B139=1,calcul!E77>0)=TRUE,calcul!E77,"")) ->  | I21: =IF(pckeuze!B139=0,"",IF(AND(pckeuze!B139=1,calcul!G77>0)=TRUE,calcul!G77,"")) ->  | K21: ="" ->  | M21: =IF(pckeuze!B139=0,"",IF(AND(pckeuze!B139=1,calcul!I77>0)=TRUE,calcul!I77,"")) ->  | X21: 0 | Z21: =IF(AND(ISBLANK(F21),ISBLANK(E21))=TRUE,"",IF(ISBLANK(F21)=TRUE,E21,F21)) -> 
A22: =taal!A595 -> NICHT THERMISCH GD2 + G | C22: ="" ->  | E22: ="" ->  | G22: ="" ->  | I22: =IF(pckeuze!B141=0,"",IF(AND(pckeuze!B141=1,calcul!G77>0)=TRUE,calcul!G77,"")) ->  | K22: ="" ->  | M22: =IF(pckeuze!B141=0,"",IF(AND(pckeuze!B141=1,calcul!I77>0)=TRUE,calcul!I77,"")) ->  | X22: 0
A23: =taal!A598 -> NICHT THERMISCHGDG + GDGL | C23: ="" ->  | E23: =IF(pckeuze!B143=0,"",IF(AND(pckeuze!B143=1,calcul!D81>0)=TRUE,calcul!D81,"")) ->  | G23: ="" ->  | I23: =IF(pckeuze!B143=0,"",IF(AND(pckeuze!B143=1,calcul!G81>0)=TRUE,calcul!G81,"")) ->  | K23: =IF(pckeuze!B143=0,"",IF(AND(pckeuze!B143=1,calcul!H81>0)=TRUE,calcul!H81,"")) ->  | M23: =IF(pckeuze!B143=0,"",IF(AND(pckeuze!B143=1,calcul!I81>0)=TRUE,calcul!I81,"")) ->  | X23: 0
A24: =taal!A597 -> NICHT THERMISCH GDG + GDGK | C24: ="" ->  | E24: =IF(pckeuze!B142=0,"",IF(AND(pckeuze!B142=1,calcul!D81>0)=TRUE,calcul!D81,"")) ->  | G24: ="" ->  | I24: =IF(pckeuze!B142=0,"",IF(AND(pckeuze!B142=1,calcul!G81>0)=TRUE,calcul!G81,"")) ->  | K24: =IF(pckeuze!B142=0,"",IF(AND(pckeuze!B142=1,calcul!H81>0)=TRUE,calcul!H81,"")) ->  | M24: =IF(pckeuze!B142=0,"",IF(AND(pckeuze!B142=1,calcul!I81>0)=TRUE,calcul!I81,"")) ->  | X24: 0
A25: =taal!A590 -> THERMISCH SB | C25: =IF(pckeuze!B144=0,"",IF(AND(pckeuze!B144=1,calcul!C80>0)=TRUE,calcul!C80,"")) ->  | E25: ="" ->  | G25: ="" ->  | I25: =IF(pckeuze!B144=0,"",IF(AND(pckeuze!B144=1,calcul!G80>0)=TRUE,calcul!G80,"")) ->  | K25: ="" ->  | M25: =IF(pckeuze!B144=0,"",IF(AND(pckeuze!B144=1,calcul!I80>0)=TRUE,calcul!I80,"")) ->  | X25: 0 | Y25: =IF(AND(ISBLANK(D25),ISBLANK(C25))=TRUE,"",IF(ISBLANK(D25)=TRUE,C25,D25)) -> 
A26: =taal!A593 -> THERMISCH GD1 + G | C26: =IF(pckeuze!B145=0,"",IF(AND(pckeuze!B145=1,calcul!C77>0)=TRUE,calcul!C77,"")) ->  | E26: ="" ->  | G26: =IF(pckeuze!B145=0,"",IF(AND(pckeuze!B145=1,calcul!E77>0)=TRUE,calcul!E77,"")) ->  | I26: =IF(pckeuze!B145=0,"",IF(AND(pckeuze!B145=1,calcul!G77>0)=TRUE,calcul!G77,"")) ->  | K26: =IF(pckeuze!B145=0,"",IF(AND(pckeuze!B145=1,calcul!H77>0)=TRUE,calcul!H77,"")) ->  | M26: =IF(pckeuze!B145=0,"",IF(AND(pckeuze!B145=1,calcul!I77>0)=TRUE,calcul!I77,"")) ->  | X26: 0 | Y26: =IF(AND(ISBLANK(D26),ISBLANK(C26))=TRUE,"",IF(ISBLANK(D26)=TRUE,C26,D26)) -> 
A27: =taal!A596 -> THERMISCH GD2 + G | C27: ="" ->  | E27: ="" ->  | G27: ="" ->  | I27: =IF(pckeuze!B146=0,"",IF(AND(pckeuze!B146=1,calcul!G77>0)=TRUE,calcul!G77,"")) ->  | K27: ="" ->  | M27: =IF(pckeuze!B146=0,"",IF(AND(pckeuze!B146=1,calcul!I77>0)=TRUE,calcul!I77,"")) ->  | X27: 0 | Y27: =IF(AND(ISBLANK(D27),ISBLANK(C27))=TRUE,"",IF(ISBLANK(D27)=TRUE,C27,D27)) -> 
L28: =IF(SUM(L32,L37)>0,taal!$A$954&taal!$A$10,"") -> 
A29: =taal!A588&" D2 & D3" -> RINNENABSCHLUSS D2 & D3 | C29: 3500 | D29: 3500 | E29: 4000 | F29: 4000 | G29: 4250 | H29: 4250 | I29: 5000 | J29: 5000 | K29: 6000 | L29: 6000 | M29: 7000 | N29: 7000 | Y29: 3500 | Z29: 4000 | AA29: 4250 | AB29: 5000 | AC29: 6000 | AD29: 7000
A30: =taal!A589 -> NICHT THERMISCH SB | C30: =IF(pckeuze!B149=0,"",IF(AND(pckeuze!B149=1,calcul!C80>0)=TRUE,calcul!C80,"")) ->  | E30: ="" ->  | G30: ="" ->  | I30: =IF(pckeuze!B149=0,"",IF(AND(pckeuze!B149=1,calcul!G80>0)=TRUE,calcul!G80,"")) ->  | K30: ="" ->  | M30: =IF(pckeuze!B149=0,"",IF(AND(pckeuze!B149=1,calcul!I80>0)=TRUE,calcul!I80,"")) ->  | X30: =COUNTIF(D30,">=0")+COUNTIF(F30,">=0")+COUNTIF(H30,">=0")+COUNTIF(J30,">=0")+COUNTIF(L30,">=0")+COUNTIF(N30,">=0") -> 0 | Y30: =IF(AND(ISBLANK(D30),ISBLANK(C30))=TRUE,"",IF(ISBLANK(D30)=TRUE,C30,D30)) ->  | Z30: =IF(AND(ISBLANK(F30),ISBLANK(E30))=TRUE,"",IF(ISBLANK(F30)=TRUE,E30,F30)) ->  | AA30: =IF(AND(ISBLANK(H30),ISBLANK(G30))=TRUE,"",IF(ISBLANK(H30)=TRUE,G30,H30)) ->  | AB30: =IF(AND(ISBLANK(J30),ISBLANK(I30))=TRUE,"",IF(ISBLANK(J30)=TRUE,I30,J30)) ->  | AC30: =IF(AND(ISBLANK(L30),ISBLANK(K30))=TRUE,"",IF(ISBLANK(L30)=TRUE,K30,L30)) ->  | AD30: =IF(AND(ISBLANK(N30),ISBLANK(M30))=TRUE,"",IF(ISBLANK(N30)=TRUE,M30,N30)) -> 
A31: =taal!A591 -> NICHT THERMISCH GD1 + G120A | C31: =IF(pckeuze!B150=0,"",IF(AND(pckeuze!B150=1,calcul!C77>0)=TRUE,calcul!C77,"")) ->  | E31: ="" ->  | G31: =IF(pckeuze!B150=0,"",IF(AND(pckeuze!B150=1,calcul!E77>0)=TRUE,calcul!E77,"")) ->  | I31: =IF(pckeuze!B150=0,"",IF(AND(pckeuze!B150=1,calcul!G77>0)=TRUE,calcul!G77,"")) ->  | K31: ="" ->  | M31: =IF(pckeuze!B150=0,"",IF(AND(pckeuze!B150=1,calcul!I77>0)=TRUE,calcul!I77,"")) ->  | X31: 0 | Y31: =IF(AND(ISBLANK(D31),ISBLANK(C31))=TRUE,"",IF(ISBLANK(D31)=TRUE,C31,D31)) -> 
A32: =taal!A592 -> NICHT THERMISCH GD1 + G | C32: =IF(pckeuze!B151=0,"",IF(AND(pckeuze!B151=1,calcul!C77>0)=TRUE,calcul!C77,"")) ->  | E32: ="" ->  | G32: =IF(pckeuze!B151=0,"",IF(AND(pckeuze!B151=1,calcul!E77>0)=TRUE,calcul!E77,"")) ->  | I32: =IF(pckeuze!B151=0,"",IF(AND(pckeuze!B151=1,calcul!G77>0)=TRUE,calcul!G77,"")) ->  | M32: =IF(pckeuze!B151=0,"",IF(AND(pckeuze!B151=1,calcul!I77>0)=TRUE,calcul!I77,"")) ->  | X32: 0 | Y32: =IF(AND(ISBLANK(D32),ISBLANK(C32))=TRUE,"",IF(ISBLANK(D32)=TRUE,C32,D32)) -> 
A33: =taal!A595 -> NICHT THERMISCH GD2 + G | C33: ="" ->  | E33: ="" ->  | G33: ="" ->  | I33: =IF(pckeuze!B153=0,"",IF(AND(pckeuze!B153=1,calcul!G77>0)=TRUE,calcul!G77,"")) ->  | K33: ="" ->  | M33: =IF(pckeuze!B153=0,"",IF(AND(pckeuze!B153=1,calcul!I77>0)=TRUE,calcul!I77,"")) ->  | X33: 0
A34: =taal!A598 -> NICHT THERMISCHGDG + GDGL | C34: ="" ->  | E34: =IF(pckeuze!B155=0,"",IF(AND(pckeuze!B155=1,calcul!D81>0)=TRUE,calcul!D81,"")) ->  | G34: ="" ->  | I34: =IF(pckeuze!B155=0,"",IF(AND(pckeuze!B155=1,calcul!G81>0)=TRUE,calcul!G81,"")) ->  | K34: =IF(pckeuze!B155=0,"",IF(AND(pckeuze!B155=1,calcul!H81>0)=TRUE,calcul!H81,"")) ->  | M34: =IF(pckeuze!B155=0,"",IF(AND(pckeuze!B155=1,calcul!I81>0)=TRUE,calcul!I81,"")) ->  | X34: 0 | Y34: =IF(AND(ISBLANK(D34),ISBLANK(C34))=TRUE,"",IF(ISBLANK(D34)=TRUE,C34,D34)) -> 
A35: =taal!A597 -> NICHT THERMISCH GDG + GDGK | C35: ="" ->  | E35: =IF(pckeuze!B154=0,"",IF(AND(pckeuze!B154=1,calcul!D81>0)=TRUE,calcul!D81,"")) ->  | G35: ="" ->  | I35: =IF(pckeuze!B154=0,"",IF(AND(pckeuze!B154=1,calcul!G81>0)=TRUE,calcul!G81,"")) ->  | K35: =IF(pckeuze!B154=0,"",IF(AND(pckeuze!B154=1,calcul!H81>0)=TRUE,calcul!H81,"")) ->  | M35: =IF(pckeuze!B154=0,"",IF(AND(pckeuze!B154=1,calcul!I81>0)=TRUE,calcul!I81,"")) ->  | X35: 0 | Y35: =IF(AND(ISBLANK(D35),ISBLANK(C35))=TRUE,"",IF(ISBLANK(D35)=TRUE,C35,D35)) -> 
A36: =taal!A590 -> THERMISCH SB | C36: =IF(pckeuze!B156=0,"",IF(AND(pckeuze!B156=1,calcul!C80>0)=TRUE,calcul!C80,"")) ->  | E36: ="" ->  | G36: ="" ->  | I36: =IF(pckeuze!B156=0,"",IF(AND(pckeuze!B156=1,calcul!G80>0)=TRUE,calcul!G80,"")) ->  | K36: ="" ->  | M36: =IF(pckeuze!B156=0,"",IF(AND(pckeuze!B156=1,calcul!I80>0)=TRUE,calcul!I80,"")) ->  | X36: 0
A37: =taal!A593 -> THERMISCH GD1 + G | C37: =IF(pckeuze!B157=0,"",IF(AND(pckeuze!B157=1,calcul!C77>0)=TRUE,calcul!C77,"")) ->  | E37: ="" ->  | G37: =IF(pckeuze!B157=0,"",IF(AND(pckeuze!B157=1,calcul!E77>0)=TRUE,calcul!E77,"")) ->  | I37: =IF(pckeuze!B157=0,"",IF(AND(pckeuze!B157=1,calcul!G77>0)=TRUE,calcul!G77,"")) ->  | K37: =IF(pckeuze!B157=0,"",IF(AND(pckeuze!B157=1,calcul!H77>0)=TRUE,calcul!H77,"")) ->  | M37: =IF(pckeuze!B157=0,"",IF(AND(pckeuze!B157=1,calcul!I77>0)=TRUE,calcul!I77,"")) ->  | X37: 0
A38: =taal!A596 -> THERMISCH GD2 + G | C38: ="" ->  | E38: ="" ->  | G38: ="" ->  | I38: =IF(pckeuze!B158=0,"",IF(AND(pckeuze!B158=1,calcul!G77>0)=TRUE,calcul!G77,"")) ->  | K38: ="" ->  | M38: =IF(pckeuze!B158=0,"",IF(AND(pckeuze!B158=1,calcul!I77>0)=TRUE,calcul!I77,"")) ->  | X38: 0 | Y38: =IF(AND(ISBLANK(D38),ISBLANK(C38))=TRUE,"",IF(ISBLANK(D38)=TRUE,C38,D38)) -> 
A40: =taal!A588&" CLIMALUX GX / GXLX" -> RINNENABSCHLUSS CLIMALUX GX / GXLX | C40: 3000 | D40: 3000 | E40: 3500 | F40: 3500 | G40: 4000 | H40: 4000 | I40: 5000 | J40: 4500 | K40: 5000 | L40: 5000 | M40: 6000 | N40: 6000 | O40: 7000 | P40: 7000 | Y40: 3000 | Z40: 3500 | AA40: 4000 | AB40: 4500 | AC40: 5000 | AD40: 6000 | AE40: 7000
A41: ="CLIMALUX GX" -> CLIMALUX GX | C41: =IF(pckeuze!$B$161=0,"",IF(AND(pckeuze!$B$161=1,calcul!B85>0)=TRUE,calcul!B85,"")) ->  | E41: =IF(pckeuze!B161=0,"",IF(AND(pckeuze!B161=1,calcul!C85>0)=TRUE,calcul!C85,"")) ->  | G41: =IF(pckeuze!$B$161=0,"",IF(AND(pckeuze!$B$161=1,calcul!D85>0)=TRUE,calcul!D85,"")) ->  | I41: =IF(pckeuze!$B$161=0,"",IF(AND(pckeuze!$B$161=1,calcul!F85>0)=TRUE,calcul!F85,"")) ->  | K41: =IF(pckeuze!B161=0,"",IF(AND(pckeuze!B161=1,calcul!G85>0)=TRUE,calcul!G85,"")) ->  | M41: =IF(pckeuze!B161=0,"",IF(AND(pckeuze!B161=1,calcul!H85>0)=TRUE,calcul!H85,"")) ->  | O41: =IF(pckeuze!B161=0,"",IF(AND(pckeuze!B161=1,calcul!I85>0)=TRUE,calcul!I85,"")) ->  | X41: =COUNTIF(D41,">=0")+COUNTIF(F41,">=0")+COUNTIF(H41,">=0")+COUNTIF(J41,">=0")+COUNTIF(L41,">=0")+COUNTIF(N41,">=0")+COUNTIF(P41,">=0") -> 0 | Y41: =IF(AND(ISBLANK(D41),ISBLANK(C41))=TRUE,"",IF(ISBLANK(D41)=TRUE,C41,D41)) ->  | Z41: =IF(AND(ISBLANK(F41),ISBLANK(E41))=TRUE,"",IF(ISBLANK(F41)=TRUE,E41,F41)) ->  | AA41: =IF(AND(ISBLANK(H41),ISBLANK(G41))=TRUE,"",IF(ISBLANK(H41)=TRUE,G41,H41)) ->  | AB41: =IF(AND(ISBLANK(J41),ISBLANK(I41))=TRUE,"",IF(ISBLANK(J41)=TRUE,I41,J41)) ->  | AC41: =IF(AND(ISBLANK(L41),ISBLANK(K41))=TRUE,"",IF(ISBLANK(L41)=TRUE,K41,L41)) ->  | AD41: =IF(AND(ISBLANK(N41),ISBLANK(M41))=TRUE,"",IF(ISBLANK(N41)=TRUE,M41,N41)) ->  | AE41: =IF(AND(ISBLANK(P41),ISBLANK(O41))=TRUE,"",IF(ISBLANK(P41)=TRUE,O41,P41)) -> 
A42: ="CLIMALUX GX + GLX " -> CLIMALUX GX + GLX | C42: =IF(pckeuze!$B$162=0,"",IF(AND(pckeuze!$B$162=1,calcul!B85>0)=TRUE,calcul!B85,"")) ->  | E42: =IF(pckeuze!B162=0,"",IF(AND(pckeuze!B162=1,calcul!C85>0)=TRUE,calcul!C85,"")) ->  | G42: =IF(pckeuze!$B$162=0,"",IF(AND(pckeuze!$B$162=1,calcul!D85>0)=TRUE,calcul!D85,"")) ->  | I42: =IF(pckeuze!$B$162=0,"",IF(AND(pckeuze!$B$162=1,calcul!F85>0)=TRUE,calcul!F85,"")) ->  | K42: =IF(pckeuze!B162=0,"",IF(AND(pckeuze!B162=1,calcul!G85>0)=TRUE,calcul!G85,"")) ->  | M42: =IF(pckeuze!B162=0,"",IF(AND(pckeuze!B162=1,calcul!H85>0)=TRUE,calcul!H85,"")) ->  | O42: =IF(pckeuze!B162=0,"",IF(AND(pckeuze!B162=1,calcul!I85>0)=TRUE,calcul!I85,"")) ->  | X42: =COUNTIF(D42,">=0")+COUNTIF(F42,">=0")+COUNTIF(H42,">=0")+COUNTIF(J42,">=0")+COUNTIF(L42,">=0")+COUNTIF(N42,">=0")+COUNTIF(P42,">=0") -> 0 | Y42: =IF(AND(ISBLANK(D42),ISBLANK(C42))=TRUE,"",IF(ISBLANK(D42)=TRUE,C42,D42)) ->  | Z42: =IF(AND(ISBLANK(F42),ISBLANK(E42))=TRUE,"",IF(ISBLANK(F42)=TRUE,E42,F42)) ->  | AA42: =IF(AND(ISBLANK(H42),ISBLANK(G42))=TRUE,"",IF(ISBLANK(H42)=TRUE,G42,H42)) ->  | AC42: =IF(AND(ISBLANK(L42),ISBLANK(K42))=TRUE,"",IF(ISBLANK(L42)=TRUE,K42,L42)) ->  | AD42: =IF(AND(ISBLANK(N42),ISBLANK(M42))=TRUE,"",IF(ISBLANK(N42)=TRUE,M42,N42)) ->  | AE42: =IF(AND(ISBLANK(P42),ISBLANK(O42))=TRUE,"",IF(ISBLANK(P42)=TRUE,O42,P42)) -> 
A43: ="CLIMALUX GXLX " -> CLIMALUX GXLX | C43: ="" ->  | E43: ="" ->  | G43: =IF(pckeuze!$B$163=0,"",IF(AND(pckeuze!$B$163=1,calcul!D87>0)=TRUE,calcul!D87,"")) ->  | I43: =IF(pckeuze!$B$163=0,"",IF(AND(pckeuze!$B$163=1,calcul!F87>0)=TRUE,calcul!F87,"")) ->  | K43: =IF(pckeuze!$B$163=0,"",IF(AND(pckeuze!$B$163=1,calcul!G87>0)=TRUE,calcul!G87,"")) ->  | M43: =IF(pckeuze!B163=0,"",IF(AND(pckeuze!B163=1,calcul!H87>0)=TRUE,calcul!H87,"")) ->  | O43: =IF(pckeuze!B163=0,"",IF(AND(pckeuze!B163=1,calcul!I87>0)=TRUE,calcul!I87,"")) ->  | X43: =COUNTIF(H43,">=0")+COUNTIF(J43,">=0")+COUNTIF(L43,">=0")+COUNTIF(N43,">=0")+COUNTIF(P43,">=0") -> 0 | Y43: =IF(AND(ISBLANK(D43),ISBLANK(C43))=TRUE,"",IF(ISBLANK(D43)=TRUE,C43,D43)) ->  | Z43: =IF(AND(ISBLANK(F43),ISBLANK(E43))=TRUE,"",IF(ISBLANK(F43)=TRUE,E43,F43)) ->  | AA43: =IF(AND(ISBLANK(H43),ISBLANK(G43))=TRUE,"",IF(ISBLANK(H43)=TRUE,G43,H43)) ->  | AC43: =IF(AND(ISBLANK(L43),ISBLANK(K43))=TRUE,"",IF(ISBLANK(L43)=TRUE,K43,L43)) ->  | AD43: =IF(AND(ISBLANK(N43),ISBLANK(M43))=TRUE,"",IF(ISBLANK(N43)=TRUE,M43,N43)) ->  | AE43: =IF(AND(ISBLANK(P43),ISBLANK(O43))=TRUE,"",IF(ISBLANK(P43)=TRUE,O43,P43)) -> 
A44: ="CLIMALUX GDX + GDCX " -> CLIMALUX GDX + GDCX | C44: ="" ->  | E44: =IF(pckeuze!B164=0,"",IF(AND(pckeuze!B164=1,calcul!C86>0)=TRUE,calcul!C86,"")) ->  | G44: =IF(pckeuze!B164=0,"",IF(AND(pckeuze!B164=1,calcul!D86>0)=TRUE,calcul!D86,"")) ->  | I44: ="" ->  | K44: =IF(pckeuze!B164=0,"",IF(AND(pckeuze!B164=1,calcul!G86>0)=TRUE,calcul!G86,"")) ->  | M44: =IF(pckeuze!B164=0,"",IF(AND(pckeuze!B164=1,calcul!H86>0)=TRUE,calcul!H86,"")) ->  | O44: =IF(pckeuze!B164=0,"",IF(AND(pckeuze!B164=1,calcul!I86>0)=TRUE,calcul!I86,"")) ->  | X44: =COUNTIF(F44,">=0")+COUNTIF(L44,">=0")+COUNTIF(N44,">=0")+COUNTIF(P44,">=0") -> 0 | Z44: =IF(AND(ISBLANK(F44),ISBLANK(E44))=TRUE,"",IF(ISBLANK(F44)=TRUE,E44,F44)) ->  | AA44: =IF(AND(ISBLANK(H44),ISBLANK(G44))=TRUE,"",IF(ISBLANK(H44)=TRUE,G44,H44)) ->  | AC44: =IF(AND(ISBLANK(L44),ISBLANK(K44))=TRUE,"",IF(ISBLANK(L44)=TRUE,K44,L44)) ->  | AD44: =IF(AND(ISBLANK(N44),ISBLANK(M44))=TRUE,"",IF(ISBLANK(N44)=TRUE,M44,N44)) ->  | AE44: =IF(AND(ISBLANK(P44),ISBLANK(O44))=TRUE,"",IF(ISBLANK(P44)=TRUE,O44,P44)) -> 
W45: =IF(AND(SUM(X50:X57)>0,drager>2)=TRUE,taal!A771,"*") -> *
A46: =taal!A738 -> ZUGSET FÜR FREISTEHENDES DACH | C46: 3500 | D46: 2500 | E46: 5000 | F46: 3250 | G46: 5000 | H46: 5000 | I46: 5001 | J46: 6500 | Y46: 2500 | Z46: 3250 | AA46: 5000 | AB46: 6500
A47: =IF(muur=5,"P72 + 2 x C72","P72 + 2 x PU72") -> P72 + 2 x PU72 | C47: =IF(AND(OR(type=3,'input data'!B107=5),pckeuze!B4=1,muur>4,calcul!$D$724=2500)=TRUE,calcul!$B$724,"") ->  | E47: =IF(AND(OR(type=3,'input data'!B107=5),pckeuze!B4=1,muur>4,calcul!$D$724=3250)=TRUE,calcul!$B724,"") ->  | G47: =IF(AND(OR(type=3,'input data'!B107=5),pckeuze!B4=1,muur>4,calcul!$D$724=5000)=TRUE,calcul!$B$724,"") ->  | I47: =IF(AND(OR(type=3,'input data'!B107=5),pckeuze!B4=1,muur>4,calcul!$D$724=6500)=TRUE,calcul!$B$724,"") ->  | X47: =COUNTIF(D47,">=0")+COUNTIF(F47,">=0")+COUNTIF(H47,">=0")+COUNTIF(J47,">=0") -> 0 | Y47: =IF(AND(ISBLANK(D47),ISBLANK(C47))=TRUE,"",IF(ISBLANK(D47)=TRUE,C47,D47)) ->  | Z47: =IF(AND(ISBLANK(F47),ISBLANK(E47))=TRUE,"",IF(ISBLANK(F47)=TRUE,E47,F47)) ->  | AA47: =IF(AND(ISBLANK(H47),ISBLANK(G47))=TRUE,"",IF(ISBLANK(H47)=TRUE,G47,H47)) ->  | AB47: =IF(AND(ISBLANK(J47),ISBLANK(I47))=TRUE,"",IF(ISBLANK(J47)=TRUE,I47,J47)) -> 
A49: =taal!A687&" D 1 " -> ZWISCHENTRÄGER D 1 | C49: 2500 | D49: 2500 | E49: 3000 | F49: 3000 | G49: 3500 | H49: 3500 | I49: 4000 | J49: 4000 | K49: 5000 | L49: 5000 | M49: 6000 | N49: 6000 | Y49: 2500 | Z49: 3000 | AA49: 3500 | AB49: 4000 | AC49: 5000 | AD49: 6000
A50: =taal!A555 -> CL16 NICHT THERMISCH | C50: =IF(pckeuze!B10=0,"",IF(AND(pckeuze!B10=1,calcul!$D$67=2500)=TRUE,calcul!$B$68,"")) ->  | E50: =IF(pckeuze!B10=0,"",IF(AND(pckeuze!B10=1,calcul!$D$67=3000)=TRUE,calcul!$B$68,"")) ->  | G50: =IF(pckeuze!B10=0,"",IF(AND(pckeuze!B10=1,calcul!$D$67=3500)=TRUE,calcul!$B$68,"")) ->  | I50: =IF(pckeuze!B10=0,"",IF(AND(pckeuze!B10=1,calcul!$D$67=4000)=TRUE,calcul!$B$68,"")) ->  | K50: ="" ->  | M50: =IF(pckeuze!B10=0,"",IF(AND(pckeuze!B10=1,calcul!$D$67=6000)=TRUE,calcul!$B$68,"")) ->  | X50: =COUNTIF(D50,">=0")+COUNTIF(F50,">=0")+COUNTIF(H50,">=0")+COUNTIF(J50,">=0")+COUNTIF(L50,">=0")+COUNTIF(N50,">=0") -> 0 | Y50: =IF(AND(ISBLANK(D50),ISBLANK(C50))=TRUE,"",IF(ISBLANK(D50)=TRUE,C50,D50)) ->  | Z50: =IF(AND(ISBLANK(F50),ISBLANK(E50))=TRUE,"",IF(ISBLANK(F50)=TRUE,E50,F50)) ->  | AA50: =IF(AND(ISBLANK(H50),ISBLANK(G50))=TRUE,"",IF(ISBLANK(H50)=TRUE,G50,H50)) ->  | AB50: =IF(AND(ISBLANK(J50),ISBLANK(I50))=TRUE,"",IF(ISBLANK(J50)=TRUE,I50,J50)) ->  | AD50: =IF(AND(ISBLANK(N50),ISBLANK(M50))=TRUE,"",IF(ISBLANK(N50)=TRUE,M50,N50)) -> 
A51: =taal!A671 -> CL32 NICHT THERMISCH | C51: =IF(pckeuze!B11=0,"",IF(AND(pckeuze!B11=1,calcul!$D$67=2500)=TRUE,calcul!$B$68,"")) ->  | E51: =IF(pckeuze!B11=0,"",IF(AND(pckeuze!B11=1,calcul!$D$67=3000)=TRUE,calcul!$B$68,"")) ->  | G51: =IF(pckeuze!B11=0,"",IF(AND(pckeuze!B11=1,calcul!$D$67=3500)=TRUE,calcul!$B$68,"")) ->  | I51: =IF(pckeuze!B11=0,"",IF(AND(pckeuze!B11=1,calcul!$D$67=4000)=TRUE,calcul!$B$68,"")) ->  | K51: ="" ->  | M51: =IF(pckeuze!B11=0,"",IF(AND(pckeuze!B11=1,calcul!$D$67=6000)=TRUE,calcul!$B$68,"")) ->  | X51: 0
A52: =taal!A562 -> CL16 THERMISCH | C52: =IF(pckeuze!B15=0,"",IF(AND(pckeuze!B15=1,calcul!$D$67=2500)=TRUE,calcul!$B$68,"")) ->  | E52: =IF(pckeuze!B15=0,"",IF(AND(pckeuze!B15=1,calcul!$D$67=3000)=TRUE,calcul!$B$68,"")) ->  | G52: =IF(pckeuze!B15=0,"",IF(AND(pckeuze!B15=1,calcul!$D$67=3500)=TRUE,calcul!$B$68,"")) ->  | I52: =IF(pckeuze!B15=0,"",IF(AND(pckeuze!B15=1,calcul!$D$67=4000)=TRUE,calcul!$B$68,"")) ->  | K52: ="" ->  | M52: =IF(pckeuze!B15=0,"",IF(AND(pckeuze!B15=1,calcul!$D$67=6000)=TRUE,calcul!$B$68,"")) ->  | X52: 0
A53: =taal!A563 -> CL32 THERMISCH | C53: =IF(pckeuze!B16=0,"",IF(AND(pckeuze!B16=1,calcul!$D$67=2500)=TRUE,calcul!$B$68,"")) ->  | E53: =IF(pckeuze!B16=0,"",IF(AND(pckeuze!B16=1,calcul!$D$67=3000)=TRUE,calcul!$B$68,"")) ->  | G53: =IF(pckeuze!B16=0,"",IF(AND(pckeuze!B16=1,calcul!$D$67=3500)=TRUE,calcul!$B$68,"")) ->  | I53: =IF(pckeuze!B16=0,"",IF(AND(pckeuze!B16=1,calcul!$D$67=4000)=TRUE,calcul!$B$68,"")) ->  | K53: ="" ->  | M53: =IF(pckeuze!B16=0,"",IF(AND(pckeuze!B16=1,calcul!$D$67=6000)=TRUE,calcul!$B$68,"")) ->  | X53: 0
A54: =taal!A554 -> GUMMI 16 NICHT THERMISCH | C54: =IF(pckeuze!B7=0,"",IF(AND(pckeuze!B7=1,calcul!$D$67=2500)=TRUE,calcul!$B$68,"")) ->  | E54: =IF(pckeuze!B7=0,"",IF(AND(pckeuze!B7=1,calcul!$D$67=3000)=TRUE,calcul!$B$68,"")) ->  | G54: =IF(pckeuze!B7=0,"",IF(AND(pckeuze!B7=1,calcul!$D$67=3500)=TRUE,calcul!$B$68,"")) ->  | I54: =IF(pckeuze!B7=0,"",IF(AND(pckeuze!B7=1,calcul!$D$67=4000)=TRUE,calcul!$B$68,"")) ->  | K54: ="" ->  | M54: =IF(pckeuze!B7=0,"",IF(AND(pckeuze!B7=1,calcul!$D$67=6000)=TRUE,calcul!$B$68,"")) ->  | X54: 0
A55: =taal!A667 -> GUMMI 32 NICHT THERMISCH | C55: =IF(pckeuze!B9=0,"",IF(AND(pckeuze!B9=1,calcul!$D$67=2500)=TRUE,calcul!$B$68,"")) ->  | E55: =IF(pckeuze!B9=0,"",IF(AND(pckeuze!B9=1,calcul!$D$67=3000)=TRUE,calcul!$B$68,"")) ->  | G55: =IF(pckeuze!B9=0,"",IF(AND(pckeuze!B9=1,calcul!$D$67=3500)=TRUE,calcul!$B$68,"")) ->  | I55: =IF(pckeuze!B9=0,"",IF(AND(pckeuze!B9=1,calcul!$D$67=4000)=TRUE,calcul!$B$68,"")) ->  | K55: ="" ->  | M55: =IF(pckeuze!B9=0,"",IF(AND(pckeuze!B9=1,calcul!$D$67=6000)=TRUE,calcul!$B$68,"")) ->  | X55: 0
A56: =taal!A561 -> GUMMI 16 THERMISCH | C56: =IF(pckeuze!B12=0,"",IF(AND(pckeuze!B12=1,calcul!$D$67=2500)=TRUE,calcul!$B$68,"")) ->  | E56: =IF(pckeuze!B12=0,"",IF(AND(pckeuze!B12=1,calcul!$D$67=3000)=TRUE,calcul!$B$68,"")) ->  | G56: =IF(pckeuze!B12=0,"",IF(AND(pckeuze!B12=1,calcul!$D$67=3500)=TRUE,calcul!$B$68,"")) ->  | I56: =IF(pckeuze!B12=0,"",IF(AND(pckeuze!B12=1,calcul!$D$67=4000)=TRUE,calcul!$B$68,"")) ->  | K56: ="" ->  | M56: =IF(pckeuze!B12=0,"",IF(AND(pckeuze!B12=1,calcul!$D$67=6000)=TRUE,calcul!$B$68,"")) ->  | X56: 0
A57: =taal!A668 -> GUMMI 32 THERMISCH | C57: =IF(pckeuze!B14=0,"",IF(AND(pckeuze!B14=1,calcul!$D$67=2500)=TRUE,calcul!$B$68,"")) ->  | E57: =IF(pckeuze!B14=0,"",IF(AND(pckeuze!B14=1,calcul!$D$67=3000)=TRUE,calcul!$B$68,"")) ->  | G57: =IF(pckeuze!B14=0,"",IF(AND(pckeuze!B14=1,calcul!$D$67=3500)=TRUE,calcul!$B$68,"")) ->  | I57: =IF(pckeuze!B14=0,"",IF(AND(pckeuze!B14=1,calcul!$D$67=4000)=TRUE,calcul!$B$68,"")) ->  | K57: ="" ->  | M57: =IF(pckeuze!B14=0,"",IF(AND(pckeuze!B14=1,calcul!$D$67=6000)=TRUE,calcul!$B$68,"")) ->  | X57: 0
A59: =taal!A687&" D 2 " -> ZWISCHENTRÄGER D 2 | C59: 2500 | E59: 3000 | G59: 3500 | H59: 3500 | I59: 4000 | J59: 4000 | K59: 5000 | L59: 5000 | M59: 6000 | N59: 6000 | Y59: 2500 | Z59: 3000 | AA59: 3500 | AB59: 4000 | AC59: 5000 | AD59: 6000
A60: =taal!A555 -> CL16 NICHT THERMISCH | G60: =IF(pckeuze!B22=0,"",IF(AND(pckeuze!B22=1,OR(calcul!$D$67=3500,calcul!$D$67=3000,calcul!$D$67=2500)=TRUE),calcul!$B$68,"")) ->  | I60: =IF(pckeuze!B22=0,"",IF(AND(pckeuze!B22=1,calcul!$D$67=4000)=TRUE,calcul!$B$68,"")) ->  | K60: =IF(pckeuze!B22=0,"",IF(AND(pckeuze!B22=1,calcul!$D$67=5000)=TRUE,calcul!$B$68,"")) ->  | M60: =IF(pckeuze!B22=0,"",IF(AND(pckeuze!B22=1,calcul!$D$67=6000)=TRUE,calcul!$B$68,"")) ->  | X60: =COUNTIF(D60,">=0")+COUNTIF(F60,">=0")+COUNTIF(H60,">=0")+COUNTIF(J60,">=0")+COUNTIF(L60,">=0")+COUNTIF(N60,">=0") -> 0 | Y60: =IF(AND(ISBLANK(D60),ISBLANK(C60))=TRUE,"",IF(ISBLANK(D60)=TRUE,C60,D60)) ->  | Z60: =IF(AND(ISBLANK(F60),ISBLANK(E60))=TRUE,"",IF(ISBLANK(F60)=TRUE,E60,F60)) ->  | AA60: =IF(AND(ISBLANK(H60),ISBLANK(G60))=TRUE,"",IF(ISBLANK(H60)=TRUE,G60,H60)) ->  | AB60: =IF(AND(ISBLANK(J60),ISBLANK(I60))=TRUE,"",IF(ISBLANK(J60)=TRUE,I60,J60)) ->  | AC60: =IF(AND(ISBLANK(K60),ISBLANK(L60))=TRUE,"",IF(ISBLANK(L60)=TRUE,K60,L60)) ->  | AD60: =IF(AND(ISBLANK(N60),ISBLANK(M60))=TRUE,"",IF(ISBLANK(N60)=TRUE,M60,N60)) -> 
A61: =taal!A671 -> CL32 NICHT THERMISCH | G61: =IF(pckeuze!B23=0,"",IF(AND(pckeuze!B23=1,OR(calcul!$D$67=3500,calcul!$D$67=3000,calcul!$D$67=2500)=TRUE),calcul!$B$68,"")) ->  | I61: =IF(pckeuze!B23=0,"",IF(AND(pckeuze!B23=1,calcul!$D$67=4000)=TRUE,calcul!$B$68,"")) ->  | K61: =IF(pckeuze!B23=0,"",IF(AND(pckeuze!B23=1,calcul!$D$67=5000)=TRUE,calcul!$B$68,"")) ->  | M61: =IF(pckeuze!B23=0,"",IF(AND(pckeuze!B23=1,calcul!$D$67=6000)=TRUE,calcul!$B$68,"")) ->  | X61: 0 | AC61: =IF(AND(ISBLANK(K61),ISBLANK(L61))=TRUE,"",IF(ISBLANK(L61)=TRUE,K61,L61)) -> 
A62: =taal!A562 -> CL16 THERMISCH | G62: =IF(pckeuze!B27=0,"",IF(AND(pckeuze!B27=1,OR(calcul!$D$67=3500,calcul!$D$67=3000,calcul!$D$67=2500)=TRUE),calcul!$B$68,"")) ->  | I62: =IF(pckeuze!B27=0,"",IF(AND(pckeuze!B27=1,calcul!$D$67=4000)=TRUE,calcul!$B$68,"")) ->  | K62: =IF(pckeuze!B27=0,"",IF(AND(pckeuze!B27=1,calcul!$D$67=5000)=TRUE,calcul!$B$68,"")) ->  | M62: =IF(pckeuze!B27=0,"",IF(AND(pckeuze!B27=1,calcul!$D$67=6000)=TRUE,calcul!$B$68,"")) ->  | X62: 0
A63: =taal!A563 -> CL32 THERMISCH | G63: =IF(pckeuze!B28=0,"",IF(AND(pckeuze!B28=1,OR(calcul!$D$67=3500,calcul!$D$67=3000,calcul!$D$67=2500)=TRUE),calcul!$B$68,"")) ->  | I63: =IF(pckeuze!B28=0,"",IF(AND(pckeuze!B28=1,calcul!$D$67=4000)=TRUE,calcul!$B$68,"")) ->  | K63: =IF(pckeuze!B28=0,"",IF(AND(pckeuze!B28=1,calcul!$D$67=5000)=TRUE,calcul!$B$68,"")) ->  | M63: =IF(pckeuze!B28=0,"",IF(AND(pckeuze!B28=1,calcul!$D$67=6000)=TRUE,calcul!$B$68,"")) ->  | X63: 0
A64: =taal!A554 -> GUMMI 16 NICHT THERMISCH | G64: =IF(pckeuze!B19=0,"",IF(AND(pckeuze!B19=1,OR(calcul!$D$67=3500,calcul!$D$67=3000,calcul!$D$67=2500)=TRUE),calcul!$B$68,"")) ->  | I64: =IF(pckeuze!B19=0,"",IF(AND(pckeuze!B19=1,calcul!$D$67=4000)=TRUE,calcul!$B$68,"")) ->  | K64: =IF(pckeuze!B19=0,"",IF(AND(pckeuze!B19=1,calcul!$D$67=5000)=TRUE,calcul!$B$68,"")) ->  | M64: =IF(pckeuze!B19=0,"",IF(AND(pckeuze!B19=1,calcul!$D$67=6000)=TRUE,calcul!$B$68,"")) ->  | X64: 0
A65: =taal!A667 -> GUMMI 32 NICHT THERMISCH | G65: =IF(pckeuze!B21=0,"",IF(AND(pckeuze!B21=1,OR(calcul!$D$67=3500,calcul!$D$67=3000,calcul!$D$67=2500)=TRUE),calcul!$B$68,"")) ->  | I65: =IF(pckeuze!B21=0,"",IF(AND(pckeuze!B21=1,calcul!$D$67=4000)=TRUE,calcul!$B$68,"")) ->  | K65: =IF(pckeuze!B21=0,"",IF(AND(pckeuze!B21=1,calcul!$D$67=5000)=TRUE,calcul!$B$68,"")) ->  | M65: =IF(pckeuze!B21=0,"",IF(AND(pckeuze!B21=1,calcul!$D$67=6000)=TRUE,calcul!$B$68,"")) ->  | X65: 0
A66: =taal!A561 -> GUMMI 16 THERMISCH | G66: =IF(pckeuze!B24=0,"",IF(AND(pckeuze!B24=1,OR(calcul!$D$67=3500,calcul!$D$67=3000,calcul!$D$67=2500)=TRUE),calcul!$B$68,"")) ->  | I66: =IF(pckeuze!B24=0,"",IF(AND(pckeuze!B24=1,calcul!$D$67=4000)=TRUE,calcul!$B$68,"")) ->  | K66: =IF(pckeuze!B24=0,"",IF(AND(pckeuze!B24=1,calcul!$D$67=5000)=TRUE,calcul!$B$68,"")) ->  | M66: =IF(pckeuze!B24=0,"",IF(AND(pckeuze!B24=1,calcul!$D$67=6000)=TRUE,calcul!$B$68,"")) ->  | X66: 0
A67: =taal!A668 -> GUMMI 32 THERMISCH | G67: =IF(pckeuze!B26=0,"",IF(AND(pckeuze!B26=1,OR(calcul!$D$67=3500,calcul!$D$67=3000,calcul!$D$67=2500)=TRUE),calcul!$B$68,"")) ->  | I67: =IF(pckeuze!B26=0,"",IF(AND(pckeuze!B26=1,calcul!$D$67=4000)=TRUE,calcul!$B$68,"")) ->  | K67: =IF(pckeuze!B26=0,"",IF(AND(pckeuze!B26=1,calcul!$D$67=5000)=TRUE,calcul!$B$68,"")) ->  | M67: =IF(pckeuze!B26=0,"",IF(AND(pckeuze!B26=1,calcul!$D$67=6000)=TRUE,calcul!$B$68,"")) ->  | X67: 0
A69: =taal!A687&" D 3 " -> ZWISCHENTRÄGER D 3 | C69: 2500 | E69: 3000 | I69: 4000 | K69: 5000 | L69: 5000 | M69: 5000 | N69: 5500 | AB69: (4500) | AC69: 5000 | AD69: 5500
A70: =taal!A555 -> CL16 NICHT THERMISCH | I70: =IF(pckeuze!B34=0,"",IF(AND(pckeuze!B34=1,calcul!$D$67=4500)=TRUE,calcul!$B$68,"")) ->  | K70: =IF(pckeuze!B34=0,"",IF(AND(pckeuze!B34=1,calcul!$D$67=5000)=TRUE,calcul!$B$68,"")) ->  | M70: =IF(pckeuze!B34=0,"",IF(AND(pckeuze!B34=1,calcul!$D$67=5500)=TRUE,calcul!$B$68,"")) ->  | X70: =COUNTIF(D70,">=0")+COUNTIF(F70,">=0")+COUNTIF(H70,">=0")+COUNTIF(J70,">=0")+COUNTIF(L70,">=0")+COUNTIF(N70,">=0") -> 0 | AB70: =IF(AND(ISBLANK(J70),ISBLANK(I70))=TRUE,"",IF(ISBLANK(J70)=TRUE,I70,J70)) ->  | AC70: =IF(AND(ISBLANK(K70),ISBLANK(L70))=TRUE,"",IF(ISBLANK(L70)=TRUE,K70,L70)) ->  | AD70: =IF(AND(ISBLANK(N70),ISBLANK(M70))=TRUE,"",IF(ISBLANK(N70)=TRUE,M70,N70)) -> 
A71: =taal!A671 -> CL32 NICHT THERMISCH | I71: =IF(pckeuze!B35=0,"",IF(AND(pckeuze!B35=1,calcul!$D$67=4500)=TRUE,calcul!$B$68,"")) ->  | K71: =IF(pckeuze!B35=0,"",IF(AND(pckeuze!B35=1,calcul!$D$67=5000)=TRUE,calcul!$B$68,"")) ->  | M71: =IF(pckeuze!B35=0,"",IF(AND(pckeuze!B35=1,calcul!$D$67=5500)=TRUE,calcul!$B$68,"")) ->  | X71: 0 | AC71: =IF(AND(ISBLANK(K71),ISBLANK(L71))=TRUE,"",IF(ISBLANK(L71)=TRUE,K71,L71)) -> 
A72: =taal!A562 -> CL16 THERMISCH | I72: =IF(pckeuze!B39=0,"",IF(AND(pckeuze!B39=1,calcul!$D$67=4500)=TRUE,calcul!$B$68,"")) ->  | K72: =IF(pckeuze!B39=0,"",IF(AND(pckeuze!B39=1,calcul!$D$67=5000)=TRUE,calcul!$B$68,"")) ->  | M72: =IF(pckeuze!B39=0,"",IF(AND(pckeuze!B39=1,calcul!$D$67=5500)=TRUE,calcul!$B$68,"")) ->  | X72: 0
A73: =taal!A563 -> CL32 THERMISCH | I73: =IF(pckeuze!B40=0,"",IF(AND(pckeuze!B40=1,calcul!$D$67=4500)=TRUE,calcul!$B$68,"")) ->  | K73: =IF(pckeuze!B40=0,"",IF(AND(pckeuze!B40=1,calcul!$D$67=5000)=TRUE,calcul!$B$68,"")) ->  | M73: =IF(pckeuze!B40=0,"",IF(AND(pckeuze!B40=1,calcul!$D$67=5500)=TRUE,calcul!$B$68,"")) ->  | X73: 0
A74: =taal!A554 -> GUMMI 16 NICHT THERMISCH | I74: =IF(pckeuze!B31=0,"",IF(AND(pckeuze!B31=1,calcul!$D$67=4500)=TRUE,calcul!$B$68,"")) ->  | K74: =IF(pckeuze!B31=0,"",IF(AND(pckeuze!B31=1,calcul!$D$67=5000)=TRUE,calcul!$B$68,"")) ->  | M74: =IF(pckeuze!B31=0,"",IF(AND(pckeuze!B31=1,calcul!$D$67=5500)=TRUE,calcul!$B$68,"")) ->  | X74: 0
A75: =taal!A667 -> GUMMI 32 NICHT THERMISCH | I75: =IF(pckeuze!B33=0,"",IF(AND(pckeuze!B33=1,calcul!$D$67=4500)=TRUE,calcul!$B$68,"")) ->  | K75: =IF(pckeuze!B33=0,"",IF(AND(pckeuze!B33=1,calcul!$D$67=5000)=TRUE,calcul!$B$68,"")) ->  | M75: =IF(pckeuze!B33=0,"",IF(AND(pckeuze!B33=1,calcul!$D$67=5500)=TRUE,calcul!$B$68,"")) ->  | X75: 0
A76: =taal!A561 -> GUMMI 16 THERMISCH | I76: =IF(pckeuze!B36=0,"",IF(AND(pckeuze!B36=1,calcul!$D$67=4500)=TRUE,calcul!$B$68,"")) ->  | K76: =IF(pckeuze!B36=0,"",IF(AND(pckeuze!B36=1,calcul!$D$67=5000)=TRUE,calcul!$B$68,"")) ->  | M76: =IF(pckeuze!B36=0,"",IF(AND(pckeuze!B36=1,calcul!$D$67=5500)=TRUE,calcul!$B$68,"")) ->  | X76: 0 | AC76: =IF(AND(ISBLANK(K76),ISBLANK(L76))=TRUE,"",IF(ISBLANK(L76)=TRUE,K76,L76)) -> 
A77: =taal!A668 -> GUMMI 32 THERMISCH | I77: =IF(pckeuze!B38=0,"",IF(AND(pckeuze!B38=1,calcul!$D$67=4500)=TRUE,calcul!$B$68,"")) ->  | K77: =IF(pckeuze!B38=0,"",IF(AND(pckeuze!B38=1,calcul!$D$67=5000)=TRUE,calcul!$B$68,"")) ->  | M77: =IF(pckeuze!B38=0,"",IF(AND(pckeuze!B38=1,calcul!$D$67=5500)=TRUE,calcul!$B$68,"")) ->  | X77: =COUNTIF(D77,">=0")+COUNTIF(F77,">=0")+COUNTIF(H77,">=0")+COUNTIF(J77,">=0")+COUNTIF(L77,">=0")+COUNTIF(N77,">=0") -> 0
W78: =IF(AND(SUM(X86:X93)>0,drager>2)=TRUE,taal!A771,"*") -> *
A79: =taal!A687&" DX / DX2" -> ZWISCHENTRÄGER DX / DX2 | C79: 2500 | D79: 2500 | E79: 3000 | F79: 3000 | G79: 3250 | H79: 3250 | I79: 3500 | J79: 3500 | K79: 3750 | L79: 3750 | M79: 4000 | N79: 4000 | P79: 4500 | Q79: 5000 | R79: 5000 | S79: 5500 | T79: 5500 | U79: 6000 | V79: 6000 | Y79: 2500 | Z79: 3000 | AA79: 3250 | AB79: 3500 | AC79: 3750 | AD79: 4000 | AE79: 4500 | AF79: 5000 | AG79: 5500 | AH79: 6000
A80: =taal!A557 -> DX + CL16 NICHT THERMISCH | C80: =IF(pckeuze!B43=0,"",IF(AND(pckeuze!B43=1,calcul!$D$67=2500)=TRUE,calcul!$B$68,"")) ->  | E80: =IF(pckeuze!$B$43=0,"",IF(AND(pckeuze!$B$43=1,calcul!$D$67=3000)=TRUE,calcul!$B$68,"")) ->  | G80: =IF(pckeuze!$B$43=0,"",IF(AND(pckeuze!$B$43=1,calcul!$D$67=3250)=TRUE,calcul!$B$68,"")) ->  | I80: =IF(pckeuze!$B$43=0,"",IF(AND(pckeuze!$B$43=1,calcul!$D$67=3500)=TRUE,calcul!$B$68,"")) ->  | K80: =IF(pckeuze!$B$43=0,"",IF(AND(pckeuze!$B$43=1,calcul!$D$67=3750)=TRUE,calcul!$B$68,"")) ->  | M80: =IF(pckeuze!B43=0,"",IF(AND(pckeuze!B43=1,calcul!$D$67=4000)=TRUE,calcul!$B$68,"")) ->  | O80: =IF(pckeuze!B43=0,"",IF(AND(pckeuze!B43=1,calcul!$D$67=4500)=TRUE,calcul!$B$68,"")) ->  | Q80: =IF(pckeuze!B43=0,"",IF(AND(pckeuze!B43=1,calcul!$D$67=5000)=TRUE,calcul!$B$68,"")) ->  | S80: ="" ->  | U80: ="" ->  | X80: =COUNTIF(D80,">=0")+COUNTIF(F80,">=0")+COUNTIF(H80,">=0")+COUNTIF(J80,">=0")+COUNTIF(L80,">=0")+COUNTIF(N80,">=0")+COUNTIF(P80,">=0")+COUNTIF(R80,">=0") -> 0 | Y80: =IF(AND(ISBLANK(D80),ISBLANK(C80))=TRUE,"",IF(ISBLANK(D80)=TRUE,C80,D80)) ->  | Z80: =IF(AND(ISBLANK(F80),ISBLANK(E80))=TRUE,"",IF(ISBLANK(F80)=TRUE,E80,F80)) ->  | AA80: =IF(AND(ISBLANK(H80),ISBLANK(G80))=TRUE,"",IF(ISBLANK(H80)=TRUE,G80,H80)) ->  | AB80: =IF(AND(ISBLANK(J80),ISBLANK(I80))=TRUE,"",IF(ISBLANK(J80)=TRUE,I80,J80)) ->  | AC80: =IF(AND(ISBLANK(K80),ISBLANK(L80))=TRUE,"",IF(ISBLANK(L80)=TRUE,K80,L80)) ->  | AD80: =IF(AND(ISBLANK(N80),ISBLANK(M80))=TRUE,"",IF(ISBLANK(N80)=TRUE,M80,N80)) ->  | AE80: =IF(AND(ISBLANK(P80),ISBLANK(O80))=TRUE,"",IF(ISBLANK(P80)=TRUE,O80,P80)) ->  | AF80: =IF(AND(ISBLANK(R80),ISBLANK(Q80))=TRUE,"",IF(ISBLANK(R80)=TRUE,Q80,R80)) ->  | AG80: =IF(AND(ISBLANK(T80),ISBLANK(S80))=TRUE,"",IF(ISBLANK(T80)=TRUE,S80,T80)) ->  | AH80: =IF(AND(ISBLANK(V80),ISBLANK(U80))=TRUE,"",IF(ISBLANK(V80)=TRUE,U80,V80)) -> 
A81: =taal!A558 -> DX + CL32 NICHT THERMISCH | C81: =IF(pckeuze!B44=0,"",IF(AND(pckeuze!B44=1,calcul!$D$67=2500)=TRUE,calcul!$B$68,"")) ->  | E81: =IF(pckeuze!$B$44=0,"",IF(AND(pckeuze!$B$44=1,calcul!$D$67=3000)=TRUE,calcul!$B$68,"")) ->  | G81: =IF(pckeuze!$B$44=0,"",IF(AND(pckeuze!$B$44=1,calcul!$D$67=3250)=TRUE,calcul!$B$68,"")) ->  | I81: =IF(pckeuze!$B$44=0,"",IF(AND(pckeuze!$B$44=1,calcul!$D$67=3500)=TRUE,calcul!$B$68,"")) ->  | K81: =IF(pckeuze!$B$44=0,"",IF(AND(pckeuze!$B$44=1,calcul!$D$67=3750)=TRUE,calcul!$B$68,"")) ->  | M81: =IF(pckeuze!B44=0,"",IF(AND(pckeuze!B44=1,calcul!$D$67=4000)=TRUE,calcul!$B$68,"")) ->  | O81: =IF(pckeuze!B44=0,"",IF(AND(pckeuze!B44=1,calcul!$D$67=4500)=TRUE,calcul!$B$68,"")) ->  | Q81: =IF(pckeuze!B44=0,"",IF(AND(pckeuze!B44=1,calcul!$D$67=5000)=TRUE,calcul!$B$68,"")) ->  | S81: ="" ->  | U81: ="" ->  | X81: =COUNTIF(D81,">=0")+COUNTIF(F81,">=0")+COUNTIF(H81,">=0")+COUNTIF(J81,">=0")+COUNTIF(L81,">=0")+COUNTIF(N81,">=0")+COUNTIF(P81,">=0")+COUNTIF(R81,">=0") -> 0 | Y81: =IF(AND(ISBLANK(D81),ISBLANK(C81))=TRUE,"",IF(ISBLANK(D81)=TRUE,C81,D81)) ->  | Z81: =IF(AND(ISBLANK(F81),ISBLANK(E81))=TRUE,"",IF(ISBLANK(F81)=TRUE,E81,F81)) ->  | AA81: =IF(AND(ISBLANK(H81),ISBLANK(G81))=TRUE,"",IF(ISBLANK(H81)=TRUE,G81,H81)) ->  | AB81: =IF(AND(ISBLANK(J81),ISBLANK(I81))=TRUE,"",IF(ISBLANK(J81)=TRUE,I81,J81)) ->  | AC81: =IF(AND(ISBLANK(K81),ISBLANK(L81))=TRUE,"",IF(ISBLANK(L81)=TRUE,K81,L81)) ->  | AD81: =IF(AND(ISBLANK(N81),ISBLANK(M81))=TRUE,"",IF(ISBLANK(N81)=TRUE,M81,N81)) ->  | AE81: =IF(AND(ISBLANK(P81),ISBLANK(O81))=TRUE,"",IF(ISBLANK(P81)=TRUE,O81,P81)) ->  | AF81: =IF(AND(ISBLANK(R81),ISBLANK(Q81))=TRUE,"",IF(ISBLANK(R81)=TRUE,Q81,R81)) ->  | AG81: =IF(AND(ISBLANK(T81),ISBLANK(S81))=TRUE,"",IF(ISBLANK(T81)=TRUE,S81,T81)) ->  | AH81: =IF(AND(ISBLANK(V81),ISBLANK(U81))=TRUE,"",IF(ISBLANK(V81)=TRUE,U81,V81)) -> 
A82: =taal!A559 -> DX2 + CL16 NICHT THERMISCH | C82: ="" ->  | E82: ="" ->  | G82: ="" ->  | I82: ="" ->  | K82: ="" ->  | M82: =IF(pckeuze!B45=0,"",IF(AND(pckeuze!B45=1,calcul!$D$67=4000)=TRUE,calcul!$B$68,"")) ->  | O82: =IF(pckeuze!B45=0,"",IF(AND(pckeuze!B45=1,calcul!$D$67=4500)=TRUE,calcul!$B$68,"")) ->  | Q82: =IF(pckeuze!B45=0,"",IF(AND(pckeuze!B45=1,calcul!$D$67=5000)=TRUE,calcul!$B$68,"")) ->  | S82: =IF(pckeuze!B45=0,"",IF(AND(pckeuze!B45=1,calcul!$D$67=5500)=TRUE,calcul!$B$68,"")) ->  | U82: =IF(pckeuze!B45=0,"",IF(AND(pckeuze!B45=1,calcul!$D$67=6000)=TRUE,calcul!$B$68,"")) ->  | X82: =COUNTIF(N82,">=0")+COUNTIF(P82,">=0")+COUNTIF(R82,">=0")+COUNTIF(T82,">=0")+COUNTIF(V82,">=0") -> 0 | Y82: =IF(AND(ISBLANK(D82),ISBLANK(C82))=TRUE,"",IF(ISBLANK(D82)=TRUE,C82,D82)) ->  | Z82: =IF(AND(ISBLANK(F82),ISBLANK(E82))=TRUE,"",IF(ISBLANK(F82)=TRUE,E82,F82)) ->  | AB82: =IF(AND(ISBLANK(J82),ISBLANK(I82))=TRUE,"",IF(ISBLANK(J82)=TRUE,I82,J82)) ->  | AC82: =IF(AND(ISBLANK(K82),ISBLANK(L82))=TRUE,"",IF(ISBLANK(L82)=TRUE,K82,L82)) ->  | AD82: =IF(AND(ISBLANK(N82),ISBLANK(M82))=TRUE,"",IF(ISBLANK(N82)=TRUE,M82,N82)) ->  | AE82: =IF(AND(ISBLANK(P82),ISBLANK(O82))=TRUE,"",IF(ISBLANK(P82)=TRUE,O82,P82)) ->  | AF82: =IF(AND(ISBLANK(R82),ISBLANK(Q82))=TRUE,"",IF(ISBLANK(R82)=TRUE,Q82,R82)) ->  | AG82: =IF(AND(ISBLANK(T82),ISBLANK(S82))=TRUE,"",IF(ISBLANK(T82)=TRUE,S82,T82)) ->  | AH82: =IF(AND(ISBLANK(V82),ISBLANK(U82))=TRUE,"",IF(ISBLANK(V82)=TRUE,U82,V82)) -> 
A83: =taal!A560 -> DX2 + CL32 NICHT THERMISCH | C83: ="" ->  | E83: ="" ->  | G83: ="" ->  | I83: ="" ->  | K83: ="" ->  | M83: =IF(pckeuze!B46=0,"",IF(AND(pckeuze!B46=1,calcul!$D$67=4000)=TRUE,calcul!$B$68,"")) ->  | O83: =IF(pckeuze!B46=0,"",IF(AND(pckeuze!B46=1,calcul!$D$67=4500)=TRUE,calcul!$B$68,"")) ->  | Q83: =IF(pckeuze!B46=0,"",IF(AND(pckeuze!B46=1,calcul!$D$67=5000)=TRUE,calcul!$B$68,"")) ->  | S83: =IF(pckeuze!B46=0,"",IF(AND(pckeuze!B46=1,calcul!$D$67=5500)=TRUE,calcul!$B$68,"")) ->  | U83: =IF(pckeuze!B46=0,"",IF(AND(pckeuze!B46=1,calcul!$D$67=6000)=TRUE,calcul!$B$68,"")) ->  | X83: =COUNTIF(N83,">=0")+COUNTIF(P83,">=0")+COUNTIF(R83,">=0")+COUNTIF(T83,">=0")+COUNTIF(V83,">=0") -> 0 | Y83: =IF(AND(ISBLANK(D83),ISBLANK(C83))=TRUE,"",IF(ISBLANK(D83)=TRUE,C83,D83)) ->  | Z83: =IF(AND(ISBLANK(F83),ISBLANK(E83))=TRUE,"",IF(ISBLANK(F83)=TRUE,E83,F83)) ->  | AB83: =IF(AND(ISBLANK(J83),ISBLANK(I83))=TRUE,"",IF(ISBLANK(J83)=TRUE,I83,J83)) ->  | AC83: =IF(AND(ISBLANK(K83),ISBLANK(L83))=TRUE,"",IF(ISBLANK(L83)=TRUE,K83,L83)) ->  | AD83: =IF(AND(ISBLANK(N83),ISBLANK(M83))=TRUE,"",IF(ISBLANK(N83)=TRUE,M83,N83)) ->  | AE83: =IF(AND(ISBLANK(P83),ISBLANK(O83))=TRUE,"",IF(ISBLANK(P83)=TRUE,O83,P83)) ->  | AF83: =IF(AND(ISBLANK(R83),ISBLANK(Q83))=TRUE,"",IF(ISBLANK(R83)=TRUE,Q83,R83)) ->  | AG83: =IF(AND(ISBLANK(T83),ISBLANK(S83))=TRUE,"",IF(ISBLANK(T83)=TRUE,S83,T83)) ->  | AH83: =IF(AND(ISBLANK(V83),ISBLANK(U83))=TRUE,"",IF(ISBLANK(V83)=TRUE,U83,V83)) -> 
A85: =taal!A696&" "&taal!A586&" D 1" -> SEITENABSCHLUSS NICHT THERMISCH D 1 | C85: 2500 | D85: 2500 | E85: 3000 | F85: 3000 | G85: 3500 | H85: 3500 | I85: 4000 | J85: 4000 | K85: 5000 | M85: 6000 | N85: 6000 | Y85: 2500 | Z85: 3000 | AA85: 3500 | AB85: 4000 | AC85: 5000 | AD85: 6000
A86: =taal!A567 -> CL16 NICHT THERMISCH FREI | C86: =IF(pckeuze!B55=0,"",IF(AND(pckeuze!B55=1,calcul!$D$68=2500)=TRUE,calcul!$B$71,"")) ->  | E86: =IF(pckeuze!B55=0,"",IF(AND(pckeuze!B55=1,calcul!$D$68=3000)=TRUE,calcul!$B$71,"")) ->  | G86: =IF(pckeuze!B55=0,"",IF(AND(pckeuze!B55=1,calcul!$D$68=3500)=TRUE,calcul!$B$71,"")) ->  | I86: =IF(pckeuze!B55=0,"",IF(AND(pckeuze!B55=1,calcul!$D$68=4000)=TRUE,calcul!$B$71,"")) ->  | K86: ="" ->  | M86: =IF(pckeuze!B55=0,"",IF(AND(pckeuze!B55=1,calcul!$D$68=6000)=TRUE,calcul!$B$71,"")) ->  | X86: =COUNTIF(D86,">=0")+COUNTIF(F86,">=0")+COUNTIF(H86,">=0")+COUNTIF(J86,">=0")+COUNTIF(N86,">=0") -> 0 | Y86: =IF(AND(ISBLANK(D86),ISBLANK(C86))=TRUE,"",IF(ISBLANK(D86)=TRUE,C86,D86)) ->  | Z86: =IF(AND(ISBLANK(F86),ISBLANK(E86))=TRUE,"",IF(ISBLANK(F86)=TRUE,E86,F86)) ->  | AA86: =IF(AND(ISBLANK(H86),ISBLANK(G86))=TRUE,"",IF(ISBLANK(H86)=TRUE,G86,H86)) ->  | AB86: =IF(AND(ISBLANK(J86),ISBLANK(I86))=TRUE,"",IF(ISBLANK(J86)=TRUE,I86,J86)) ->  | AD86: =IF(AND(ISBLANK(N86),ISBLANK(M86))=TRUE,"",IF(ISBLANK(N86)=TRUE,M86,N86)) -> 
A87: =taal!A672 -> CL32 NICHT THERMISCH FREI | C87: =IF(pckeuze!B56=0,"",IF(AND(pckeuze!B56=1,calcul!$D$68=2500)=TRUE,calcul!$B$71,"")) ->  | E87: =IF(pckeuze!B56=0,"",IF(AND(pckeuze!B56=1,calcul!$D$68=3000)=TRUE,calcul!$B$71,"")) ->  | G87: =IF(pckeuze!B56=0,"",IF(AND(pckeuze!B56=1,calcul!$D$68=3500)=TRUE,calcul!$B$71,"")) ->  | I87: =IF(pckeuze!B56=0,"",IF(AND(pckeuze!B56=1,calcul!$D$68=4000)=TRUE,calcul!$B$71,"")) ->  | K87: ="" ->  | M87: =IF(pckeuze!B56=0,"",IF(AND(pckeuze!B56=1,calcul!$D$68=6000)=TRUE,calcul!$B$71,"")) ->  | X87: =COUNTIF(D87,">=0")+COUNTIF(F87,">=0")+COUNTIF(H87,">=0")+COUNTIF(J87,">=0")+COUNTIF(N87,">=0") -> 0 | AA87: =IF(AND(ISBLANK(H87),ISBLANK(G87))=TRUE,"",IF(ISBLANK(H87)=TRUE,G87,H87)) -> 
A88: =taal!A568 -> CL16 NICHT THERMISCH MAUER | C88: =IF(pckeuze!B57=0,"",IF(AND(pckeuze!B57=1,calcul!$D$68=2500)=TRUE,calcul!$B$72,"")) ->  | E88: =IF(pckeuze!B57=0,"",IF(AND(pckeuze!B57=1,calcul!$D$68=3000)=TRUE,calcul!$B$72,"")) ->  | G88: =IF(pckeuze!B57=0,"",IF(AND(pckeuze!B57=1,calcul!$D$68=3500)=TRUE,calcul!$B$72,"")) ->  | I88: =IF(pckeuze!B57=0,"",IF(AND(pckeuze!B57=1,calcul!$D$68=4000)=TRUE,calcul!$B$72,"")) ->  | K88: ="" ->  | M88: =IF(pckeuze!B57=0,"",IF(AND(pckeuze!B57=1,calcul!$D$68=6000)=TRUE,calcul!$B$72,"")) ->  | X88: 0
A89: =taal!A673 -> CL32 NICHT THERMISCH MAUER | C89: =IF(pckeuze!B58=0,"",IF(AND(pckeuze!B58=1,calcul!$D$68=2500)=TRUE,calcul!$B$72,"")) ->  | E89: =IF(pckeuze!B58=0,"",IF(AND(pckeuze!B58=1,calcul!$D$68=3000)=TRUE,calcul!$B$72,"")) ->  | G89: =IF(pckeuze!B58=0,"",IF(AND(pckeuze!B58=1,calcul!$D$68=3500)=TRUE,calcul!$B$72,"")) ->  | I89: =IF(pckeuze!B58=0,"",IF(AND(pckeuze!B58=1,calcul!$D$68=4000)=TRUE,calcul!$B$72,"")) ->  | K89: ="" ->  | M89: =IF(pckeuze!B58=0,"",IF(AND(pckeuze!B58=1,calcul!$D$68=6000)=TRUE,calcul!$B$72,"")) ->  | X89: 0
A90: =taal!A565 -> GUMMI 16 NICHT THERMISCH FREI | C90: =IF(pckeuze!B49=0,"",IF(AND(pckeuze!B49=1,calcul!$D$68=2500)=TRUE,calcul!$B$71,"")) ->  | E90: =IF(pckeuze!B49=0,"",IF(AND(pckeuze!B49=1,calcul!$D$68=3000)=TRUE,calcul!$B$71,"")) ->  | G90: =IF(pckeuze!B49=0,"",IF(AND(pckeuze!B49=1,calcul!$D$68=3500)=TRUE,calcul!$B$71,"")) ->  | I90: =IF(pckeuze!B49=0,"",IF(AND(pckeuze!B49=1,calcul!$D$68=4000)=TRUE,calcul!$B$71,"")) ->  | K90: ="" ->  | M90: =IF(pckeuze!B49=0,"",IF(AND(pckeuze!B49=1,calcul!$D$68=6000)=TRUE,calcul!$B$71,"")) ->  | X90: 0
A91: =taal!A669 -> GUMMI 32 NICHT THERMISCH FREI | C91: =IF(pckeuze!B51=0,"",IF(AND(pckeuze!B51=1,calcul!$D$68=2500)=TRUE,calcul!$B$71,"")) ->  | E91: =IF(pckeuze!B51=0,"",IF(AND(pckeuze!B51=1,calcul!$D$68=3000)=TRUE,calcul!$B$71,"")) ->  | G91: =IF(pckeuze!B51=0,"",IF(AND(pckeuze!B51=1,calcul!$D$68=3500)=TRUE,calcul!$B$71,"")) ->  | I91: =IF(pckeuze!B51=0,"",IF(AND(pckeuze!B51=1,calcul!$D$68=4000)=TRUE,calcul!$B$71,"")) ->  | K91: ="" ->  | M91: =IF(pckeuze!B51=0,"",IF(AND(pckeuze!B51=1,calcul!$D$68=6000)=TRUE,calcul!$B$71,"")) ->  | X91: 0
A92: =taal!A566 -> GUMMI 16 NICHT THERMISCH MAUER | C92: =IF(pckeuze!B52=0,"",IF(AND(pckeuze!B52=1,calcul!$D$68=2500)=TRUE,calcul!$B$72,"")) ->  | E92: =IF(pckeuze!B52=0,"",IF(AND(pckeuze!B52=1,calcul!$D$68=3000)=TRUE,calcul!$B$72,"")) ->  | G92: =IF(pckeuze!B52=0,"",IF(AND(pckeuze!B52=1,calcul!$D$68=3500)=TRUE,calcul!$B$72,"")) ->  | I92: =IF(pckeuze!B52=0,"",IF(AND(pckeuze!B52=1,calcul!$D$68=4000)=TRUE,calcul!$B$72,"")) ->  | K92: ="" ->  | M92: =IF(pckeuze!B52=0,"",IF(AND(pckeuze!B52=1,calcul!$D$68=6000)=TRUE,calcul!$B$72,"")) ->  | X92: 0
A93: =taal!A670 -> GUMMI 32 NICHT THERMISCH MAUER | C93: =IF(pckeuze!B54=0,"",IF(AND(pckeuze!B54=1,calcul!$D$68=2500)=TRUE,calcul!$B$72,"")) ->  | E93: =IF(pckeuze!B54=0,"",IF(AND(pckeuze!B54=1,calcul!$D$68=3000)=TRUE,calcul!$B$72,"")) ->  | G93: =IF(pckeuze!B54=0,"",IF(AND(pckeuze!B54=1,calcul!$D$68=3500)=TRUE,calcul!$B$72,"")) ->  | I93: =IF(pckeuze!B54=0,"",IF(AND(pckeuze!B54=1,calcul!$D$68=4000)=TRUE,calcul!$B$72,"")) ->  | K93: ="" ->  | M93: =IF(pckeuze!B54=0,"",IF(AND(pckeuze!B54=1,calcul!$D$68=6000)=TRUE,calcul!$B$72,"")) ->  | X93: 0
A95: =taal!A696&" "&taal!A586&" D 2" -> SEITENABSCHLUSS NICHT THERMISCH D 2 | C95: 2500 | E95: 3000 | G95: 3500 | H95: 3500 | I95: 4000 | J95: 4000 | K95: 5000 | L95: 5000 | M95: 6000 | N95: 6000 | Y95: 2500 | Z95: 3000 | AA95: 3500 | AB95: 4000 | AC95: 5000 | AD95: 6000
A96: =taal!A567 -> CL16 NICHT THERMISCH FREI | G96: =IF(pckeuze!B67=0,"",IF(AND(pckeuze!B67=1,OR(calcul!$D$68=3500,calcul!$D$68=2500,calcul!$D$68=3000)=TRUE),calcul!$B$71,"")) ->  | I96: =IF(pckeuze!B67=0,"",IF(AND(pckeuze!B67=1,calcul!$D$68=4000)=TRUE,calcul!$B$71,"")) ->  | K96: =IF(pckeuze!B67=0,"",IF(AND(pckeuze!B67=1,calcul!$D$68=5000)=TRUE,calcul!$B$71,"")) ->  | M96: =IF(pckeuze!B67=0,"",IF(AND(pckeuze!B67=1,calcul!$D$68=6000)=TRUE,calcul!$B$71,"")) ->  | X96: =COUNTIF(H96,">=0")+COUNTIF(J96,">=0")+COUNTIF(L96,">=0")+COUNTIF(N96,">=0") -> 0 | Y96: =IF(AND(ISBLANK(D96),ISBLANK(C96))=TRUE,"",IF(ISBLANK(D96)=TRUE,C96,D96)) ->  | Z96: =IF(AND(ISBLANK(F96),ISBLANK(E96))=TRUE,"",IF(ISBLANK(F96)=TRUE,E96,F96)) ->  | AA96: =IF(AND(ISBLANK(H96),ISBLANK(G96))=TRUE,"",IF(ISBLANK(H96)=TRUE,G96,H96)) ->  | AB96: =IF(AND(ISBLANK(J96),ISBLANK(I96))=TRUE,"",IF(ISBLANK(J96)=TRUE,I96,J96)) ->  | AC96: =IF(AND(ISBLANK(K96),ISBLANK(L96))=TRUE,"",IF(ISBLANK(L96)=TRUE,K96,L96)) ->  | AD96: =IF(AND(ISBLANK(N96),ISBLANK(M96))=TRUE,"",IF(ISBLANK(N96)=TRUE,M96,N96)) -> 
A97: =taal!A672 -> CL32 NICHT THERMISCH FREI | G97: =IF(pckeuze!B68=0,"",IF(AND(pckeuze!B68=1,OR(calcul!$D$68=3500,calcul!$D$68=2500,calcul!$D$68=3000)=TRUE),calcul!$B$71,"")) ->  | I97: =IF(pckeuze!B68=0,"",IF(AND(pckeuze!B68=1,calcul!$D$68=4000)=TRUE,calcul!$B$71,"")) ->  | K97: =IF(pckeuze!B68=0,"",IF(AND(pckeuze!B68=1,calcul!$D$68=5000)=TRUE,calcul!$B$71,"")) ->  | M97: =IF(pckeuze!B68=0,"",IF(AND(pckeuze!B68=1,calcul!$D$68=6000)=TRUE,calcul!$B$71,"")) ->  | X97: =COUNTIF(H97,">=0")+COUNTIF(J97,">=0")+COUNTIF(L97,">=0")+COUNTIF(N97,">=0") -> 0
A98: =taal!A568 -> CL16 NICHT THERMISCH MAUER | G98: =IF(pckeuze!B69=0,"",IF(AND(pckeuze!B69=1,OR(calcul!$D$68=3500,calcul!$D$68=2500,calcul!$D$68=3000)=TRUE),calcul!$B$72,"")) ->  | I98: =IF(pckeuze!B69=0,"",IF(AND(pckeuze!B69=1,calcul!$D$68=4000)=TRUE,calcul!$B$72,"")) ->  | K98: =IF(pckeuze!B69=0,"",IF(AND(pckeuze!B69=1,calcul!$D$68=5000)=TRUE,calcul!$B$72,"")) ->  | M98: =IF(pckeuze!B69=0,"",IF(AND(pckeuze!B69=1,calcul!$D$68=6000)=TRUE,calcul!$B$72,"")) ->  | X98: 0
A99: =taal!A673 -> CL32 NICHT THERMISCH MAUER | G99: =IF(pckeuze!B70=0,"",IF(AND(pckeuze!B70=1,OR(calcul!$D$68=3500,calcul!$D$68=2500,calcul!$D$68=3000)=TRUE),calcul!$B$72,"")) ->  | I99: =IF(pckeuze!B70=0,"",IF(AND(pckeuze!B70=1,calcul!$D$68=4000)=TRUE,calcul!$B$72,"")) ->  | K99: =IF(pckeuze!B70=0,"",IF(AND(pckeuze!B70=1,calcul!$D$68=5000)=TRUE,calcul!$B$72,"")) ->  | M99: =IF(pckeuze!B70=0,"",IF(AND(pckeuze!B70=1,calcul!$D$68=6000)=TRUE,calcul!$B$72,"")) ->  | X99: 0
A100: =taal!A565 -> GUMMI 16 NICHT THERMISCH FREI | G100: =IF(pckeuze!B61=0,"",IF(AND(pckeuze!B61=1,OR(calcul!$D$68=3500,calcul!$D$68=2500,calcul!$D$68=3000)=TRUE),calcul!$B$71,"")) ->  | I100: =IF(pckeuze!B61=0,"",IF(AND(pckeuze!B61=1,calcul!$D$68=4000)=TRUE,calcul!$B$71,"")) ->  | K100: =IF(pckeuze!B61=0,"",IF(AND(pckeuze!B61=1,calcul!$D$68=5000)=TRUE,calcul!$B$71,"")) ->  | M100: =IF(pckeuze!B61=0,"",IF(AND(pckeuze!B61=1,calcul!$D$68=6000)=TRUE,calcul!$B$71,"")) ->  | X100: 0
A101: =taal!A669 -> GUMMI 32 NICHT THERMISCH FREI | G101: =IF(pckeuze!B63=0,"",IF(AND(pckeuze!B63=1,OR(calcul!$D$68=3500,calcul!$D$68=2500,calcul!$D$68=3000)=TRUE),calcul!$B$71,"")) ->  | I101: =IF(pckeuze!B63=0,"",IF(AND(pckeuze!B63=1,calcul!$D$68=4000)=TRUE,calcul!$B$71,"")) ->  | K101: =IF(pckeuze!B63=0,"",IF(AND(pckeuze!B63=1,calcul!$D$68=5000)=TRUE,calcul!$B$71,"")) ->  | M101: =IF(pckeuze!B63=0,"",IF(AND(pckeuze!B63=1,calcul!$D$68=6000)=TRUE,calcul!$B$71,"")) ->  | X101: 0
A102: =taal!A566 -> GUMMI 16 NICHT THERMISCH MAUER | G102: =IF(pckeuze!B64=0,"",IF(AND(pckeuze!B64=1,OR(calcul!$D$68=3500,calcul!$D$68=2500,calcul!$D$68=3000)=TRUE),calcul!$B$72,"")) ->  | I102: =IF(pckeuze!B64=0,"",IF(AND(pckeuze!B64=1,calcul!$D$68=4000)=TRUE,calcul!$B$72,"")) ->  | K102: =IF(pckeuze!B64=0,"",IF(AND(pckeuze!B64=1,calcul!$D$68=5000)=TRUE,calcul!$B$72,"")) ->  | M102: =IF(pckeuze!B64=0,"",IF(AND(pckeuze!B64=1,calcul!$D$68=6000)=TRUE,calcul!$B$72,"")) ->  | X102: 0
A103: =taal!A670 -> GUMMI 32 NICHT THERMISCH MAUER | G103: =IF(pckeuze!B66=0,"",IF(AND(pckeuze!B66=1,OR(calcul!$D$68=3500,calcul!$D$68=2500,calcul!$D$68=3000)=TRUE),calcul!$B$72,"")) ->  | I103: =IF(pckeuze!B66=0,"",IF(AND(pckeuze!B66=1,calcul!$D$68=4000)=TRUE,calcul!$B$72,"")) ->  | K103: =IF(pckeuze!B66=0,"",IF(AND(pckeuze!B66=1,calcul!$D$68=5000)=TRUE,calcul!$B$72,"")) ->  | M103: =IF(pckeuze!B66=0,"",IF(AND(pckeuze!B66=1,calcul!$D$68=6000)=TRUE,calcul!$B$72,"")) ->  | X103: 0
A105: =taal!A696&" "&taal!A586&" D 3" -> SEITENABSCHLUSS NICHT THERMISCH D 3 | C105: 2500 | E105: 3000 | G105: 3500 | I105: 3500 | K105: 5000 | L105: 5000 | M105: 5000 | N105: 5500 | AB105: (4500) | AC105: 5000 | AD105: 5500
A106: =taal!A567 -> CL16 NICHT THERMISCH FREI | K106: =IF(pckeuze!B79=0,"",IF(AND(pckeuze!B79=1,calcul!$D$68=5000)=TRUE,calcul!$B$71,"")) ->  | M106: =IF(pckeuze!B79=0,"",IF(AND(pckeuze!B79=1,calcul!$D$68=5500)=TRUE,calcul!$B$71,"")) ->  | X106: =COUNTIF(L106,">=0")+COUNTIF(N106,">=0") -> 0 | Y106: =IF(AND(ISBLANK(D106),ISBLANK(C106))=TRUE,"",IF(ISBLANK(D106)=TRUE,C106,D106)) ->  | Z106: =IF(AND(ISBLANK(F106),ISBLANK(E106))=TRUE,"",IF(ISBLANK(F106)=TRUE,E106,F106)) ->  | AA106: =IF(AND(ISBLANK(H106),ISBLANK(G106))=TRUE,"",IF(ISBLANK(H106)=TRUE,G106,H106)) ->  | AB106: =IF(AND(ISBLANK(J106),ISBLANK(I106))=TRUE,"",IF(ISBLANK(J106)=TRUE,I106,J106)) ->  | AC106: =IF(AND(ISBLANK(K106),ISBLANK(L106))=TRUE,"",IF(ISBLANK(L106)=TRUE,K106,L106)) ->  | AD106: =IF(AND(ISBLANK(N106),ISBLANK(M106))=TRUE,"",IF(ISBLANK(N106)=TRUE,M106,N106)) -> 
A107: =taal!A672 -> CL32 NICHT THERMISCH FREI | K107: =IF(pckeuze!B80=0,"",IF(AND(pckeuze!B80=1,calcul!$D$68=5000)=TRUE,calcul!$B$71,"")) ->  | M107: =IF(pckeuze!B80=0,"",IF(AND(pckeuze!B80=1,calcul!$D$68=5500)=TRUE,calcul!$B$71,"")) ->  | X107: =COUNTIF(L107,">=0")+COUNTIF(N107,">=0") -> 0
A108: =taal!A568 -> CL16 NICHT THERMISCH MAUER | K108: =IF(pckeuze!B81=0,"",IF(AND(pckeuze!B81=1,calcul!$D$68=5000)=TRUE,calcul!$B$72,"")) ->  | M108: =IF(pckeuze!B81=0,"",IF(AND(pckeuze!B81=1,calcul!$D$68=5500)=TRUE,calcul!$B$72,"")) ->  | X108: 0
A109: =taal!A673 -> CL32 NICHT THERMISCH MAUER | K109: =IF(pckeuze!B82=0,"",IF(AND(pckeuze!B82=1,calcul!$D$68=5000)=TRUE,calcul!$B$72,"")) ->  | M109: =IF(pckeuze!B82=0,"",IF(AND(pckeuze!B82=1,calcul!$D$68=5500)=TRUE,calcul!$B$72,"")) ->  | X109: 0
A110: =taal!A565 -> GUMMI 16 NICHT THERMISCH FREI | K110: =IF(pckeuze!B73=0,"",IF(AND(pckeuze!B73=1,calcul!$D$68=5000)=TRUE,calcul!$B$71,"")) ->  | M110: =IF(pckeuze!B73=0,"",IF(AND(pckeuze!B73=1,calcul!$D$68=5500)=TRUE,calcul!$B$71,"")) ->  | X110: 0
A111: =taal!A669 -> GUMMI 32 NICHT THERMISCH FREI | K111: =IF(pckeuze!B75=0,"",IF(AND(pckeuze!B75=1,calcul!$D$68=5000)=TRUE,calcul!$B$71,"")) ->  | M111: =IF(pckeuze!B75=0,"",IF(AND(pckeuze!B75=1,calcul!$D$68=5500)=TRUE,calcul!$B$71,"")) ->  | X111: 0
A112: =taal!A566 -> GUMMI 16 NICHT THERMISCH MAUER | K112: =IF(pckeuze!B76=0,"",IF(AND(pckeuze!B76=1,calcul!$D$68=5000)=TRUE,calcul!$B$72,"")) ->  | M112: =IF(pckeuze!B76=0,"",IF(AND(pckeuze!B76=1,calcul!$D$68=5500)=TRUE,calcul!$B$72,"")) ->  | X112: 0
A113: =taal!A670 -> GUMMI 32 NICHT THERMISCH MAUER | K113: =IF(pckeuze!B78=0,"",IF(AND(pckeuze!B78=1,calcul!$D$68=5000)=TRUE,calcul!$B$72,"")) ->  | M113: =IF(pckeuze!B78=0,"",IF(AND(pckeuze!B78=1,calcul!$D$68=5500)=TRUE,calcul!$B$72,"")) ->  | X113: 0
A115: =taal!A696&" "&taal!A587&" "&taal!A756&" (D1+D2+ D3)" -> SEITENABSCHLUSS THERMISCH FREI (D1+D2+ D3) | C115: 2500 | D115: 2500 | E115: 3000 | F115: 3000 | G115: 3500 | H115: 3500 | I115: 4000 | J115: 4000 | K115: 5000 | M115: 6000 | N115: 6000 | Y115: 2500 | Z115: 3000 | AA115: 3500 | AB115: 4000 | AC115: 5000 | AD115: 6000
A116: =taal!A581 -> CL16 THERMISCH FREI | C116: =IF(pckeuze!B98=0,"",IF(AND(pckeuze!B98=1,calcul!$D$68=2500)=TRUE,calcul!$B$71,"")) ->  | E116: =IF(pckeuze!B98=0,"",IF(AND(pckeuze!B98=1,calcul!$D$68=3000)=TRUE,calcul!$B$71,"")) ->  | G116: =IF(pckeuze!B98=0,"",IF(AND(pckeuze!B98=1,calcul!$D$68=3500)=TRUE,calcul!$B$71,"")) ->  | I116: =IF(pckeuze!B98=0,"",IF(AND(pckeuze!B98=1,calcul!$D$68=4000)=TRUE,calcul!$B$71,"")) ->  | K116: ="" ->  | M116: =IF(pckeuze!B98=0,"",IF(AND(pckeuze!B98=1,OR(calcul!$D$68=4500,calcul!$D$68=5000,calcul!$D$68=5500,calcul!$D$68=6000))=TRUE,calcul!$B$71,"")) ->  | X116: =COUNTIF(D116,">=0")+COUNTIF(F116,">=0")+COUNTIF(H116,">=0")+COUNTIF(J116,">=0")+COUNTIF(N116,">=0") -> 0 | Y116: =IF(AND(ISBLANK(D116),ISBLANK(C116))=TRUE,"",IF(ISBLANK(D116)=TRUE,C116,D116)) ->  | Z116: =IF(AND(ISBLANK(F116),ISBLANK(E116))=TRUE,"",IF(ISBLANK(F116)=TRUE,E116,F116)) ->  | AA116: =IF(AND(ISBLANK(H116),ISBLANK(G116))=TRUE,"",IF(ISBLANK(H116)=TRUE,G116,H116)) ->  | AB116: =IF(AND(ISBLANK(J116),ISBLANK(I116))=TRUE,"",IF(ISBLANK(J116)=TRUE,I116,J116)) ->  | AD116: =IF(AND(ISBLANK(N116),ISBLANK(M116))=TRUE,"",IF(ISBLANK(N116)=TRUE,M116,N116)) -> 
A117: =taal!A582 -> CL32 THERMISCH FREI | C117: =IF(pckeuze!B99=0,"",IF(AND(pckeuze!B99=1,calcul!$D$68=2500)=TRUE,calcul!$B$71,"")) ->  | E117: =IF(pckeuze!B99=0,"",IF(AND(pckeuze!B99=1,calcul!$D$68=3000)=TRUE,calcul!$B$71,"")) ->  | G117: =IF(pckeuze!B99=0,"",IF(AND(pckeuze!B99=1,calcul!$D$68=3500)=TRUE,calcul!$B$71,"")) ->  | I117: =IF(pckeuze!B99=0,"",IF(AND(pckeuze!B99=1,calcul!$D$68=4000)=TRUE,calcul!$B$71,"")) ->  | K117: ="" ->  | M117: =IF(pckeuze!B99=0,"",IF(AND(pckeuze!B99=1,OR(calcul!$D$68=4500,calcul!$D$68=5000,calcul!$D$68=5500,calcul!$D$68=6000))=TRUE,calcul!$B$71,"")) ->  | X117: =COUNTIF(D117,">=0")+COUNTIF(F117,">=0")+COUNTIF(H117,">=0")+COUNTIF(J117,">=0")+COUNTIF(N117,">=0") -> 0 | Y117: =IF(AND(ISBLANK(D117),ISBLANK(C117))=TRUE,"",IF(ISBLANK(D117)=TRUE,C117,D117)) ->  | Z117: =IF(AND(ISBLANK(F117),ISBLANK(E117))=TRUE,"",IF(ISBLANK(F117)=TRUE,E117,F117)) ->  | AA117: =IF(AND(ISBLANK(H117),ISBLANK(G117))=TRUE,"",IF(ISBLANK(H117)=TRUE,G117,H117)) ->  | AB117: =IF(AND(ISBLANK(J117),ISBLANK(I117))=TRUE,"",IF(ISBLANK(J117)=TRUE,I117,J117)) ->  | AD117: =IF(AND(ISBLANK(N117),ISBLANK(M117))=TRUE,"",IF(ISBLANK(N117)=TRUE,M117,N117)) -> 
A118: =taal!A579 -> GUMMI 16 THERMISCH FREI | C118: =IF(pckeuze!B95=0,"",IF(AND(pckeuze!B95=1,calcul!$D$68=2500)=TRUE,calcul!$B$71,"")) ->  | E118: =IF(pckeuze!B95=0,"",IF(AND(pckeuze!B95=1,calcul!$D$68=3000)=TRUE,calcul!$B$71,"")) ->  | G118: =IF(pckeuze!B95=0,"",IF(AND(pckeuze!B95=1,calcul!$D$68=3500)=TRUE,calcul!$B$71,"")) ->  | I118: =IF(pckeuze!B95=0,"",IF(AND(pckeuze!B95=1,calcul!$D$68=4000)=TRUE,calcul!$B$71,"")) ->  | K118: ="" ->  | M118: =IF(pckeuze!B95=0,"",IF(AND(pckeuze!B95=1,OR(calcul!$D$68=4500,calcul!$D$68=5000,calcul!$D$68=5500,calcul!$D$68=6000))=TRUE,calcul!$B$71,"")) ->  | X118: 0 | Y118: =IF(AND(ISBLANK(D118),ISBLANK(C118))=TRUE,"",IF(ISBLANK(D118)=TRUE,C118,D118)) ->  | Z118: =IF(AND(ISBLANK(F118),ISBLANK(E118))=TRUE,"",IF(ISBLANK(F118)=TRUE,E118,F118)) ->  | AA118: =IF(AND(ISBLANK(H118),ISBLANK(G118))=TRUE,"",IF(ISBLANK(H118)=TRUE,G118,H118)) ->  | AB118: =IF(AND(ISBLANK(J118),ISBLANK(I118))=TRUE,"",IF(ISBLANK(J118)=TRUE,I118,J118)) ->  | AD118: =IF(AND(ISBLANK(N118),ISBLANK(M118))=TRUE,"",IF(ISBLANK(N118)=TRUE,M118,N118)) -> 
A119: =taal!A674 -> GUMMI 32 THERMISCH FREI | C119: =IF(pckeuze!B97=0,"",IF(AND(pckeuze!B97=1,calcul!$D$68=2500)=TRUE,calcul!$B$71,"")) ->  | E119: =IF(pckeuze!B97=0,"",IF(AND(pckeuze!B97=1,calcul!$D$68=3000)=TRUE,calcul!$B$71,"")) ->  | G119: =IF(pckeuze!B97=0,"",IF(AND(pckeuze!B97=1,calcul!$D$68=3500)=TRUE,calcul!$B$71,"")) ->  | I119: =IF(pckeuze!B97=0,"",IF(AND(pckeuze!B97=1,calcul!$D$68=4000)=TRUE,calcul!$B$71,"")) ->  | K119: ="" ->  | M119: =IF(pckeuze!B97=0,"",IF(AND(pckeuze!B97=1,OR(calcul!$D$68=4500,calcul!$D$68=5000,calcul!$D$68=5500,calcul!$D$68=6000))=TRUE,calcul!$B$71,"")) ->  | X119: 0 | Y119: =IF(AND(ISBLANK(D119),ISBLANK(C119))=TRUE,"",IF(ISBLANK(D119)=TRUE,C119,D119)) ->  | Z119: =IF(AND(ISBLANK(F119),ISBLANK(E119))=TRUE,"",IF(ISBLANK(F119)=TRUE,E119,F119)) ->  | AA119: =IF(AND(ISBLANK(H119),ISBLANK(G119))=TRUE,"",IF(ISBLANK(H119)=TRUE,G119,H119)) ->  | AB119: =IF(AND(ISBLANK(J119),ISBLANK(I119))=TRUE,"",IF(ISBLANK(J119)=TRUE,I119,J119)) ->  | AD119: =IF(AND(ISBLANK(N119),ISBLANK(M119))=TRUE,"",IF(ISBLANK(N119)=TRUE,M119,N119)) -> 
A121: =taal!A696&" "&taal!A587&" "&taal!A757&" D1" -> SEITENABSCHLUSS THERMISCH MAUER D1 | C121: 2500 | D121: 2500 | E121: 3000 | F121: 3000 | G121: 3500 | H121: 3500 | I121: 4000 | J121: 4000 | K121: 5000 | M121: 6000 | N121: 6000 | Y121: 2500 | Z121: 3000 | AA121: 3500 | AB121: 4000 | AC121: 5000 | AD121: 6000
A122: =taal!A583 -> CL16 THERMISCH MAUER | C122: =IF(pckeuze!B105=0,"",IF(AND(pckeuze!B105=1,calcul!$D$68=2500)=TRUE,calcul!$B$72,"")) ->  | E122: =IF(pckeuze!B105=0,"",IF(AND(pckeuze!B105=1,calcul!$D$68=3000)=TRUE,calcul!$B$72,"")) ->  | G122: =IF(pckeuze!B105=0,"",IF(AND(pckeuze!B105=1,calcul!$D$68=3500)=TRUE,calcul!$B$72,"")) ->  | I122: =IF(pckeuze!B105=0,"",IF(AND(pckeuze!B105=1,calcul!$D$68=4000)=TRUE,calcul!$B$72,"")) ->  | K122: ="" ->  | M122: =IF(pckeuze!B105=0,"",IF(AND(pckeuze!B105=1,calcul!$D$68=6000)=TRUE,calcul!$B$72,"")) ->  | X122: =COUNTIF(D122,">=0")+COUNTIF(F122,">=0")+COUNTIF(H122,">=0")+COUNTIF(J122,">=0")+COUNTIF(N122,">=0") -> 0 | Y122: =IF(AND(ISBLANK(D122),ISBLANK(C122))=TRUE,"",IF(ISBLANK(D122)=TRUE,C122,D122)) ->  | Z122: =IF(AND(ISBLANK(F122),ISBLANK(E122))=TRUE,"",IF(ISBLANK(F122)=TRUE,E122,F122)) ->  | AA122: =IF(AND(ISBLANK(H122),ISBLANK(G122))=TRUE,"",IF(ISBLANK(H122)=TRUE,G122,H122)) ->  | AB122: =IF(AND(ISBLANK(J122),ISBLANK(I122))=TRUE,"",IF(ISBLANK(J122)=TRUE,I122,J122)) ->  | AD122: =IF(AND(ISBLANK(N122),ISBLANK(M122))=TRUE,"",IF(ISBLANK(N122)=TRUE,M122,N122)) -> 
A123: =taal!A584 -> CL32 THERMISCH MAUER | C123: =IF(pckeuze!B106=0,"",IF(AND(pckeuze!B106=1,calcul!$D$68=2500)=TRUE,calcul!$B$72,"")) ->  | E123: =IF(pckeuze!B106=0,"",IF(AND(pckeuze!B106=1,calcul!$D$68=3000)=TRUE,calcul!$B$72,"")) ->  | G123: =IF(pckeuze!B106=0,"",IF(AND(pckeuze!B106=1,calcul!$D$68=3500)=TRUE,calcul!$B$72,"")) ->  | I123: =IF(pckeuze!B106=0,"",IF(AND(pckeuze!B106=1,calcul!$D$68=4000)=TRUE,calcul!$B$72,"")) ->  | K123: ="" ->  | M123: =IF(pckeuze!B106=0,"",IF(AND(pckeuze!B106=1,calcul!$D$68=6000)=TRUE,calcul!$B$72,"")) ->  | X123: =COUNTIF(D123,">=0")+COUNTIF(F123,">=0")+COUNTIF(H123,">=0")+COUNTIF(J123,">=0")+COUNTIF(N123,">=0") -> 0 | Y123: =IF(AND(ISBLANK(D123),ISBLANK(C123))=TRUE,"",IF(ISBLANK(D123)=TRUE,C123,D123)) ->  | Z123: =IF(AND(ISBLANK(F123),ISBLANK(E123))=TRUE,"",IF(ISBLANK(F123)=TRUE,E123,F123)) ->  | AA123: =IF(AND(ISBLANK(H123),ISBLANK(G123))=TRUE,"",IF(ISBLANK(H123)=TRUE,G123,H123)) ->  | AB123: =IF(AND(ISBLANK(J123),ISBLANK(I123))=TRUE,"",IF(ISBLANK(J123)=TRUE,I123,J123)) ->  | AD123: =IF(AND(ISBLANK(N123),ISBLANK(M123))=TRUE,"",IF(ISBLANK(N123)=TRUE,M123,N123)) -> 
A124: =taal!A580 -> GUMMI 16 THERMISCH MAUER | C124: =IF(pckeuze!B102=0,"",IF(AND(pckeuze!B102=1,calcul!$D$68=2500)=TRUE,calcul!$B$72,"")) ->  | E124: =IF(pckeuze!B102=0,"",IF(AND(pckeuze!B102=1,calcul!$D$68=3000)=TRUE,calcul!$B$72,"")) ->  | G124: =IF(pckeuze!B102=0,"",IF(AND(pckeuze!B102=1,calcul!$D$68=3500)=TRUE,calcul!$B$72,"")) ->  | I124: =IF(pckeuze!B102=0,"",IF(AND(pckeuze!B102=1,calcul!$D$68=4000)=TRUE,calcul!$B$72,"")) ->  | K124: ="" ->  | M124: =IF(pckeuze!B102=0,"",IF(AND(pckeuze!B102=1,calcul!$D$68=6000)=TRUE,calcul!$B$72,"")) ->  | X124: 0 | Y124: =IF(AND(ISBLANK(D124),ISBLANK(C124))=TRUE,"",IF(ISBLANK(D124)=TRUE,C124,D124)) ->  | Z124: =IF(AND(ISBLANK(F124),ISBLANK(E124))=TRUE,"",IF(ISBLANK(F124)=TRUE,E124,F124)) ->  | AA124: =IF(AND(ISBLANK(H124),ISBLANK(G124))=TRUE,"",IF(ISBLANK(H124)=TRUE,G124,H124)) ->  | AB124: =IF(AND(ISBLANK(J124),ISBLANK(I124))=TRUE,"",IF(ISBLANK(J124)=TRUE,I124,J124)) ->  | AD124: =IF(AND(ISBLANK(N124),ISBLANK(M124))=TRUE,"",IF(ISBLANK(N124)=TRUE,M124,N124)) -> 
A125: =taal!A675 -> GUMMI 32 THERMISCH MAUER | C125: =IF(pckeuze!B104=0,"",IF(AND(pckeuze!B104=1,calcul!$D$68=2500)=TRUE,calcul!$B$72,"")) ->  | E125: =IF(pckeuze!B104=0,"",IF(AND(pckeuze!B104=1,calcul!$D$68=3000)=TRUE,calcul!$B$72,"")) ->  | G125: =IF(pckeuze!B104=0,"",IF(AND(pckeuze!B104=1,calcul!$D$68=3500)=TRUE,calcul!$B$72,"")) ->  | I125: =IF(pckeuze!B104=0,"",IF(AND(pckeuze!B104=1,calcul!$D$68=4000)=TRUE,calcul!$B$72,"")) ->  | K125: ="" ->  | M125: =IF(pckeuze!B104=0,"",IF(AND(pckeuze!B104=1,calcul!$D$68=6000)=TRUE,calcul!$B$72,"")) ->  | X125: 0 | Y125: =IF(AND(ISBLANK(D125),ISBLANK(C125))=TRUE,"",IF(ISBLANK(D125)=TRUE,C125,D125)) ->  | Z125: =IF(AND(ISBLANK(F125),ISBLANK(E125))=TRUE,"",IF(ISBLANK(F125)=TRUE,E125,F125)) ->  | AA125: =IF(AND(ISBLANK(H125),ISBLANK(G125))=TRUE,"",IF(ISBLANK(H125)=TRUE,G125,H125)) ->  | AB125: =IF(AND(ISBLANK(J125),ISBLANK(I125))=TRUE,"",IF(ISBLANK(J125)=TRUE,I125,J125)) ->  | AD125: =IF(AND(ISBLANK(N125),ISBLANK(M125))=TRUE,"",IF(ISBLANK(N125)=TRUE,M125,N125)) -> 
A127: =taal!A696&" "&taal!A587&" "&taal!A757&" D2 & D3" -> SEITENABSCHLUSS THERMISCH MAUER D2 & D3 | G127: 3500 | H127: 3500 | I127: 4000 | J127: 4000 | K127: 5000 | M127: 6000 | N127: 6000 | Y127: 2500 | Z127: 3000 | AA127: 3500 | AB127: 4000 | AC127: 5000 | AD127: 6000
A128: =A122 -> CL16 THERMISCH MAUER | G128: =IF(AND(pckeuze!B112=0,pckeuze!B119=0),"",IF(AND(OR(pckeuze!B112=1,pckeuze!B119=1),OR(calcul!$D$68=3500,calcul!$D$68=3000,calcul!$D$68=2500)=TRUE),calcul!$B$72,"")) ->  | I128: =IF(AND(pckeuze!B112=0,pckeuze!B119=0),"",IF(AND(OR(pckeuze!B112=1,pckeuze!B119=1),calcul!$D$68=4000)=TRUE,calcul!$B$72,"")) ->  | K128: ="" ->  | M128: =IF(AND(pckeuze!B112=0,pckeuze!B119=0),"",IF(AND(OR(pckeuze!B112=1,pckeuze!B119=1),OR(calcul!$D$68=4500,calcul!$D$68=5000,calcul!$D$68=5500,calcul!$D$68=6000))=TRUE,calcul!$B$72,"")) ->  | X128: =COUNTIF(H128,">=0")+COUNTIF(J128,">=0")+COUNTIF(N128,">=0") -> 0 | Y128: =IF(AND(ISBLANK(D128),ISBLANK(C128))=TRUE,"",IF(ISBLANK(D128)=TRUE,C128,D128)) ->  | Z128: =IF(AND(ISBLANK(F128),ISBLANK(E128))=TRUE,"",IF(ISBLANK(F128)=TRUE,E128,F128)) ->  | AA128: =IF(AND(ISBLANK(H128),ISBLANK(G128))=TRUE,"",IF(ISBLANK(H128)=TRUE,G128,H128)) ->  | AB128: =IF(AND(ISBLANK(J128),ISBLANK(I128))=TRUE,"",IF(ISBLANK(J128)=TRUE,I128,J128)) ->  | AC128: =IF(AND(ISBLANK(L128),ISBLANK(K128))=TRUE,"",IF(ISBLANK(L128)=TRUE,M128,L128)) ->  | AD128: =IF(AND(ISBLANK(N128),ISBLANK(M128))=TRUE,"",IF(ISBLANK(N128)=TRUE,M128,N128)) -> 
A129: =A123 -> CL32 THERMISCH MAUER | G129: =IF(AND(pckeuze!B113=0,pckeuze!B120=0),"",IF(AND(OR(pckeuze!B113=1,pckeuze!B120=1),OR(calcul!$D$68=3500,calcul!$D$68=3000,calcul!$D$68=2500)=TRUE),calcul!$B$72,"")) ->  | I129: =IF(AND(pckeuze!B113=0,pckeuze!B120=0),"",IF(AND(OR(pckeuze!B113=1,pckeuze!B120=1),calcul!$D$68=4000)=TRUE,calcul!$B$72,"")) ->  | K129: ="" ->  | M129: =IF(AND(pckeuze!B113=0,pckeuze!B120=0),"",IF(AND(OR(pckeuze!B113=1,pckeuze!B120=1),OR(calcul!$D$68=4500,calcul!$D$68=5000,calcul!$D$68=5500,calcul!$D$68=6000))=TRUE,calcul!$B$72,"")) ->  | X129: =COUNTIF(H129,">=0")+COUNTIF(J129,">=0")+COUNTIF(N129,">=0") -> 0 | Y129: =IF(AND(ISBLANK(D129),ISBLANK(C129))=TRUE,"",IF(ISBLANK(D129)=TRUE,C129,D129)) ->  | Z129: =IF(AND(ISBLANK(F129),ISBLANK(E129))=TRUE,"",IF(ISBLANK(F129)=TRUE,E129,F129)) ->  | AA129: =IF(AND(ISBLANK(H129),ISBLANK(G129))=TRUE,"",IF(ISBLANK(H129)=TRUE,G129,H129)) ->  | AB129: =IF(AND(ISBLANK(J129),ISBLANK(I129))=TRUE,"",IF(ISBLANK(J129)=TRUE,I129,J129)) ->  | AC129: =IF(AND(ISBLANK(L129),ISBLANK(K129))=TRUE,"",IF(ISBLANK(L129)=TRUE,M129,L129)) ->  | AD129: =IF(AND(ISBLANK(N129),ISBLANK(M129))=TRUE,"",IF(ISBLANK(N129)=TRUE,M129,N129)) -> 
A130: =A124 -> GUMMI 16 THERMISCH MAUER | G130: =IF(AND(pckeuze!B109=0,pckeuze!B116=0),"",IF(AND(OR(pckeuze!B109=1,pckeuze!B116=1),OR(calcul!$D$68=3500,calcul!$D$68=3000,calcul!$D$68=2500)=TRUE),calcul!$B$72,"")) ->  | I130: =IF(AND(pckeuze!B109=0,pckeuze!B116=0),"",IF(AND(OR(pckeuze!B109=1,pckeuze!B116=1),calcul!$D$68=4000)=TRUE,calcul!$B$72,"")) ->  | K130: ="" ->  | M130: =IF(AND(pckeuze!B109=0,pckeuze!B116=0),"",IF(AND(OR(pckeuze!B109=1,pckeuze!B116=1),OR(calcul!$D$68=4500,calcul!$D$68=5000,calcul!$D$68=5500,calcul!$D$68=6000))=TRUE,calcul!$B$72,"")) ->  | X130: 0 | Y130: =IF(AND(ISBLANK(D130),ISBLANK(C130))=TRUE,"",IF(ISBLANK(D130)=TRUE,C130,D130)) ->  | Z130: =IF(AND(ISBLANK(F130),ISBLANK(E130))=TRUE,"",IF(ISBLANK(F130)=TRUE,E130,F130)) ->  | AA130: =IF(AND(ISBLANK(H130),ISBLANK(G130))=TRUE,"",IF(ISBLANK(H130)=TRUE,G130,H130)) ->  | AB130: =IF(AND(ISBLANK(J130),ISBLANK(I130))=TRUE,"",IF(ISBLANK(J130)=TRUE,I130,J130)) ->  | AC130: =IF(AND(ISBLANK(L130),ISBLANK(K130))=TRUE,"",IF(ISBLANK(L130)=TRUE,M130,L130)) ->  | AD130: =IF(AND(ISBLANK(N130),ISBLANK(M130))=TRUE,"",IF(ISBLANK(N130)=TRUE,M130,N130)) -> 
A131: =A125 -> GUMMI 32 THERMISCH MAUER | G131: =IF(AND(pckeuze!B111=0,pckeuze!B118=0),"",IF(AND(OR(pckeuze!B111=1,pckeuze!B118=1),OR(calcul!$D$68=3500,calcul!$D$68=3000,calcul!$D$68=2500)=TRUE),calcul!$B$72,"")) ->  | I131: =IF(AND(pckeuze!B111=0,pckeuze!B118=0),"",IF(AND(OR(pckeuze!B111=1,pckeuze!B118=1),calcul!$D$68=4000)=TRUE,calcul!$B$72,"")) ->  | K131: ="" ->  | M131: =IF(AND(pckeuze!B111=0,pckeuze!B118=0),"",IF(AND(OR(pckeuze!B111=1,pckeuze!B118=1),OR(calcul!$D$68=4500,calcul!$D$68=5000,calcul!$D$68=5500,calcul!$D$68=6000))=TRUE,calcul!$B$72,"")) ->  | X131: 0 | Y131: =IF(AND(ISBLANK(D131),ISBLANK(C131))=TRUE,"",IF(ISBLANK(D131)=TRUE,C131,D131)) ->  | Z131: =IF(AND(ISBLANK(F131),ISBLANK(E131))=TRUE,"",IF(ISBLANK(F131)=TRUE,E131,F131)) ->  | AA131: =IF(AND(ISBLANK(H131),ISBLANK(G131))=TRUE,"",IF(ISBLANK(H131)=TRUE,G131,H131)) ->  | AB131: =IF(AND(ISBLANK(J131),ISBLANK(I131))=TRUE,"",IF(ISBLANK(J131)=TRUE,I131,J131)) ->  | AC131: =IF(AND(ISBLANK(L131),ISBLANK(K131))=TRUE,"",IF(ISBLANK(L131)=TRUE,M131,L131)) ->  | AD131: =IF(AND(ISBLANK(N131),ISBLANK(M131))=TRUE,"",IF(ISBLANK(N131)=TRUE,M131,N131)) -> 
A133: =taal!A696&" DX / DX2 " -> SEITENABSCHLUSS DX / DX2 | C133: 2500 | D133: 2500 | E133: 3000 | F133: 3000 | G133: 3250 | H133: 3250 | I133: 3500 | J133: 3500 | K133: 3750 | L133: 3750 | M133: 4000 | N133: 4000 | O133: 4500 | P133: 4500 | Q133: 5000 | R133: 5000 | S133: 5500 | T133: 5500 | U133: 6000 | V133: 6000 | Y133: 2500 | Z133: 3000 | AA133: 3250 | AB133: 3500 | AC133: 3750 | AD133: 4000 | AE133: 4500 | AF133: 5000 | AG133: 5500 | AH133: 6000
A134: =taal!A571 -> DX + CLLX16 NICHT THERMISCH FREI | C134: =IF(pckeuze!B85=0,"",IF(AND(pckeuze!B85=1,calcul!$D$67=2500)=TRUE,calcul!$B$71,"")) ->  | E134: =IF(pckeuze!$B$85=0,"",IF(AND(pckeuze!$B$85=1,calcul!$D$67=3000)=TRUE,calcul!$B$71,"")) ->  | G134: =IF(pckeuze!$B$85=0,"",IF(AND(pckeuze!$B$85=1,calcul!$D$67=3250)=TRUE,calcul!$B$71,"")) ->  | I134: =IF(pckeuze!$B$85=0,"",IF(AND(pckeuze!$B$85=1,calcul!$D$67=3500)=TRUE,calcul!$B$71,"")) ->  | K134: =IF(pckeuze!$B$85=0,"",IF(AND(pckeuze!$B$85=1,calcul!$D$67=3750)=TRUE,calcul!$B$71,"")) ->  | M134: =IF(pckeuze!B85=0,"",IF(AND(pckeuze!B85=1,calcul!$D$67=4000)=TRUE,calcul!$B$71,"")) ->  | O134: =IF(pckeuze!B85=0,"",IF(AND(pckeuze!B85=1,calcul!$D$67=4500)=TRUE,calcul!$B$71,"")) ->  | Q134: =IF(pckeuze!B85=0,"",IF(AND(pckeuze!B85=1,calcul!$D$67=5000)=TRUE,calcul!$B$71,"")) ->  | S134: ="" ->  | U134: ="" ->  | X134: =COUNTIF(D134,">=0")+COUNTIF(F134,">=0")+COUNTIF(H134,">=0")+COUNTIF(J134,">=0")+COUNTIF(L134,">=0")+COUNTIF(N134,">=0")+COUNTIF(P134,">=0")+COUNTIF(R134,">=0") -> 0 | Y134: =IF(AND(ISBLANK(D134),ISBLANK(C134))=TRUE,"",IF(ISBLANK(D134)=TRUE,C134,D134)) ->  | Z134: =IF(AND(ISBLANK(F134),ISBLANK(E134))=TRUE,"",IF(ISBLANK(F134)=TRUE,E134,F134)) ->  | AA134: =IF(AND(ISBLANK(H134),ISBLANK(G134))=TRUE,"",IF(ISBLANK(H134)=TRUE,G134,H134)) ->  | AB134: =IF(AND(ISBLANK(J134),ISBLANK(I134))=TRUE,"",IF(ISBLANK(J134)=TRUE,I134,J134)) ->  | AC134: =IF(AND(ISBLANK(K134),ISBLANK(L134))=TRUE,"",IF(ISBLANK(L134)=TRUE,K134,L134)) ->  | AD134: =IF(AND(ISBLANK(N134),ISBLANK(M134))=TRUE,"",IF(ISBLANK(N134)=TRUE,M134,N134)) ->  | AE134: =IF(AND(ISBLANK(O134),ISBLANK(P134))=TRUE,"",IF(ISBLANK(P134)=TRUE,O134,P134)) ->  | AF134: =IF(AND(ISBLANK(R134),ISBLANK(Q134))=TRUE,"",IF(ISBLANK(R134)=TRUE,Q134,R134)) ->  | AG134: =IF(AND(ISBLANK(T134),ISBLANK(S134))=TRUE,"",IF(ISBLANK(T134)=TRUE,S134,T134)) ->  | AH134: =IF(AND(ISBLANK(V134),ISBLANK(U134))=TRUE,"",IF(ISBLANK(V134)=TRUE,U134,V134)) -> 
A135: =taal!A572 -> DX + CLLX16 NICHT THERMISCH MAUER | C135: =IF(pckeuze!B86=0,"",IF(AND(pckeuze!B86=1,calcul!$D$67=2500)=TRUE,calcul!$B$72,"")) ->  | E135: =IF(pckeuze!$B$86=0,"",IF(AND(pckeuze!$B$86=1,calcul!$D$67=3000)=TRUE,calcul!$B$72,"")) ->  | G135: =IF(pckeuze!$B$86=0,"",IF(AND(pckeuze!$B$86=1,calcul!$D$67=3250)=TRUE,calcul!$B$72,"")) ->  | I135: =IF(pckeuze!$B$86=0,"",IF(AND(pckeuze!$B$86=1,calcul!$D$67=3500)=TRUE,calcul!$B$72,"")) ->  | K135: =IF(pckeuze!$B$86=0,"",IF(AND(pckeuze!$B$86=1,calcul!$D$67=3750)=TRUE,calcul!$B$72,"")) ->  | M135: =IF(pckeuze!B86=0,"",IF(AND(pckeuze!B86=1,calcul!$D$67=4000)=TRUE,calcul!$B$72,"")) ->  | O135: =IF(pckeuze!B86=0,"",IF(AND(pckeuze!B86=1,calcul!$D$67=4500)=TRUE,calcul!$B$72,"")) ->  | Q135: =IF(pckeuze!B86=0,"",IF(AND(pckeuze!B86=1,calcul!$D$67=5000)=TRUE,calcul!$B$72,"")) ->  | S135: ="" ->  | U135: ="" ->  | X135: =COUNTIF(D135,">=0")+COUNTIF(F135,">=0")+COUNTIF(H135,">=0")+COUNTIF(J135,">=0")+COUNTIF(L135,">=0")+COUNTIF(N135,">=0")+COUNTIF(P135,">=0")+COUNTIF(R135,">=0") -> 0 | AC135: =IF(AND(ISBLANK(K135),ISBLANK(L135))=TRUE,"",IF(ISBLANK(L135)=TRUE,K135,L135)) -> 
A136: =taal!A573 -> DX + CLL32 NICHT THERMISCH FREI | C136: =IF(pckeuze!B87=0,"",IF(AND(pckeuze!B87=1,calcul!$D$67=2500)=TRUE,calcul!$B$71,"")) ->  | E136: =IF(pckeuze!$B$87=0,"",IF(AND(pckeuze!$B$87=1,calcul!$D$67=3000)=TRUE,calcul!$B$71,"")) ->  | G136: =IF(pckeuze!$B$87=0,"",IF(AND(pckeuze!$B$87=1,calcul!$D$67=3250)=TRUE,calcul!$B$71,"")) ->  | I136: =IF(pckeuze!$B$87=0,"",IF(AND(pckeuze!$B$87=1,calcul!$D$67=3500)=TRUE,calcul!$B$71,"")) ->  | K136: =IF(pckeuze!$B$87=0,"",IF(AND(pckeuze!$B$87=1,calcul!$D$67=3750)=TRUE,calcul!$B$71,"")) ->  | M136: =IF(pckeuze!B87=0,"",IF(AND(pckeuze!B87=1,calcul!$D$67=4000)=TRUE,calcul!$B$71,"")) ->  | O136: =IF(pckeuze!B87=0,"",IF(AND(pckeuze!B87=1,calcul!$D$67=4500)=TRUE,calcul!$B$71,"")) ->  | Q136: =IF(pckeuze!B87=0,"",IF(AND(pckeuze!B87=1,calcul!$D$67=5000)=TRUE,calcul!$B$71,"")) ->  | S136: ="" ->  | U136: ="" ->  | X136: 0 | AC136: =IF(AND(ISBLANK(K136),ISBLANK(L136))=TRUE,"",IF(ISBLANK(L136)=TRUE,K136,L136)) -> 
A137: =taal!A574 -> DX + CLL32 NICHT THERMISCH MAUER | C137: =IF(pckeuze!B88=0,"",IF(AND(pckeuze!B88=1,calcul!$D$67=2500)=TRUE,calcul!$B$72,"")) ->  | E137: =IF(pckeuze!$B$88=0,"",IF(AND(pckeuze!$B$88=1,calcul!$D$67=3000)=TRUE,calcul!$B$72,"")) ->  | G137: =IF(pckeuze!$B$88=0,"",IF(AND(pckeuze!$B$88=1,calcul!$D$67=3250)=TRUE,calcul!$B$72,"")) ->  | I137: =IF(pckeuze!$B$88=0,"",IF(AND(pckeuze!$B$88=1,calcul!$D$67=3500)=TRUE,calcul!$B$72,"")) ->  | K137: =IF(pckeuze!$B$88=0,"",IF(AND(pckeuze!$B$88=1,calcul!$D$67=3750)=TRUE,calcul!$B$72,"")) ->  | M137: =IF(pckeuze!B88=0,"",IF(AND(pckeuze!B88=1,calcul!$D$67=4000)=TRUE,calcul!$B$72,"")) ->  | O137: =IF(pckeuze!B88=0,"",IF(AND(pckeuze!B88=1,calcul!$D$67=4500)=TRUE,calcul!$B$72,"")) ->  | Q137: =IF(pckeuze!B88=0,"",IF(AND(pckeuze!B88=1,calcul!$D$67=5000)=TRUE,calcul!$B$72,"")) ->  | S137: ="" ->  | U137: ="" ->  | X137: 0 | AC137: =IF(AND(ISBLANK(K137),ISBLANK(L137))=TRUE,"",IF(ISBLANK(L137)=TRUE,K137,L137)) -> 
A138: =taal!A575 -> DX2 + CLLX16 NICHT THERMISCH FREI | C138: ="" ->  | E138: ="" ->  | G138: ="" ->  | I138: ="" ->  | K138: ="" ->  | M138: =IF(pckeuze!B89=0,"",IF(AND(pckeuze!B89=1,calcul!$D$67=4000)=TRUE,calcul!$B$71,"")) ->  | O138: =IF(pckeuze!B89=0,"",IF(AND(pckeuze!B89=1,calcul!$D$67=4500)=TRUE,calcul!$B$71,"")) ->  | Q138: =IF(pckeuze!B89=0,"",IF(AND(pckeuze!B89=1,calcul!$D$67=5000)=TRUE,calcul!$B$71,"")) ->  | S138: =IF(pckeuze!B89=0,"",IF(AND(pckeuze!B89=1,calcul!$D$67=5500)=TRUE,calcul!$B$71,"")) ->  | U138: =IF(pckeuze!B89=0,"",IF(AND(pckeuze!B89=1,calcul!$D$67=6000)=TRUE,calcul!$B$71,"")) ->  | X138: =COUNTIF(N138,">=0")+COUNTIF(P138,">=0")+COUNTIF(R138,">=0")+COUNTIF(T138,">=0")+COUNTIF(V138,">=0") -> 0 | AC138: =IF(AND(ISBLANK(K138),ISBLANK(L138))=TRUE,"",IF(ISBLANK(L138)=TRUE,K138,L138)) -> 
A139: =taal!A576 -> DX2 + CLLX16 NICHT THERMISCH MAUER | C139: ="" ->  | E139: ="" ->  | G139: ="" ->  | I139: ="" ->  | K139: ="" ->  | M139: =IF(pckeuze!B90=0,"",IF(AND(pckeuze!B90=1,calcul!$D$67=4000)=TRUE,calcul!$B$72,"")) ->  | O139: =IF(pckeuze!B90=0,"",IF(AND(pckeuze!B90=1,calcul!$D$67=4500)=TRUE,calcul!$B$72,"")) ->  | Q139: =IF(pckeuze!B90=0,"",IF(AND(pckeuze!B90=1,calcul!$D$67=5000)=TRUE,calcul!$B$72,"")) ->  | S139: =IF(pckeuze!B90=0,"",IF(AND(pckeuze!B90=1,calcul!$D$67=5500)=TRUE,calcul!$B$72,"")) ->  | U139: =IF(pckeuze!B90=0,"",IF(AND(pckeuze!B90=1,calcul!$D$67=6000)=TRUE,calcul!$B$72,"")) ->  | X139: =COUNTIF(N139,">=0")+COUNTIF(P139,">=0")+COUNTIF(R139,">=0")+COUNTIF(T139,">=0")+COUNTIF(V139,">=0") -> 0 | AC139: =IF(AND(ISBLANK(K139),ISBLANK(L139))=TRUE,"",IF(ISBLANK(L139)=TRUE,K139,L139)) -> 
A140: =taal!A577 -> DX2 + CLL32 NICHT THERMISCH FREI | C140: ="" ->  | E140: ="" ->  | G140: ="" ->  | I140: ="" ->  | K140: ="" ->  | M140: =IF(pckeuze!B91=0,"",IF(AND(pckeuze!B91=1,calcul!$D$67=4000)=TRUE,calcul!$B$71,"")) ->  | O140: =IF(pckeuze!B91=0,"",IF(AND(pckeuze!B91=1,calcul!$D$67=4500)=TRUE,calcul!$B$71,"")) ->  | Q140: =IF(pckeuze!B91=0,"",IF(AND(pckeuze!B91=1,calcul!$D$67=5000)=TRUE,calcul!$B$71,"")) ->  | S140: =IF(pckeuze!B91=0,"",IF(AND(pckeuze!B91=1,calcul!$D$67=5500)=TRUE,calcul!$B$71,"")) ->  | U140: =IF(pckeuze!B91=0,"",IF(AND(pckeuze!B91=1,calcul!$D$67=6000)=TRUE,calcul!$B$71,"")) ->  | X140: =COUNTIF(N140,">=0")+COUNTIF(P140,">=0")+COUNTIF(R140,">=0")+COUNTIF(T140,">=0")+COUNTIF(V140,">=0") -> 0
A141: =taal!A578 -> DX2 + CLL32 NICHT THERMISCH MAUER | C141: ="" ->  | E141: ="" ->  | G141: ="" ->  | I141: ="" ->  | K141: ="" ->  | M141: =IF(pckeuze!B92=0,"",IF(AND(pckeuze!B92=1,calcul!$D$67=4000)=TRUE,calcul!$B$72,"")) ->  | O141: =IF(pckeuze!B92=0,"",IF(AND(pckeuze!B92=1,calcul!$D$67=4500)=TRUE,calcul!$B$72,"")) ->  | Q141: =IF(pckeuze!B92=0,"",IF(AND(pckeuze!B92=1,calcul!$D$67=5000)=TRUE,calcul!$B$72,"")) ->  | S141: =IF(pckeuze!B92=0,"",IF(AND(pckeuze!B92=1,calcul!$D$67=5500)=TRUE,calcul!$B$72,"")) ->  | U141: =IF(pckeuze!B92=0,"",IF(AND(pckeuze!B92=1,calcul!$D$67=6000)=TRUE,calcul!$B$72,"")) ->  | X141: =COUNTIF(N141,">=0")+COUNTIF(P141,">=0")+COUNTIF(R141,">=0")+COUNTIF(T141,">=0")+COUNTIF(V141,">=0") -> 0
A143: =taal!A638&" "&taal!A734 -> WINKELPFEILER UNTER RINNE | C143: 2500 | D143: 2500 | E143: 3250 | F143: 3250 | G143: 3250 | H143: 5000 | Y143: 2500 | Z143: 3250 | AA143: 5000
A144: =taal!A639 -> 110/100 CLIMAX | C144: =IF(pckeuze!B208=0,"",IF(AND(pckeuze!B208=1,calcul!E94=2500)=TRUE,calcul!C94,"")) ->  | E144: =IF(pckeuze!B208=0,"",IF(AND(pckeuze!B208=1,calcul!E94=3250)=TRUE,calcul!C94,"")) ->  | G144: ="" ->  | X144: =COUNTIF(D144,">=0")+COUNTIF(F144,">=0") -> 0 | Y144: =IF(AND(ISBLANK(D144),ISBLANK(C144))=TRUE,"",IF(ISBLANK(D144)=TRUE,C144,D144)) ->  | Z144: =IF(AND(ISBLANK(F144),ISBLANK(E144))=TRUE,"",IF(ISBLANK(F144)=TRUE,E144,F144)) ->  | AA144: =IF(AND(ISBLANK(H144),ISBLANK(G144))=TRUE,"",IF(ISBLANK(H144)=TRUE,G144,H144)) -> 
A145: =taal!A643 -> 110/181 CLIMAX | C145: =IF(pckeuze!B210=0,"",IF(AND(pckeuze!B210=1,calcul!E94=2500)=TRUE,calcul!C94,"")) ->  | E145: =IF(pckeuze!B210=0,"",IF(AND(pckeuze!B210=1,calcul!E94=3250)=TRUE,calcul!C94,"")) ->  | G145: =IF(pckeuze!B210=0,"",IF(AND(pckeuze!B210=1,calcul!E94=5000)=TRUE,calcul!C94,"")) ->  | X145: =COUNTIF(D145,">=0")+COUNTIF(F145,">=0")+COUNTIF(H145,">=0") -> 0
A146: =taal!A644 -> 110/181 CLIMAXPANORAMA | C146: =IF(pckeuze!B212=0,"",IF(AND(pckeuze!B212=1,calcul!E94=2500)=TRUE,calcul!C94,"")) ->  | E146: =IF(pckeuze!B212=0,"",IF(AND(pckeuze!B212=1,calcul!E94=3250)=TRUE,calcul!C94,"")) ->  | G146: =IF(pckeuze!B212=0,"",IF(AND(pckeuze!B212=1,calcul!E94=5000)=TRUE,calcul!C94,"")) ->  | X146: =COUNTIF(D146,">=0")+COUNTIF(F146,">=0")+COUNTIF(H146,">=0") -> 0 | AA146: =IF(AND(ISBLANK(H146),ISBLANK(G146))=TRUE,"",IF(ISBLANK(H146)=TRUE,G146,H146)) -> 
A147: =taal!A644&" STATIK" -> 110/181 CLIMAXPANORAMA STATIK | C147: =IF(pckeuze!B213=0,"",IF(AND(pckeuze!B213=1,calcul!E94=2500)=TRUE,calcul!C94,"")) ->  | E147: =IF(pckeuze!B213=0,"",IF(AND(pckeuze!B213=1,calcul!E94=3250)=TRUE,calcul!C94,"")) ->  | G147: =IF(pckeuze!B213=0,"",IF(AND(pckeuze!B213=1,calcul!E94=5000)=TRUE,calcul!C94,"")) ->  | X147: 0
A148: =taal!A645 -> 110/181 CLIMAXPANORAMA FREISTEHEND | C148: =IF(pckeuze!B215=0,"",IF(AND(pckeuze!B215=1,calcul!E94=2500)=TRUE,calcul!C94,"")) ->  | E148: =IF(pckeuze!B215=0,"",IF(AND(pckeuze!B215=1,calcul!E94=3250)=TRUE,calcul!C94,"")) ->  | G148: =IF(pckeuze!B215=0,"",IF(AND(pckeuze!B215=1,calcul!E94=5000)=TRUE,calcul!C94,"")) ->  | X148: 0 | AA148: =IF(AND(ISBLANK(H148),ISBLANK(G148))=TRUE,"",IF(ISBLANK(H148)=TRUE,G148,H148)) -> 
A149: =taal!A648 -> 100/100 CLIMAX | C149: =IF(pckeuze!B217=0,"",IF(AND(pckeuze!B217=1,calcul!E94=2500)=TRUE,calcul!C94,"")) ->  | E149: =IF(pckeuze!B217=0,"",IF(AND(pckeuze!B217=1,calcul!E94=3250)=TRUE,calcul!C94,"")) ->  | G149: ="" ->  | X149: =COUNTIF(D149,">=0")+COUNTIF(F149,">=0") -> 0
A150: =taal!A653 -> 110/72 CLIMAX PANORAMA | C150: =IF(pckeuze!B221=0,"",IF(AND(pckeuze!B221=1,calcul!E94=2500)=TRUE,calcul!C94,"")) ->  | E150: =IF(pckeuze!B221=0,"",IF(AND(pckeuze!B221=1,calcul!E94=3250)=TRUE,calcul!C94,"")) ->  | G150: =IF(pckeuze!B221=0,"",IF(AND(pckeuze!B221=1,calcul!E94=5000)=TRUE,calcul!C94,"")) ->  | X150: =COUNTIF(D150,">=0")+COUNTIF(F150,">=0")+COUNTIF(H150,">=0") -> 0
A151: =taal!A654 -> 110/72 CLIMAX PANORAMA STATIK | C151: =IF(pckeuze!B222=0,"",IF(AND(pckeuze!B222=1,calcul!E94=2500)=TRUE,calcul!C94,"")) ->  | E151: =IF(pckeuze!B222=0,"",IF(AND(pckeuze!B222=1,calcul!E94=3250)=TRUE,calcul!C94,"")) ->  | G151: =IF(pckeuze!B222=0,"",IF(AND(pckeuze!B222=1,calcul!E94=5000)=TRUE,calcul!C94,"")) ->  | X151: =COUNTIF(D151,">=0")+COUNTIF(F151,">=0")+COUNTIF(H151,">=0") -> 0
A152: =taal!A655 -> 110/72 CLIMAXPANORAMA FREISTEHEND | C152: =IF(pckeuze!B224=0,"",IF(AND(pckeuze!B224=1,calcul!E94=2500)=TRUE,calcul!C94,"")) ->  | E152: =IF(pckeuze!B224=0,"",IF(AND(pckeuze!B224=1,calcul!E94=3250)=TRUE,calcul!C94,"")) ->  | G152: =IF(pckeuze!B224=0,"",IF(AND(pckeuze!B224=1,calcul!E94=5000)=TRUE,calcul!C94,"")) ->  | X152: =COUNTIF(D152,">=0")+COUNTIF(F152,">=0")+COUNTIF(H152,">=0") -> 0 | AA152: =IF(AND(ISBLANK(H152),ISBLANK(G152))=TRUE,"",IF(ISBLANK(H152)=TRUE,G152,H152)) -> 
A153: =taal!A652 -> 100/50 CLIMAX | C153: =IF(pckeuze!B226=0,"",IF(AND(pckeuze!B226=1,calcul!E94=2500)=TRUE,calcul!C94,"")) ->  | E153: =IF(pckeuze!B226=0,"",IF(AND(pckeuze!B226=1,calcul!E94=3250)=TRUE,calcul!C94,"")) ->  | G153: ="" ->  | X153: 0
A154: =taal!A656 -> 110/141 CLIMALUX | C154: =IF(pckeuze!B232=0,"",IF(AND(pckeuze!B232=1,calcul!E94=2500)=TRUE,calcul!C94,"")) ->  | E154: =IF(pckeuze!B232=0,"",IF(AND(pckeuze!B232=1,calcul!E94=3250)=TRUE,calcul!C94,"")) ->  | G154: ="" ->  | X154: 0
A155: =taal!A657 -> 110/141 CLIMALUX FREISTEHEND | C155: =IF(pckeuze!B234=0,"",IF(AND(pckeuze!B234=1,calcul!E94=2500)=TRUE,calcul!C94,"")) ->  | E155: =IF(pckeuze!B234=0,"",IF(AND(pckeuze!B234=1,calcul!E94=3250)=TRUE,calcul!C94,"")) ->  | G155: ="" ->  | X155: =COUNTIF(D155,">=0")+COUNTIF(F155,">=0") -> 0 | AA155: =IF(AND(ISBLANK(H155),ISBLANK(G155))=TRUE,"",IF(ISBLANK(H155)=TRUE,G155,H155)) -> 
A156: =taal!A658 -> 150/150 CLIMALUX | C156: =IF(pckeuze!B238=0,"",IF(AND(pckeuze!B238=1,calcul!E94=2500)=TRUE,calcul!C94,"")) ->  | E156: =IF(pckeuze!B238=0,"",IF(AND(pckeuze!B238=1,calcul!E94=3250)=TRUE,calcul!C94,"")) ->  | G156: ="" ->  | X156: =COUNTIF(D156,">=0")+COUNTIF(F156,">=0") -> 0
A157: =taal!A659 -> 150/150 CLIMALUX FREISTEHEND | C157: =IF(pckeuze!B240=0,"",IF(AND(pckeuze!B240=1,calcul!E94=2500)=TRUE,calcul!C94,"")) ->  | E157: =IF(pckeuze!B240=0,"",IF(AND(pckeuze!B240=1,calcul!E94=3250)=TRUE,calcul!C94,"")) ->  | G157: ="" ->  | X157: =COUNTIF(D157,">=0")+COUNTIF(F157,">=0") -> 0 | AA157: =IF(AND(ISBLANK(H157),ISBLANK(G157))=TRUE,"",IF(ISBLANK(H157)=TRUE,G157,H157)) -> 
A158: =taal!A662 -> 150/177 CLIMALUX HORIZON | C158: =IF(pckeuze!B242=0,"",IF(AND(pckeuze!B242=1,calcul!E94=2500)=TRUE,calcul!C94,"")) ->  | E158: =IF(pckeuze!B242=0,"",IF(AND(pckeuze!B242=1,calcul!E94=3250)=TRUE,calcul!C94,"")) ->  | G158: ="" ->  | X158: =COUNTIF(D158,">=0")+COUNTIF(F158,">=0") -> 0
A159: =taal!A663 -> 150/177 CLIMALUX HORIZON FREISTEHEND | C159: =IF(pckeuze!B244=0,"",IF(AND(pckeuze!B244=1,calcul!E94=2500)=TRUE,calcul!C94,"")) ->  | E159: =IF(pckeuze!B244=0,"",IF(AND(pckeuze!B244=1,calcul!E94=3250)=TRUE,calcul!C94,"")) ->  | G159: ="" ->  | X159: =COUNTIF(D159,">=0")+COUNTIF(F159,">=0") -> 0 | AA159: =IF(AND(ISBLANK(H159),ISBLANK(G159))=TRUE,"",IF(ISBLANK(H159)=TRUE,G159,H159)) -> 
A160: =taal!A664 -> 110/110 FÜR GDX DACHÜBERSTAND | C160: =IF(pckeuze!B236=0,"",IF(AND(pckeuze!B236=1,calcul!E94=2500)=TRUE,calcul!C94,"")) ->  | E160: =IF(pckeuze!B236=0,"",IF(AND(pckeuze!B236=1,calcul!E94=3250)=TRUE,calcul!C94,"")) ->  | G160: ="" ->  | X160: 0
A161: =taal!A641 -> 110/116 CLIMAX THERMISCH | C161: =IF(pckeuze!B228=0,"",IF(AND(pckeuze!B228=1,calcul!E94=2500)=TRUE,calcul!C94,"")) ->  | E161: =IF(pckeuze!B228=0,"",IF(AND(pckeuze!B228=1,calcul!E94=3250)=TRUE,calcul!C94,"")) ->  | G161: ="" ->  | X161: 0
A162: =taal!A646 -> 110/197 CLIMAX THERMISCH | C162: =IF(pckeuze!B230=0,"",IF(AND(pckeuze!B230=1,calcul!E94=2500)=TRUE,calcul!C94,"")) ->  | E162: =IF(pckeuze!B230=0,"",IF(AND(pckeuze!B230=1,calcul!E94=3250)=TRUE,calcul!C94,"")) ->  | G162: ="" ->  | X162: 0
A165: =taal!A677&" "&taal!A734 -> ZWISCHENPFEILER UNTER RINNE | C165: 2500 | D165: 2500 | E165: 3250 | F165: 3250 | H165: 5000 | Y165: 2500 | Z165: 3250 | AA165: 5000
A166: =taal!A640 -> 110/100 CLIMAX | C166: =IF(pckeuze!B209=0,"",IF(AND(pckeuze!B209=1,calcul!E94=2500)=TRUE,calcul!D94,"")) ->  | E166: =IF(pckeuze!B209=0,"",IF(AND(pckeuze!B209=1,calcul!E94=3250)=TRUE,calcul!D94,"")) ->  | G166: ="" ->  | X166: =COUNTIF(D166,">=0")+COUNTIF(F166,">=0") -> 0 | Y166: =IF(AND(ISBLANK(D166),ISBLANK(C166))=TRUE,"",IF(ISBLANK(D166)=TRUE,C166,D166)) ->  | Z166: =IF(AND(ISBLANK(F166),ISBLANK(E166))=TRUE,"",IF(ISBLANK(F166)=TRUE,E166,F166)) ->  | AA166: =IF(AND(ISBLANK(H166),ISBLANK(G166))=TRUE,"",IF(ISBLANK(H166)=TRUE,G166,H166)) -> 
A167: =taal!A643 -> 110/181 CLIMAX | C167: =IF(pckeuze!B211=0,"",IF(AND(pckeuze!B211=1,calcul!E94=2500)=TRUE,calcul!D94,"")) ->  | E167: =IF(pckeuze!B211=0,"",IF(AND(pckeuze!B211=1,calcul!E94=3250)=TRUE,calcul!D94,"")) ->  | G167: ="" ->  | X167: 0
A168: =taal!A644 -> 110/181 CLIMAXPANORAMA | C168: =IF(pckeuze!B214=0,"",IF(AND(pckeuze!B214=1,calcul!E94=2500)=TRUE,calcul!D94,"")) ->  | E168: =IF(pckeuze!B214=0,"",IF(AND(pckeuze!B214=1,calcul!E94=3250)=TRUE,calcul!D94,"")) ->  | G168: =IF(pckeuze!B214=0,"",IF(AND(pckeuze!B214=1,calcul!E94=5000)=TRUE,calcul!D94,"")) ->  | X168: =COUNTIF(D168,">=0")+COUNTIF(F168,">=0")+COUNTIF(H168,">=0") -> 0
A169: =taal!A645 -> 110/181 CLIMAXPANORAMA FREISTEHEND | C169: =IF(pckeuze!B216=0,"",IF(AND(pckeuze!B216=1,calcul!E94=2500)=TRUE,calcul!D94,"")) ->  | E169: =IF(pckeuze!B216=0,"",IF(AND(pckeuze!B216=1,calcul!E94=3250)=TRUE,calcul!D94,"")) ->  | G169: =IF(pckeuze!B216=0,"",IF(AND(pckeuze!B216=1,calcul!E94=5000)=TRUE,calcul!D94,"")) ->  | X169: =COUNTIF(D169,">=0")+COUNTIF(F169,">=0")+COUNTIF(H169,">=0") -> 0 | AA169: =IF(AND(ISBLANK(H169),ISBLANK(G169))=TRUE,"",IF(ISBLANK(H169)=TRUE,G169,H169)) -> 
A170: =taal!A649 -> 100/100 CLIMAX | C170: =IF(pckeuze!B218=0,"",IF(AND(pckeuze!B218=1,calcul!E94=2500)=TRUE,calcul!D94,"")) ->  | E170: =IF(pckeuze!B218=0,"",IF(AND(pckeuze!B218=1,calcul!E94=3250)=TRUE,calcul!D94,"")) ->  | G170: ="" ->  | X170: 0
A171: =taal!A653 -> 110/72 CLIMAX PANORAMA | C171: =IF(pckeuze!B223=0,"",IF(AND(pckeuze!B223=1,calcul!E94=2500)=TRUE,calcul!D94,"")) ->  | E171: =IF(pckeuze!B223=0,"",IF(AND(pckeuze!B223=1,calcul!E94=3250)=TRUE,calcul!D94,"")) ->  | G171: =IF(pckeuze!B223=0,"",IF(AND(pckeuze!B223=1,calcul!E94=5000)=TRUE,calcul!D94,"")) ->  | X171: =COUNTIF(D171,">=0")+COUNTIF(F171,">=0")+COUNTIF(H171,">=0") -> 0
A172: =taal!A655 -> 110/72 CLIMAXPANORAMA FREISTEHEND | C172: =IF(pckeuze!B225=0,"",IF(AND(pckeuze!B225=1,calcul!E94=2500)=TRUE,calcul!D94,"")) ->  | E172: =IF(pckeuze!B225=0,"",IF(AND(pckeuze!B225=1,calcul!E94=3250)=TRUE,calcul!D94,"")) ->  | G172: =IF(pckeuze!B225=0,"",IF(AND(pckeuze!B225=1,calcul!E94=5000)=TRUE,calcul!D94,"")) ->  | X172: 0 | AA172: =IF(AND(ISBLANK(H172),ISBLANK(G172))=TRUE,"",IF(ISBLANK(H172)=TRUE,G172,H172)) -> 
A173: =taal!A652 -> 100/50 CLIMAX | C173: =IF(pckeuze!B227=0,"",IF(AND(pckeuze!B227=1,calcul!E94=2500)=TRUE,calcul!D94,"")) ->  | E173: =IF(pckeuze!B227=0,"",IF(AND(pckeuze!B227=1,calcul!E94=3250)=TRUE,calcul!D94,"")) ->  | G173: ="" ->  | X173: 0
A174: =taal!A656 -> 110/141 CLIMALUX | C174: =IF(pckeuze!B233=0,"",IF(AND(pckeuze!B233=1,calcul!E94=2500)=TRUE,calcul!D94,"")) ->  | E174: =IF(pckeuze!B233=0,"",IF(AND(pckeuze!B233=1,calcul!E94=3250)=TRUE,calcul!D94,"")) ->  | G174: ="" ->  | X174: 0
A175: =taal!A657 -> 110/141 CLIMALUX FREISTEHEND | C175: =IF(pckeuze!B235=0,"",IF(AND(pckeuze!B235=1,calcul!E94=2500)=TRUE,calcul!D94,"")) ->  | E175: =IF(pckeuze!B235=0,"",IF(AND(pckeuze!B235=1,calcul!E94=3250)=TRUE,calcul!D94,"")) ->  | G175: ="" ->  | X175: =COUNTIF(D175,">=0")+COUNTIF(F175,">=0") -> 0 | AA175: =IF(AND(ISBLANK(H175),ISBLANK(G175))=TRUE,"",IF(ISBLANK(H175)=TRUE,G175,H175)) -> 
A176: =taal!A658 -> 150/150 CLIMALUX | C176: =IF(pckeuze!B239=0,"",IF(AND(pckeuze!B239=1,calcul!E94=2500)=TRUE,calcul!D94,"")) ->  | E176: =IF(pckeuze!B239=0,"",IF(AND(pckeuze!B239=1,calcul!E94=3250)=TRUE,calcul!D94,"")) ->  | G176: ="" ->  | X176: =COUNTIF(D176,">=0")+COUNTIF(F176,">=0") -> 0
A177: =taal!A659 -> 150/150 CLIMALUX FREISTEHEND | C177: =IF(pckeuze!B241=0,"",IF(AND(pckeuze!B241=1,calcul!E94=2500)=TRUE,calcul!D94,"")) ->  | E177: =IF(pckeuze!B241=0,"",IF(AND(pckeuze!B241=1,calcul!E94=3250)=TRUE,calcul!D94,"")) ->  | G177: ="" ->  | X177: =COUNTIF(D177,">=0")+COUNTIF(F177,">=0") -> 0 | AA177: =IF(AND(ISBLANK(H177),ISBLANK(G177))=TRUE,"",IF(ISBLANK(H177)=TRUE,G177,H177)) -> 
A178: =taal!A662 -> 150/177 CLIMALUX HORIZON | C178: =IF(pckeuze!B243=0,"",IF(AND(pckeuze!B243=1,calcul!E94=2500)=TRUE,calcul!D94,"")) ->  | E178: =IF(pckeuze!B243=0,"",IF(AND(pckeuze!B243=1,calcul!E94=3250)=TRUE,calcul!D94,"")) ->  | G178: ="" ->  | X178: =COUNTIF(D178,">=0")+COUNTIF(F178,">=0") -> 0
A179: =taal!A663 -> 150/177 CLIMALUX HORIZON FREISTEHEND | C179: =IF(pckeuze!B245=0,"",IF(AND(pckeuze!B245=1,calcul!E94=2500)=TRUE,calcul!D94,"")) ->  | E179: =IF(pckeuze!B245=0,"",IF(AND(pckeuze!B245=1,calcul!E94=3250)=TRUE,calcul!D94,"")) ->  | G179: ="" ->  | X179: =COUNTIF(D179,">=0")+COUNTIF(F179,">=0") -> 0 | AA179: =IF(AND(ISBLANK(H179),ISBLANK(G179))=TRUE,"",IF(ISBLANK(H179)=TRUE,G179,H179)) -> 
A180: =taal!A664 -> 110/110 FÜR GDX DACHÜBERSTAND | C180: =IF(pckeuze!B237=0,"",IF(AND(pckeuze!B237=1,calcul!E94=2500)=TRUE,calcul!D94,"")) ->  | E180: =IF(pckeuze!B237=0,"",IF(AND(pckeuze!B237=1,calcul!E94=3250)=TRUE,calcul!D94,"")) ->  | G180: ="" ->  | X180: 0
A181: =taal!A642 -> 110/116 CLIMAX THERMISCH | C181: =IF(pckeuze!B229=0,"",IF(AND(pckeuze!B229=1,calcul!E94=2500)=TRUE,calcul!D94,"")) ->  | E181: =IF(pckeuze!B229=0,"",IF(AND(pckeuze!B229=1,calcul!E94=3250)=TRUE,calcul!D94,"")) ->  | G181: ="" ->  | X181: 0
A182: =taal!A647 -> 110/197 CLIMAX THERMISCH | C182: =IF(pckeuze!B231=0,"",IF(AND(pckeuze!B231=1,calcul!E94=2500)=TRUE,calcul!D94,"")) ->  | E182: =IF(pckeuze!B231=0,"",IF(AND(pckeuze!B231=1,calcul!E94=3250)=TRUE,calcul!D94,"")) ->  | G182: ="" ->  | X182: 0
A184: =taal!A638&" "&taal!A735 -> WINKELPFEILER UNTER GDX | C184: 2500 | D184: 2500 | E184: 3250 | F184: 3250 | G184: 2500 | H184: 5000 | I184: 3250 | J184: 6500 | Y184: 2500 | Z184: 3250 | AA184: 5000 | AB184: 6500
A185: =taal!A665 -> 110/110 FÜR GDX FREISTEHEND | C185: =IF(OR(pckeuze!B4=0,calcul!C95=0),"",IF(AND(pckeuze!B4=1,calcul!E95=2500)=TRUE,calcul!C95,"")) ->  | E185: =IF(OR(pckeuze!B4=0,calcul!C95=0),"",IF(AND(pckeuze!B4=1,calcul!E95=3250)=TRUE,calcul!C95,"")) ->  | G185: =IF(OR(pckeuze!B4=0,calcul!C95=0),"",IF(AND(pckeuze!B4=1,calcul!E95=5000)=TRUE,calcul!C95,"")) ->  | I185: =IF(OR(pckeuze!B4=0,calcul!C95=0),"",IF(AND(pckeuze!B4=1,calcul!E95=6500)=TRUE,calcul!C95,"")) ->  | X185: =COUNTIF(D185,">=0")+COUNTIF(F185,">=0")+COUNTIF(H185,">=0")+COUNTIF(J185,">=0") -> 0 | Y185: =IF(AND(ISBLANK(D185),ISBLANK(C185))=TRUE,"",IF(ISBLANK(D185)=TRUE,C185,D185)) ->  | Z185: =IF(AND(ISBLANK(F185),ISBLANK(E185))=TRUE,"",IF(ISBLANK(F185)=TRUE,E185,F185)) ->  | AA185: =IF(AND(ISBLANK(H185),ISBLANK(G185))=TRUE,"",IF(ISBLANK(H185)=TRUE,G185,H185)) ->  | AB185: =IF(AND(ISBLANK(J185),ISBLANK(I185))=TRUE,"",IF(ISBLANK(J185)=TRUE,I185,J185)) -> 
A187: =taal!A677&" "&taal!A735 -> ZWISCHENPFEILER UNTER GDX | C187: 2500 | D187: 2500 | E187: 3250 | F187: 3250 | G187: 2500 | H187: 5000 | I187: 3250 | J187: 6500 | Y187: 2500 | Z187: 3250 | AA187: 5000 | AB187: 6500
A188: =taal!A665 -> 110/110 FÜR GDX FREISTEHEND | C188: =IF(OR(pckeuze!B4=0,calcul!D95=0),"",IF(AND(pckeuze!B4=1,calcul!E95=2500)=TRUE,calcul!D95,"")) ->  | E188: =IF(OR(pckeuze!B4=0,calcul!D95=0),"",IF(AND(pckeuze!B4=1,calcul!E95=3250)=TRUE,calcul!D95,"")) ->  | G188: =IF(OR(pckeuze!B4=0,calcul!D95=0),"",IF(AND(pckeuze!B4=1,calcul!E95=5000)=TRUE,calcul!D95,"")) ->  | I188: =IF(OR(pckeuze!B4=0,calcul!D95=0),"",IF(AND(pckeuze!B4=1,calcul!E95=6500)=TRUE,calcul!D95,"")) ->  | X188: =COUNTIF(D188,">=0")+COUNTIF(F188,">=0")+COUNTIF(H188,">=0")+COUNTIF(J188,">=0") -> 0 | Y188: =IF(AND(ISBLANK(D188),ISBLANK(C188))=TRUE,"",IF(ISBLANK(D188)=TRUE,C188,D188)) ->  | Z188: =IF(AND(ISBLANK(F188),ISBLANK(E188))=TRUE,"",IF(ISBLANK(F188)=TRUE,E188,F188)) ->  | AA188: =IF(AND(ISBLANK(H188),ISBLANK(G188))=TRUE,"",IF(ISBLANK(H188)=TRUE,G188,H188)) ->  | AB188: =IF(AND(ISBLANK(J188),ISBLANK(I188))=TRUE,"",IF(ISBLANK(J188)=TRUE,I188,J188)) -> 
A190: =taal!A666 -> KONSOLE RINNENTRÄGER | C190: =IF(pckeuze!B247=0,"",IF(AND(pckeuze!B247=1,calcul!F94=0)=TRUE,"",calcul!F94)) ->  | X190: =COUNTIF(D190,">=0") -> 0 | Y190: =IF(AND(ISBLANK(D190),ISBLANK(C190))=TRUE,"",IF(ISBLANK(D190)=TRUE,C190,D190)) -> 
A192: =taal!A615 -> KS ZUBEHÖRSET | C192: SET | D192: =taal!A719 -> SET | Y192: SET
A193: =taal!A601 -> 980/16 P WEIß | C193: =IF(pckeuze!B168=0,"",IF(AND(pckeuze!B168=1,calcul!F55=980)=TRUE,calcul!$E$55,"")) ->  | X193: =COUNTIF(D193,">=0") -> 0 | Y193: =IF(AND(ISBLANK(D193),ISBLANK(C193))=TRUE,"",IF(ISBLANK(D193)=TRUE,C193,D193)) -> 
A194: =taal!A602 -> 1053/16 P WEIß | C194: =IF(pckeuze!B169=0,"",IF(AND(pckeuze!B169=1,calcul!F55=1053)=TRUE,calcul!$E$55,"")) ->  | X194: 0
A195: =taal!A603 -> 1200/16 P WEIß | C195: =IF(pckeuze!B170=0,"",IF(AND(pckeuze!B170=1,calcul!F55=1200)=TRUE,calcul!$E$55,"")) ->  | X195: 0
A196: =taal!A604 -> 1250/16 P WEIß | C196: =IF(pckeuze!B171=0,"",IF(AND(pckeuze!B171=1,calcul!F55=1250)=TRUE,calcul!$E$55,"")) ->  | X196: 0
A197: =taal!A605 -> 1200/25 P WEIß | C197: =IF(pckeuze!B172=0,"",IF(AND(pckeuze!B172=1,calcul!F55=1200)=TRUE,calcul!$E$55,"")) ->  | X197: 0
A198: =taal!A606 -> 980/32 P WEIß | C198: =IF(pckeuze!B173=0,"",IF(AND(pckeuze!B173=1,calcul!F55=980)=TRUE,calcul!$E$55,"")) ->  | X198: 0
A199: =taal!A607 -> 1053/32 P WEIß | C199: =IF(pckeuze!B174=0,"",IF(AND(pckeuze!B174=1,calcul!F55=1053)=TRUE,calcul!$E$55,"")) ->  | X199: 0
A200: =taal!A608 -> 1230/32 P WEIß | C200: =IF(pckeuze!B175=0,"",IF(AND(pckeuze!B175=1,calcul!F55=1230)=TRUE,calcul!$E$55,"")) ->  | X200: 0
A201: =taal!A612 -> 980/16 RAL | C201: =IF(pckeuze!B176=0,"",IF(AND(pckeuze!B176=1,calcul!F55=980)=TRUE,calcul!$E$55,"")) ->  | X201: 0
A202: =taal!A613 -> 1053/16 RAL | C202: =IF(pckeuze!B177=0,"",IF(AND(pckeuze!B177=1,calcul!F55=1053)=TRUE,calcul!$E$55,"")) ->  | X202: 0
A203: =taal!A614 -> 1200/16 RAL | C203: =IF(pckeuze!B178=0,"",IF(AND(pckeuze!B178=1,calcul!F55=1200)=TRUE,calcul!$E$55,"")) ->  | X203: 0
A204: =taal!A609 -> 980/32 RAL | C204: =IF(pckeuze!B179=0,"",IF(AND(pckeuze!B179=1,calcul!$F$55=980)=TRUE,calcul!$E$55,IF(AND(pckeuze!B179=1,calcul!$F$55=1200)=TRUE,calcul!$E$55,""))) ->  | X204: 0
A205: =taal!A610 -> 1053/32 RAL | C205: =IF(pckeuze!B180=0,"",IF(AND(pckeuze!B180=1,calcul!$F$55=1053)=TRUE,calcul!$E$55,IF(AND(pckeuze!B180=1,calcul!$F$55=1200)=TRUE,calcul!$E$55,""))) ->  | X205: 0
A206: =taal!A611 -> 1230/32 RAL | C206: =IF(pckeuze!B181=0,"",IF(AND(pckeuze!B181=1,calcul!$F$55=1230)=TRUE,calcul!$E$55,IF(AND(pckeuze!B181=1,calcul!$F$55=1200)=TRUE,calcul!$E$55,""))) ->  | X206: 0
A208: =taal!A699&" D 1" -> DISTANZHALTERSETS D 1 | C208: SET | D208: =taal!A719 -> SET | Y208: SET
A209: =taal!A623 -> 942 A 1 | C209: =IF(pckeuze!B189=0,"",IF(AND(pckeuze!B189=1,calcul!E106>0)=TRUE,calcul!F106,"")) ->  | X209: =COUNTIF(D209,">=0") -> 0 | Y209: =IF(AND(ISBLANK(D209),ISBLANK(C209))=TRUE,"",IF(ISBLANK(D209)=TRUE,C209,D209)) -> 
A210: =taal!A624 -> 1015 A 1 | C210: =IF(pckeuze!B190=0,"",IF(AND(pckeuze!B190=1,calcul!E107>0)=TRUE,calcul!F107,"")) ->  | X210: =COUNTIF(D210,">=0") -> 0 | Y210: =IF(AND(ISBLANK(D210),ISBLANK(C210))=TRUE,"",IF(ISBLANK(D210)=TRUE,C210,D210)) -> 
A211: =taal!A625 -> 1162 A 1 | C211: =IF(pckeuze!B191=0,"",IF(AND(pckeuze!B191=1,calcul!E108>0)=TRUE,calcul!F108,"")) ->  | X211: =COUNTIF(D211,">=0") -> 0 | Y211: =IF(AND(ISBLANK(D211),ISBLANK(C211))=TRUE,"",IF(ISBLANK(D211)=TRUE,C211,D211)) -> 
A212: =taal!A626 -> 1192 A 1 | C212: =IF(pckeuze!B192=0,"",IF(AND(pckeuze!B192=1,calcul!E109>0)=TRUE,calcul!F109,"")) ->  | X212: =COUNTIF(D212,">=0") -> 0 | Y212: =IF(AND(ISBLANK(D212),ISBLANK(C212))=TRUE,"",IF(ISBLANK(D212)=TRUE,C212,D212)) -> 
A213: =taal!A627 -> 2500 A 1 | C213: =IF(pckeuze!B193=0,"",IF(AND(pckeuze!B193=1,calcul!E110>0)=TRUE,calcul!F110,"")) ->  | X213: =COUNTIF(D213,">=0") -> 0 | Y213: =IF(AND(ISBLANK(D213),ISBLANK(C213))=TRUE,"",IF(ISBLANK(D213)=TRUE,C213,D213)) -> 
A215: =taal!A699&" D 2 & D 3" -> DISTANZHALTERSETS D 2 & D 3 | D215: =taal!A719 -> SET | Y215: SET
A216: =taal!A628 -> 942 A 2 | C216: =IF(pckeuze!B195=0,"",IF(AND(pckeuze!B195=1,calcul!E106>0)=TRUE,calcul!F106,"")) ->  | X216: =COUNTIF(D216,">=0") -> 0 | Y216: =IF(AND(ISBLANK(D216),ISBLANK(C216))=TRUE,"",IF(ISBLANK(D216)=TRUE,C216,D216)) -> 
A217: =taal!A629 -> 1015 A 2 | C217: =IF(pckeuze!B196=0,"",IF(AND(pckeuze!B196=1,calcul!E107>0)=TRUE,calcul!F107,"")) ->  | X217: =COUNTIF(D217,">=0") -> 0 | Y217: =IF(AND(ISBLANK(D217),ISBLANK(C217))=TRUE,"",IF(ISBLANK(D217)=TRUE,C217,D217)) -> 
A218: =taal!A630 -> 1162 A 2 | C218: =IF(pckeuze!B197=0,"",IF(AND(pckeuze!B197=1,calcul!E108>0)=TRUE,calcul!F108,"")) ->  | X218: =COUNTIF(D218,">=0") -> 0 | Y218: =IF(AND(ISBLANK(D218),ISBLANK(C218))=TRUE,"",IF(ISBLANK(D218)=TRUE,C218,D218)) -> 
A219: =taal!A631 -> 1192 A 2 | C219: =IF(pckeuze!B198=0,"",IF(AND(pckeuze!B198=1,calcul!E109>0)=TRUE,calcul!F109,"")) ->  | X219: =COUNTIF(D219,">=0") -> 0 | Y219: =IF(AND(ISBLANK(D219),ISBLANK(C219))=TRUE,"",IF(ISBLANK(D219)=TRUE,C219,D219)) -> 
A220: =taal!A632 -> 2500 A 2 | C220: =IF(pckeuze!B199=0,"",IF(AND(pckeuze!B199=1,calcul!E110>0)=TRUE,calcul!F110,"")) ->  | X220: =COUNTIF(D220,">=0") -> 0 | Y220: =IF(AND(ISBLANK(D220),ISBLANK(C220))=TRUE,"",IF(ISBLANK(D220)=TRUE,C220,D220)) -> 
A222: =taal!A699&" DX(2)" -> DISTANZHALTERSETS DX(2) | C222: SET | D222: =taal!A719 -> SET | Y222: SET
A223: =taal!A633 -> 942 AX | C223: =IF(pckeuze!B201=0,"",IF(AND(pckeuze!B201=1,calcul!E106>0)=TRUE,calcul!F106,"")) ->  | X223: =COUNTIF(D223,">=0") -> 0 | Y223: =IF(AND(ISBLANK(D223),ISBLANK(C223))=TRUE,"",IF(ISBLANK(D223)=TRUE,C223,D223)) -> 
A224: =taal!A634 -> 1015 AX | C224: =IF(pckeuze!B202=0,"",IF(AND(pckeuze!B202=1,calcul!E107>0)=TRUE,calcul!F107,"")) ->  | X224: =COUNTIF(D224,">=0") -> 0 | Y224: =IF(AND(ISBLANK(D224),ISBLANK(C224))=TRUE,"",IF(ISBLANK(D224)=TRUE,C224,D224)) -> 
... 41 more rows

Sheet articles
B1: ARTIKELLIJST CLIMAX | E1: =taal!A547 -> ARTIKELNUMMER | L1: =taal!A69 -> FARBWAHL | M1: =taal!A98 -> ARTIKELWAHL | S1: transfertzone | T1: opgelet Y's eenheidsprijs | U1: art standaardkleur | AA1: naar intrek | AB1: poedercode | AC1: out=1/ in=2 | AE1: Assembly code | AF1: ASS CDE | AG1: EXT ART | AH1: ART CODE | AI1: wijziging art
A2: =INDEX('input data'!E105:E110,type_input) -> CLIMALUX | C2: =taal!A549 -> KODE | D2: =taal!A550 -> LÄNGE | E2: =taal!A551 -> NATUR | F2: 9010 | G2: 9001 | H2: 7016ST | I2: =UPPER(RALcode_out) -> 7016ST | J2: ="STRUCT"&" "&UPPER(RALcode_out) -> STRUCT 7016ST | K2: € | L2: =INDEX('input data'!$G$96:$G$101,ral)&IF(OR(ral<>ralin,AND(ralin>4,ral>4,type=2,ral=ralin,UPPER(RALcode_out)<>UPPER('input data'!D11)))," / "&INDEX('input data'!$H$96:$H$101,ralin),"") -> RAL7016ST | N2: =taal!$A$169 -> ÄNDERN | O2: =taal!$A$168 -> AUFTRAG | U2: Voor RAL-kleuren à prijs van standaardkleur | V2: =ral -> 4 | AA2: blad X | AG2: =L2 -> RAL7016ST | AH2: =B2 -> 0
A3: =taal!A331 -> MAUERPROFIL TOP | B3: VPMT | C3: MT | D3: 3540 | E3: 21342 | F3: 21348 | G3: 21345 | H3: 31205 | I3: 21351 | J3: 21351 | K3: =VLOOKUP(L3,'intrek AX'!$A$1:$R$3596,18,FALSE) -> 19.68 | L3: =INDEX(E3:J3,ral) -> 31205 | M3: =IF(VLOOKUP(L3,'setdet 2'!$B$2:$E$2284,4,FALSE)=0,"",VLOOKUP(L3,'setdet 2'!$B$2:$E$2284,4,FALSE)) ->  | O3: =IF(ISBLANK(N3)=TRUE,M3,N3) ->  | S3: =IF(T3=0,0,L3) -> 0 | T3: =IF(ISNUMBER(O3)=FALSE,0,O3) -> 0 | U3: =IF(T3=0,0,IF(ralstandout=1,H3,S3)) -> 0 | V3: =IF(U3=0,0,VLOOKUP(U3,'intrek AX'!$A$1:$R$3593,18,FALSE)) -> 0 | W3: =T3*D3/1000*V3 -> 0 | AA3: =IF(SUM(F3:I3)=0,"",IF(ral=1,0,INDEX('input data'!$G$96:$G$101,ral))) -> RAL7016ST | AB3: =IF(AC3="","",IF(AC3=1,calcul!$B$1072,IF(AC3=2,calcul!$B$1080,""))) -> 029/71334 | AC3: 1 | AG3: =L3 -> 31205 | AH3: =B3 -> VPMT | AI3: =IF(ISBLANK(N3)=TRUE,0,1) -> 0
B4: VPMT | C4: MT | D4: 4290 | E4: 23376 | F4: 23379 | G4: 23377 | H4: 31206 | I4: 23378 | J4: 23378 | K4: =VLOOKUP(L4,'intrek AX'!$A$1:$R$3596,18,FALSE) -> 19.68 | L4: =INDEX(E4:J4,ral) -> 31206 | M4: =IF(VLOOKUP(L4,'setdet 2'!$B$2:$E$2284,4,FALSE)=0,"",VLOOKUP(L4,'setdet 2'!$B$2:$E$2284,4,FALSE)) ->  | S4: 0 | T4: 0 | U4: =IF(T4=0,0,IF(ralstandout=1,H4,S4)) -> 0 | V4: =IF(U4=0,0,VLOOKUP(U4,'intrek AX'!$A$1:$R$3593,18,FALSE)) -> 0 | W4: 0 | AA4: =IF(SUM(F4:I4)=0,"",IF(ral=1,0,INDEX('input data'!$G$96:$G$101,ral))) -> RAL7016ST | AB4: =IF(AC4="","",IF(AC4=1,calcul!$B$1072,IF(AC4=2,calcul!$B$1080,""))) -> 029/71334 | AC4: 1 | AG4: 31206 | AH4: VPMT | AI4: =IF(ISBLANK(N4)=TRUE,0,1) -> 0
B5: VPMT | C5: MT | D5: 5040 | E5: 21343 | F5: 21349 | G5: 21346 | H5: 31207 | I5: 21352 | J5: 21352 | K5: =VLOOKUP(L5,'intrek AX'!$A$1:$R$3596,18,FALSE) -> 19.68 | L5: =INDEX(E5:J5,ral) -> 31207 | M5: =IF(VLOOKUP(L5,'setdet 2'!$B$2:$E$2284,4,FALSE)=0,"",VLOOKUP(L5,'setdet 2'!$B$2:$E$2284,4,FALSE)) ->  | S5: 0 | T5: 0 | U5: =IF(T5=0,0,IF(ralstandout=1,H5,S5)) -> 0 | V5: =IF(U5=0,0,VLOOKUP(U5,'intrek AX'!$A$1:$R$3593,18,FALSE)) -> 0 | W5: 0 | AA5: =IF(SUM(F5:I5)=0,"",IF(ral=1,0,INDEX('input data'!$G$96:$G$101,ral))) -> RAL7016ST | AB5: =IF(AC5="","",IF(AC5=1,calcul!$B$1072,IF(AC5=2,calcul!$B$1080,""))) -> 029/71334 | AC5: 1 | AG5: 31207 | AH5: VPMT | AI5: 0
B6: VPMT | C6: MT | D6: 7040 | E6: 21344 | F6: 21350 | G6: 21347 | H6: 31208 | I6: 21353 | J6: 21353 | K6: =VLOOKUP(L6,'intrek AX'!$A$1:$R$3596,18,FALSE) -> 19.68 | L6: =INDEX(E6:J6,ral) -> 31208 | M6: =IF(VLOOKUP(L6,'setdet 2'!$B$2:$E$2284,4,FALSE)=0,"",VLOOKUP(L6,'setdet 2'!$B$2:$E$2284,4,FALSE)) ->  | S6: 0 | T6: 0 | U6: =IF(T6=0,0,IF(ralstandout=1,H6,S6)) -> 0 | V6: =IF(U6=0,0,VLOOKUP(U6,'intrek AX'!$A$1:$R$3593,18,FALSE)) -> 0 | W6: 0 | AA6: =IF(SUM(F6:I6)=0,"",IF(ral=1,0,INDEX('input data'!$G$96:$G$101,ral))) -> RAL7016ST | AB6: =IF(AC6="","",IF(AC6=1,calcul!$B$1072,IF(AC6=2,calcul!$B$1080,""))) -> 029/71334 | AC6: 1 | AG6: 31208 | AH6: VPMT | AI6: 0
A7: =taal!A332 -> MAUERPROFIL BOTTOM | B7: VPMB | C7: MB | D7: 3540 | E7: 21354 | F7: 21360 | G7: 21357 | H7: 31109 | I7: 21363 | J7: 21363 | K7: =VLOOKUP(L7,'intrek AX'!$A$1:$R$3596,18,FALSE) -> 27.62 | L7: =INDEX(E7:J7,ralin) -> 31109 | M7: =IF(VLOOKUP(L7,'setdet 2'!$B$2:$E$2284,4,FALSE)=0,"",VLOOKUP(L7,'setdet 2'!$B$2:$E$2284,4,FALSE)) ->  | S7: 0 | T7: 0 | U7: =IF(T7=0,0,IF(ralstandin=1,H7,S7)) -> 0 | V7: =IF(U7=0,0,VLOOKUP(U7,'intrek AX'!$A$1:$R$3593,18,FALSE)) -> 0 | W7: 0 | AA7: =IF(SUM(F7:I7)=0,"",IF(ralin=1,0,INDEX('input data'!$H$96:$H$101,ralin))) -> RAL7016ST | AB7: =IF(AC7="","",IF(AC7=1,calcul!$B$1072,IF(AC7=2,calcul!$B$1080,""))) -> 029/71334 | AC7: 2 | AG7: 31109 | AH7: VPMB | AI7: 0
B8: VPMB | C8: MB | D8: 4290 | E8: 23380 | F8: 23383 | G8: 23381 | H8: 31110 | I8: 23382 | J8: 23382 | K8: =VLOOKUP(L8,'intrek AX'!$A$1:$R$3596,18,FALSE) -> 27.62 | L8: =INDEX(E8:J8,ralin) -> 31110 | M8: =IF(VLOOKUP(L8,'setdet 2'!$B$2:$E$2284,4,FALSE)=0,"",VLOOKUP(L8,'setdet 2'!$B$2:$E$2284,4,FALSE)) ->  | S8: 0 | T8: 0 | U8: =IF(T8=0,0,IF(ralstandin=1,H8,S8)) -> 0 | V8: =IF(U8=0,0,VLOOKUP(U8,'intrek AX'!$A$1:$R$3593,18,FALSE)) -> 0 | W8: 0 | AA8: =IF(SUM(F8:I8)=0,"",IF(ralin=1,0,INDEX('input data'!$H$96:$H$101,ralin))) -> RAL7016ST | AB8: =IF(AC8="","",IF(AC8=1,calcul!$B$1072,IF(AC8=2,calcul!$B$1080,""))) -> 029/71334 | AC8: 2 | AG8: 31110 | AH8: VPMB | AI8: 0
B9: VPMB | C9: MB | D9: 5040 | E9: 21355 | F9: 21361 | G9: 21358 | H9: 31111 | I9: 21364 | J9: 21364 | K9: =VLOOKUP(L9,'intrek AX'!$A$1:$R$3596,18,FALSE) -> 27.62 | L9: =INDEX(E9:J9,ralin) -> 31111 | M9: =IF(VLOOKUP(L9,'setdet 2'!$B$2:$E$2284,4,FALSE)=0,"",VLOOKUP(L9,'setdet 2'!$B$2:$E$2284,4,FALSE)) ->  | S9: 0 | T9: 0 | U9: =IF(T9=0,0,IF(ralstandin=1,H9,S9)) -> 0 | V9: =IF(U9=0,0,VLOOKUP(U9,'intrek AX'!$A$1:$R$3593,18,FALSE)) -> 0 | W9: 0 | AA9: =IF(SUM(F9:I9)=0,"",IF(ralin=1,0,INDEX('input data'!$H$96:$H$101,ralin))) -> RAL7016ST | AB9: =IF(AC9="","",IF(AC9=1,calcul!$B$1072,IF(AC9=2,calcul!$B$1080,""))) -> 029/71334 | AC9: 2 | AG9: 31111 | AH9: VPMB | AI9: 0
B10: VPMB | C10: MB | D10: 7040 | E10: 21356 | F10: 21362 | G10: 21359 | H10: 31112 | I10: 21365 | J10: 21365 | K10: =VLOOKUP(L10,'intrek AX'!$A$1:$R$3596,18,FALSE) -> 27.62 | L10: =INDEX(E10:J10,ralin) -> 31112 | M10: =IF(VLOOKUP(L10,'setdet 2'!$B$2:$E$2284,4,FALSE)=0,"",VLOOKUP(L10,'setdet 2'!$B$2:$E$2284,4,FALSE)) ->  | S10: 0 | T10: 0 | U10: =IF(T10=0,0,IF(ralstandin=1,H10,S10)) -> 0 | V10: =IF(U10=0,0,VLOOKUP(U10,'intrek AX'!$A$1:$R$3593,18,FALSE)) -> 0 | W10: 0 | AA10: =IF(SUM(F10:I10)=0,"",IF(ralin=1,0,INDEX('input data'!$H$96:$H$101,ralin))) -> RAL7016ST | AB10: =IF(AC10="","",IF(AC10=1,calcul!$B$1072,IF(AC10=2,calcul!$B$1080,""))) -> 029/71334 | AC10: 2 | AG10: 31112 | AH10: VPMB | AI10: 0
A11: =taal!A333 -> MAUERPROFIL CLIMALUX | B11: VPMX | C11: MX | D11: 3040 | E11: 110501 | F11: 110502 | G11: 34830 | H11: 110503 | I11: 110504 | J11: 110504 | K11: =VLOOKUP(L11,'intrek AX'!$A$1:$R$3596,18,FALSE) -> 43.98 | L11: =INDEX(E11:J11,ral) -> 110503 | M11: =IF(VLOOKUP(L11,'setdet 2'!$B$2:$E$2284,4,FALSE)=0,"",VLOOKUP(L11,'setdet 2'!$B$2:$E$2284,4,FALSE)) ->  | O11: =IF(ISBLANK(N11)=TRUE,M11,N11) ->  | S11: =IF(T11=0,0,L11) -> 0 | T11: =IF(ISNUMBER(O11)=FALSE,0,O11) -> 0 | U11: =IF(T11=0,0,IF(ralstandout=1,H11,S11)) -> 0 | V11: =IF(U11=0,0,VLOOKUP(U11,'intrek AX'!$A$1:$R$3593,18,FALSE)) -> 0 | W11: 0 | AA11: =IF(SUM(F11:I11)=0,"",IF(ral=1,0,INDEX('input data'!$G$96:$G$101,ral))) -> RAL7016ST | AB11: =IF(AC11="","",IF(AC11=1,calcul!$B$1072,IF(AC11=2,calcul!$B$1080,""))) -> 029/71334 | AC11: 1 | AG11: 110503 | AH11: VPMX | AI11: 0
B12: VPMX | C12: MX | D12: 3540 | E12: 34807 | F12: 34822 | G12: 34830 | H12: 34826 | I12: 34830 | J12: 34830 | K12: =VLOOKUP(L12,'intrek AX'!$A$1:$R$3596,18,FALSE) -> 43.98 | L12: =INDEX(E12:J12,ral) -> 34826 | M12: =IF(VLOOKUP(L12,'setdet 2'!$B$2:$E$2284,4,FALSE)=0,"",VLOOKUP(L12,'setdet 2'!$B$2:$E$2284,4,FALSE)) ->  | O12: =IF(ISBLANK(N12)=TRUE,M12,N12) ->  | S12: =IF(T12=0,0,L12) -> 0 | T12: =IF(ISNUMBER(O12)=FALSE,0,O12) -> 0 | U12: =IF(T12=0,0,IF(ralstandout=1,H12,S12)) -> 0 | V12: =IF(U12=0,0,VLOOKUP(U12,'intrek AX'!$A$1:$R$3593,18,FALSE)) -> 0 | W12: =T12*D12/1000*V12 -> 0 | AA12: =IF(SUM(F12:I12)=0,"",IF(ral=1,0,INDEX('input data'!$G$96:$G$101,ral))) -> RAL7016ST | AB12: =IF(AC12="","",IF(AC12=1,calcul!$B$1072,IF(AC12=2,calcul!$B$1080,""))) -> 029/71334 | AC12: 1 | AG12: =L12 -> 34826 | AH12: =B12 -> VPMX | AI12: 0
B13: VPMX | C13: MX | D13: 4040 | E13: 36522 | F13: 36525 | G13: 36593 | H13: 36528 | I13: 36593 | J13: 36593 | K13: =VLOOKUP(L13,'intrek AX'!$A$1:$R$3596,18,FALSE) -> 43.98 | L13: =INDEX(E13:J13,ral) -> 36528 | M13: =IF(VLOOKUP(L13,'setdet 2'!$B$2:$E$2284,4,FALSE)=0,"",VLOOKUP(L13,'setdet 2'!$B$2:$E$2284,4,FALSE)) ->  | S13: 0 | T13: 0 | U13: 0 | V13: =IF(U13=0,0,VLOOKUP(U13,'intrek AX'!$A$1:$R$3593,18,FALSE)) -> 0 | W13: 0 | AA13: =IF(SUM(F13:I13)=0,"",IF(ral=1,0,INDEX('input data'!$G$96:$G$101,ral))) -> RAL7016ST | AB13: =IF(AC13="","",IF(AC13=1,calcul!$B$1072,IF(AC13=2,calcul!$B$1080,""))) -> 029/71334 | AC13: 1 | AG13: 36528 | AH13: VPMX | AI13: 0
B14: VPMX | C14: MX | D14: 4540 | E14: 110505 | F14: 110506 | G14: 36593 | H14: 110507 | I14: 110508 | J14: 110508 | K14: =VLOOKUP(L14,'intrek AX'!$A$1:$R$3596,18,FALSE) -> 43.98 | L14: =INDEX(E14:J14,ral) -> 110507 | M14: =IF(VLOOKUP(L14,'setdet 2'!$B$2:$E$2284,4,FALSE)=0,"",VLOOKUP(L14,'setdet 2'!$B$2:$E$2284,4,FALSE)) ->  | O14: =IF(ISBLANK(N14)=TRUE,M14,N14) ->  | S14: =IF(T14=0,0,L14) -> 0 | T14: =IF(ISNUMBER(O14)=FALSE,0,O14) -> 0 | U14: =IF(T14=0,0,IF(ralstandout=1,H14,S14)) -> 0 | V14: =IF(U14=0,0,VLOOKUP(U14,'intrek AX'!$A$1:$R$3593,18,FALSE)) -> 0 | W14: =T14*D14/1000*V14 -> 0 | AA14: =IF(SUM(F14:I14)=0,"",IF(ral=1,0,INDEX('input data'!$G$96:$G$101,ral))) -> RAL7016ST | AB14: =IF(AC14="","",IF(AC14=1,calcul!$B$1072,IF(AC14=2,calcul!$B$1080,""))) -> 029/71334 | AC14: 1 | AG14: =L14 -> 110507 | AH14: =B14 -> VPMX | AI14: 0
B15: VPMX | C15: MX | D15: 5040 | E15: 34819 | F15: 34823 | G15: 34831 | H15: 34827 | I15: 34831 | J15: 34831 | K15: =VLOOKUP(L15,'intrek AX'!$A$1:$R$3596,18,FALSE) -> 43.98 | L15: =INDEX(E15:J15,ral) -> 34827 | M15: =IF(VLOOKUP(L15,'setdet 2'!$B$2:$E$2284,4,FALSE)=0,"",VLOOKUP(L15,'setdet 2'!$B$2:$E$2284,4,FALSE)) ->  | S15: 0 | T15: 0 | U15: 0 | V15: =IF(U15=0,0,VLOOKUP(U15,'intrek AX'!$A$1:$R$3593,18,FALSE)) -> 0 | W15: 0 | AA15: =IF(SUM(F15:I15)=0,"",IF(ral=1,0,INDEX('input data'!$G$96:$G$101,ral))) -> RAL7016ST | AB15: =IF(AC15="","",IF(AC15=1,calcul!$B$1072,IF(AC15=2,calcul!$B$1080,""))) -> 029/71334 | AC15: 1 | AG15: 34827 | AH15: VPMX | AI15: 0
B16: VPMX | C16: MX | D16: 6040 | E16: 34820 | F16: 34824 | G16: 34832 | H16: 34828 | I16: 34832 | J16: 34832 | K16: =VLOOKUP(L16,'intrek AX'!$A$1:$R$3596,18,FALSE) -> 43.98 | L16: =INDEX(E16:J16,ral) -> 34828 | M16: =IF(VLOOKUP(L16,'setdet 2'!$B$2:$E$2284,4,FALSE)=0,"",VLOOKUP(L16,'setdet 2'!$B$2:$E$2284,4,FALSE)) ->  | S16: 0 | T16: 0 | U16: 0 | V16: =IF(U16=0,0,VLOOKUP(U16,'intrek AX'!$A$1:$R$3593,18,FALSE)) -> 0 | W16: 0 | AA16: =IF(SUM(F16:I16)=0,"",IF(ral=1,0,INDEX('input data'!$G$96:$G$101,ral))) -> RAL7016ST | AB16: =IF(AC16="","",IF(AC16=1,calcul!$B$1072,IF(AC16=2,calcul!$B$1080,""))) -> 029/71334 | AC16: 1 | AG16: 34828 | AH16: VPMX | AI16: 0
B17: VPMX | C17: MX | D17: 7040 | E17: 34821 | F17: 34825 | G17: 34833 | H17: 34829 | I17: 34833 | J17: 34833 | K17: =VLOOKUP(L17,'intrek AX'!$A$1:$R$3596,18,FALSE) -> 43.98 | L17: =INDEX(E17:J17,ral) -> 34829 | M17: =IF(VLOOKUP(L17,'setdet 2'!$B$2:$E$2284,4,FALSE)=0,"",VLOOKUP(L17,'setdet 2'!$B$2:$E$2284,4,FALSE)) ->  | S17: 0 | T17: 0 | U17: 0 | V17: =IF(U17=0,0,VLOOKUP(U17,'intrek AX'!$A$1:$R$3593,18,FALSE)) -> 0 | W17: 0 | AA17: =IF(SUM(F17:I17)=0,"",IF(ral=1,0,INDEX('input data'!$G$96:$G$101,ral))) -> RAL7016ST | AB17: =IF(AC17="","",IF(AC17=1,calcul!$B$1072,IF(AC17=2,calcul!$B$1080,""))) -> 029/71334 | AC17: 1 | AG17: 34829 | AH17: VPMX | AI17: 0
A18: =taal!A333&" 32" -> MAUERPROFIL CLIMALUX 32 | B18: VPMX32 | C18: MX32 | D18: 3040 | E18: 110509 | F18: 110510 | G18: 60373 | H18: 110511 | I18: 110512 | J18: 110512 | K18: =VLOOKUP(L18,'intrek AX'!$A$1:$R$3596,18,FALSE) -> 47.48 | L18: =INDEX(E18:J18,ral) -> 110511 | M18: =IF(VLOOKUP(L18,'setdet 2'!$B$2:$E$2284,4,FALSE)=0,"",VLOOKUP(L18,'setdet 2'!$B$2:$E$2284,4,FALSE)) ->  | S18: 0 | T18: 0 | U18: 0 | V18: =IF(U18=0,0,VLOOKUP(U18,'intrek AX'!$A$1:$R$3593,18,FALSE)) -> 0 | W18: =T18*D18/1000*V18 -> 0 | AA18: =IF(SUM(F18:I18)=0,"",IF(ral=1,0,INDEX('input data'!$G$96:$G$101,ral))) -> RAL7016ST | AB18: =IF(AC18="","",IF(AC18=1,calcul!$B$1072,IF(AC18=2,calcul!$B$1080,""))) -> 029/71334 | AC18: 1 | AG18: 110511 | AH18: VPMX32 | AI18: 0
B19: VPMX32 | C19: MX32 | D19: 3540 | E19: 60372 | F19: 60375 | G19: 60373 | H19: 60374 | I19: 60373 | J19: 60373 | K19: =VLOOKUP(L19,'intrek AX'!$A$1:$R$3596,18,FALSE) -> 47.48 | L19: =INDEX(E19:J19,ral) -> 60374 | M19: =IF(VLOOKUP(L19,'setdet 2'!$B$2:$E$2284,4,FALSE)=0,"",VLOOKUP(L19,'setdet 2'!$B$2:$E$2284,4,FALSE)) ->  | O19: =IF(ISBLANK(N19)=TRUE,M19,N19) ->  | S19: =IF(T19=0,0,L19) -> 0 | T19: =IF(ISNUMBER(O19)=FALSE,0,O19) -> 0 | U19: =IF(T19=0,0,IF(ralstandout=1,H19,S19)) -> 0 | V19: =IF(U19=0,0,VLOOKUP(U19,'intrek AX'!$A$1:$R$3593,18,FALSE)) -> 0 | W19: 0 | AA19: =IF(SUM(F19:I19)=0,"",IF(ral=1,0,INDEX('input data'!$G$96:$G$101,ral))) -> RAL7016ST | AB19: =IF(AC19="","",IF(AC19=1,calcul!$B$1072,IF(AC19=2,calcul!$B$1080,""))) -> 029/71334 | AC19: 1 | AG19: =L19 -> 60374 | AH19: =B19 -> VPMX32 | AI19: 0
B20: VPMX32 | C20: MX32 | D20: 4040 | E20: 60376 | F20: 60379 | G20: 60377 | H20: 60378 | I20: 60377 | J20: 60377 | K20: =VLOOKUP(L20,'intrek AX'!$A$1:$R$3596,18,FALSE) -> 47.48 | L20: =INDEX(E20:J20,ral) -> 60378 | M20: =IF(VLOOKUP(L20,'setdet 2'!$B$2:$E$2284,4,FALSE)=0,"",VLOOKUP(L20,'setdet 2'!$B$2:$E$2284,4,FALSE)) ->  | S20: 0 | T20: 0 | U20: 0 | V20: =IF(U20=0,0,VLOOKUP(U20,'intrek AX'!$A$1:$R$3593,18,FALSE)) -> 0 | W20: 0 | AA20: =IF(SUM(F20:I20)=0,"",IF(ral=1,0,INDEX('input data'!$G$96:$G$101,ral))) -> RAL7016ST | AB20: =IF(AC20="","",IF(AC20=1,calcul!$B$1072,IF(AC20=2,calcul!$B$1080,""))) -> 029/71334 | AC20: 1 | AG20: 60378 | AH20: VPMX32 | AI20: 0
B21: VPMX32 | C21: MX32 | D21: 4540 | E21: 110513 | F21: 110514 | G21: 60377 | H21: 110515 | I21: 110516 | J21: 110516 | K21: =VLOOKUP(L21,'intrek AX'!$A$1:$R$3596,18,FALSE) -> 47.48 | L21: =INDEX(E21:J21,ral) -> 110515 | M21: =IF(VLOOKUP(L21,'setdet 2'!$B$2:$E$2284,4,FALSE)=0,"",VLOOKUP(L21,'setdet 2'!$B$2:$E$2284,4,FALSE)) ->  | O21: =IF(ISBLANK(N21)=TRUE,M21,N21) ->  | S21: =IF(T21=0,0,L21) -> 0 | T21: =IF(ISNUMBER(O21)=FALSE,0,O21) -> 0 | U21: =IF(T21=0,0,IF(ralstandout=1,H21,S21)) -> 0 | V21: =IF(U21=0,0,VLOOKUP(U21,'intrek AX'!$A$1:$R$3593,18,FALSE)) -> 0 | W21: 0 | AA21: =IF(SUM(F21:I21)=0,"",IF(ral=1,0,INDEX('input data'!$G$96:$G$101,ral))) -> RAL7016ST | AB21: =IF(AC21="","",IF(AC21=1,calcul!$B$1072,IF(AC21=2,calcul!$B$1080,""))) -> 029/71334 | AC21: 1 | AG21: =L21 -> 110515 | AH21: =B21 -> VPMX32 | AI21: 0
B22: VPMX32 | C22: MX32 | D22: 5040 | E22: 60380 | F22: 60383 | G22: 60381 | H22: 60382 | I22: 60381 | J22: 60381 | K22: =VLOOKUP(L22,'intrek AX'!$A$1:$R$3596,18,FALSE) -> 47.48 | L22: =INDEX(E22:J22,ral) -> 60382 | M22: =IF(VLOOKUP(L22,'setdet 2'!$B$2:$E$2284,4,FALSE)=0,"",VLOOKUP(L22,'setdet 2'!$B$2:$E$2284,4,FALSE)) ->  | S22: 0 | T22: 0 | U22: 0 | V22: =IF(U22=0,0,VLOOKUP(U22,'intrek AX'!$A$1:$R$3593,18,FALSE)) -> 0 | W22: 0 | AA22: =IF(SUM(F22:I22)=0,"",IF(ral=1,0,INDEX('input data'!$G$96:$G$101,ral))) -> RAL7016ST | AB22: =IF(AC22="","",IF(AC22=1,calcul!$B$1072,IF(AC22=2,calcul!$B$1080,""))) -> 029/71334 | AC22: 1 | AG22: 60382 | AH22: VPMX32 | AI22: 0
B23: VPMX32 | C23: MX32 | D23: 6040 | E23: 60384 | F23: 60387 | G23: 60385 | H23: 60386 | I23: 60385 | J23: 60385 | K23: =VLOOKUP(L23,'intrek AX'!$A$1:$R$3596,18,FALSE) -> 47.48 | L23: =INDEX(E23:J23,ral) -> 60386 | M23: =IF(VLOOKUP(L23,'setdet 2'!$B$2:$E$2284,4,FALSE)=0,"",VLOOKUP(L23,'setdet 2'!$B$2:$E$2284,4,FALSE)) ->  | S23: 0 | T23: 0 | U23: 0 | V23: =IF(U23=0,0,VLOOKUP(U23,'intrek AX'!$A$1:$R$3593,18,FALSE)) -> 0 | W23: 0 | AA23: =IF(SUM(F23:I23)=0,"",IF(ral=1,0,INDEX('input data'!$G$96:$G$101,ral))) -> RAL7016ST | AB23: =IF(AC23="","",IF(AC23=1,calcul!$B$1072,IF(AC23=2,calcul!$B$1080,""))) -> 029/71334 | AC23: 1 | AG23: 60386 | AH23: VPMX32 | AI23: 0
B24: VPMX32 | C24: MX32 | D24: 7040 | E24: 60388 | F24: 60391 | G24: 60389 | H24: 60390 | I24: 60389 | J24: 60389 | K24: =VLOOKUP(L24,'intrek AX'!$A$1:$R$3596,18,FALSE) -> 47.48 | L24: =INDEX(E24:J24,ral) -> 60390 | M24: =IF(VLOOKUP(L24,'setdet 2'!$B$2:$E$2284,4,FALSE)=0,"",VLOOKUP(L24,'setdet 2'!$B$2:$E$2284,4,FALSE)) ->  | S24: 0 | T24: 0 | U24: 0 | V24: =IF(U24=0,0,VLOOKUP(U24,'intrek AX'!$A$1:$R$3593,18,FALSE)) -> 0 | W24: 0 | AA24: =IF(SUM(F24:I24)=0,"",IF(ral=1,0,INDEX('input data'!$G$96:$G$101,ral))) -> RAL7016ST | AB24: =IF(AC24="","",IF(AC24=1,calcul!$B$1072,IF(AC24=2,calcul!$B$1080,""))) -> 029/71334 | AC24: 1 | AG24: 60390 | AH24: VPMX32 | AI24: 0
A25: =taal!A335 -> SCHARNIER 1 | B25: VPS1 | C25: S1 | D25: 3540 | E25: 21366 | F25: 21372 | G25: 21369 | H25: 31117 | I25: 21375 | J25: 21375 | K25: =VLOOKUP(L25,'intrek AX'!$A$1:$R$3596,18,FALSE) -> 19.35 | L25: =INDEX(E25:J25,ralin) -> 31117 | M25: =IF(VLOOKUP(L25,'setdet 2'!$B$2:$E$2284,4,FALSE)=0,"",VLOOKUP(L25,'setdet 2'!$B$2:$E$2284,4,FALSE)) ->  | O25: =IF(ISBLANK(N25)=TRUE,M25,N25) ->  | S25: =IF(T25=0,0,L25) -> 0 | T25: =IF(ISNUMBER(O25)=FALSE,0,O25) -> 0 | U25: =IF(T25=0,0,IF(ralstandin=1,H25,S25)) -> 0 | V25: =IF(U25=0,0,VLOOKUP(U25,'intrek AX'!$A$1:$R$3593,18,FALSE)) -> 0 | W25: 0 | AA25: =IF(SUM(F25:I25)=0,"",IF(ralin=1,0,INDEX('input data'!$H$96:$H$101,ralin))) -> RAL7016ST | AB25: =IF(AC25="","",IF(AC25=1,calcul!$B$1072,IF(AC25=2,calcul!$B$1080,""))) -> 029/71334 | AC25: 2 | AG25: 31117 | AH25: VPS1 | AI25: 0
B26: VPS1 | C26: S1 | D26: 4290 | E26: 23384 | F26: 23387 | G26: 23385 | H26: 31118 | I26: 23386 | J26: 23386 | K26: =VLOOKUP(L26,'intrek AX'!$A$1:$R$3596,18,FALSE) -> 19.35 | L26: =INDEX(E26:J26,ralin) -> 31118 | M26: =IF(VLOOKUP(L26,'setdet 2'!$B$2:$E$2284,4,FALSE)=0,"",VLOOKUP(L26,'setdet 2'!$B$2:$E$2284,4,FALSE)) ->  | S26: 0 | T26: 0 | U26: 0 | V26: =IF(U26=0,0,VLOOKUP(U26,'intrek AX'!$A$1:$R$3593,18,FALSE)) -> 0 | W26: 0 | AA26: =IF(SUM(F26:I26)=0,"",IF(ralin=1,0,INDEX('input data'!$H$96:$H$101,ralin))) -> RAL7016ST | AB26: =IF(AC26="","",IF(AC26=1,calcul!$B$1072,IF(AC26=2,calcul!$B$1080,""))) -> 029/71334 | AC26: 2 | AG26: 31118 | AH26: VPS1 | AI26: 0
B27: VPS1 | C27: S1 | D27: 5040 | E27: 21367 | F27: 21373 | G27: 21370 | H27: 31119 | I27: 21376 | J27: 21376 | K27: =VLOOKUP(L27,'intrek AX'!$A$1:$R$3596,18,FALSE) -> 19.35 | L27: =INDEX(E27:J27,ralin) -> 31119 | M27: =IF(VLOOKUP(L27,'setdet 2'!$B$2:$E$2284,4,FALSE)=0,"",VLOOKUP(L27,'setdet 2'!$B$2:$E$2284,4,FALSE)) ->  | S27: 0 | T27: 0 | U27: 0 | V27: =IF(U27=0,0,VLOOKUP(U27,'intrek AX'!$A$1:$R$3593,18,FALSE)) -> 0 | W27: 0 | AA27: =IF(SUM(F27:I27)=0,"",IF(ralin=1,0,INDEX('input data'!$H$96:$H$101,ralin))) -> RAL7016ST | AB27: =IF(AC27="","",IF(AC27=1,calcul!$B$1072,IF(AC27=2,calcul!$B$1080,""))) -> 029/71334 | AC27: 2 | AG27: 31119 | AH27: VPS1 | AI27: 0
B28: VPS1 | C28: S1 | D28: 7040 | E28: 21368 | F28: 21374 | G28: 21371 | H28: 31120 | I28: 21377 | J28: 21377 | K28: =VLOOKUP(L28,'intrek AX'!$A$1:$R$3596,18,FALSE) -> 19.35 | L28: =INDEX(E28:J28,ralin) -> 31120 | M28: =IF(VLOOKUP(L28,'setdet 2'!$B$2:$E$2284,4,FALSE)=0,"",VLOOKUP(L28,'setdet 2'!$B$2:$E$2284,4,FALSE)) ->  | S28: 0 | T28: 0 | U28: 0 | V28: =IF(U28=0,0,VLOOKUP(U28,'intrek AX'!$A$1:$R$3593,18,FALSE)) -> 0 | W28: 0 | AA28: =IF(SUM(F28:I28)=0,"",IF(ralin=1,0,INDEX('input data'!$H$96:$H$101,ralin))) -> RAL7016ST | AB28: =IF(AC28="","",IF(AC28=1,calcul!$B$1072,IF(AC28=2,calcul!$B$1080,""))) -> 029/71334 | AC28: 2 | AG28: 31120 | AH28: VPS1 | AI28: 0
A29: =taal!A336 -> SCHARNIER 2 | B29: VPS2 | C29: S2 | D29: 3540 | E29: 23479 | F29: 23488 | G29: 23482 | H29: 31121 | I29: 23485 | J29: 23485 | K29: =VLOOKUP(L29,'intrek AX'!$A$1:$R$3596,18,FALSE) -> 26.43 | L29: =INDEX(E29:J29,ralin) -> 31121 | M29: =IF(VLOOKUP(L29,'setdet 2'!$B$2:$E$2284,4,FALSE)=0,"",VLOOKUP(L29,'setdet 2'!$B$2:$E$2284,4,FALSE)) ->  | S29: 0 | T29: 0 | U29: 0 | V29: =IF(U29=0,0,VLOOKUP(U29,'intrek AX'!$A$1:$R$3593,18,FALSE)) -> 0 | W29: 0 | AA29: =IF(SUM(F29:I29)=0,"",IF(ralin=1,0,INDEX('input data'!$H$96:$H$101,ralin))) -> RAL7016ST | AB29: =IF(AC29="","",IF(AC29=1,calcul!$B$1072,IF(AC29=2,calcul!$B$1080,""))) -> 029/71334 | AC29: 2 | AG29: 31121 | AH29: VPS2 | AI29: 0
B30: VPS2 | C30: S2 | D30: 5040 | E30: 23480 | F30: 23489 | G30: 23483 | H30: 31122 | I30: 23486 | J30: 23486 | K30: =VLOOKUP(L30,'intrek AX'!$A$1:$R$3596,18,FALSE) -> 26.43 | L30: =INDEX(E30:J30,ralin) -> 31122 | M30: =IF(VLOOKUP(L30,'setdet 2'!$B$2:$E$2284,4,FALSE)=0,"",VLOOKUP(L30,'setdet 2'!$B$2:$E$2284,4,FALSE)) ->  | S30: 0 | T30: 0 | U30: 0 | V30: =IF(U30=0,0,VLOOKUP(U30,'intrek AX'!$A$1:$R$3593,18,FALSE)) -> 0 | W30: 0 | AA30: =IF(SUM(F30:I30)=0,"",IF(ralin=1,0,INDEX('input data'!$H$96:$H$101,ralin))) -> RAL7016ST | AB30: =IF(AC30="","",IF(AC30=1,calcul!$B$1072,IF(AC30=2,calcul!$B$1080,""))) -> 029/71334 | AC30: 2 | AG30: 31122 | AH30: VPS2 | AI30: 0
B31: VPS2 | C31: S2 | D31: 7040 | E31: 23481 | F31: 23490 | G31: 23484 | H31: 31123 | I31: 23487 | J31: 23487 | K31: =VLOOKUP(L31,'intrek AX'!$A$1:$R$3596,18,FALSE) -> 26.43 | L31: =INDEX(E31:J31,ralin) -> 31123 | M31: =IF(VLOOKUP(L31,'setdet 2'!$B$2:$E$2284,4,FALSE)=0,"",VLOOKUP(L31,'setdet 2'!$B$2:$E$2284,4,FALSE)) ->  | S31: 0 | T31: 0 | U31: 0 | V31: =IF(U31=0,0,VLOOKUP(U31,'intrek AX'!$A$1:$R$3593,18,FALSE)) -> 0 | W31: 0 | AA31: =IF(SUM(F31:I31)=0,"",IF(ralin=1,0,INDEX('input data'!$H$96:$H$101,ralin))) -> RAL7016ST | AB31: =IF(AC31="","",IF(AC31=1,calcul!$B$1072,IF(AC31=2,calcul!$B$1080,""))) -> 029/71334 | AC31: 2 | AG31: 31123 | AH31: VPS2 | AI31: 0
A32: =taal!A337&" CLIMAX" -> RINNE CLIMAX | B32: VPG | C32: G | D32: 3540 | E32: 21385 | F32: 21391 | G32: 21388 | H32: 31214 | I32: 21394 | J32: 21394 | K32: =VLOOKUP(L32,'intrek AX'!$A$1:$R$3596,18,FALSE) -> 57.25 | L32: =INDEX(E32:J32,ral) -> 31214 | M32: =IF(VLOOKUP(L32,'setdet 2'!$B$2:$E$2284,4,FALSE)=0,"",VLOOKUP(L32,'setdet 2'!$B$2:$E$2284,4,FALSE)) ->  | S32: 0 | T32: 0 | U32: =IF(T32=0,0,IF(ralstandout=1,H32,S32)) -> 0 | V32: =IF(U32=0,0,VLOOKUP(U32,'intrek AX'!$A$1:$R$3593,18,FALSE)) -> 0 | W32: 0 | AA32: =IF(SUM(F32:I32)=0,"",IF(ral=1,0,INDEX('input data'!$G$96:$G$101,ral))) -> RAL7016ST | AB32: =IF(AC32="","",IF(AC32=1,calcul!$B$1072,IF(AC32=2,calcul!$B$1080,""))) -> 029/71334 | AC32: 1 | AG32: 31214 | AH32: VPG | AI32: 0
B33: VPG | C33: G | D33: 4290 | E33: 23388 | F33: 23391 | G33: 23389 | H33: 31215 | I33: 23390 | J33: 23390 | K33: =VLOOKUP(L33,'intrek AX'!$A$1:$R$3596,18,FALSE) -> 57.25 | L33: =INDEX(E33:J33,ral) -> 31215 | M33: =IF(VLOOKUP(L33,'setdet 2'!$B$2:$E$2284,4,FALSE)=0,"",VLOOKUP(L33,'setdet 2'!$B$2:$E$2284,4,FALSE)) ->  | S33: 0 | T33: 0 | U33: =IF(T33=0,0,IF(ralstandout=1,H33,S33)) -> 0 | V33: =IF(U33=0,0,VLOOKUP(U33,'intrek AX'!$A$1:$R$3593,18,FALSE)) -> 0 | W33: 0 | AA33: =IF(SUM(F33:I33)=0,"",IF(ral=1,0,INDEX('input data'!$G$96:$G$101,ral))) -> RAL7016ST | AB33: =IF(AC33="","",IF(AC33=1,calcul!$B$1072,IF(AC33=2,calcul!$B$1080,""))) -> 029/71334 | AC33: 1 | AG33: 31215 | AH33: VPG | AI33: 0
B34: VPG | C34: G | D34: 5040 | E34: 21386 | F34: 21392 | G34: 21389 | H34: 31216 | I34: 21395 | J34: 21395 | K34: =VLOOKUP(L34,'intrek AX'!$A$1:$R$3596,18,FALSE) -> 57.25 | L34: =INDEX(E34:J34,ral) -> 31216 | M34: =IF(VLOOKUP(L34,'setdet 2'!$B$2:$E$2284,4,FALSE)=0,"",VLOOKUP(L34,'setdet 2'!$B$2:$E$2284,4,FALSE)) ->  | S34: 0 | T34: 0 | U34: =IF(T34=0,0,IF(ralstandout=1,H34,S34)) -> 0 | V34: =IF(U34=0,0,VLOOKUP(U34,'intrek AX'!$A$1:$R$3593,18,FALSE)) -> 0 | W34: 0 | AA34: =IF(SUM(F34:I34)=0,"",IF(ral=1,0,INDEX('input data'!$G$96:$G$101,ral))) -> RAL7016ST | AB34: =IF(AC34="","",IF(AC34=1,calcul!$B$1072,IF(AC34=2,calcul!$B$1080,""))) -> 029/71334 | AC34: 1 | AG34: 31216 | AH34: VPG | AI34: 0
B35: VPG | C35: G | D35: 7040 | E35: 21387 | F35: 21393 | G35: 21390 | H35: 31217 | I35: 21396 | J35: 21396 | K35: =VLOOKUP(L35,'intrek AX'!$A$1:$R$3596,18,FALSE) -> 57.25 | L35: =INDEX(E35:J35,ral) -> 31217 | M35: =IF(VLOOKUP(L35,'setdet 2'!$B$2:$E$2284,4,FALSE)=0,"",VLOOKUP(L35,'setdet 2'!$B$2:$E$2284,4,FALSE)) ->  | S35: 0 | T35: 0 | U35: =IF(T35=0,0,IF(ralstandout=1,H35,S35)) -> 0 | V35: =IF(U35=0,0,VLOOKUP(U35,'intrek AX'!$A$1:$R$3593,18,FALSE)) -> 0 | W35: 0 | AA35: =IF(SUM(F35:I35)=0,"",IF(ral=1,0,INDEX('input data'!$G$96:$G$101,ral))) -> RAL7016ST | AB35: =IF(AC35="","",IF(AC35=1,calcul!$B$1072,IF(AC35=2,calcul!$B$1080,""))) -> 029/71334 | AC35: 1 | AG35: 31217 | AH35: VPG | AI35: 0
A36: =taal!A790 -> GI RINNENVERBINDUNG FÜR G | B36: VPGI | C36: GI 0 | D36: 300 | E36: 27732 | K36: =VLOOKUP(L36,'intrek AX'!$A$1:$R$3596,18,FALSE) -> 27.81 | L36: =E36 -> 27732 | M36: =IF(VLOOKUP(L36,'setdet 2'!$B$2:$E$2284,4,FALSE)=0,"",VLOOKUP(L36,'setdet 2'!$B$2:$E$2284,4,FALSE)) ->  | S36: 0 | T36: 0 | U36: =S36 -> 0 | V36: =IF(U36=0,0,VLOOKUP(U36,'intrek AX'!$A$1:$R$3593,18,FALSE)) -> 0 | W36: =T36*V36 -> 0 | AA36: =IF(SUM(F36:I36)=0,"",INDEX('input data'!$G$96:$G$101,ral)) ->  | AB36: =IF(AC36="","",IF(AC36=1,calcul!$B$1072,IF(AC36=2,calcul!$B$1080,""))) ->  | AG36: 27732 | AH36: VPGI | AI36: 0
A37: =taal!A791&" 90°" -> GI AUßENWINKEL FÜR G 90° | B37: VPGI | C37: GI 90 | D37: 300 | E37: 27559 | K37: =VLOOKUP(L37,'intrek AX'!$A$1:$R$3596,18,FALSE) -> 81.49 | L37: 27559 | M37: ="" ->  | S37: =IF(T37=0,0,L37) -> 0 | T37: =IF(ISNUMBER(O37)=FALSE,0,O37) -> 0 | U37: 0 | V37: =IF(U37=0,0,VLOOKUP(U37,'intrek AX'!$A$1:$R$3593,18,FALSE)) -> 0 | W37: 0 | AA37: =IF(SUM(F37:I37)=0,"",INDEX('input data'!$G$96:$G$101,ral)) ->  | AB37: =IF(AC37="","",IF(AC37=1,calcul!$B$1072,IF(AC37=2,calcul!$B$1080,""))) ->  | AG37: 27559 | AH37: VPGI | AI37: 0
A38: =taal!A791&" 120°" -> GI AUßENWINKEL FÜR G 120° | B38: VPGI | C38: GI 120 | D38: 300 | E38: 27560 | K38: =VLOOKUP(L38,'intrek AX'!$A$1:$R$3596,18,FALSE) -> 81.49 | L38: 27560 | M38: ="" ->  | S38: 0 | T38: 0 | U38: 0 | V38: =IF(U38=0,0,VLOOKUP(U38,'intrek AX'!$A$1:$R$3593,18,FALSE)) -> 0 | W38: 0 | AA38: =IF(SUM(F38:I38)=0,"",INDEX('input data'!$G$96:$G$101,ral)) ->  | AB38: =IF(AC38="","",IF(AC38=1,calcul!$B$1072,IF(AC38=2,calcul!$B$1080,""))) ->  | AG38: 27560 | AH38: VPGI | AI38: 0
A39: =taal!A791&" 135°" -> GI AUßENWINKEL FÜR G 135° | B39: VPGI | C39: GI 135 | D39: 300 | E39: 27561 | K39: =VLOOKUP(L39,'intrek AX'!$A$1:$R$3596,18,FALSE) -> 81.49 | L39: 27561 | M39: ="" ->  | S39: 0 | T39: 0 | U39: 0 | V39: =IF(U39=0,0,VLOOKUP(U39,'intrek AX'!$A$1:$R$3593,18,FALSE)) -> 0 | W39: 0 | AA39: =IF(SUM(F39:I39)=0,"",INDEX('input data'!$G$96:$G$101,ral)) ->  | AB39: =IF(AC39="","",IF(AC39=1,calcul!$B$1072,IF(AC39=2,calcul!$B$1080,""))) ->  | AG39: 27561 | AH39: VPGI | AI39: 0
A40: =taal!A791&" 150°" -> GI AUßENWINKEL FÜR G 150° | B40: VPGI | C40: GI 150 | D40: 300 | E40: 27562 | K40: =VLOOKUP(L40,'intrek AX'!$A$1:$R$3596,18,FALSE) -> 81.49 | L40: 27562 | M40: ="" ->  | S40: 0 | T40: 0 | U40: 0 | V40: =IF(U40=0,0,VLOOKUP(U40,'intrek AX'!$A$1:$R$3593,18,FALSE)) -> 0 | W40: 0 | AA40: =IF(SUM(F40:I40)=0,"",INDEX('input data'!$G$96:$G$101,ral)) ->  | AB40: =IF(AC40="","",IF(AC40=1,calcul!$B$1072,IF(AC40=2,calcul!$B$1080,""))) ->  | AG40: 27562 | AH40: VPGI | AI40: 0
A41: =taal!A792&" -90°" -> GI INNENWINKEL FÜR G -90° | B41: VPGI | C41: GI -90 | D41: 300 | E41: 27563 | K41: =VLOOKUP(L41,'intrek AX'!$A$1:$R$3596,18,FALSE) -> 81.49 | L41: 27563 | M41: ="" ->  | S41: 0 | T41: 0 | U41: 0 | V41: =IF(U41=0,0,VLOOKUP(U41,'intrek AX'!$A$1:$R$3593,18,FALSE)) -> 0 | W41: 0 | AA41: =IF(SUM(F41:I41)=0,"",INDEX('input data'!$G$96:$G$101,ral)) ->  | AB41: =IF(AC41="","",IF(AC41=1,calcul!$B$1072,IF(AC41=2,calcul!$B$1080,""))) ->  | AG41: 27563 | AH41: VPGI | AI41: 0
A42: =taal!A793 -> GIX RINNENVERBINDUNG FÜR GX | B42: VTGIX | C42: GIX | D42: 300 | E42: 35703 | K42: =VLOOKUP(L42,'intrek AX'!$A$1:$R$3596,18,FALSE) -> 59 | L42: 35703 | M42: =IF(VLOOKUP(L42,'setdet 2'!$B$2:$E$2284,4,FALSE)=0,"",VLOOKUP(L42,'setdet 2'!$B$2:$E$2284,4,FALSE)) ->  | S42: 0 | T42: 0 | U42: 0 | V42: =IF(U42=0,0,VLOOKUP(U42,'intrek AX'!$A$1:$R$3593,18,FALSE)) -> 0 | W42: 0 | AA42: =IF(SUM(F42:I42)=0,"",INDEX('input data'!$G$96:$G$101,ral)) ->  | AB42: =IF(AC42="","",IF(AC42=1,calcul!$B$1072,IF(AC42=2,calcul!$B$1080,""))) ->  | AG42: 35703 | AH42: VTGIX | AI42: 0
A43: =taal!A794 -> GIXL RINNENVERBINDUNG FÜR GXLX | B43: VTGIXL | C43: GIXL | D43: 300 | E43: 71991 | K43: =VLOOKUP(L43,'intrek AX'!$A$1:$R$3596,18,FALSE) -> 23.44 | L43: =E43 -> 71991 | M43: =IF(VLOOKUP(L43,'setdet 2'!$B$2:$E$2284,4,FALSE)=0,"",VLOOKUP(L43,'setdet 2'!$B$2:$E$2284,4,FALSE)) ->  | O43: =IF(ISBLANK(N43)=TRUE,M43,N43) ->  | S43: =IF(T43=0,0,L43) -> 0 | T43: =IF(ISNUMBER(O43)=FALSE,0,O43) -> 0 | U43: =S43 -> 0 | V43: =IF(U43=0,0,VLOOKUP(U43,'intrek AX'!$A$1:$R$3593,18,FALSE)) -> 0 | W43: =T43*V43 -> 0 | AA43: =IF(SUM(F43:I43)=0,"",INDEX('input data'!$G$96:$G$101,ral)) ->  | AB43: =IF(AC43="","",IF(AC43=1,calcul!$B$1072,IF(AC43=2,calcul!$B$1080,""))) ->  | AG43: 71991 | AH43: VTGIXL | AI43: 0
A44: =taal!A795 -> GIP RINNENVERBINDUNG FÜR GDG | B44: GIP | C44: GIP | D44: 500 | E44: 35884 | K44: =VLOOKUP(L44,'intrek AX'!$A$1:$R$3596,18,FALSE) -> 131.03 | L44: 35884 | M44: =IF(VLOOKUP(L44,'setdet 2'!$B$2:$E$2284,4,FALSE)=0,"",VLOOKUP(L44,'setdet 2'!$B$2:$E$2284,4,FALSE)) ->  | S44: 0 | T44: 0 | U44: 0 | V44: =IF(U44=0,0,VLOOKUP(U44,'intrek AX'!$A$1:$R$3593,18,FALSE)) -> 0 | W44: 0 | AA44: =IF(SUM(F44:I44)=0,"",INDEX('input data'!$G$96:$G$101,ral)) ->  | AB44: =IF(AC44="","",IF(AC44=1,calcul!$B$1072,IF(AC44=2,calcul!$B$1080,""))) ->  | AG44: 35884 | AH44: GIP | AI44: 0
A45: =taal!A338 -> GD1 RINNENTRÄGER 1 | B45: VPGD1 | C45: GD1 | D45: 3540 | E45: 21397 | F45: 21403 | G45: 21400 | H45: 31218 | I45: 21406 | J45: 21406 | K45: =VLOOKUP(L45,'intrek AX'!$A$1:$R$3596,18,FALSE) -> 38.08 | L45: =INDEX(E45:J45,ralin) -> 31218 | M45: =IF(VLOOKUP(L45,'setdet 2'!$B$2:$E$2284,4,FALSE)=0,"",VLOOKUP(L45,'setdet 2'!$B$2:$E$2284,4,FALSE)) ->  | S45: =IF(T45=0,0,L45) -> 0 | T45: =IF(ISNUMBER(O45)=FALSE,0,O45) -> 0 | U45: =IF(T45=0,0,IF(ralstandin=1,H45,S45)) -> 0 | V45: =IF(U45=0,0,VLOOKUP(U45,'intrek AX'!$A$1:$R$3593,18,FALSE)) -> 0 | W45: =T45*D45/1000*V45 -> 0 | AA45: =IF(SUM(F45:I45)=0,"",IF(ralin=1,0,INDEX('input data'!$H$96:$H$101,ralin))) -> RAL7016ST | AB45: =IF(AC45="","",IF(AC45=1,calcul!$B$1072,IF(AC45=2,calcul!$B$1080,""))) -> 029/71334 | AC45: 2 | AE45: =SUMIF('assembly codes'!$A$4:$A$61,articles!C45,'assembly codes'!$H$4:$H$61) -> 0 | AF45: =IF(OR(T45=0,Breedte>7000,verzagen=2,pc=2,AE45=0),"",AE45&".1") ->  | AG45: 31218 | AH45: VPGD1 | AI45: 0
B46: VPGD1 | C46: GD1 | D46: 4290 | E46: 23392 | F46: 23395 | G46: 23393 | H46: 31219 | I46: 23394 | J46: 23394 | K46: =VLOOKUP(L46,'intrek AX'!$A$1:$R$3596,18,FALSE) -> 38.08 | L46: =INDEX(E46:J46,ralin) -> 31219 | M46: =IF(VLOOKUP(L46,'setdet 2'!$B$2:$E$2284,4,FALSE)=0,"",VLOOKUP(L46,'setdet 2'!$B$2:$E$2284,4,FALSE)) ->  | S46: 0 | T46: 0 | U46: 0 | V46: =IF(U46=0,0,VLOOKUP(U46,'intrek AX'!$A$1:$R$3593,18,FALSE)) -> 0 | W46: 0 | AA46: =IF(SUM(F46:I46)=0,"",IF(ralin=1,0,INDEX('input data'!$H$96:$H$101,ralin))) -> RAL7016ST | AB46: =IF(AC46="","",IF(AC46=1,calcul!$B$1072,IF(AC46=2,calcul!$B$1080,""))) -> 029/71334 | AC46: 2 | AE46: =SUMIF('assembly codes'!$A$4:$A$61,articles!C46,'assembly codes'!$H$4:$H$61) -> 0 | AF46: =IF(OR(T46=0,Breedte>7000,verzagen=2,pc=2,AE46=0),"",AE46&".2") ->  | AG46: 31219 | AH46: VPGD1 | AI46: 0
B47: VPGD1 | C47: GD1 | D47: 5040 | E47: 21398 | F47: 21404 | G47: 21401 | H47: 31220 | I47: 21407 | J47: 21407 | K47: =VLOOKUP(L47,'intrek AX'!$A$1:$R$3596,18,FALSE) -> 38.08 | L47: =INDEX(E47:J47,ralin) -> 31220 | M47: =IF(VLOOKUP(L47,'setdet 2'!$B$2:$E$2284,4,FALSE)=0,"",VLOOKUP(L47,'setdet 2'!$B$2:$E$2284,4,FALSE)) ->  | S47: 0 | T47: 0 | U47: 0 | V47: =IF(U47=0,0,VLOOKUP(U47,'intrek AX'!$A$1:$R$3593,18,FALSE)) -> 0 | W47: 0 | AA47: =IF(SUM(F47:I47)=0,"",IF(ralin=1,0,INDEX('input data'!$H$96:$H$101,ralin))) -> RAL7016ST | AB47: =IF(AC47="","",IF(AC47=1,calcul!$B$1072,IF(AC47=2,calcul!$B$1080,""))) -> 029/71334 | AC47: 2 | AE47: =SUMIF('assembly codes'!$A$4:$A$61,articles!C47,'assembly codes'!$H$4:$H$61) -> 0 | AF47: =IF(OR(T47=0,Breedte>7000,verzagen=2,pc=2,AE47=0),"",AE47&".3") ->  | AG47: 31220 | AH47: VPGD1 | AI47: 0
B48: VPGD1 | C48: GD1 | D48: 7040 | E48: 21399 | F48: 21405 | G48: 21402 | H48: 31221 | I48: 21408 | J48: 21408 | K48: =VLOOKUP(L48,'intrek AX'!$A$1:$R$3596,18,FALSE) -> 38.08 | L48: =INDEX(E48:J48,ralin) -> 31221 | M48: =IF(VLOOKUP(L48,'setdet 2'!$B$2:$E$2284,4,FALSE)=0,"",VLOOKUP(L48,'setdet 2'!$B$2:$E$2284,4,FALSE)) ->  | S48: 0 | T48: 0 | U48: 0 | V48: =IF(U48=0,0,VLOOKUP(U48,'intrek AX'!$A$1:$R$3593,18,FALSE)) -> 0 | W48: 0 | AA48: =IF(SUM(F48:I48)=0,"",IF(ralin=1,0,INDEX('input data'!$H$96:$H$101,ralin))) -> RAL7016ST | AB48: =IF(AC48="","",IF(AC48=1,calcul!$B$1072,IF(AC48=2,calcul!$B$1080,""))) -> 029/71334 | AC48: 2 | AE48: =SUMIF('assembly codes'!$A$4:$A$61,articles!C48,'assembly codes'!$H$4:$H$61) -> 0 | AF48: =IF(OR(T48=0,Breedte>7000,verzagen=2,pc=2,AE48=0),"",AE48&".4") ->  | AG48: 31221 | AH48: VPGD1 | AI48: 0
A49: =taal!A787 -> GD2 RINNENTRÄGER 2 | B49: VPGD2 | C49: GD2 | D49: 5040 | E49: 27271 | F49: 27280 | G49: 27276 | H49: 31126 | I49: 27284 | J49: 27284 | K49: =VLOOKUP(L49,'intrek AX'!$A$1:$R$3596,18,FALSE) -> 96.33 | L49: =INDEX(E49:J49,ralin) -> 31126 | M49: =IF(VLOOKUP(L49,'setdet 2'!$B$2:$E$2284,4,FALSE)=0,"",VLOOKUP(L49,'setdet 2'!$B$2:$E$2284,4,FALSE)) ->  | S49: 0 | T49: 0 | U49: 0 | V49: =IF(U49=0,0,VLOOKUP(U49,'intrek AX'!$A$1:$R$3593,18,FALSE)) -> 0 | W49: =T49*D49/1000*V49 -> 0 | AA49: =IF(SUM(F49:I49)=0,"",IF(ralin=1,0,INDEX('input data'!$H$96:$H$101,ralin))) -> RAL7016ST | AB49: =IF(AC49="","",IF(AC49=1,calcul!$B$1072,IF(AC49=2,calcul!$B$1080,""))) -> 029/71334 | AC49: 2 | AE49: =SUMIF('assembly codes'!$A$4:$A$61,articles!C49,'assembly codes'!$H$4:$H$61) -> 0 | AF49: =IF(OR(T49=0,Breedte>7000,verzagen=2,pc=2,AE49=0),"",AE49&".1") ->  | AG49: 31126 | AH49: VPGD2 | AI49: 0
B50: VPGD2 | C50: GD2 | D50: 7040 | E50: 27272 | F50: 27281 | G50: 27277 | H50: 31127 | I50: 27285 | J50: 27285 | K50: =VLOOKUP(L50,'intrek AX'!$A$1:$R$3596,18,FALSE) -> 96.33 | L50: =INDEX(E50:J50,ralin) -> 31127 | M50: =IF(VLOOKUP(L50,'setdet 2'!$B$2:$E$2284,4,FALSE)=0,"",VLOOKUP(L50,'setdet 2'!$B$2:$E$2284,4,FALSE)) ->  | S50: 0 | T50: 0 | U50: 0 | V50: =IF(U50=0,0,VLOOKUP(U50,'intrek AX'!$A$1:$R$3593,18,FALSE)) -> 0 | W50: =T50*D50/1000*V50 -> 0 | AA50: =IF(SUM(F50:I50)=0,"",IF(ralin=1,0,INDEX('input data'!$H$96:$H$101,ralin))) -> RAL7016ST | AB50: =IF(AC50="","",IF(AC50=1,calcul!$B$1072,IF(AC50=2,calcul!$B$1080,""))) -> 029/71334 | AC50: 2 | AE50: =SUMIF('assembly codes'!$A$4:$A$61,articles!C50,'assembly codes'!$H$4:$H$61) -> 0 | AF50: =IF(OR(T50=0,Breedte>7000,verzagen=2,pc=2,AE50=0),"",AE50&".2") ->  | AG50: 31127 | AH50: VPGD2 | AI50: 0
A51: =taal!A788 -> GD2C PROFILKAPPE FÜR GD2 | B51: VPGD2C | C51: GD2C | D51: 5040 | E51: 27309 | F51: 27317 | G51: 27313 | H51: 31136 | I51: 27321 | J51: 27321 | K51: =VLOOKUP(L51,'intrek AX'!$A$1:$R$3596,18,FALSE) -> 35.08 | L51: =INDEX(E51:J51,ral) -> 31136 | M51: =IF(VLOOKUP(L51,'setdet 2'!$B$2:$E$2284,4,FALSE)=0,"",VLOOKUP(L51,'setdet 2'!$B$2:$E$2284,4,FALSE)) ->  | O51: =IF(ISBLANK(N51)=TRUE,M51,N51) ->  | S51: 0 | T51: 0 | U51: =IF(T51=0,0,IF(ralstandout=1,H51,S51)) -> 0 | V51: =IF(U51=0,0,VLOOKUP(U51,'intrek AX'!$A$1:$R$3593,18,FALSE)) -> 0 | W51: 0 | AA51: =IF(SUM(F51:I51)=0,"",IF(ral=1,0,INDEX('input data'!$G$96:$G$101,ral))) -> RAL7016ST | AB51: =IF(AC51="","",IF(AC51=1,calcul!$B$1072,IF(AC51=2,calcul!$B$1080,""))) -> 029/71334 | AC51: 1 | AE51: =SUMIF('assembly codes'!$A$4:$A$61,articles!C51,'assembly codes'!$H$4:$H$61) -> 0 | AF51: =IF(OR(T51=0,verzagen=2,pc=2,AE51=0),"",AE51&".1") ->  | AG51: 31136 | AH51: VPGD2C | AI51: 0
B52: VPGD2C | C52: GD2C | D52: 7040 | E52: 27310 | F52: 27318 | G52: 27314 | H52: 31137 | I52: 27322 | J52: 27322 | K52: =VLOOKUP(L52,'intrek AX'!$A$1:$R$3596,18,FALSE) -> 35.08 | L52: =INDEX(E52:J52,ral) -> 31137 | M52: =IF(VLOOKUP(L52,'setdet 2'!$B$2:$E$2284,4,FALSE)=0,"",VLOOKUP(L52,'setdet 2'!$B$2:$E$2284,4,FALSE)) ->  | S52: 0 | T52: 0 | U52: 0 | V52: =IF(U52=0,0,VLOOKUP(U52,'intrek AX'!$A$1:$R$3593,18,FALSE)) -> 0 | W52: 0 | AA52: =IF(SUM(F52:I52)=0,"",IF(ral=1,0,INDEX('input data'!$G$96:$G$101,ral))) -> RAL7016ST | AB52: =IF(AC52="","",IF(AC52=1,calcul!$B$1072,IF(AC52=2,calcul!$B$1080,""))) -> 029/71334 | AC52: 1 | AE52: =SUMIF('assembly codes'!$A$4:$A$61,articles!C52,'assembly codes'!$H$4:$H$61) -> 0 | AF52: =IF(OR(T52=0,verzagen=2,pc=2,AE52=0),"",AE52&".2") ->  | AG52: 31137 | AH52: VPGD2C | AI52: 0
A53: =taal!A782 -> GDG SCHWERER RINNENTRÄGER | B53: VPGDG | C53: GDG | D53: 4040 | E53: 31607 | F53: 31615 | G53: 31611 | H53: 31609 | I53: 31613 | J53: 31613 | K53: =VLOOKUP(L53,'intrek AX'!$A$1:$R$3596,18,FALSE) -> 202.4 | L53: =INDEX(E53:J53,ral) -> 31609 | M53: =IF(VLOOKUP(L53,'setdet 2'!$B$2:$E$2284,4,FALSE)=0,"",VLOOKUP(L53,'setdet 2'!$B$2:$E$2284,4,FALSE)) ->  | S53: 0 | T53: 0 | U53: 0 | V53: =IF(U53=0,0,VLOOKUP(U53,'intrek AX'!$A$1:$R$3593,18,FALSE)) -> 0 | W53: 0 | AA53: =IF(SUM(F53:I53)=0,"",IF(ral=1,0,INDEX('input data'!$G$96:$G$101,ral))) -> RAL7016ST | AB53: =IF(AC53="","",IF(AC53=1,calcul!$B$1072,IF(AC53=2,calcul!$B$1080,""))) -> 029/71334 | AC53: 1 | AE53: =SUMIF('assembly codes'!$A$4:$A$61,articles!C53,'assembly codes'!$H$4:$H$61) -> 0 | AF53: =IF(OR(T53=0,Breedte>7000,GD=6,verzagen=2,pc=2,AE53=0),"",AE53&".1") ->  | AG53: 31609 | AH53: VPGDG | AI53: 0
B54: VPGDG | C54: GDG | D54: 5040 | E54: 29908 | F54: 29912 | G54: 29910 | H54: 31128 | I54: 29914 | J54: 29914 | K54: =VLOOKUP(L54,'intrek AX'!$A$1:$R$3596,18,FALSE) -> 202.4 | L54: =INDEX(E54:J54,ral) -> 31128 | M54: =IF(VLOOKUP(L54,'setdet 2'!$B$2:$E$2284,4,FALSE)=0,"",VLOOKUP(L54,'setdet 2'!$B$2:$E$2284,4,FALSE)) ->  | S54: 0 | T54: 0 | U54: 0 | V54: =IF(U54=0,0,VLOOKUP(U54,'intrek AX'!$A$1:$R$3593,18,FALSE)) -> 0 | W54: 0 | AA54: =IF(SUM(F54:I54)=0,"",IF(ral=1,0,INDEX('input data'!$G$96:$G$101,ral))) -> RAL7016ST | AB54: =IF(AC54="","",IF(AC54=1,calcul!$B$1072,IF(AC54=2,calcul!$B$1080,""))) -> 029/71334 | AC54: 1 | AE54: =SUMIF('assembly codes'!$A$4:$A$61,articles!C54,'assembly codes'!$H$4:$H$61) -> 0 | AF54: =IF(OR(T54=0,Breedte>7000,GD=6,verzagen=2,pc=2,AE54=0),"",AE54&".2") ->  | AG54: 31128 | AH54: VPGDG | AI54: 0
B55: VPGDG | C55: GDG | D55: 6040 | E55: 31608 | F55: 31616 | G55: 31612 | H55: 31610 | I55: 31614 | J55: 31614 | K55: =VLOOKUP(L55,'intrek AX'!$A$1:$R$3596,18,FALSE) -> 202.4 | L55: =INDEX(E55:J55,ral) -> 31610 | M55: =IF(VLOOKUP(L55,'setdet 2'!$B$2:$E$2284,4,FALSE)=0,"",VLOOKUP(L55,'setdet 2'!$B$2:$E$2284,4,FALSE)) ->  | S55: 0 | T55: 0 | U55: 0 | V55: =IF(U55=0,0,VLOOKUP(U55,'intrek AX'!$A$1:$R$3593,18,FALSE)) -> 0 | W55: 0 | AA55: =IF(SUM(F55:I55)=0,"",IF(ral=1,0,INDEX('input data'!$G$96:$G$101,ral))) -> RAL7016ST | AB55: =IF(AC55="","",IF(AC55=1,calcul!$B$1072,IF(AC55=2,calcul!$B$1080,""))) -> 029/71334 | AC55: 1 | AE55: =SUMIF('assembly codes'!$A$4:$A$61,articles!C55,'assembly codes'!$H$4:$H$61) -> 0 | AF55: =IF(OR(T55=0,Breedte>7000,GD=6,verzagen=2,pc=2,AE55=0),"",AE55&".3") ->  | AG55: 31610 | AH55: VPGDG | AI55: 0
B56: VPGDG | C56: GDG | D56: 7040 | E56: 29909 | F56: 29913 | G56: 29911 | H56: 31129 | I56: 29915 | J56: 29915 | K56: =VLOOKUP(L56,'intrek AX'!$A$1:$R$3596,18,FALSE) -> 202.4 | L56: =INDEX(E56:J56,ral) -> 31129 | M56: =IF(VLOOKUP(L56,'setdet 2'!$B$2:$E$2284,4,FALSE)=0,"",VLOOKUP(L56,'setdet 2'!$B$2:$E$2284,4,FALSE)) ->  | O56: =IF(ISBLANK(N56)=TRUE,M56,N56) ->  | S56: 0 | T56: 0 | U56: 0 | V56: =IF(U56=0,0,VLOOKUP(U56,'intrek AX'!$A$1:$R$3593,18,FALSE)) -> 0 | W56: 0 | AA56: =IF(SUM(F56:I56)=0,"",IF(ral=1,0,INDEX('input data'!$G$96:$G$101,ral))) -> RAL7016ST | AB56: =IF(AC56="","",IF(AC56=1,calcul!$B$1072,IF(AC56=2,calcul!$B$1080,""))) -> 029/71334 | AC56: 1 | AE56: =SUMIF('assembly codes'!$A$4:$A$61,articles!C56,'assembly codes'!$H$4:$H$61) -> 0 | AF56: =IF(OR(T56=0,Breedte>7000,GD=6,verzagen=2,pc=2,AE56=0),"",AE56&".4") ->  | AG56: 31129 | AH56: VPGDG | AI56: 0
A57: =taal!A784 -> GDGK I PROFILKAPPE | B57: VPGDGK | C57: GDGK | D57: 7040 | E57: 29922 | F57: 29928 | G57: 29924 | H57: 31131 | I57: 29926 | J57: 29926 | K57: =VLOOKUP(L57,'intrek AX'!$A$1:$R$3596,18,FALSE) -> 27.62 | L57: =INDEX(E57:J57,ral) -> 31131 | M57: =IF(VLOOKUP(L57,'setdet 2'!$B$2:$E$2284,4,FALSE)=0,"",VLOOKUP(L57,'setdet 2'!$B$2:$E$2284,4,FALSE)) ->  | O57: =IF(ISBLANK(N57)=TRUE,M57,N57) ->  | S57: 0 | T57: 0 | U57: 0 | V57: =IF(U57=0,0,VLOOKUP(U57,'intrek AX'!$A$1:$R$3593,18,FALSE)) -> 0 | W57: 0 | AA57: =IF(SUM(F57:I57)=0,"",IF(ral=1,0,INDEX('input data'!$G$96:$G$101,ral))) -> RAL7016ST | AB57: =IF(AC57="","",IF(AC57=1,calcul!$B$1072,IF(AC57=2,calcul!$B$1080,""))) -> 029/71334 | AC57: 1 | AG57: 31131 | AH57: VPGDGK | AI57: 0
A58: =IF(type=3,taal!A786,taal!A785) -> GX LED PROFIL | B58: VPGDGL | C58: GDGL | D58: 4040 | E58: 31627 | F58: 31631 | G58: 31629 | H58: 31633 | I58: 31635 | J58: 31635 | K58: =VLOOKUP(L58,'intrek AX'!$A$1:$R$3596,18,FALSE) -> 6.59 | L58: =INDEX(E58:J58,ral) -> 31633 | M58: =IF(VLOOKUP(L58,'setdet 2'!$B$2:$E$2284,4,FALSE)=0,"",VLOOKUP(L58,'setdet 2'!$B$2:$E$2284,4,FALSE)) ->  | S58: 0 | T58: 0 | U58: 0 | V58: =IF(U58=0,0,VLOOKUP(U58,'intrek AX'!$A$1:$R$3593,18,FALSE)) -> 0 | W58: 0 | AA58: =IF(SUM(F58:I58)=0,"",IF(ral=1,0,INDEX('input data'!$G$96:$G$101,ral))) -> RAL7016ST | AB58: =IF(AC58="","",IF(AC58=1,calcul!$B$1072,IF(AC58=2,calcul!$B$1080,""))) -> 029/71334 | AC58: 1 | AG58: 31633 | AH58: VPGDGL | AI58: 0
B59: VPGDGL | C59: GDGL | D59: 5040 | E59: 29930 | F59: 29936 | G59: 29932 | H59: 31132 | I59: 29934 | J59: 29934 | K59: =VLOOKUP(L59,'intrek AX'!$A$1:$R$3596,18,FALSE) -> 6.59 | L59: =INDEX(E59:J59,ral) -> 31132 | M59: =IF(VLOOKUP(L59,'setdet 2'!$B$2:$E$2284,4,FALSE)=0,"",VLOOKUP(L59,'setdet 2'!$B$2:$E$2284,4,FALSE)) ->  | O59: =IF(ISBLANK(N59)=TRUE,M59,N59) ->  | S59: 0 | T59: 0 | U59: 0 | V59: =IF(U59=0,0,VLOOKUP(U59,'intrek AX'!$A$1:$R$3593,18,FALSE)) -> 0 | W59: 0 | AA59: =IF(SUM(F59:I59)=0,"",IF(ral=1,0,INDEX('input data'!$G$96:$G$101,ral))) -> RAL7016ST | AB59: =IF(AC59="","",IF(AC59=1,calcul!$B$1072,IF(AC59=2,calcul!$B$1080,""))) -> 029/71334 | AC59: 1 | AG59: 31132 | AH59: VPGDGL | AI59: 0
B60: VPGDGL | C60: GDGL | D60: 6040 | E60: 31628 | F60: 31632 | G60: 31630 | H60: 31634 | I60: 31636 | J60: 31636 | K60: =VLOOKUP(L60,'intrek AX'!$A$1:$R$3596,18,FALSE) -> 6.59 | L60: =INDEX(E60:J60,ral) -> 31634 | M60: =IF(VLOOKUP(L60,'setdet 2'!$B$2:$E$2284,4,FALSE)=0,"",VLOOKUP(L60,'setdet 2'!$B$2:$E$2284,4,FALSE)) ->  | S60: 0 | T60: 0 | U60: 0 | V60: =IF(U60=0,0,VLOOKUP(U60,'intrek AX'!$A$1:$R$3593,18,FALSE)) -> 0 | W60: 0 | AA60: =IF(SUM(F60:I60)=0,"",IF(ral=1,0,INDEX('input data'!$G$96:$G$101,ral))) -> RAL7016ST | AB60: =IF(AC60="","",IF(AC60=1,calcul!$B$1072,IF(AC60=2,calcul!$B$1080,""))) -> 029/71334 | AC60: 1 | AG60: 31634 | AH60: VPGDGL | AI60: 0
B61: VPGDGL | C61: GDGL | D61: 7040 | E61: 29931 | F61: 29937 | G61: 29933 | H61: 31133 | I61: 29935 | J61: 29935 | K61: =VLOOKUP(L61,'intrek AX'!$A$1:$R$3596,18,FALSE) -> 6.59 | L61: =INDEX(E61:J61,ral) -> 31133 | M61: =IF(VLOOKUP(L61,'setdet 2'!$B$2:$E$2284,4,FALSE)=0,"",VLOOKUP(L61,'setdet 2'!$B$2:$E$2284,4,FALSE)) ->  | O61: =IF(ISBLANK(N61)=TRUE,M61,N61) ->  | S61: 0 | T61: 0 | U61: 0 | V61: =IF(U61=0,0,VLOOKUP(U61,'intrek AX'!$A$1:$R$3593,18,FALSE)) -> 0 | W61: 0 | AA61: =IF(SUM(F61:I61)=0,"",IF(ral=1,0,INDEX('input data'!$G$96:$G$101,ral))) -> RAL7016ST | AB61: =IF(AC61="","",IF(AC61=1,calcul!$B$1072,IF(AC61=2,calcul!$B$1080,""))) -> 029/71334 | AC61: 1 | AG61: 31133 | AH61: VPGDGL | AI61: 0
A62: =taal!A337&" CLIMALUX" -> RINNE CLIMALUX | B62: VPGX | C62: GX | D62: 3040 | E62: 110485 | F62: 110486 | G62: 34846 | H62: 110487 | I62: 110488 | J62: 110488 | K62: =VLOOKUP(L62,'intrek AX'!$A$1:$R$3596,18,FALSE) -> 122.01 | L62: =INDEX(E62:J62,ral) -> 110487 | M62: =IF(VLOOKUP(L62,'setdet 2'!$B$2:$E$2284,4,FALSE)=0,"",VLOOKUP(L62,'setdet 2'!$B$2:$E$2284,4,FALSE)) ->  | S62: 0 | T62: =IF(ISNUMBER(O62)=FALSE,0,O62) -> 0 | U62: 0 | V62: =IF(U62=0,0,VLOOKUP(U62,'intrek AX'!$A$1:$R$3593,18,FALSE)) -> 0 | W62: 0 | AA62: =IF(SUM(F62:I62)=0,"",IF(ral=1,0,INDEX('input data'!$G$96:$G$101,ral))) -> RAL7016ST | AB62: =IF(AC62="","",IF(AC62=1,calcul!$B$1072,IF(AC62=2,calcul!$B$1080,""))) -> 029/71334 | AC62: 1 | AG62: 110487 | AH62: VPGX | AI62: 0
B63: VPGX | C63: GX | D63: 3540 | E63: 34834 | F63: 34838 | G63: 34846 | H63: 34842 | I63: 34846 | J63: 34846 | K63: =VLOOKUP(L63,'intrek AX'!$A$1:$R$3596,18,FALSE) -> 122.01 | L63: =INDEX(E63:J63,ral) -> 34842 | M63: =IF(VLOOKUP(L63,'setdet 2'!$B$2:$E$2284,4,FALSE)=0,"",VLOOKUP(L63,'setdet 2'!$B$2:$E$2284,4,FALSE)) ->  | O63: =IF(ISBLANK(N63)=TRUE,M63,N63) ->  | S63: =IF(T63=0,0,L63) -> 0 | T63: =IF(ISNUMBER(O63)=FALSE,0,O63) -> 0 | U63: =IF(T63=0,0,IF(ralstandout=1,H63,S63)) -> 0 | V63: =IF(U63=0,0,VLOOKUP(U63,'intrek AX'!$A$1:$R$3593,18,FALSE)) -> 0 | W63: =T63*D63/1000*V63 -> 0 | AA63: =IF(SUM(F63:I63)=0,"",IF(ral=1,0,INDEX('input data'!$G$96:$G$101,ral))) -> RAL7016ST | AB63: =IF(AC63="","",IF(AC63=1,calcul!$B$1072,IF(AC63=2,calcul!$B$1080,""))) -> 029/71334 | AC63: 1 | AG63: =L63 -> 34842 | AH63: =B63 -> VPGX | AI63: 0
B64: VPGX | C64: GX | D64: 4040 | E64: 36513 | F64: 36516 | G64: 36590 | H64: 36519 | I64: 36590 | J64: 36590 | K64: =VLOOKUP(L64,'intrek AX'!$A$1:$R$3596,18,FALSE) -> 122.01 | L64: =INDEX(E64:J64,ral) -> 36519 | M64: =IF(VLOOKUP(L64,'setdet 2'!$B$2:$E$2284,4,FALSE)=0,"",VLOOKUP(L64,'setdet 2'!$B$2:$E$2284,4,FALSE)) ->  | S64: 0 | T64: 0 | U64: 0 | V64: =IF(U64=0,0,VLOOKUP(U64,'intrek AX'!$A$1:$R$3593,18,FALSE)) -> 0 | W64: 0 | AA64: =IF(SUM(F64:I64)=0,"",IF(ral=1,0,INDEX('input data'!$G$96:$G$101,ral))) -> RAL7016ST | AB64: =IF(AC64="","",IF(AC64=1,calcul!$B$1072,IF(AC64=2,calcul!$B$1080,""))) -> 029/71334 | AC64: 1 | AG64: 36519 | AH64: VPGX | AI64: 0
B65: VPGX | C65: GX | D65: 4540 | E65: 110489 | F65: 110490 | G65: 36590 | H65: 110491 | I65: 110492 | J65: 110492 | K65: =VLOOKUP(L65,'intrek AX'!$A$1:$R$3596,18,FALSE) -> 122.01 | L65: =INDEX(E65:J65,ral) -> 110491 | M65: =IF(VLOOKUP(L65,'setdet 2'!$B$2:$E$2284,4,FALSE)=0,"",VLOOKUP(L65,'setdet 2'!$B$2:$E$2284,4,FALSE)) ->  | O65: =IF(ISBLANK(N65)=TRUE,M65,N65) ->  | S65: =IF(T65=0,0,L65) -> 0 | T65: =IF(ISNUMBER(O65)=FALSE,0,O65) -> 0 | U65: =IF(T65=0,0,IF(ralstandout=1,H65,S65)) -> 0 | V65: =IF(U65=0,0,VLOOKUP(U65,'intrek AX'!$A$1:$R$3593,18,FALSE)) -> 0 | W65: =T65*D65/1000*V65 -> 0 | AA65: =IF(SUM(F65:I65)=0,"",IF(ral=1,0,INDEX('input data'!$G$96:$G$101,ral))) -> RAL7016ST | AB65: =IF(AC65="","",IF(AC65=1,calcul!$B$1072,IF(AC65=2,calcul!$B$1080,""))) -> 029/71334 | AC65: 1 | AG65: =L65 -> 110491 | AH65: =B65 -> VPGX | AI65: 0
B66: VPGX | C66: GX | D66: 5040 | E66: 34835 | F66: 34839 | G66: 34847 | H66: 34843 | I66: 34847 | J66: 34847 | K66: =VLOOKUP(L66,'intrek AX'!$A$1:$R$3596,18,FALSE) -> 122.01 | L66: =INDEX(E66:J66,ral) -> 34843 | M66: =IF(VLOOKUP(L66,'setdet 2'!$B$2:$E$2284,4,FALSE)=0,"",VLOOKUP(L66,'setdet 2'!$B$2:$E$2284,4,FALSE)) ->  | S66: 0 | T66: 0 | U66: 0 | V66: =IF(U66=0,0,VLOOKUP(U66,'intrek AX'!$A$1:$R$3593,18,FALSE)) -> 0 | W66: 0 | AA66: =IF(SUM(F66:I66)=0,"",IF(ral=1,0,INDEX('input data'!$G$96:$G$101,ral))) -> RAL7016ST | AB66: =IF(AC66="","",IF(AC66=1,calcul!$B$1072,IF(AC66=2,calcul!$B$1080,""))) -> 029/71334 | AC66: 1 | AG66: 34843 | AH66: VPGX | AI66: 0
B67: VPGX | C67: GX | D67: 6040 | E67: 34836 | F67: 34840 | G67: 34848 | H67: 34844 | I67: 34848 | J67: 34848 | K67: =VLOOKUP(L67,'intrek AX'!$A$1:$R$3596,18,FALSE) -> 122.01 | L67: =INDEX(E67:J67,ral) -> 34844 | M67: =IF(VLOOKUP(L67,'setdet 2'!$B$2:$E$2284,4,FALSE)=0,"",VLOOKUP(L67,'setdet 2'!$B$2:$E$2284,4,FALSE)) ->  | S67: 0 | T67: 0 | U67: 0 | V67: =IF(U67=0,0,VLOOKUP(U67,'intrek AX'!$A$1:$R$3593,18,FALSE)) -> 0 | W67: 0 | AA67: =IF(SUM(F67:I67)=0,"",IF(ral=1,0,INDEX('input data'!$G$96:$G$101,ral))) -> RAL7016ST | AB67: =IF(AC67="","",IF(AC67=1,calcul!$B$1072,IF(AC67=2,calcul!$B$1080,""))) -> 029/71334 | AC67: 1 | AG67: 34844 | AH67: VPGX | AI67: =IF(ISBLANK(N67)=TRUE,0,1) -> 0
B68: VPGX | C68: GX | D68: 7040 | E68: 34837 | F68: 34841 | G68: 34849 | H68: 34845 | I68: 34849 | J68: 34849 | K68: =VLOOKUP(L68,'intrek AX'!$A$1:$R$3596,18,FALSE) -> 122.01 | L68: =INDEX(E68:J68,ral) -> 34845 | M68: =IF(VLOOKUP(L68,'setdet 2'!$B$2:$E$2284,4,FALSE)=0,"",VLOOKUP(L68,'setdet 2'!$B$2:$E$2284,4,FALSE)) ->  | S68: 0 | T68: 0 | U68: 0 | V68: =IF(U68=0,0,VLOOKUP(U68,'intrek AX'!$A$1:$R$3593,18,FALSE)) -> 0 | W68: 0 | AA68: =IF(SUM(F68:I68)=0,"",IF(ral=1,0,INDEX('input data'!$G$96:$G$101,ral))) -> RAL7016ST | AB68: =IF(AC68="","",IF(AC68=1,calcul!$B$1072,IF(AC68=2,calcul!$B$1080,""))) -> 029/71334 | AC68: 1 | AG68: 34845 | AH68: VPGX | AI68: 0
A69: =taal!A346 -> ZIERPROFIL RINNE CLIMALUX | B69: VPGLX | C69: GLX | D69: 3540 | E69: 34850 | F69: 34853 | G69: 34859 | H69: 34856 | I69: 34859 | J69: 34859 | K69: =VLOOKUP(L69,'intrek AX'!$A$1:$R$3596,18,FALSE) -> 75.19 | L69: =INDEX(E69:J69,ral) -> 34856 | M69: =IF(VLOOKUP(L69,'setdet 2'!$B$2:$E$2284,4,FALSE)=0,"",VLOOKUP(L69,'setdet 2'!$B$2:$E$2284,4,FALSE)) ->  | S69: =IF(T69=0,0,L69) -> 0 | T69: 0 | U69: 0 | V69: =IF(U69=0,0,VLOOKUP(U69,'intrek AX'!$A$1:$R$3593,18,FALSE)) -> 0 | W69: 0 | AA69: =IF(SUM(F69:I69)=0,"",IF(ral=1,0,INDEX('input data'!$G$96:$G$101,ral))) -> RAL7016ST | AB69: =IF(AC69="","",IF(AC69=1,calcul!$B$1072,IF(AC69=2,calcul!$B$1080,""))) -> 029/71334 | AC69: 1 | AG69: 34856 | AH69: VPGLX | AI69: 0
B70: VPGLX | C70: GLX | D70: 5040 | E70: 34851 | F70: 34854 | G70: 34860 | H70: 34857 | I70: 34860 | J70: 34860 | K70: =VLOOKUP(L70,'intrek AX'!$A$1:$R$3596,18,FALSE) -> 75.19 | L70: =INDEX(E70:J70,ral) -> 34857 | M70: =IF(VLOOKUP(L70,'setdet 2'!$B$2:$E$2284,4,FALSE)=0,"",VLOOKUP(L70,'setdet 2'!$B$2:$E$2284,4,FALSE)) ->  | S70: 0 | T70: 0 | U70: 0 | V70: =IF(U70=0,0,VLOOKUP(U70,'intrek AX'!$A$1:$R$3593,18,FALSE)) -> 0 | W70: 0 | AA70: =IF(SUM(F70:I70)=0,"",IF(ral=1,0,INDEX('input data'!$G$96:$G$101,ral))) -> RAL7016ST | AB70: =IF(AC70="","",IF(AC70=1,calcul!$B$1072,IF(AC70=2,calcul!$B$1080,""))) -> 029/71334 | AC70: 1 | AG70: 34857 | AH70: VPGLX | AI70: 0
B71: VPGLX | C71: GLX | D71: 6040 | E71: 36550 | F71: 36551 | G71: 36553 | H71: 36552 | I71: 36553 | J71: 36553 | K71: =VLOOKUP(L71,'intrek AX'!$A$1:$R$3596,18,FALSE) -> 75.19 | L71: =INDEX(E71:J71,ral) -> 36552 | M71: =IF(VLOOKUP(L71,'setdet 2'!$B$2:$E$2284,4,FALSE)=0,"",VLOOKUP(L71,'setdet 2'!$B$2:$E$2284,4,FALSE)) ->  | S71: 0 | T71: 0 | U71: 0 | V71: =IF(U71=0,0,VLOOKUP(U71,'intrek AX'!$A$1:$R$3593,18,FALSE)) -> 0 | W71: 0 | AA71: =IF(SUM(F71:I71)=0,"",IF(ral=1,0,INDEX('input data'!$G$96:$G$101,ral))) -> RAL7016ST | AB71: =IF(AC71="","",IF(AC71=1,calcul!$B$1072,IF(AC71=2,calcul!$B$1080,""))) -> 029/71334 | AC71: 1 | AG71: 36552 | AH71: VPGLX | AI71: 0
B72: VPGLX | C72: GLX | D72: 7040 | E72: 34852 | F72: 34855 | G72: 34861 | H72: 34858 | I72: 34861 | J72: 34861 | K72: =VLOOKUP(L72,'intrek AX'!$A$1:$R$3596,18,FALSE) -> 75.19 | L72: =INDEX(E72:J72,ral) -> 34858 | M72: =IF(VLOOKUP(L72,'setdet 2'!$B$2:$E$2284,4,FALSE)=0,"",VLOOKUP(L72,'setdet 2'!$B$2:$E$2284,4,FALSE)) ->  | S72: 0 | T72: 0 | U72: 0 | V72: =IF(U72=0,0,VLOOKUP(U72,'intrek AX'!$A$1:$R$3593,18,FALSE)) -> 0 | W72: 0 | AA72: =IF(SUM(F72:I72)=0,"",IF(ral=1,0,INDEX('input data'!$G$96:$G$101,ral))) -> RAL7016ST | AB72: =IF(AC72="","",IF(AC72=1,calcul!$B$1072,IF(AC72=2,calcul!$B$1080,""))) -> 029/71334 | AC72: 1 | AG72: =L72 -> 34858 | AH72: =B72 -> VPGLX | AI72: 0
A73: =taal!A342 -> RINNE XL CLIMALUX | B73: VPGXLX | C73: GXLX | D73: 4040 | E73: 110493 | F73: 110494 | H73: 110495 | I73: 110496 | J73: 110496 | K73: =VLOOKUP(L73,'intrek AX'!$A$1:$R$3596,18,FALSE) -> 179.85 | L73: =INDEX(E73:J73,ral) -> 110495 | M73: =IF(VLOOKUP(L73,'setdet 2'!$B$2:$E$2284,4,FALSE)=0,"",VLOOKUP(L73,'setdet 2'!$B$2:$E$2284,4,FALSE)) ->  | O73: =IF(ISBLANK(N73)=TRUE,M73,N73) ->  | S73: =IF(T73=0,0,L73) -> 0 | T73: =IF(ISNUMBER(O73)=FALSE,0,O73) -> 0 | U73: =IF(T73=0,0,IF(ralstandout=1,H73,S73)) -> 0 | V73: =IF(U73=0,0,VLOOKUP(U73,'intrek AX'!$A$1:$R$3593,18,FALSE)) -> 0 | W73: =T73*D73/1000*V73 -> 0 | AA73: =IF(SUM(F73:I73)=0,"",IF(ral=1,0,INDEX('input data'!$G$96:$G$101,ral))) -> RAL7016ST | AB73: =IF(AC73="","",IF(AC73=1,calcul!$B$1072,IF(AC73=2,calcul!$B$1080,""))) -> 029/71334 | AC73: 1 | AG73: 110495 | AH73: VPGXLX | AI73: 0
B74: VPGXLX | C74: GXLX | D74: 4540 | E74: 110497 | F74: 110498 | H74: 110499 | I74: 110500 | J74: 110500 | K74: =VLOOKUP(L74,'intrek AX'!$A$1:$R$3596,18,FALSE) -> 179.85 | L74: =INDEX(E74:J74,ral) -> 110499 | M74: =IF(VLOOKUP(L74,'setdet 2'!$B$2:$E$2284,4,FALSE)=0,"",VLOOKUP(L74,'setdet 2'!$B$2:$E$2284,4,FALSE)) ->  | O74: =IF(ISBLANK(N74)=TRUE,M74,N74) ->  | S74: =IF(T74=0,0,L74) -> 0 | T74: =IF(ISNUMBER(O74)=FALSE,0,O74) -> 0 | U74: =IF(T74=0,0,IF(ralstandout=1,H74,S74)) -> 0 | V74: =IF(U74=0,0,VLOOKUP(U74,'intrek AX'!$A$1:$R$3593,18,FALSE)) -> 0 | W74: =T74*D74/1000*V74 -> 0 | AA74: =IF(SUM(F74:I74)=0,"",IF(ral=1,0,INDEX('input data'!$G$96:$G$101,ral))) -> RAL7016ST | AB74: =IF(AC74="","",IF(AC74=1,calcul!$B$1072,IF(AC74=2,calcul!$B$1080,""))) -> 029/71334 | AC74: 1 | AG74: 110499 | AH74: VPGXLX | AI74: 0
B75: VPGXLX | C75: GXLX | D75: 5040 | E75: 71505 | F75: 71508 | H75: 71507 | I75: 71506 | J75: 71506 | K75: =VLOOKUP(L75,'intrek AX'!$A$1:$R$3596,18,FALSE) -> 179.85 | L75: =INDEX(E75:J75,ral) -> 71507 | M75: =IF(VLOOKUP(L75,'setdet 2'!$B$2:$E$2284,4,FALSE)=0,"",VLOOKUP(L75,'setdet 2'!$B$2:$E$2284,4,FALSE)) ->  | O75: =IF(ISBLANK(N75)=TRUE,M75,N75) ->  | S75: =IF(T75=0,0,L75) -> 0 | T75: =IF(ISNUMBER(O75)=FALSE,0,O75) -> 0 | U75: =IF(T75=0,0,IF(ralstandout=1,H75,S75)) -> 0 | V75: =IF(U75=0,0,VLOOKUP(U75,'intrek AX'!$A$1:$R$3593,18,FALSE)) -> 0 | W75: =T75*D75/1000*V75 -> 0 | AA75: =IF(SUM(F75:I75)=0,"",IF(ral=1,0,INDEX('input data'!$G$96:$G$101,ral))) -> RAL7016ST | AB75: =IF(AC75="","",IF(AC75=1,calcul!$B$1072,IF(AC75=2,calcul!$B$1080,""))) -> 029/71334 | AC75: 1 | AG75: =L75 -> 71507 | AH75: =B75 -> VPGXLX | AI75: 0
B76: VPGXLX | C76: GXLX | D76: 6040 | E76: 71509 | F76: 71512 | H76: 71511 | I76: 71510 | J76: 71510 | K76: =VLOOKUP(L76,'intrek AX'!$A$1:$R$3596,18,FALSE) -> 179.85 | L76: =INDEX(E76:J76,ral) -> 71511 | M76: =IF(VLOOKUP(L76,'setdet 2'!$B$2:$E$2284,4,FALSE)=0,"",VLOOKUP(L76,'setdet 2'!$B$2:$E$2284,4,FALSE)) ->  | O76: =IF(ISBLANK(N76)=TRUE,M76,N76) ->  | S76: =IF(T76=0,0,L76) -> 0 | T76: =IF(ISNUMBER(O76)=FALSE,0,O76) -> 0 | U76: =IF(T76=0,0,IF(ralstandout=1,H76,S76)) -> 0 | V76: =IF(U76=0,0,VLOOKUP(U76,'intrek AX'!$A$1:$R$3593,18,FALSE)) -> 0 | W76: =T76*D76/1000*V76 -> 0 | AA76: =IF(SUM(F76:I76)=0,"",IF(ral=1,0,INDEX('input data'!$G$96:$G$101,ral))) -> RAL7016ST | AB76: =IF(AC76="","",IF(AC76=1,calcul!$B$1072,IF(AC76=2,calcul!$B$1080,""))) -> 029/71334 | AC76: 1 | AG76: 71511 | AH76: VPGXLX | AI76: 0
B77: VPGXLX | C77: GXLX | D77: 7040 | E77: 71513 | F77: 71516 | H77: 71515 | I77: 71514 | J77: 71514 | K77: =VLOOKUP(L77,'intrek AX'!$A$1:$R$3596,18,FALSE) -> 179.85 | L77: =INDEX(E77:J77,ral) -> 71515 | M77: =IF(VLOOKUP(L77,'setdet 2'!$B$2:$E$2284,4,FALSE)=0,"",VLOOKUP(L77,'setdet 2'!$B$2:$E$2284,4,FALSE)) ->  | O77: =IF(ISBLANK(N77)=TRUE,M77,N77) ->  | S77: =IF(T77=0,0,L77) -> 0 | T77: =IF(ISNUMBER(O77)=FALSE,0,O77) -> 0 | U77: =IF(T77=0,0,IF(ralstandout=1,H77,S77)) -> 0 | V77: =IF(U77=0,0,VLOOKUP(U77,'intrek AX'!$A$1:$R$3593,18,FALSE)) -> 0 | W77: =T77*D77/1000*V77 -> 0 | AA77: =IF(SUM(F77:I77)=0,"",IF(ral=1,0,INDEX('input data'!$G$96:$G$101,ral))) -> RAL7016ST | AB77: =IF(AC77="","",IF(AC77=1,calcul!$B$1072,IF(AC77=2,calcul!$B$1080,""))) -> 029/71334 | AC77: 1 | AG77: 71515 | AH77: VPGXLX | AI77: 0
A78: =taal!A340 -> RINNENTRÄGER GDX CLIMALUX | B78: VPGDX | C78: GDX | D78: 3540 | E78: 51834 | F78: 51836 | G78: 35165 | H78: 51835 | I78: 51862 | J78: 51862 | K78: =VLOOKUP(L78,'intrek AX'!$A$1:$R$3596,18,FALSE) -> 135.3 | L78: =INDEX(E78:J78,ral) -> 51835 | M78: =IF(VLOOKUP(L78,'setdet 2'!$B$2:$E$2284,4,FALSE)=0,"",VLOOKUP(L78,'setdet 2'!$B$2:$E$2284,4,FALSE)) ->  | O78: =IF(ISBLANK(N78)=TRUE,M78,N78) ->  | S78: 0 | T78: =IF(ISNUMBER(O78)=FALSE,0,O78) -> 0 | U78: 0 | V78: =IF(U78=0,0,VLOOKUP(U78,'intrek AX'!$A$1:$R$3593,18,FALSE)) -> 0 | W78: 0 | AA78: =IF(SUM(F78:I78)=0,"",IF(ral=1,0,INDEX('input data'!$G$96:$G$101,ral))) -> RAL7016ST | AB78: =IF(AC78="","",IF(AC78=1,calcul!$B$1072,IF(AC78=2,calcul!$B$1080,""))) -> 029/71334 | AC78: 1 | AG78: 51835 | AH78: VPGDX | AI78: 0
B79: VPGDX | C79: GDX | D79: 5040 | E79: 51837 | F79: 51839 | G79: 35166 | H79: 51838 | I79: 51863 | J79: 51863 | K79: =VLOOKUP(L79,'intrek AX'!$A$1:$R$3596,18,FALSE) -> 135.3 | L79: =INDEX(E79:J79,ral) -> 51838 | M79: =IF(VLOOKUP(L79,'setdet 2'!$B$2:$E$2284,4,FALSE)=0,"",VLOOKUP(L79,'setdet 2'!$B$2:$E$2284,4,FALSE)) ->  | S79: 0 | T79: 0 | U79: 0 | V79: =IF(U79=0,0,VLOOKUP(U79,'intrek AX'!$A$1:$R$3593,18,FALSE)) -> 0 | W79: 0 | AA79: =IF(SUM(F79:I79)=0,"",IF(ral=1,0,INDEX('input data'!$G$96:$G$101,ral))) -> RAL7016ST | AB79: =IF(AC79="","",IF(AC79=1,calcul!$B$1072,IF(AC79=2,calcul!$B$1080,""))) -> 029/71334 | AC79: 1 | AG79: 51838 | AH79: VPGDX | AI79: 0
B80: VPGDX | C80: GDX | D80: 6040 | E80: 51840 | F80: 51842 | G80: 35167 | H80: 51841 | I80: 51864 | J80: 51864 | K80: =VLOOKUP(L80,'intrek AX'!$A$1:$R$3596,18,FALSE) -> 135.3 | L80: =INDEX(E80:J80,ral) -> 51841 | M80: =IF(VLOOKUP(L80,'setdet 2'!$B$2:$E$2284,4,FALSE)=0,"",VLOOKUP(L80,'setdet 2'!$B$2:$E$2284,4,FALSE)) ->  | S80: 0 | T80: 0 | U80: 0 | V80: =IF(U80=0,0,VLOOKUP(U80,'intrek AX'!$A$1:$R$3593,18,FALSE)) -> 0 | W80: 0 | AA80: =IF(SUM(F80:I80)=0,"",IF(ral=1,0,INDEX('input data'!$G$96:$G$101,ral))) -> RAL7016ST | AB80: =IF(AC80="","",IF(AC80=1,calcul!$B$1072,IF(AC80=2,calcul!$B$1080,""))) -> 029/71334 | AC80: 1 | AG80: 51841 | AH80: VPGDX | AI80: 0
B81: VPGDX | C81: GDX | D81: 7040 | E81: 51843 | F81: 51845 | G81: 35168 | H81: 51844 | I81: 51865 | J81: 51865 | K81: =VLOOKUP(L81,'intrek AX'!$A$1:$R$3596,18,FALSE) -> 135.3 | L81: =INDEX(E81:J81,ral) -> 51844 | M81: =IF(VLOOKUP(L81,'setdet 2'!$B$2:$E$2284,4,FALSE)=0,"",VLOOKUP(L81,'setdet 2'!$B$2:$E$2284,4,FALSE)) ->  | S81: 0 | T81: 0 | U81: 0 | V81: =IF(U81=0,0,VLOOKUP(U81,'intrek AX'!$A$1:$R$3593,18,FALSE)) -> 0 | W81: 0 | AA81: =IF(SUM(F81:I81)=0,"",IF(ral=1,0,INDEX('input data'!$G$96:$G$101,ral))) -> RAL7016ST | AB81: =IF(AC81="","",IF(AC81=1,calcul!$B$1072,IF(AC81=2,calcul!$B$1080,""))) -> 029/71334 | AC81: 1 | AG81: 51844 | AH81: VPGDX | AI81: 0
A82: =taal!A341 -> RINNENTRÄGERKAPPE GDCX CLIMALUX | B82: VPGDCX | C82: GDCX | D82: 3540 | E82: 51846 | F82: 51849 | G82: 35189 | H82: 51848 | I82: 51847 | J82: 51847 | K82: =VLOOKUP(L82,'intrek AX'!$A$1:$R$3596,18,FALSE) -> 24.87 | L82: =INDEX(E82:J82,ral) -> 51848 | M82: =IF(VLOOKUP(L82,'setdet 2'!$B$2:$E$2284,4,FALSE)=0,"",VLOOKUP(L82,'setdet 2'!$B$2:$E$2284,4,FALSE)) ->  | S82: 0 | T82: 0 | U82: 0 | V82: =IF(U82=0,0,VLOOKUP(U82,'intrek AX'!$A$1:$R$3593,18,FALSE)) -> 0 | W82: 0 | AA82: =IF(SUM(F82:I82)=0,"",IF(ral=1,0,INDEX('input data'!$G$96:$G$101,ral))) -> RAL7016ST | AB82: =IF(AC82="","",IF(AC82=1,calcul!$B$1072,IF(AC82=2,calcul!$B$1080,""))) -> 029/71334 | AC82: 1 | AG82: 51848 | AH82: VPGDCX | AI82: 0
B83: VPGDCX | C83: GDCX | D83: 5040 | E83: 51850 | F83: 51853 | G83: 35190 | H83: 51852 | I83: 51851 | J83: 51851 | K83: =VLOOKUP(L83,'intrek AX'!$A$1:$R$3596,18,FALSE) -> 24.87 | L83: =INDEX(E83:J83,ral) -> 51852 | M83: =IF(VLOOKUP(L83,'setdet 2'!$B$2:$E$2284,4,FALSE)=0,"",VLOOKUP(L83,'setdet 2'!$B$2:$E$2284,4,FALSE)) ->  | S83: 0 | T83: 0 | U83: 0 | V83: =IF(U83=0,0,VLOOKUP(U83,'intrek AX'!$A$1:$R$3593,18,FALSE)) -> 0 | W83: 0 | AA83: =IF(SUM(F83:I83)=0,"",IF(ral=1,0,INDEX('input data'!$G$96:$G$101,ral))) -> RAL7016ST | AB83: =IF(AC83="","",IF(AC83=1,calcul!$B$1072,IF(AC83=2,calcul!$B$1080,""))) -> 029/71334 | AC83: 1 | AG83: 51852 | AH83: VPGDCX | AI83: 0
B84: VPGDCX | C84: GDCX | D84: 6040 | E84: 51854 | F84: 51857 | G84: 35191 | H84: 51856 | I84: 51855 | J84: 51855 | K84: =VLOOKUP(L84,'intrek AX'!$A$1:$R$3596,18,FALSE) -> 24.87 | L84: =INDEX(E84:J84,ral) -> 51856 | M84: =IF(VLOOKUP(L84,'setdet 2'!$B$2:$E$2284,4,FALSE)=0,"",VLOOKUP(L84,'setdet 2'!$B$2:$E$2284,4,FALSE)) ->  | S84: 0 | T84: 0 | U84: 0 | V84: =IF(U84=0,0,VLOOKUP(U84,'intrek AX'!$A$1:$R$3593,18,FALSE)) -> 0 | W84: 0 | AA84: =IF(SUM(F84:I84)=0,"",IF(ral=1,0,INDEX('input data'!$G$96:$G$101,ral))) -> RAL7016ST | AB84: =IF(AC84="","",IF(AC84=1,calcul!$B$1072,IF(AC84=2,calcul!$B$1080,""))) -> 029/71334 | AC84: 1 | AG84: 51856 | AH84: VPGDCX | AI84: 0
B85: VPGDCX | C85: GDCX | D85: 7040 | E85: 51858 | F85: 51861 | G85: 35192 | H85: 51860 | I85: 51859 | J85: 51859 | K85: =VLOOKUP(L85,'intrek AX'!$A$1:$R$3596,18,FALSE) -> 24.87 | L85: =INDEX(E85:J85,ral) -> 51860 | M85: =IF(VLOOKUP(L85,'setdet 2'!$B$2:$E$2284,4,FALSE)=0,"",VLOOKUP(L85,'setdet 2'!$B$2:$E$2284,4,FALSE)) ->  | S85: 0 | T85: 0 | U85: 0 | V85: =IF(U85=0,0,VLOOKUP(U85,'intrek AX'!$A$1:$R$3593,18,FALSE)) -> 0 | W85: 0 | AA85: =IF(SUM(F85:I85)=0,"",IF(ral=1,0,INDEX('input data'!$G$96:$G$101,ral))) -> RAL7016ST | AB85: =IF(AC85="","",IF(AC85=1,calcul!$B$1072,IF(AC85=2,calcul!$B$1080,""))) -> 029/71334 | AC85: 1 | AG85: 51860 | AH85: VPGDCX | AI85: 0
A86: =IF(type=3,taal!$A$829,taal!$A$828)&" 4000" -> LED FÜR GX/GXLX 4000 | B86: LED VOOR GDG + GDGL | C86: LED120C | D86: 4000 | E86: 49555 | K86: =VLOOKUP(L86,'intrek AX'!$A$1:$R$3596,18,FALSE) -> 131.4 | L86: =E86 -> 49555 | M86: =IF(VLOOKUP(L86,'setdet 2'!$B$2:$E$2284,4,FALSE)=0,"",VLOOKUP(L86,'setdet 2'!$B$2:$E$2284,4,FALSE)) ->  | S86: =IF(T86=0,0,L86) -> 0 | T86: =IF(ISNUMBER(O86)=FALSE,0,O86) -> 0 | U86: =S86 -> 0 | V86: =IF(U86=0,0,VLOOKUP(U86,'intrek AX'!$A$1:$R$3593,18,FALSE)) -> 0 | W86: =T86*V86 -> 0 | AA86: =IF(SUM(F86:I86)=0,"",INDEX('input data'!$G$96:$G$101,ral)) ->  | AB86: =IF(AC86="","",IF(AC86=1,calcul!$B$1072,IF(AC86=2,calcul!$B$1080,""))) ->  | AG86: 49555 | AH86: LED VOOR GDG + GDGL | AI86: 0
A87: =IF(type=3,taal!$A$829,taal!$A$828)&" 5000" -> LED FÜR GX/GXLX 5000 | B87: LED VOOR GDG + GDGL | C87: LED120C | D87: 5000 | E87: 49556 | K87: =VLOOKUP(L87,'intrek AX'!$A$1:$R$3596,18,FALSE) -> 164.1 | L87: 49556 | M87: =IF(VLOOKUP(L87,'setdet 2'!$B$2:$E$2284,4,FALSE)=0,"",VLOOKUP(L87,'setdet 2'!$B$2:$E$2284,4,FALSE)) ->  | O87: =IF(ISBLANK(N87)=TRUE,M87,N87) ->  | S87: 0 | T87: =IF(ISNUMBER(O87)=FALSE,0,O87) -> 0 | U87: 0 | V87: =IF(U87=0,0,VLOOKUP(U87,'intrek AX'!$A$1:$R$3593,18,FALSE)) -> 0 | W87: 0 | AA87: =IF(SUM(F87:I87)=0,"",INDEX('input data'!$G$96:$G$101,ral)) ->  | AB87: =IF(AC87="","",IF(AC87=1,calcul!$B$1072,IF(AC87=2,calcul!$B$1080,""))) ->  | AG87: 49556 | AH87: LED VOOR GDG + GDGL | AI87: 0
A88: =IF(type=3,taal!$A$829,taal!$A$828)&" 6000" -> LED FÜR GX/GXLX 6000 | C88: LED120C | D88: 6000 | E88: 49557 | K88: =VLOOKUP(L88,'intrek AX'!$A$1:$R$3596,18,FALSE) -> 197 | L88: 49557 | M88: =IF(VLOOKUP(L88,'setdet 2'!$B$2:$E$2284,4,FALSE)=0,"",VLOOKUP(L88,'setdet 2'!$B$2:$E$2284,4,FALSE)) ->  | S88: 0 | T88: =IF(ISNUMBER(O88)=FALSE,0,O88) -> 0 | U88: 0 | V88: =IF(U88=0,0,VLOOKUP(U88,'intrek AX'!$A$1:$R$3593,18,FALSE)) -> 0 | W88: 0 | AA88: =IF(SUM(F88:I88)=0,"",INDEX('input data'!$G$96:$G$101,ral)) ->  | AB88: =IF(AC88="","",IF(AC88=1,calcul!$B$1072,IF(AC88=2,calcul!$B$1080,""))) ->  | AG88: 49557 | AH88: 0 | AI88: 0
A89: =IF(type=3,taal!$A$829,taal!$A$828)&" 7000" -> LED FÜR GX/GXLX 7000 | C89: LED120C | D89: 7000 | E89: 49558 | K89: =VLOOKUP(L89,'intrek AX'!$A$1:$R$3596,18,FALSE) -> 229.81 | L89: 49558 | M89: =IF(VLOOKUP(L89,'setdet 2'!$B$2:$E$2284,4,FALSE)=0,"",VLOOKUP(L89,'setdet 2'!$B$2:$E$2284,4,FALSE)) ->  | S89: 0 | T89: =IF(ISNUMBER(O89)=FALSE,0,O89) -> 0 | U89: 0 | V89: =IF(U89=0,0,VLOOKUP(U89,'intrek AX'!$A$1:$R$3593,18,FALSE)) -> 0 | W89: 0 | AA89: =IF(SUM(F89:I89)=0,"",INDEX('input data'!$G$96:$G$101,ral)) ->  | AB89: =IF(AC89="","",IF(AC89=1,calcul!$B$1072,IF(AC89=2,calcul!$B$1080,""))) ->  | AG89: 49558 | AH89: 0 | AI89: 0
A90: =taal!A859 -> TRAFO 12 V 30 W | B90: TRANSFO ENKEL | C90: TRANSF 12 V - 30 W | E90: 26404 | K90: =VLOOKUP(L90,'intrek AX'!$A$1:$R$3596,18,FALSE) -> 59 | L90: 26404 | M90: =IF(VLOOKUP(L90,'setdet 2'!$B$2:$E$2284,4,FALSE)=0,"",VLOOKUP(L90,'setdet 2'!$B$2:$E$2284,4,FALSE)) ->  | O90: =IF(ISBLANK(N90)=TRUE,M90,N90) ->  | S90: 0 | T90: =IF(ISNUMBER(O90)=FALSE,0,O90) -> 0 | U90: 0 | V90: =IF(U90=0,0,VLOOKUP(U90,'intrek AX'!$A$1:$R$3593,18,FALSE)) -> 0 | W90: 0 | AA90: =IF(SUM(F90:I90)=0,"",INDEX('input data'!$G$96:$G$101,ral)) ->  | AB90: =IF(AC90="","",IF(AC90=1,calcul!$B$1072,IF(AC90=2,calcul!$B$1080,""))) ->  | AG90: 26404 | AH90: TRANSFO ENKEL | AI90: 0
A91: =taal!A860 -> TRANSFO 24 V 30 W | B91: TRANSFO ENKEL | C91: TRANSF 24 V - 30 W | E91: 49559 | K91: =VLOOKUP(L91,'intrek AX'!$A$1:$R$3596,18,FALSE) -> 59 | L91: 49559 | M91: =IF(VLOOKUP(L91,'setdet 2'!$B$2:$E$2284,4,FALSE)=0,"",VLOOKUP(L91,'setdet 2'!$B$2:$E$2284,4,FALSE)) ->  | S91: 0 | T91: =IF(ISNUMBER(O91)=FALSE,0,O91) -> 0 | U91: 0 | V91: =IF(U91=0,0,VLOOKUP(U91,'intrek AX'!$A$1:$R$3593,18,FALSE)) -> 0 | W91: 0 | AA91: =IF(SUM(F91:I91)=0,"",INDEX('input data'!$G$96:$G$101,ral)) ->  | AB91: =IF(AC91="","",IF(AC91=1,calcul!$B$1072,IF(AC91=2,calcul!$B$1080,""))) ->  | AG91: 49559 | AH91: TRANSFO ENKEL | AI91: 0
A92: =taal!A861 -> TRANSFO 24 V 60 W | B92: TRANSFO ENKEL | C92: TRANSF 24 V - 60 W | E92: 49560 | K92: =VLOOKUP(L92,'intrek AX'!$A$1:$R$3596,18,FALSE) -> 101.32 | L92: 49560 | M92: =IF(VLOOKUP(L92,'setdet 2'!$B$2:$E$2284,4,FALSE)=0,"",VLOOKUP(L92,'setdet 2'!$B$2:$E$2284,4,FALSE)) ->  | S92: 0 | T92: 0 | U92: 0 | V92: =IF(U92=0,0,VLOOKUP(U92,'intrek AX'!$A$1:$R$3593,18,FALSE)) -> 0 | W92: 0 | AA92: =IF(SUM(F92:I92)=0,"",INDEX('input data'!$G$96:$G$101,ral)) ->  | AB92: =IF(AC92="","",IF(AC92=1,calcul!$B$1072,IF(AC92=2,calcul!$B$1080,""))) ->  | AG92: 49560 | AH92: TRANSFO ENKEL | AI92: 0
A93: =taal!A863 -> KABEL FÜR LED 6 M | B93: TRANSFO ENKEL | C93: KAB | D93: 6000 | E93: 31023 | K93: =VLOOKUP(L93,'intrek AX'!$A$1:$R$3596,18,FALSE) -> 13.5 | L93: 31023 | M93: =IF(VLOOKUP(L93,'setdet 2'!$B$2:$E$2284,4,FALSE)=0,"",VLOOKUP(L93,'setdet 2'!$B$2:$E$2284,4,FALSE)) ->  | S93: 0 | T93: 0 | U93: 0 | V93: =IF(U93=0,0,VLOOKUP(U93,'intrek AX'!$A$1:$R$3593,18,FALSE)) -> 0 | W93: 0 | AA93: =IF(SUM(F93:I93)=0,"",INDEX('input data'!$G$96:$G$101,ral)) ->  | AB93: =IF(AC93="","",IF(AC93=1,calcul!$B$1072,IF(AC93=2,calcul!$B$1080,""))) ->  | AG93: 31023 | AH93: TRANSFO ENKEL | AI93: 0
A94: =taal!A864 -> FERNBEDIENUNG | B94: AFSTANDSBEDIENING | C94: AFST | E94: 39640 | K94: =VLOOKUP(L94,'intrek AX'!$A$1:$R$3596,18,FALSE) -> 96.76 | L94: =E94 -> 39640 | M94: =IF(VLOOKUP(L94,'setdet 2'!$B$2:$E$2284,4,FALSE)=0,"",VLOOKUP(L94,'setdet 2'!$B$2:$E$2284,4,FALSE)) ->  | S94: 0 | T94: 0 | U94: 0 | V94: =IF(U94=0,0,VLOOKUP(U94,'intrek AX'!$A$1:$R$3593,18,FALSE)) -> 0 | W94: 0 | AA94: =IF(SUM(F94:I94)=0,"",INDEX('input data'!$G$96:$G$101,ral)) ->  | AB94: =IF(AC94="","",IF(AC94=1,calcul!$B$1072,IF(AC94=2,calcul!$B$1080,""))) ->  | AG94: 39640 | AH94: AFSTANDSBEDIENING | AI94: 0
A95: =taal!A868 -> EMPFÄNGER + DIMMER | B95: ONTVANGER | C95: ONT | E95: 39641 | K95: =VLOOKUP(L95,'intrek AX'!$A$1:$R$3596,18,FALSE) -> 185.03 | L95: =E95 -> 39641 | M95: =IF(VLOOKUP(L95,'setdet 2'!$B$2:$E$2284,4,FALSE)=0,"",VLOOKUP(L95,'setdet 2'!$B$2:$E$2284,4,FALSE)) ->  | S95: 0 | T95: 0 | U95: 0 | V95: =IF(U95=0,0,VLOOKUP(U95,'intrek AX'!$A$1:$R$3593,18,FALSE)) -> 0 | W95: 0 | AA95: =IF(SUM(F95:I95)=0,"",INDEX('input data'!$G$96:$G$101,ral)) ->  | AB95: =IF(AC95="","",IF(AC95=1,calcul!$B$1072,IF(AC95=2,calcul!$B$1080,""))) ->  | AG95: 39641 | AH95: ONTVANGER | AI95: 0
A96: =taal!A869 -> KABELSATZ FÜR DIMMER | B96: KABELSET ONTVANGER | C96: KABES | D96: 2 x 500 | E96: 49561 | K96: =VLOOKUP(L96,'intrek AX'!$A$1:$R$3596,18,FALSE) -> 11.74 | L96: =E96 -> 49561 | M96: =IF(VLOOKUP(L96,'setdet 2'!$B$2:$E$2284,4,FALSE)=0,"",VLOOKUP(L96,'setdet 2'!$B$2:$E$2284,4,FALSE)) ->  | S96: 0 | T96: 0 | U96: 0 | V96: =IF(U96=0,0,VLOOKUP(U96,'intrek AX'!$A$1:$R$3593,18,FALSE)) -> 0 | W96: 0 | AA96: =IF(SUM(F96:I96)=0,"",INDEX('input data'!$G$96:$G$101,ral)) ->  | AB96: =IF(AC96="","",IF(AC96=1,calcul!$B$1072,IF(AC96=2,calcul!$B$1080,""))) ->  | AG96: 49561 | AH96: KABELSET ONTVANGER | AI96: 0
A97: =taal!A343 -> SCHARNIER BOTTOM | B97: VPSB | C97: SB | D97: 3540 | E97: 21416 | F97: 21422 | G97: 21419 | H97: 31138 | I97: 21425 | J97: 21425 | K97: =VLOOKUP(L97,'intrek AX'!$A$1:$R$3596,18,FALSE) -> 13.35 | L97: =INDEX(E97:J97,ralin) -> 31138 | M97: =IF(VLOOKUP(L97,'setdet 2'!$B$2:$E$2284,4,FALSE)=0,"",VLOOKUP(L97,'setdet 2'!$B$2:$E$2284,4,FALSE)) ->  | S97: 0 | T97: =IF(ISNUMBER(O97)=FALSE,0,O97) -> 0 | U97: =IF(T97=0,0,IF(ralstandin=1,H97,S97)) -> 0 | V97: =IF(U97=0,0,VLOOKUP(U97,'intrek AX'!$A$1:$R$3593,18,FALSE)) -> 0 | W97: =T97*D97/1000*V97 -> 0 | AA97: =IF(SUM(F97:I97)=0,"",IF(ralin=1,0,INDEX('input data'!$H$96:$H$101,ralin))) -> RAL7016ST | AB97: =IF(AC97="","",IF(AC97=1,calcul!$B$1072,IF(AC97=2,calcul!$B$1080,""))) -> 029/71334 | AC97: 2 | AG97: 31138 | AH97: VPSB | AI97: 0
B98: VPSB | C98: SB | D98: 5040 | E98: 21417 | F98: 21423 | G98: 21420 | H98: 31139 | I98: 21426 | J98: 21426 | K98: =VLOOKUP(L98,'intrek AX'!$A$1:$R$3596,18,FALSE) -> 13.35 | L98: =INDEX(E98:J98,ralin) -> 31139 | M98: =IF(VLOOKUP(L98,'setdet 2'!$B$2:$E$2284,4,FALSE)=0,"",VLOOKUP(L98,'setdet 2'!$B$2:$E$2284,4,FALSE)) ->  | S98: 0 | T98: 0 | U98: =IF(T98=0,0,IF(ralstandin=1,H98,S98)) -> 0 | V98: =IF(U98=0,0,VLOOKUP(U98,'intrek AX'!$A$1:$R$3593,18,FALSE)) -> 0 | W98: 0 | AA98: =IF(SUM(F98:I98)=0,"",IF(ralin=1,0,INDEX('input data'!$H$96:$H$101,ralin))) -> RAL7016ST | AB98: =IF(AC98="","",IF(AC98=1,calcul!$B$1072,IF(AC98=2,calcul!$B$1080,""))) -> 029/71334 | AC98: 2 | AG98: 31139 | AH98: VPSB | AI98: 0
B99: VPSB | C99: SB | D99: 7040 | E99: 21418 | F99: 21424 | G99: 21421 | H99: 31140 | I99: 21427 | J99: 21427 | K99: =VLOOKUP(L99,'intrek AX'!$A$1:$R$3596,18,FALSE) -> 13.35 | L99: =INDEX(E99:J99,ralin) -> 31140 | M99: =IF(VLOOKUP(L99,'setdet 2'!$B$2:$E$2284,4,FALSE)=0,"",VLOOKUP(L99,'setdet 2'!$B$2:$E$2284,4,FALSE)) ->  | S99: 0 | T99: 0 | U99: =IF(T99=0,0,IF(ralstandin=1,H99,S99)) -> 0 | V99: =IF(U99=0,0,VLOOKUP(U99,'intrek AX'!$A$1:$R$3593,18,FALSE)) -> 0 | W99: 0 | AA99: =IF(SUM(F99:I99)=0,"",IF(ralin=1,0,INDEX('input data'!$H$96:$H$101,ralin))) -> RAL7016ST | AB99: =IF(AC99="","",IF(AC99=1,calcul!$B$1072,IF(AC99=2,calcul!$B$1080,""))) -> 029/71334 | AC99: 2 | AG99: 31140 | AH99: VPSB | AI99: 0
A100: =taal!A344 -> RINNE 120 A | B100: VP120A | C100: G120A | D100: 3500 | E100: 13283 | F100: 13294 | G100: 19911 | H100: 54976 | I100: 21160 | J100: 21160 | K100: =VLOOKUP(L100,'intrek AX'!$A$1:$R$3596,18,FALSE) -> 34.21 | L100: =INDEX(E100:J100,ral) -> 54976 | M100: =IF(VLOOKUP(L100,'setdet 2'!$B$2:$E$2284,4,FALSE)=0,"",VLOOKUP(L100,'setdet 2'!$B$2:$E$2284,4,FALSE)) ->  | S100: 0 | T100: 0 | U100: =IF(T100=0,0,IF(ralstandout=1,H100,S100)) -> 0 | V100: =IF(U100=0,0,VLOOKUP(U100,'intrek AX'!$A$1:$R$3593,18,FALSE)) -> 0 | W100: 0 | AA100: =IF(SUM(F100:I100)=0,"",IF(ral=1,0,INDEX('input data'!$G$96:$G$101,ral))) -> RAL7016ST | AB100: =IF(AC100="","",IF(AC100=1,calcul!$B$1072,IF(AC100=2,calcul!$B$1080,""))) -> 029/71334 | AC100: 1 | AG100: 54976 | AH100: VP120A | AI100: 0
B101: VP120A | C101: G120A | D101: 5000 | E101: 13285 | F101: 13295 | G101: 19912 | H101: 54977 | I101: 21161 | J101: 21161 | K101: =VLOOKUP(L101,'intrek AX'!$A$1:$R$3596,18,FALSE) -> 34.21 | L101: =INDEX(E101:J101,ral) -> 54977 | M101: =IF(VLOOKUP(L101,'setdet 2'!$B$2:$E$2284,4,FALSE)=0,"",VLOOKUP(L101,'setdet 2'!$B$2:$E$2284,4,FALSE)) ->  | S101: 0 | T101: 0 | U101: 0 | V101: =IF(U101=0,0,VLOOKUP(U101,'intrek AX'!$A$1:$R$3593,18,FALSE)) -> 0 | W101: 0 | AA101: =IF(SUM(F101:I101)=0,"",IF(ral=1,0,INDEX('input data'!$G$96:$G$101,ral))) -> RAL7016ST | AB101: =IF(AC101="","",IF(AC101=1,calcul!$B$1072,IF(AC101=2,calcul!$B$1080,""))) -> 029/71334 | AC101: 1 | AG101: 54977 | AH101: VP120A | AI101: 0
B102: VP120A | C102: G120A | D102: 7000 | E102: 13291 | F102: 13296 | G102: 19913 | H102: 54978 | I102: 21162 | J102: 21162 | K102: =VLOOKUP(L102,'intrek AX'!$A$1:$R$3596,18,FALSE) -> 34.21 | L102: =INDEX(E102:J102,ral) -> 54978 | M102: =IF(VLOOKUP(L102,'setdet 2'!$B$2:$E$2284,4,FALSE)=0,"",VLOOKUP(L102,'setdet 2'!$B$2:$E$2284,4,FALSE)) ->  | S102: 0 | T102: 0 | U102: 0 | V102: =IF(U102=0,0,VLOOKUP(U102,'intrek AX'!$A$1:$R$3593,18,FALSE)) -> 0 | W102: 0 | AA102: =IF(SUM(F102:I102)=0,"",IF(ral=1,0,INDEX('input data'!$G$96:$G$101,ral))) -> RAL7016ST | AB102: =IF(AC102="","",IF(AC102=1,calcul!$B$1072,IF(AC102=2,calcul!$B$1080,""))) -> 029/71334 | AC102: 1 | AG102: 54978 | AH102: VP120A | AI102: 0
A103: =taal!A345 -> AUFSATZSTÜCK RINNE | B103: VPGR | C103: GR | D103: 3540 | E103: 17820 | F103: 17828 | G103: 21156 | H103: 31343 | I103: 21163 | J103: 21163 | K103: =VLOOKUP(L103,'intrek AX'!$A$1:$R$3596,18,FALSE) -> 24.42 | L103: =INDEX(E103:J103,ral) -> 31343 | M103: =IF(VLOOKUP(L103,'setdet 2'!$B$2:$E$2284,4,FALSE)=0,"",VLOOKUP(L103,'setdet 2'!$B$2:$E$2284,4,FALSE)) ->  | S103: 0 | T103: 0 | U103: 0 | V103: =IF(U103=0,0,VLOOKUP(U103,'intrek AX'!$A$1:$R$3593,18,FALSE)) -> 0 | W103: 0 | AA103: =IF(SUM(F103:I103)=0,"",IF(ral=1,0,INDEX('input data'!$G$96:$G$101,ral))) -> RAL7016ST | AB103: =IF(AC103="","",IF(AC103=1,calcul!$B$1072,IF(AC103=2,calcul!$B$1080,""))) -> 029/71334 | AC103: 1 | AG103: 31343 | AH103: VPGR | AI103: 0
B104: VPGR | C104: GR | D104: 5040 | E104: 17819 | F104: 17830 | G104: 21157 | H104: 31344 | I104: 21164 | J104: 21164 | K104: =VLOOKUP(L104,'intrek AX'!$A$1:$R$3596,18,FALSE) -> 24.42 | L104: =INDEX(E104:J104,ral) -> 31344 | M104: =IF(VLOOKUP(L104,'setdet 2'!$B$2:$E$2284,4,FALSE)=0,"",VLOOKUP(L104,'setdet 2'!$B$2:$E$2284,4,FALSE)) ->  | S104: 0 | T104: 0 | U104: 0 | V104: =IF(U104=0,0,VLOOKUP(U104,'intrek AX'!$A$1:$R$3593,18,FALSE)) -> 0 | W104: 0 | AA104: =IF(SUM(F104:I104)=0,"",IF(ral=1,0,INDEX('input data'!$G$96:$G$101,ral))) -> RAL7016ST | AB104: =IF(AC104="","",IF(AC104=1,calcul!$B$1072,IF(AC104=2,calcul!$B$1080,""))) -> 029/71334 | AC104: 1 | AG104: 31344 | AH104: VPGR | AI104: 0
B105: VPGR | C105: GR | D105: 7040 | E105: 17821 | F105: 17831 | G105: 21159 | H105: 31345 | I105: 21165 | J105: 21165 | K105: =VLOOKUP(L105,'intrek AX'!$A$1:$R$3596,18,FALSE) -> 24.42 | L105: =INDEX(E105:J105,ral) -> 31345 | M105: =IF(VLOOKUP(L105,'setdet 2'!$B$2:$E$2284,4,FALSE)=0,"",VLOOKUP(L105,'setdet 2'!$B$2:$E$2284,4,FALSE)) ->  | S105: 0 | T105: 0 | U105: 0 | V105: =IF(U105=0,0,VLOOKUP(U105,'intrek AX'!$A$1:$R$3593,18,FALSE)) -> 0 | W105: 0 | AA105: =IF(SUM(F105:I105)=0,"",IF(ral=1,0,INDEX('input data'!$G$96:$G$101,ral))) -> RAL7016ST | AB105: =IF(AC105="","",IF(AC105=1,calcul!$B$1072,IF(AC105=2,calcul!$B$1080,""))) -> 029/71334 | AC105: 1 | AG105: 31345 | AH105: VPGR | AI105: 0
A106: =taal!A347 -> TRÄGER 1 | B106: VPD1 | C106: D1 | D106: 2540 | E106: 21246 | F106: 21261 | G106: 21251 | H106: 31145 | I106: 21256 | J106: 21256 | K106: =VLOOKUP(L106,'intrek AX'!$A$1:$R$3596,18,FALSE) -> 29.98 | L106: =INDEX(E106:J106,ralin) -> 31145 | M106: =IF(VLOOKUP(L106,'setdet 2'!$B$2:$E$2284,4,FALSE)=0,"",VLOOKUP(L106,'setdet 2'!$B$2:$E$2284,4,FALSE)) ->  | S106: 0 | T106: 0 | U106: =IF(T106=0,0,IF(ralstandin=1,H106,S106)) -> 0 | V106: =IF(U106=0,0,VLOOKUP(U106,'intrek AX'!$A$1:$R$3593,18,FALSE)) -> 0 | W106: 0 | AA106: =IF(SUM(F106:I106)=0,"",IF(ralin=1,0,INDEX('input data'!$H$96:$H$101,ralin))) -> RAL7016ST | AB106: =IF(AC106="","",IF(AC106=1,calcul!$B$1072,IF(AC106=2,calcul!$B$1080,""))) -> 029/71334 | AC106: 2 | AE106: =SUMIF('assembly codes'!$A$4:$A$61,articles!C106,'assembly codes'!$H$4:$H$61) -> 0 | AF106: =IF(OR(T106=0,verzagen=2,pc=2,AE106=0),"",AE106&".1") ->  | AG106: 31145 | AH106: VPD1 | AI106: 0
B107: VPD1 | C107: D1 | D107: 3040 | E107: 21247 | F107: 21262 | G107: 21252 | H107: 31146 | I107: 21257 | J107: 21257 | K107: =VLOOKUP(L107,'intrek AX'!$A$1:$R$3596,18,FALSE) -> 29.98 | L107: =INDEX(E107:J107,ralin) -> 31146 | M107: =IF(VLOOKUP(L107,'setdet 2'!$B$2:$E$2284,4,FALSE)=0,"",VLOOKUP(L107,'setdet 2'!$B$2:$E$2284,4,FALSE)) ->  | S107: =IF(T107=0,0,L107) -> 0 | T107: =IF(ISNUMBER(O107)=FALSE,0,O107) -> 0 | U107: 0 | V107: =IF(U107=0,0,VLOOKUP(U107,'intrek AX'!$A$1:$R$3593,18,FALSE)) -> 0 | W107: 0 | AA107: =IF(SUM(F107:I107)=0,"",IF(ralin=1,0,INDEX('input data'!$H$96:$H$101,ralin))) -> RAL7016ST | AB107: =IF(AC107="","",IF(AC107=1,calcul!$B$1072,IF(AC107=2,calcul!$B$1080,""))) -> 029/71334 | AC107: 2 | AE107: =SUMIF('assembly codes'!$A$4:$A$61,articles!C107,'assembly codes'!$H$4:$H$61) -> 0 | AF107: =IF(OR(T107=0,verzagen=2,pc=2,AE107=0),"",AE107&".2") ->  | AG107: 31146 | AH107: VPD1 | AI107: 0
B108: VPD1 | C108: D1 | D108: 3540 | E108: 21248 | F108: 21263 | G108: 21253 | H108: 31147 | I108: 21258 | J108: 21258 | K108: =VLOOKUP(L108,'intrek AX'!$A$1:$R$3596,18,FALSE) -> 29.98 | L108: =INDEX(E108:J108,ralin) -> 31147 | M108: =IF(VLOOKUP(L108,'setdet 2'!$B$2:$E$2284,4,FALSE)=0,"",VLOOKUP(L108,'setdet 2'!$B$2:$E$2284,4,FALSE)) ->  | S108: 0 | T108: 0 | U108: 0 | V108: =IF(U108=0,0,VLOOKUP(U108,'intrek AX'!$A$1:$R$3593,18,FALSE)) -> 0 | W108: 0 | AA108: =IF(SUM(F108:I108)=0,"",IF(ralin=1,0,INDEX('input data'!$H$96:$H$101,ralin))) -> RAL7016ST | AB108: =IF(AC108="","",IF(AC108=1,calcul!$B$1072,IF(AC108=2,calcul!$B$1080,""))) -> 029/71334 | AC108: 2 | AE108: =SUMIF('assembly codes'!$A$4:$A$61,articles!C108,'assembly codes'!$H$4:$H$61) -> 0 | AF108: =IF(OR(T108=0,verzagen=2,pc=2,AE108=0),"",AE108&".3") ->  | AG108: 31147 | AH108: VPD1 | AI108: 0
B109: VPD1 | C109: D1 | D109: 4040 | E109: 21249 | F109: 21264 | G109: 21254 | H109: 31148 | I109: 21259 | J109: 21259 | K109: =VLOOKUP(L109,'intrek AX'!$A$1:$R$3596,18,FALSE) -> 29.98 | L109: =INDEX(E109:J109,ralin) -> 31148 | M109: =IF(VLOOKUP(L109,'setdet 2'!$B$2:$E$2284,4,FALSE)=0,"",VLOOKUP(L109,'setdet 2'!$B$2:$E$2284,4,FALSE)) ->  | S109: 0 | T109: 0 | U109: 0 | V109: =IF(U109=0,0,VLOOKUP(U109,'intrek AX'!$A$1:$R$3593,18,FALSE)) -> 0 | W109: 0 | AA109: =IF(SUM(F109:I109)=0,"",IF(ralin=1,0,INDEX('input data'!$H$96:$H$101,ralin))) -> RAL7016ST | AB109: =IF(AC109="","",IF(AC109=1,calcul!$B$1072,IF(AC109=2,calcul!$B$1080,""))) -> 029/71334 | AC109: 2 | AE109: =SUMIF('assembly codes'!$A$4:$A$61,articles!C109,'assembly codes'!$H$4:$H$61) -> 0 | AF109: =IF(OR(T109=0,verzagen=2,pc=2,AE109=0),"",AE109&".4") ->  | AG109: 31148 | AH109: VPD1 | AI109: 0
B110: VPD1 | C110: D1 | D110: 6040 | E110: 21250 | F110: 21265 | G110: 21255 | H110: 31149 | I110: 21260 | J110: 21260 | K110: =VLOOKUP(L110,'intrek AX'!$A$1:$R$3596,18,FALSE) -> 29.98 | L110: =INDEX(E110:J110,ralin) -> 31149 | M110: =IF(VLOOKUP(L110,'setdet 2'!$B$2:$E$2284,4,FALSE)=0,"",VLOOKUP(L110,'setdet 2'!$B$2:$E$2284,4,FALSE)) ->  | S110: 0 | T110: 0 | U110: 0 | V110: =IF(U110=0,0,VLOOKUP(U110,'intrek AX'!$A$1:$R$3593,18,FALSE)) -> 0 | W110: 0 | AA110: =IF(SUM(F110:I110)=0,"",IF(ralin=1,0,INDEX('input data'!$H$96:$H$101,ralin))) -> RAL7016ST | AB110: =IF(AC110="","",IF(AC110=1,calcul!$B$1072,IF(AC110=2,calcul!$B$1080,""))) -> 029/71334 | AC110: 2 | AE110: =SUMIF('assembly codes'!$A$4:$A$61,articles!C110,'assembly codes'!$H$4:$H$61) -> 0 | AF110: =IF(OR(T110=0,verzagen=2,pc=2,AE110=0),"",AE110&".5") ->  | AG110: 31149 | AH110: VPD1 | AI110: 0
A111: =taal!A348 -> TRÄGER 2 | B111: VPD2 | C111: D2 | D111: 3540 | E111: 23467 | F111: 23476 | G111: 23470 | H111: 31150 | I111: 23473 | J111: 23473 | K111: =VLOOKUP(L111,'intrek AX'!$A$1:$R$3596,18,FALSE) -> 43.65 | L111: =INDEX(E111:J111,ralin) -> 31150 | M111: =IF(VLOOKUP(L111,'setdet 2'!$B$2:$E$2284,4,FALSE)=0,"",VLOOKUP(L111,'setdet 2'!$B$2:$E$2284,4,FALSE)) ->  | O111: =IF(ISBLANK(N111)=TRUE,M111,N111) ->  | S111: 0 | T111: 0 | U111: 0 | V111: =IF(U111=0,0,VLOOKUP(U111,'intrek AX'!$A$1:$R$3593,18,FALSE)) -> 0 | W111: 0 | AA111: =IF(SUM(F111:I111)=0,"",IF(ralin=1,0,INDEX('input data'!$H$96:$H$101,ralin))) -> RAL7016ST | AB111: =IF(AC111="","",IF(AC111=1,calcul!$B$1072,IF(AC111=2,calcul!$B$1080,""))) -> 029/71334 | AC111: 2 | AE111: =SUMIF('assembly codes'!$A$4:$A$61,articles!C111,'assembly codes'!$H$4:$H$61) -> 0 | AF111: =IF(OR(T111=0,verzagen=2,pc=2,AE111=0),"",AE111&".1") ->  | AG111: 31150 | AH111: VPD2 | AI111: 0
B112: VPD2 | C112: D2 | D112: 4040 | E112: 23468 | F112: 23477 | G112: 23471 | H112: 31151 | I112: 23474 | J112: 23474 | K112: =VLOOKUP(L112,'intrek AX'!$A$1:$R$3596,18,FALSE) -> 43.65 | L112: =INDEX(E112:J112,ralin) -> 31151 | M112: =IF(VLOOKUP(L112,'setdet 2'!$B$2:$E$2284,4,FALSE)=0,"",VLOOKUP(L112,'setdet 2'!$B$2:$E$2284,4,FALSE)) ->  | S112: 0 | T112: 0 | U112: 0 | V112: =IF(U112=0,0,VLOOKUP(U112,'intrek AX'!$A$1:$R$3593,18,FALSE)) -> 0 | W112: 0 | AA112: =IF(SUM(F112:I112)=0,"",IF(ralin=1,0,INDEX('input data'!$H$96:$H$101,ralin))) -> RAL7016ST | AB112: =IF(AC112="","",IF(AC112=1,calcul!$B$1072,IF(AC112=2,calcul!$B$1080,""))) -> 029/71334 | AC112: 2 | AE112: =SUMIF('assembly codes'!$A$4:$A$61,articles!C112,'assembly codes'!$H$4:$H$61) -> 0 | AF112: =IF(OR(T112=0,verzagen=2,pc=2,AE112=0),"",AE112&".2") ->  | AG112: 31151 | AH112: VPD2 | AI112: 0
B113: VPD2 | C113: D2 | D113: 5040 | E113: 24446 | F113: 24448 | G113: 24447 | H113: 31152 | I113: 24449 | J113: 24449 | K113: =VLOOKUP(L113,'intrek AX'!$A$1:$R$3596,18,FALSE) -> 43.65 | L113: =INDEX(E113:J113,ralin) -> 31152 | M113: =IF(VLOOKUP(L113,'setdet 2'!$B$2:$E$2284,4,FALSE)=0,"",VLOOKUP(L113,'setdet 2'!$B$2:$E$2284,4,FALSE)) ->  | S113: 0 | T113: 0 | U113: 0 | V113: =IF(U113=0,0,VLOOKUP(U113,'intrek AX'!$A$1:$R$3593,18,FALSE)) -> 0 | W113: 0 | AA113: =IF(SUM(F113:I113)=0,"",IF(ralin=1,0,INDEX('input data'!$H$96:$H$101,ralin))) -> RAL7016ST | AB113: =IF(AC113="","",IF(AC113=1,calcul!$B$1072,IF(AC113=2,calcul!$B$1080,""))) -> 029/71334 | AC113: 2 | AE113: =SUMIF('assembly codes'!$A$4:$A$61,articles!C113,'assembly codes'!$H$4:$H$61) -> 0 | AF113: =IF(OR(T113=0,verzagen=2,pc=2,AE113=0),"",AE113&".3") ->  | AG113: 31152 | AH113: VPD2 | AI113: 0
B114: VPD2 | C114: D2 | D114: 6040 | E114: 23469 | F114: 23478 | G114: 23472 | H114: 31153 | I114: 23475 | J114: 23475 | K114: =VLOOKUP(L114,'intrek AX'!$A$1:$R$3596,18,FALSE) -> 43.65 | L114: =INDEX(E114:J114,ralin) -> 31153 | M114: =IF(VLOOKUP(L114,'setdet 2'!$B$2:$E$2284,4,FALSE)=0,"",VLOOKUP(L114,'setdet 2'!$B$2:$E$2284,4,FALSE)) ->  | S114: 0 | T114: 0 | U114: 0 | V114: =IF(U114=0,0,VLOOKUP(U114,'intrek AX'!$A$1:$R$3593,18,FALSE)) -> 0 | W114: 0 | AA114: =IF(SUM(F114:I114)=0,"",IF(ralin=1,0,INDEX('input data'!$H$96:$H$101,ralin))) -> RAL7016ST | AB114: =IF(AC114="","",IF(AC114=1,calcul!$B$1072,IF(AC114=2,calcul!$B$1080,""))) -> 029/71334 | AC114: 2 | AE114: =SUMIF('assembly codes'!$A$4:$A$61,articles!C114,'assembly codes'!$H$4:$H$61) -> 0 | AF114: =IF(OR(T114=0,verzagen=2,pc=2,AE114=0),"",AE114&".4") ->  | AG114: 31153 | AH114: VPD2 | AI114: 0
A115: =taal!A349 -> TRÄGER 3 | B115: VPD3 | C115: D3 | D115: 5040 | E115: 41742 | F115: 41674 | G115: 41678 | H115: 41676 | I115: 41678 | J115: 41678 | K115: =VLOOKUP(L115,'intrek AX'!$A$1:$R$3596,18,FALSE) -> 95.29 | L115: =INDEX(E115:J115,ralin) -> 41676 | M115: =IF(VLOOKUP(L115,'setdet 2'!$B$2:$E$2284,4,FALSE)=0,"",VLOOKUP(L115,'setdet 2'!$B$2:$E$2284,4,FALSE)) ->  | S115: =IF(T115=0,0,L115) -> 0 | T115: =IF(ISNUMBER(O115)=FALSE,0,O115) -> 0 | U115: =IF(T115=0,0,IF(ralstandin=1,H115,S115)) -> 0 | V115: =IF(U115=0,0,VLOOKUP(U115,'intrek AX'!$A$1:$R$3593,18,FALSE)) -> 0 | W115: =T115*D115/1000*V115 -> 0 | AA115: =IF(SUM(F115:I115)=0,"",IF(ralin=1,0,INDEX('input data'!$H$96:$H$101,ralin))) -> RAL7016ST | AB115: =IF(AC115="","",IF(AC115=1,calcul!$B$1072,IF(AC115=2,calcul!$B$1080,""))) -> 029/71334 | AC115: 2 | AG115: 41676 | AH115: VPD3 | AI115: 0
B116: VPD3 | C116: D3 | D116: 5540 | E116: 43312 | F116: 43315 | G116: 43313 | H116: 43314 | I116: 43313 | J116: 43313 | K116: =VLOOKUP(L116,'intrek AX'!$A$1:$R$3596,18,FALSE) -> 95.29 | L116: =INDEX(E116:J116,ralin) -> 43314 | M116: =IF(VLOOKUP(L116,'setdet 2'!$B$2:$E$2284,4,FALSE)=0,"",VLOOKUP(L116,'setdet 2'!$B$2:$E$2284,4,FALSE)) ->  | S116: =IF(T116=0,0,L116) -> 0 | T116: =IF(ISNUMBER(O116)=FALSE,0,O116) -> 0 | U116: =IF(T116=0,0,IF(ralstandin=1,H116,S116)) -> 0 | V116: =IF(U116=0,0,VLOOKUP(U116,'intrek AX'!$A$1:$R$3593,18,FALSE)) -> 0 | W116: =T116*D116/1000*V116 -> 0 | AA116: =IF(SUM(F116:I116)=0,"",IF(ralin=1,0,INDEX('input data'!$H$96:$H$101,ralin))) -> RAL7016ST | AB116: =IF(AC116="","",IF(AC116=1,calcul!$B$1072,IF(AC116=2,calcul!$B$1080,""))) -> 029/71334 | AC116: 2 | AG116: 43314 | AH116: VPD3 | AI116: 0
A117: =taal!A351 -> TRÄGER DX | B117: VPDX | C117: DX | D117: 2500 | E117: 34862 | F117: 34867 | G117: 34877 | H117: 34872 | I117: 34877 | J117: 34877 | K117: =VLOOKUP(L117,'intrek AX'!$A$1:$R$3596,18,FALSE) -> 56.26 | L117: =INDEX(E117:J117,ralin) -> 34872 | M117: =IF(VLOOKUP(L117,'setdet 2'!$B$2:$E$2284,4,FALSE)=0,"",VLOOKUP(L117,'setdet 2'!$B$2:$E$2284,4,FALSE)) ->  | O117: =IF(ISBLANK(N117)=TRUE,M117,N117) ->  | S117: 0 | T117: 0 | U117: 0 | V117: =IF(U117=0,0,VLOOKUP(U117,'intrek AX'!$A$1:$R$3593,18,FALSE)) -> 0 | W117: 0 | AA117: =IF(SUM(F117:I117)=0,"",IF(ralin=1,0,INDEX('input data'!$H$96:$H$101,ralin))) -> RAL7016ST | AB117: =IF(AC117="","",IF(AC117=1,calcul!$B$1072,IF(AC117=2,calcul!$B$1080,""))) -> 029/71334 | AC117: 2 | AE117: =SUMIF('assembly codes'!$A$4:$A$61,articles!C117,'assembly codes'!$H$4:$H$61) -> 0 | AF117: =IF(OR(T117=0,verzagen=2,pc=2,AE117=0),"",AE117&".1") ->  | AG117: 34872 | AH117: VPDX | AI117: 0
B118: VPDX | C118: DX | D118: 3000 | E118: 34863 | F118: 34868 | G118: 34878 | H118: 34873 | I118: 34878 | J118: 34878 | K118: =VLOOKUP(L118,'intrek AX'!$A$1:$R$3596,18,FALSE) -> 56.26 | L118: =INDEX(E118:J118,ralin) -> 34873 | M118: =IF(VLOOKUP(L118,'setdet 2'!$B$2:$E$2284,4,FALSE)=0,"",VLOOKUP(L118,'setdet 2'!$B$2:$E$2284,4,FALSE)) ->  | S118: =IF(T118=0,0,L118) -> 0 | T118: =IF(ISNUMBER(O118)=FALSE,0,O118) -> 0 | U118: 0 | V118: =IF(U118=0,0,VLOOKUP(U118,'intrek AX'!$A$1:$R$3593,18,FALSE)) -> 0 | W118: 0 | AA118: =IF(SUM(F118:I118)=0,"",IF(ralin=1,0,INDEX('input data'!$H$96:$H$101,ralin))) -> RAL7016ST | AB118: =IF(AC118="","",IF(AC118=1,calcul!$B$1072,IF(AC118=2,calcul!$B$1080,""))) -> 029/71334 | AC118: 2 | AE118: =SUMIF('assembly codes'!$A$4:$A$61,articles!C118,'assembly codes'!$H$4:$H$61) -> 0 | AF118: =IF(OR(T118=0,verzagen=2,pc=2,AE118=0),"",AE118&".2") ->  | AG118: 34873 | AH118: VPDX | AI118: 0
B119: VPDX | C119: DX | D119: 3250 | E119: 110162 | F119: 110166 | G119: 34878 | H119: 110168 | I119: 110164 | J119: 110164 | K119: =VLOOKUP(L119,'intrek AX'!$A$1:$R$3596,18,FALSE) -> 56.26 | L119: =INDEX(E119:J119,ralin) -> 110168 | M119: =IF(VLOOKUP(L119,'setdet 2'!$B$2:$E$2284,4,FALSE)=0,"",VLOOKUP(L119,'setdet 2'!$B$2:$E$2284,4,FALSE)) ->  | O119: =IF(ISBLANK(N119)=TRUE,M119,N119) ->  | S119: =IF(T119=0,0,L119) -> 0 | T119: =IF(ISNUMBER(O119)=FALSE,0,O119) -> 0 | U119: =IF(T119=0,0,IF(ralstandin=1,H119,S119)) -> 0 | V119: =IF(U119=0,0,VLOOKUP(U119,'intrek AX'!$A$1:$R$3593,18,FALSE)) -> 0 | W119: =T119*D119/1000*V119 -> 0 | AA119: =IF(SUM(F119:I119)=0,"",IF(ralin=1,0,INDEX('input data'!$H$96:$H$101,ralin))) -> RAL7016ST | AB119: =IF(AC119="","",IF(AC119=1,calcul!$B$1072,IF(AC119=2,calcul!$B$1080,""))) -> 029/71334 | AC119: 2 | AE119: =SUMIF('assembly codes'!$A$4:$A$61,articles!C119,'assembly codes'!$H$4:$H$61) -> 0 | AF119: =IF(OR(T119=0,verzagen=2,pc=2,AE119=0),"",AE119&".3") ->  | AG119: =L119 -> 110168 | AH119: =B119 -> VPDX | AI119: 0
B120: VPDX | C120: DX | D120: 3500 | E120: 34864 | F120: 34869 | G120: 34879 | H120: 34874 | I120: 34879 | J120: 34879 | K120: =VLOOKUP(L120,'intrek AX'!$A$1:$R$3596,18,FALSE) -> 56.26 | L120: =INDEX(E120:J120,ralin) -> 34874 | M120: =IF(VLOOKUP(L120,'setdet 2'!$B$2:$E$2284,4,FALSE)=0,"",VLOOKUP(L120,'setdet 2'!$B$2:$E$2284,4,FALSE)) ->  | S120: 0 | T120: 0 | U120: 0 | V120: =IF(U120=0,0,VLOOKUP(U120,'intrek AX'!$A$1:$R$3593,18,FALSE)) -> 0 | W120: 0 | AA120: =IF(SUM(F120:I120)=0,"",IF(ralin=1,0,INDEX('input data'!$H$96:$H$101,ralin))) -> RAL7016ST | AB120: =IF(AC120="","",IF(AC120=1,calcul!$B$1072,IF(AC120=2,calcul!$B$1080,""))) -> 029/71334 | AC120: 2 | AE120: =SUMIF('assembly codes'!$A$4:$A$61,articles!C120,'assembly codes'!$H$4:$H$61) -> 0 | AF120: =IF(OR(T120=0,verzagen=2,pc=2,AE120=0),"",AE120&".4") ->  | AG120: 34874 | AH120: VPDX | AI120: 0
B121: VPDX | C121: DX | D121: 3750 | E121: 110480 | F121: 110481 | G121: 34879 | H121: 110482 | I121: 110483 | J121: 110483 | K121: =VLOOKUP(L121,'intrek AX'!$A$1:$R$3596,18,FALSE) -> 56.26 | L121: =INDEX(E121:J121,ralin) -> 110482 | M121: =IF(VLOOKUP(L121,'setdet 2'!$B$2:$E$2284,4,FALSE)=0,"",VLOOKUP(L121,'setdet 2'!$B$2:$E$2284,4,FALSE)) ->  | O121: =IF(ISBLANK(N121)=TRUE,M121,N121) ->  | S121: =IF(T121=0,0,L121) -> 0 | T121: =IF(ISNUMBER(O121)=FALSE,0,O121) -> 0 | U121: =IF(T121=0,0,IF(ralstandin=1,H121,S121)) -> 0 | V121: =IF(U121=0,0,VLOOKUP(U121,'intrek AX'!$A$1:$R$3593,18,FALSE)) -> 0 | W121: =T121*D121/1000*V121 -> 0 | AA121: =IF(SUM(F121:I121)=0,"",IF(ralin=1,0,INDEX('input data'!$H$96:$H$101,ralin))) -> RAL7016ST | AB121: =IF(AC121="","",IF(AC121=1,calcul!$B$1072,IF(AC121=2,calcul!$B$1080,""))) -> 029/71334 | AC121: 2 | AE121: =SUMIF('assembly codes'!$A$4:$A$61,articles!C121,'assembly codes'!$H$4:$H$61) -> 0 | AF121: =IF(OR(T121=0,verzagen=2,pc=2,AE121=0),"",AE121&".5") ->  | AG121: =L121 -> 110482 | AH121: =B121 -> VPDX | AI121: 0
B122: VPDX | C122: DX | D122: 4000 | E122: 34865 | F122: 34870 | G122: 34880 | H122: 34875 | I122: 34880 | J122: 34880 | K122: =VLOOKUP(L122,'intrek AX'!$A$1:$R$3596,18,FALSE) -> 56.26 | L122: =INDEX(E122:J122,ralin) -> 34875 | M122: =IF(VLOOKUP(L122,'setdet 2'!$B$2:$E$2284,4,FALSE)=0,"",VLOOKUP(L122,'setdet 2'!$B$2:$E$2284,4,FALSE)) ->  | S122: 0 | T122: 0 | U122: 0 | V122: =IF(U122=0,0,VLOOKUP(U122,'intrek AX'!$A$1:$R$3593,18,FALSE)) -> 0 | W122: 0 | AA122: =IF(SUM(F122:I122)=0,"",IF(ralin=1,0,INDEX('input data'!$H$96:$H$101,ralin))) -> RAL7016ST | AB122: =IF(AC122="","",IF(AC122=1,calcul!$B$1072,IF(AC122=2,calcul!$B$1080,""))) -> 029/71334 | AC122: 2 | AE122: =SUMIF('assembly codes'!$A$4:$A$61,articles!C122,'assembly codes'!$H$4:$H$61) -> 0 | AF122: =IF(OR(T122=0,verzagen=2,pc=2,AE122=0),"",AE122&".6") ->  | AG122: 34875 | AH122: VPDX | AI122: 0
B123: VPDX | C123: DX | D123: 4500 | E123: 109358 | F123: 109360 | G123: 34880 | H123: 109361 | I123: 109359 | J123: 109359 | K123: =VLOOKUP(L123,'intrek AX'!$A$1:$R$3596,18,FALSE) -> 56.26 | L123: =INDEX(E123:J123,ralin) -> 109361 | M123: =IF(VLOOKUP(L123,'setdet 2'!$B$2:$E$2284,4,FALSE)=0,"",VLOOKUP(L123,'setdet 2'!$B$2:$E$2284,4,FALSE)) ->  | O123: =IF(ISBLANK(N123)=TRUE,M123,N123) ->  | S123: =IF(T123=0,0,L123) -> 0 | T123: =IF(ISNUMBER(O123)=FALSE,0,O123) -> 0 | U123: =IF(T123=0,0,IF(ralstandin=1,H123,S123)) -> 0 | V123: =IF(U123=0,0,VLOOKUP(U123,'intrek AX'!$A$1:$R$3593,18,FALSE)) -> 0 | W123: =T123*D123/1000*V123 -> 0 | AA123: =IF(SUM(F123:I123)=0,"",IF(ralin=1,0,INDEX('input data'!$H$96:$H$101,ralin))) -> RAL7016ST | AB123: =IF(AC123="","",IF(AC123=1,calcul!$B$1072,IF(AC123=2,calcul!$B$1080,""))) -> 029/71334 | AC123: 2 | AE123: =SUMIF('assembly codes'!$A$4:$A$61,articles!C123,'assembly codes'!$H$4:$H$61) -> 0 | AF123: =IF(OR(T123=0,verzagen=2,pc=2,AE123=0),"",AE123&".7") ->  | AG123: 109361 | AH123: VPDX | AI123: 0
B124: VPDX | C124: DX | D124: 5000 | E124: 34866 | F124: 34871 | G124: 34881 | H124: 34876 | I124: 34881 | J124: 34881 | K124: =VLOOKUP(L124,'intrek AX'!$A$1:$R$3596,18,FALSE) -> 56.26 | L124: =INDEX(E124:J124,ralin) -> 34876 | M124: =IF(VLOOKUP(L124,'setdet 2'!$B$2:$E$2284,4,FALSE)=0,"",VLOOKUP(L124,'setdet 2'!$B$2:$E$2284,4,FALSE)) ->  | S124: 0 | T124: 0 | U124: 0 | V124: =IF(U124=0,0,VLOOKUP(U124,'intrek AX'!$A$1:$R$3593,18,FALSE)) -> 0 | W124: 0 | AA124: =IF(SUM(F124:I124)=0,"",IF(ralin=1,0,INDEX('input data'!$H$96:$H$101,ralin))) -> RAL7016ST | AB124: =IF(AC124="","",IF(AC124=1,calcul!$B$1072,IF(AC124=2,calcul!$B$1080,""))) -> 029/71334 | AC124: 2 | AE124: =SUMIF('assembly codes'!$A$4:$A$61,articles!C124,'assembly codes'!$H$4:$H$61) -> 0 | AF124: =IF(OR(T124=0,verzagen=2,pc=2,AE124=0),"",AE124&".8") ->  | AG124: 34876 | AH124: VPDX | AI124: 0
A125: =taal!A352 -> TRÄGER DX2 | B125: VPDX2 | C125: DX2 | D125: 4000 | E125: 108984 | F125: 108988 | H125: 108990 | I125: 108986 | J125: 108986 | K125: =VLOOKUP(L125,'intrek AX'!$A$1:$R$3596,18,FALSE) -> 74.42 | L125: =INDEX(E125:J125,ralin) -> 108990 | M125: =IF(VLOOKUP(L125,'setdet 2'!$B$2:$E$2284,4,FALSE)=0,"",VLOOKUP(L125,'setdet 2'!$B$2:$E$2284,4,FALSE)) ->  | O125: =IF(ISBLANK(N125)=TRUE,M125,N125) ->  | S125: 0 | T125: 0 | U125: =IF(T125=0,0,IF(ralstandin=1,H125,S125)) -> 0 | V125: =IF(U125=0,0,VLOOKUP(U125,'intrek AX'!$A$1:$R$3593,18,FALSE)) -> 0 | W125: =T125*D125/1000*V125 -> 0 | AA125: =IF(SUM(F125:I125)=0,"",IF(ralin=1,0,INDEX('input data'!$H$96:$H$101,ralin))) -> RAL7016ST | AB125: =IF(AC125="","",IF(AC125=1,calcul!$B$1072,IF(AC125=2,calcul!$B$1080,""))) -> 029/71334 | AC125: 2 | AE125: =SUMIF('assembly codes'!$A$4:$A$61,articles!C125,'assembly codes'!$H$4:$H$61) -> 0 | AF125: =IF(OR(T125=0,verzagen=2,pc=2,AE125=0),"",AE125&".1") ->  | AG125: 108990 | AH125: VPDX2 | AI125: 0
B126: VPDX2 | C126: DX2 | D126: 4500 | E126: 108532 | F126: 108541 | G126: 34877 | H126: 108538 | I126: 108535 | J126: 108535 | K126: =VLOOKUP(L126,'intrek AX'!$A$1:$R$3596,18,FALSE) -> 74.42 | L126: =INDEX(E126:J126,ralin) -> 108538 | M126: =IF(VLOOKUP(L126,'setdet 2'!$B$2:$E$2284,4,FALSE)=0,"",VLOOKUP(L126,'setdet 2'!$B$2:$E$2284,4,FALSE)) ->  | O126: =IF(ISBLANK(N126)=TRUE,M126,N126) ->  | S126: =IF(T126=0,0,L126) -> 0 | T126: =IF(ISNUMBER(O126)=FALSE,0,O126) -> 0 | U126: =IF(T126=0,0,IF(ralstandin=1,H126,S126)) -> 0 | V126: =IF(U126=0,0,VLOOKUP(U126,'intrek AX'!$A$1:$R$3593,18,FALSE)) -> 0 | W126: =T126*D126/1000*V126 -> 0 | AA126: =IF(SUM(F126:I126)=0,"",IF(ralin=1,0,INDEX('input data'!$H$96:$H$101,ralin))) -> RAL7016ST | AB126: =IF(AC126="","",IF(AC126=1,calcul!$B$1072,IF(AC126=2,calcul!$B$1080,""))) -> 029/71334 | AC126: 2 | AE126: =SUMIF('assembly codes'!$A$4:$A$61,articles!C126,'assembly codes'!$H$4:$H$61) -> 0 | AF126: =IF(OR(T126=0,verzagen=2,pc=2,AE126=0),"",AE126&".2") ->  | AG126: 108538 | AH126: VPDX2 | AI126: 0
B127: VPDX2 | C127: DX2 | D127: 5000 | E127: 108985 | F127: 108989 | H127: 108991 | I127: 108987 | J127: 108987 | K127: =VLOOKUP(L127,'intrek AX'!$A$1:$R$3596,18,FALSE) -> 74.42 | L127: =INDEX(E127:J127,ralin) -> 108991 | M127: =IF(VLOOKUP(L127,'setdet 2'!$B$2:$E$2284,4,FALSE)=0,"",VLOOKUP(L127,'setdet 2'!$B$2:$E$2284,4,FALSE)) ->  | S127: 0 | T127: 0 | U127: =IF(T127=0,0,IF(ralstandin=1,H127,S127)) -> 0 | V127: =IF(U127=0,0,VLOOKUP(U127,'intrek AX'!$A$1:$R$3593,18,FALSE)) -> 0 | W127: 0 | AA127: =IF(SUM(F127:I127)=0,"",IF(ralin=1,0,INDEX('input data'!$H$96:$H$101,ralin))) -> RAL7016ST | AB127: =IF(AC127="","",IF(AC127=1,calcul!$B$1072,IF(AC127=2,calcul!$B$1080,""))) -> 029/71334 | AC127: 2 | AE127: =SUMIF('assembly codes'!$A$4:$A$61,articles!C127,'assembly codes'!$H$4:$H$61) -> 0 | AF127: =IF(OR(T127=0,verzagen=2,pc=2,AE127=0),"",AE127&".3") ->  | AG127: 108991 | AH127: VPDX2 | AI127: 0
B128: VPDX2 | C128: DX2 | D128: 5500 | E128: 108533 | F128: 108542 | G128: 34878 | H128: 108539 | I128: 108536 | J128: 108536 | K128: =VLOOKUP(L128,'intrek AX'!$A$1:$R$3596,18,FALSE) -> 74.42 | L128: =INDEX(E128:J128,ralin) -> 108539 | M128: =IF(VLOOKUP(L128,'setdet 2'!$B$2:$E$2284,4,FALSE)=0,"",VLOOKUP(L128,'setdet 2'!$B$2:$E$2284,4,FALSE)) ->  | O128: =IF(ISBLANK(N128)=TRUE,M128,N128) ->  | S128: 0 | T128: 0 | U128: =IF(T128=0,0,IF(ralstandin=1,H128,S128)) -> 0 | V128: =IF(U128=0,0,VLOOKUP(U128,'intrek AX'!$A$1:$R$3593,18,FALSE)) -> 0 | W128: =T128*D128/1000*V128 -> 0 | AA128: =IF(SUM(F128:I128)=0,"",IF(ralin=1,0,INDEX('input data'!$H$96:$H$101,ralin))) -> RAL7016ST | AB128: =IF(AC128="","",IF(AC128=1,calcul!$B$1072,IF(AC128=2,calcul!$B$1080,""))) -> 029/71334 | AC128: 2 | AE128: =SUMIF('assembly codes'!$A$4:$A$61,articles!C128,'assembly codes'!$H$4:$H$61) -> 0 | AF128: =IF(OR(T128=0,verzagen=2,pc=2,AE128=0),"",AE128&".4") ->  | AG128: 108539 | AH128: VPDX2 | AI128: 0
B129: VPDX2 | C129: DX2 | D129: 6000 | E129: 108534 | F129: 108543 | G129: 34879 | H129: 108540 | I129: 108537 | J129: 108537 | K129: =VLOOKUP(L129,'intrek AX'!$A$1:$R$3596,18,FALSE) -> 74.42 | L129: =INDEX(E129:J129,ralin) -> 108540 | M129: =IF(VLOOKUP(L129,'setdet 2'!$B$2:$E$2284,4,FALSE)=0,"",VLOOKUP(L129,'setdet 2'!$B$2:$E$2284,4,FALSE)) ->  | O129: =IF(ISBLANK(N129)=TRUE,M129,N129) ->  | S129: 0 | T129: 0 | U129: =IF(T129=0,0,IF(ralstandin=1,H129,S129)) -> 0 | V129: =IF(U129=0,0,VLOOKUP(U129,'intrek AX'!$A$1:$R$3593,18,FALSE)) -> 0 | W129: =T129*D129/1000*V129 -> 0 | AA129: =IF(SUM(F129:I129)=0,"",IF(ralin=1,0,INDEX('input data'!$H$96:$H$101,ralin))) -> RAL7016ST | AB129: =IF(AC129="","",IF(AC129=1,calcul!$B$1072,IF(AC129=2,calcul!$B$1080,""))) -> 029/71334 | AC129: 2 | AE129: =SUMIF('assembly codes'!$A$4:$A$61,articles!C129,'assembly codes'!$H$4:$H$61) -> 0 | AF129: =IF(OR(T129=0,verzagen=2,pc=2,AE129=0),"",AE129&".5") ->  | AG129: 108540 | AH129: VPDX2 | AI129: 0
A130: =taal!A353 -> THERMISCHER PLATTENTRÄGER WEIß | B130: VPTP | C130: TP | D130: 2700 | E130: 21277 | K130: =VLOOKUP(L130,'intrek AX'!$A$1:$R$3596,18,FALSE) -> 10.48 | L130: =E130 -> 21277 | M130: =IF(VLOOKUP(L130,'setdet 2'!$B$2:$E$2284,4,FALSE)=0,"",VLOOKUP(L130,'setdet 2'!$B$2:$E$2284,4,FALSE)) ->  | S130: 0 | T130: 0 | U130: =S130 -> 0 | V130: =IF(U130=0,0,VLOOKUP(U130,'intrek AX'!$A$1:$R$3593,18,FALSE)) -> 0 | W130: 0 | AA130: =IF(SUM(F130:I130)=0,"",INDEX('input data'!$G$96:$G$101,ral)) ->  | AB130: =IF(AC130="","",IF(AC130=1,calcul!$B$1072,IF(AC130=2,calcul!$B$1080,""))) ->  | AE130: =IF(OR(drager=5,drager=6),SUMIF('assembly codes'!$A$4:$A$61,articles!C130,'assembly codes'!$H$4:$H$61),"") ->  | AF130: =IF(OR(T130=0,drager<5,verzagen=2,pc=2,AE130=0),"",AE130&".1") ->  | AG130: 21277 | AH130: VPTP | AI130: 0
B131: VPTP | C131: TP | D131: 3200 | E131: 21278 | K131: =VLOOKUP(L131,'intrek AX'!$A$1:$R$3596,18,FALSE) -> 10.48 | L131: 21278 | M131: =IF(VLOOKUP(L131,'setdet 2'!$B$2:$E$2284,4,FALSE)=0,"",VLOOKUP(L131,'setdet 2'!$B$2:$E$2284,4,FALSE)) ->  | S131: 0 | T131: 0 | U131: =S131 -> 0 | V131: =IF(U131=0,0,VLOOKUP(U131,'intrek AX'!$A$1:$R$3593,18,FALSE)) -> 0 | W131: =T131*D131/1000*V131 -> 0 | AA131: =IF(SUM(F131:I131)=0,"",INDEX('input data'!$G$96:$G$101,ral)) ->  | AB131: =IF(AC131="","",IF(AC131=1,calcul!$B$1072,IF(AC131=2,calcul!$B$1080,""))) ->  | AE131: =IF(OR(drager=5,drager=6),SUMIF('assembly codes'!$A$4:$A$61,articles!C131,'assembly codes'!$H$4:$H$61),"") ->  | AF131: =IF(OR(T131=0,drager<5,verzagen=2,pc=2,AE131=0),"",AE131&".2") ->  | AG131: 21278 | AH131: VPTP | AI131: =IF(ISBLANK(N131)=TRUE,0,1) -> 0
B132: VPTP | C132: TP | D132: 3700 | E132: 21279 | K132: =VLOOKUP(L132,'intrek AX'!$A$1:$R$3596,18,FALSE) -> 10.48 | L132: 21279 | M132: =IF(VLOOKUP(L132,'setdet 2'!$B$2:$E$2284,4,FALSE)=0,"",VLOOKUP(L132,'setdet 2'!$B$2:$E$2284,4,FALSE)) ->  | S132: 0 | T132: 0 | U132: 0 | V132: =IF(U132=0,0,VLOOKUP(U132,'intrek AX'!$A$1:$R$3593,18,FALSE)) -> 0 | W132: 0 | AA132: =IF(SUM(F132:I132)=0,"",INDEX('input data'!$G$96:$G$101,ral)) ->  | AB132: =IF(AC132="","",IF(AC132=1,calcul!$B$1072,IF(AC132=2,calcul!$B$1080,""))) ->  | AE132: =IF(OR(drager=5,drager=6),SUMIF('assembly codes'!$A$4:$A$61,articles!C132,'assembly codes'!$H$4:$H$61),"") ->  | AF132: =IF(OR(T132=0,drager<5,verzagen=2,pc=2,AE132=0),"",AE132&".3") ->  | AG132: 21279 | AH132: VPTP | AI132: 0
B133: VPTP | C133: TP | D133: 4200 | E133: 21280 | K133: =VLOOKUP(L133,'intrek AX'!$A$1:$R$3596,18,FALSE) -> 10.48 | L133: 21280 | M133: =IF(VLOOKUP(L133,'setdet 2'!$B$2:$E$2284,4,FALSE)=0,"",VLOOKUP(L133,'setdet 2'!$B$2:$E$2284,4,FALSE)) ->  | S133: 0 | T133: 0 | U133: 0 | V133: =IF(U133=0,0,VLOOKUP(U133,'intrek AX'!$A$1:$R$3593,18,FALSE)) -> 0 | W133: 0 | AA133: =IF(SUM(F133:I133)=0,"",INDEX('input data'!$G$96:$G$101,ral)) ->  | AB133: =IF(AC133="","",IF(AC133=1,calcul!$B$1072,IF(AC133=2,calcul!$B$1080,""))) ->  | AE133: =IF(OR(drager=5,drager=6),SUMIF('assembly codes'!$A$4:$A$61,articles!C133,'assembly codes'!$H$4:$H$61),"") ->  | AF133: =IF(OR(T133=0,drager<5,verzagen=2,pc=2,AE133=0),"",AE133&".4") ->  | AG133: 21280 | AH133: VPTP | AI133: 0
B134: VPTP | C134: TP | D134: 5200 | E134: 24468 | K134: =VLOOKUP(L134,'intrek AX'!$A$1:$R$3596,18,FALSE) -> 10.48 | L134: 24468 | M134: =IF(VLOOKUP(L134,'setdet 2'!$B$2:$E$2284,4,FALSE)=0,"",VLOOKUP(L134,'setdet 2'!$B$2:$E$2284,4,FALSE)) ->  | S134: 0 | T134: 0 | U134: 0 | V134: =IF(U134=0,0,VLOOKUP(U134,'intrek AX'!$A$1:$R$3593,18,FALSE)) -> 0 | W134: 0 | AA134: =IF(SUM(F134:I134)=0,"",INDEX('input data'!$G$96:$G$101,ral)) ->  | AB134: =IF(AC134="","",IF(AC134=1,calcul!$B$1072,IF(AC134=2,calcul!$B$1080,""))) ->  | AE134: =IF(OR(drager=5,drager=6),SUMIF('assembly codes'!$A$4:$A$61,articles!C134,'assembly codes'!$H$4:$H$61),"") ->  | AF134: =IF(OR(T134=0,drager<5,verzagen=2,pc=2,AE134=0),"",AE134&".5") ->  | AG134: 24468 | AH134: VPTP | AI134: 0
B135: VPTP | C135: TP | D135: 6200 | E135: 21281 | K135: =VLOOKUP(L135,'intrek AX'!$A$1:$R$3596,18,FALSE) -> 10.48 | L135: 21281 | M135: =IF(VLOOKUP(L135,'setdet 2'!$B$2:$E$2284,4,FALSE)=0,"",VLOOKUP(L135,'setdet 2'!$B$2:$E$2284,4,FALSE)) ->  | S135: 0 | T135: 0 | U135: 0 | V135: =IF(U135=0,0,VLOOKUP(U135,'intrek AX'!$A$1:$R$3593,18,FALSE)) -> 0 | W135: 0 | AA135: =IF(SUM(F135:I135)=0,"",INDEX('input data'!$G$96:$G$101,ral)) ->  | AB135: =IF(AC135="","",IF(AC135=1,calcul!$B$1072,IF(AC135=2,calcul!$B$1080,""))) ->  | AE135: =IF(OR(drager=5,drager=6),SUMIF('assembly codes'!$A$4:$A$61,articles!C135,'assembly codes'!$H$4:$H$61),"") ->  | AF135: =IF(OR(T135=0,drager<5,verzagen=2,pc=2,AE135=0),"",AE135&".6") ->  | AG135: 21281 | AH135: VPTP | AI135: 0
A136: =taal!A354 -> THERMISCHER PLATTENTRÄGER GLAS | B136: VPTPG | C136: TPG | D136: 4200 | E136: 25055 | K136: =VLOOKUP(L136,'intrek AX'!$A$1:$R$3596,18,FALSE) -> 10.48 | L136: 25055 | M136: =IF(VLOOKUP(L136,'setdet 2'!$B$2:$E$2284,4,FALSE)=0,"",VLOOKUP(L136,'setdet 2'!$B$2:$E$2284,4,FALSE)) ->  | S136: 0 | T136: 0 | U136: 0 | V136: =IF(U136=0,0,VLOOKUP(U136,'intrek AX'!$A$1:$R$3593,18,FALSE)) -> 0 | W136: 0 | AA136: =IF(SUM(F136:I136)=0,"",INDEX('input data'!$G$96:$G$101,ral)) ->  | AB136: =IF(AC136="","",IF(AC136=1,calcul!$B$1072,IF(AC136=2,calcul!$B$1080,""))) ->  | AE136: =IF(OR(drager=5,drager=6),SUMIF('assembly codes'!$A$4:$A$61,articles!C136,'assembly codes'!$H$4:$H$61),"") ->  | AF136: =IF(OR(T136=0,drager<5,verzagen=2,pc=2,AE136=0),"",AE136&".1") ->  | AG136: 25055 | AH136: VPTPG | AI136: 0
B137: VPTPG | C137: TPG | D137: 5200 | E137: 25056 | K137: =VLOOKUP(L137,'intrek AX'!$A$1:$R$3596,18,FALSE) -> 10.48 | L137: 25056 | M137: =IF(VLOOKUP(L137,'setdet 2'!$B$2:$E$2284,4,FALSE)=0,"",VLOOKUP(L137,'setdet 2'!$B$2:$E$2284,4,FALSE)) ->  | S137: 0 | T137: 0 | U137: 0 | V137: =IF(U137=0,0,VLOOKUP(U137,'intrek AX'!$A$1:$R$3593,18,FALSE)) -> 0 | W137: 0 | AA137: =IF(SUM(F137:I137)=0,"",INDEX('input data'!$G$96:$G$101,ral)) ->  | AB137: =IF(AC137="","",IF(AC137=1,calcul!$B$1072,IF(AC137=2,calcul!$B$1080,""))) ->  | AE137: =IF(OR(drager=5,drager=6),SUMIF('assembly codes'!$A$4:$A$61,articles!C137,'assembly codes'!$H$4:$H$61),"") ->  | AF137: =IF(OR(T137=0,drager<5,verzagen=2,pc=2,AE137=0),"",AE137&".2") ->  | AG137: 25056 | AH137: VPTPG | AI137: 0
B138: VPTPG | C138: TPG | D138: 6200 | E138: 25057 | K138: =VLOOKUP(L138,'intrek AX'!$A$1:$R$3596,18,FALSE) -> 10.48 | L138: 25057 | M138: =IF(VLOOKUP(L138,'setdet 2'!$B$2:$E$2284,4,FALSE)=0,"",VLOOKUP(L138,'setdet 2'!$B$2:$E$2284,4,FALSE)) ->  | S138: 0 | T138: 0 | U138: 0 | V138: =IF(U138=0,0,VLOOKUP(U138,'intrek AX'!$A$1:$R$3593,18,FALSE)) -> 0 | W138: 0 | AA138: =IF(SUM(F138:I138)=0,"",INDEX('input data'!$G$96:$G$101,ral)) ->  | AB138: =IF(AC138="","",IF(AC138=1,calcul!$B$1072,IF(AC138=2,calcul!$B$1080,""))) ->  | AE138: =IF(OR(drager=5,drager=6),SUMIF('assembly codes'!$A$4:$A$61,articles!C138,'assembly codes'!$H$4:$H$61),"") ->  | AF138: =IF(OR(T138=0,drager<5,verzagen=2,pc=2,AE138=0),"",AE138&".3") ->  | AG138: 25057 | AH138: VPTPG | AI138: 0
B139: VPTPG | C139: TPG | D139: 7200 | E139: 25058 | K139: =VLOOKUP(L139,'intrek AX'!$A$1:$R$3596,18,FALSE) -> 10.48 | L139: 25058 | M139: =IF(VLOOKUP(L139,'setdet 2'!$B$2:$E$2284,4,FALSE)=0,"",VLOOKUP(L139,'setdet 2'!$B$2:$E$2284,4,FALSE)) ->  | S139: 0 | T139: 0 | U139: 0 | V139: =IF(U139=0,0,VLOOKUP(U139,'intrek AX'!$A$1:$R$3593,18,FALSE)) -> 0 | W139: 0 | AA139: =IF(SUM(F139:I139)=0,"",INDEX('input data'!$G$96:$G$101,ral)) ->  | AB139: =IF(AC139="","",IF(AC139=1,calcul!$B$1072,IF(AC139=2,calcul!$B$1080,""))) ->  | AE139: =IF(OR(drager=5,drager=6),SUMIF('assembly codes'!$A$4:$A$61,articles!C139,'assembly codes'!$H$4:$H$61),"") ->  | AF139: =IF(OR(T139=0,drager<5,verzagen=2,pc=2,AE139=0),"",AE139&".4") ->  | AG139: 25058 | AH139: VPTPG | AI139: 0
A140: =taal!A355 -> SEITENTRÄGER | B140: VPZD | C140: ZD | D140: 2540 | E140: 21282 | F140: 21298 | G140: 21288 | H140: 31154 | I140: 21293 | J140: 21293 | K140: =VLOOKUP(L140,'intrek AX'!$A$1:$R$3596,18,FALSE) -> 31.78 | L140: =INDEX(E140:J140,ralin) -> 31154 | M140: =IF(VLOOKUP(L140,'setdet 2'!$B$2:$E$2284,4,FALSE)=0,"",VLOOKUP(L140,'setdet 2'!$B$2:$E$2284,4,FALSE)) ->  | S140: 0 | T140: 0 | U140: =IF(T140=0,0,IF(ralstandin=1,H140,S140)) -> 0 | V140: =IF(U140=0,0,VLOOKUP(U140,'intrek AX'!$A$1:$R$3593,18,FALSE)) -> 0 | W140: 0 | AA140: =IF(SUM(F140:I140)=0,"",IF(ralin=1,0,INDEX('input data'!$H$96:$H$101,ralin))) -> RAL7016ST | AB140: =IF(AC140="","",IF(AC140=1,calcul!$B$1072,IF(AC140=2,calcul!$B$1080,""))) -> 029/71334 | AC140: 2 | AE140: =IF(OR(muur=2,muur=3,muur=4),SUMIF('assembly codes'!$A$4:$A$26,articles!C140,'assembly codes'!$H$4:$H$26),SUMIF('assembly codes'!$A$27:$A$29,articles!C140,'assembly codes'!$H$27:$H$29)) -> 0 | AF140: =IF(OR(T140=0,verzagen=2,pc=2,AE140=0),"",AE140&".1") ->  | AG140: =L140 -> 31154 | AH140: =B140 -> VPZD | AI140: 0
B141: VPZD | C141: ZD | D141: 3040 | E141: 21284 | F141: 21299 | G141: 21289 | H141: 31155 | I141: 21294 | J141: 21294 | K141: =VLOOKUP(L141,'intrek AX'!$A$1:$R$3596,18,FALSE) -> 31.78 | L141: =INDEX(E141:J141,ralin) -> 31155 | M141: =IF(VLOOKUP(L141,'setdet 2'!$B$2:$E$2284,4,FALSE)=0,"",VLOOKUP(L141,'setdet 2'!$B$2:$E$2284,4,FALSE)) ->  | S141: 0 | T141: 0 | U141: 0 | V141: =IF(U141=0,0,VLOOKUP(U141,'intrek AX'!$A$1:$R$3593,18,FALSE)) -> 0 | W141: 0 | AA141: =IF(SUM(F141:I141)=0,"",IF(ralin=1,0,INDEX('input data'!$H$96:$H$101,ralin))) -> RAL7016ST | AB141: =IF(AC141="","",IF(AC141=1,calcul!$B$1072,IF(AC141=2,calcul!$B$1080,""))) -> 029/71334 | AC141: 2 | AE141: =IF(OR(muur=2,muur=3,muur=4),SUMIF('assembly codes'!$A$4:$A$26,articles!C141,'assembly codes'!$H$4:$H$26),SUMIF('assembly codes'!$A$27:$A$29,articles!C141,'assembly codes'!$H$27:$H$29)) -> 0 | AF141: =IF(OR(T141=0,verzagen=2,pc=2,AE141=0),"",AE141&".2") ->  | AG141: 31155 | AH141: VPZD | AI141: 0
B142: VPZD | C142: ZD | D142: 3540 | E142: 21285 | F142: 21300 | G142: 21290 | H142: 31156 | I142: 21295 | J142: 21295 | K142: =VLOOKUP(L142,'intrek AX'!$A$1:$R$3596,18,FALSE) -> 31.78 | L142: =INDEX(E142:J142,ralin) -> 31156 | M142: =IF(VLOOKUP(L142,'setdet 2'!$B$2:$E$2284,4,FALSE)=0,"",VLOOKUP(L142,'setdet 2'!$B$2:$E$2284,4,FALSE)) ->  | S142: 0 | T142: 0 | U142: 0 | V142: =IF(U142=0,0,VLOOKUP(U142,'intrek AX'!$A$1:$R$3593,18,FALSE)) -> 0 | W142: 0 | AA142: =IF(SUM(F142:I142)=0,"",IF(ralin=1,0,INDEX('input data'!$H$96:$H$101,ralin))) -> RAL7016ST | AB142: =IF(AC142="","",IF(AC142=1,calcul!$B$1072,IF(AC142=2,calcul!$B$1080,""))) -> 029/71334 | AC142: 2 | AE142: =IF(OR(muur=2,muur=3,muur=4),SUMIF('assembly codes'!$A$4:$A$26,articles!C142,'assembly codes'!$H$4:$H$26),SUMIF('assembly codes'!$A$27:$A$29,articles!C142,'assembly codes'!$H$27:$H$29)) -> 0 | AF142: =IF(OR(T142=0,verzagen=2,pc=2,AE142=0),"",AE142&".3") ->  | AG142: 31156 | AH142: VPZD | AI142: 0
B143: VPZD | C143: ZD | D143: 4040 | E143: 21286 | F143: 21301 | G143: 21291 | H143: 31157 | I143: 21296 | J143: 21296 | K143: =VLOOKUP(L143,'intrek AX'!$A$1:$R$3596,18,FALSE) -> 31.78 | L143: =INDEX(E143:J143,ralin) -> 31157 | M143: =IF(VLOOKUP(L143,'setdet 2'!$B$2:$E$2284,4,FALSE)=0,"",VLOOKUP(L143,'setdet 2'!$B$2:$E$2284,4,FALSE)) ->  | S143: 0 | T143: 0 | U143: 0 | V143: =IF(U143=0,0,VLOOKUP(U143,'intrek AX'!$A$1:$R$3593,18,FALSE)) -> 0 | W143: 0 | AA143: =IF(SUM(F143:I143)=0,"",IF(ralin=1,0,INDEX('input data'!$H$96:$H$101,ralin))) -> RAL7016ST | AB143: =IF(AC143="","",IF(AC143=1,calcul!$B$1072,IF(AC143=2,calcul!$B$1080,""))) -> 029/71334 | AC143: 2 | AE143: =IF(OR(muur=2,muur=3,muur=4),SUMIF('assembly codes'!$A$4:$A$26,articles!C143,'assembly codes'!$H$4:$H$26),SUMIF('assembly codes'!$A$27:$A$29,articles!C143,'assembly codes'!$H$27:$H$29)) -> 0 | AF143: =IF(OR(T143=0,verzagen=2,pc=2,AE143=0),"",AE143&".4") ->  | AG143: 31157 | AH143: VPZD | AI143: 0
B144: VPZD | C144: ZD | D144: 6040 | E144: 21287 | F144: 21302 | G144: 21292 | H144: 31158 | I144: 21297 | J144: 21297 | K144: =VLOOKUP(L144,'intrek AX'!$A$1:$R$3596,18,FALSE) -> 31.78 | L144: =INDEX(E144:J144,ralin) -> 31158 | M144: =IF(VLOOKUP(L144,'setdet 2'!$B$2:$E$2284,4,FALSE)=0,"",VLOOKUP(L144,'setdet 2'!$B$2:$E$2284,4,FALSE)) ->  | S144: 0 | T144: 0 | U144: 0 | V144: =IF(U144=0,0,VLOOKUP(U144,'intrek AX'!$A$1:$R$3593,18,FALSE)) -> 0 | W144: 0 | AA144: =IF(SUM(F144:I144)=0,"",IF(ralin=1,0,INDEX('input data'!$H$96:$H$101,ralin))) -> RAL7016ST | AB144: =IF(AC144="","",IF(AC144=1,calcul!$B$1072,IF(AC144=2,calcul!$B$1080,""))) -> 029/71334 | AC144: 2 | AE144: =IF(OR(muur=2,muur=3,muur=4),SUMIF('assembly codes'!$A$4:$A$26,articles!C144,'assembly codes'!$H$4:$H$26),SUMIF('assembly codes'!$A$27:$A$29,articles!C144,'assembly codes'!$H$27:$H$29)) -> 0 | AF144: =IF(OR(T144=0,verzagen=2,pc=2,AE144=0),"",AE144&".5") ->  | AG144: 31158 | AH144: VPZD | AI144: 0
A145: =taal!A755 -> SEITENTRÄGER D2 KLIPS | B145: VPZD2B | C145: ZD2B | D145: 6040 | E145: 24018 | F145: 24020 | G145: 24019 | H145: 31169 | I145: 24021 | J145: 24021 | K145: =VLOOKUP(L145,'intrek AX'!$A$1:$R$3596,18,FALSE) -> 19.62 | L145: =INDEX(E145:J145,ralin) -> 31169 | M145: =IF(VLOOKUP(L145,'setdet 2'!$B$2:$E$2284,4,FALSE)=0,"",VLOOKUP(L145,'setdet 2'!$B$2:$E$2284,4,FALSE)) ->  | S145: 0 | T145: 0 | U145: 0 | V145: =IF(U145=0,0,VLOOKUP(U145,'intrek AX'!$A$1:$R$3593,18,FALSE)) -> 0 | W145: 0 | AA145: =IF(SUM(F145:I145)=0,"",IF(ralin=1,0,INDEX('input data'!$H$96:$H$101,ralin))) -> RAL7016ST | AB145: =IF(AC145="","",IF(AC145=1,calcul!$B$1072,IF(AC145=2,calcul!$B$1080,""))) -> 029/71334 | AC145: 2 | AG145: 31169 | AH145: VPZD2B | AI145: 0
A146: =taal!A356 -> L 40/30/2 | B146: VPL432 | C146: L432 | D146: 6000 | E146: 23529 | F146: 23552 | G146: 23530 | H146: 31160 | I146: 23551 | J146: 23551 | K146: =VLOOKUP(L146,'intrek AX'!$A$1:$R$3596,18,FALSE) -> 9.5 | L146: =INDEX(E146:J146,ral) -> 31160 | M146: =IF('setdet 2'!E149=0,"",'setdet 2'!E149*toebehoren) ->  | S146: 0 | T146: 0 | U146: =IF(T146=0,0,IF(ralstandout=1,H146,S146)) -> 0 | V146: =IF(U146=0,0,VLOOKUP(U146,'intrek AX'!$A$1:$R$3593,18,FALSE)) -> 0 | W146: 0 | AA146: =IF(SUM(F146:I146)=0,"",IF(ral=1,0,INDEX('input data'!$G$96:$G$101,ral))) -> RAL7016ST | AB146: =IF(AC146="","",IF(AC146=1,calcul!$B$1072,IF(AC146=2,calcul!$B$1080,""))) -> 029/71334 | AC146: 1 | AG146: 31160 | AH146: VPL432 | AI146: 0
A147: =taal!A356 -> L 40/30/2 | B147: VPL432 | C147: L432 | D147: 6000 | E147: 23529 | F147: 23552 | G147: 23530 | H147: 31160 | I147: 23551 | J147: 23551 | K147: =VLOOKUP(L147,'intrek AX'!$A$1:$R$3596,18,FALSE) -> 9.5 | L147: =INDEX(E147:J147,ralin) -> 31160 | M147: =IF('setdet 2'!E150=0,"",'setdet 2'!E150*toebehoren) ->  | S147: 0 | T147: 0 | U147: =IF(T147=0,0,IF(ralstandin=1,H147,S147)) -> 0 | V147: =IF(U147=0,0,VLOOKUP(U147,'intrek AX'!$A$1:$R$3593,18,FALSE)) -> 0 | W147: 0 | AA147: =IF(SUM(F147:I147)=0,"",IF(ralin=1,0,INDEX('input data'!$H$96:$H$101,ralin))) -> RAL7016ST | AB147: =IF(AC147="","",IF(AC147=1,calcul!$B$1072,IF(AC147=2,calcul!$B$1080,""))) -> 029/71334 | AC147: 2 | AG147: 31160 | AH147: VPL432 | AI147: 0
A148: =taal!A357 -> L 60/30/2 | B148: VPL632 | C148: L632 | D148: 7040 | E148: 27224 | F148: 27227 | G148: 27226 | H148: 31161 | I148: 27228 | J148: 27228 | K148: =VLOOKUP(L148,'intrek AX'!$A$1:$R$3596,18,FALSE) -> 15.23 | L148: =INDEX(E148:J148,ral) -> 31161 | M148: =IF(VLOOKUP(L148,'setdet 2'!$B$2:$E$2284,4,FALSE)=0,"",VLOOKUP(L148,'setdet 2'!$B$2:$E$2284,4,FALSE)) ->  | S148: 0 | T148: 0 | U148: =IF(T148=0,0,IF(ralstandout=1,H148,S148)) -> 0 | V148: =IF(U148=0,0,VLOOKUP(U148,'intrek AX'!$A$1:$R$3593,18,FALSE)) -> 0 | W148: 0 | AA148: =IF(SUM(F148:I148)=0,"",IF(ral=1,0,INDEX('input data'!$G$96:$G$101,ral))) -> RAL7016ST | AB148: =IF(AC148="","",IF(AC148=1,calcul!$B$1072,IF(AC148=2,calcul!$B$1080,""))) -> 029/71334 | AC148: 1 | AG148: 31161 | AH148: VPL632 | AI148: 0
A149: =taal!A358 -> BEARBEITUNGSSTREIFEN | B149: VPPLAT | C149: | 40x2 | D149: 3000 | E149: 103544 | F149: 103547 | G149: 27226 | H149: 103546 | I149: 103545 | J149: 103545 | K149: =VLOOKUP(L149,'intrek AX'!$A$1:$R$3596,18,FALSE) -> 6.13 | L149: =INDEX(E149:J149,ral) -> 103546 | M149: =IF(AND(pc=1,taal=3,nul<>0),4,"") ->  | O149: =IF(ISBLANK(N149)=TRUE,M149,N149) ->  | S149: =IF(T149=0,0,L149) -> 0 | T149: =IF(ISNUMBER(O149)=FALSE,0,O149) -> 0 | U149: =IF(T149=0,0,IF(ralstandout=1,H149,S149)) -> 0 | V149: =IF(U149=0,0,VLOOKUP(U149,'intrek AX'!$A$1:$R$3593,18,FALSE)) -> 0 | W149: =T149*D149/1000*V149 -> 0 | AA149: =IF(SUM(F149:I149)=0,"",IF(ral=1,0,INDEX('input data'!$G$96:$G$101,ral))) -> RAL7016ST | AB149: =IF(AC149="","",IF(AC149=1,calcul!$B$1072,IF(AC149=2,calcul!$B$1080,""))) -> 029/71334 | AC149: 1 | AG149: 103546 | AH149: VPPLAT | AI149: 0
A150: =taal!A359 -> SEITENTRÄGER COVER | B150: VPZDC | C150: ZDC | D150: 2800 | E150: 21304 | F150: 21332 | G150: 21326 | H150: 31164 | I150: 21337 | J150: 21337 | K150: =VLOOKUP(L150,'intrek AX'!$A$1:$R$3596,18,FALSE) -> 42.33 | L150: =INDEX(E150:J150,ral) -> 31164 | M150: =IF(VLOOKUP(L150,'setdet 2'!$B$2:$E$2284,4,FALSE)=0,"",VLOOKUP(L150,'setdet 2'!$B$2:$E$2284,4,FALSE)) ->  | S150: 0 | T150: 0 | U150: 0 | V150: =IF(U150=0,0,VLOOKUP(U150,'intrek AX'!$A$1:$R$3593,18,FALSE)) -> 0 | W150: 0 | AA150: =IF(SUM(F150:I150)=0,"",IF(ral=1,0,INDEX('input data'!$G$96:$G$101,ral))) -> RAL7016ST | AB150: =IF(AC150="","",IF(AC150=1,calcul!$B$1072,IF(AC150=2,calcul!$B$1080,""))) -> 029/71334 | AC150: 1 | AG150: 31164 | AH150: VPZDC | AI150: 0
B151: VPZDC | C151: ZDC | D151: 3300 | E151: 21305 | F151: 21333 | G151: 21327 | H151: 31165 | I151: 21338 | J151: 21338 | K151: =VLOOKUP(L151,'intrek AX'!$A$1:$R$3596,18,FALSE) -> 42.33 | L151: =INDEX(E151:J151,ral) -> 31165 | M151: =IF(VLOOKUP(L151,'setdet 2'!$B$2:$E$2284,4,FALSE)=0,"",VLOOKUP(L151,'setdet 2'!$B$2:$E$2284,4,FALSE)) ->  | S151: 0 | T151: 0 | U151: 0 | V151: =IF(U151=0,0,VLOOKUP(U151,'intrek AX'!$A$1:$R$3593,18,FALSE)) -> 0 | W151: 0 | AA151: =IF(SUM(F151:I151)=0,"",IF(ral=1,0,INDEX('input data'!$G$96:$G$101,ral))) -> RAL7016ST | AB151: =IF(AC151="","",IF(AC151=1,calcul!$B$1072,IF(AC151=2,calcul!$B$1080,""))) -> 029/71334 | AC151: 1 | AG151: 31165 | AH151: VPZDC | AI151: 0
B152: VPZDC | C152: ZDC | D152: 3800 | E152: 21306 | F152: 21334 | G152: 21328 | H152: 31166 | I152: 21339 | J152: 21339 | K152: =VLOOKUP(L152,'intrek AX'!$A$1:$R$3596,18,FALSE) -> 42.33 | L152: =INDEX(E152:J152,ral) -> 31166 | M152: =IF(VLOOKUP(L152,'setdet 2'!$B$2:$E$2284,4,FALSE)=0,"",VLOOKUP(L152,'setdet 2'!$B$2:$E$2284,4,FALSE)) ->  | S152: 0 | T152: 0 | U152: 0 | V152: =IF(U152=0,0,VLOOKUP(U152,'intrek AX'!$A$1:$R$3593,18,FALSE)) -> 0 | W152: 0 | AA152: =IF(SUM(F152:I152)=0,"",IF(ral=1,0,INDEX('input data'!$G$96:$G$101,ral))) -> RAL7016ST | AB152: =IF(AC152="","",IF(AC152=1,calcul!$B$1072,IF(AC152=2,calcul!$B$1080,""))) -> 029/71334 | AC152: 1 | AG152: 31166 | AH152: VPZDC | AI152: 0
B153: VPZDC | C153: ZDC | D153: 4300 | E153: 21307 | F153: 21335 | G153: 21329 | H153: 31167 | I153: 21340 | J153: 21340 | K153: =VLOOKUP(L153,'intrek AX'!$A$1:$R$3596,18,FALSE) -> 42.33 | L153: =INDEX(E153:J153,ral) -> 31167 | M153: =IF(VLOOKUP(L153,'setdet 2'!$B$2:$E$2284,4,FALSE)=0,"",VLOOKUP(L153,'setdet 2'!$B$2:$E$2284,4,FALSE)) ->  | S153: 0 | T153: 0 | U153: 0 | V153: =IF(U153=0,0,VLOOKUP(U153,'intrek AX'!$A$1:$R$3593,18,FALSE)) -> 0 | W153: 0 | AA153: =IF(SUM(F153:I153)=0,"",IF(ral=1,0,INDEX('input data'!$G$96:$G$101,ral))) -> RAL7016ST | AB153: =IF(AC153="","",IF(AC153=1,calcul!$B$1072,IF(AC153=2,calcul!$B$1080,""))) -> 029/71334 | AC153: 1 | AG153: 31167 | AH153: VPZDC | AI153: 0
B154: VPZDC | C154: ZDC | D154: 6300 | E154: 21308 | F154: 21336 | G154: 21331 | H154: 31168 | I154: 21341 | J154: 21341 | K154: =VLOOKUP(L154,'intrek AX'!$A$1:$R$3596,18,FALSE) -> 42.33 | L154: =INDEX(E154:J154,ral) -> 31168 | M154: =IF(VLOOKUP(L154,'setdet 2'!$B$2:$E$2284,4,FALSE)=0,"",VLOOKUP(L154,'setdet 2'!$B$2:$E$2284,4,FALSE)) ->  | S154: 0 | T154: 0 | U154: 0 | V154: =IF(U154=0,0,VLOOKUP(U154,'intrek AX'!$A$1:$R$3593,18,FALSE)) -> 0 | W154: 0 | AA154: =IF(SUM(F154:I154)=0,"",IF(ral=1,0,INDEX('input data'!$G$96:$G$101,ral))) -> RAL7016ST | AB154: =IF(AC154="","",IF(AC154=1,calcul!$B$1072,IF(AC154=2,calcul!$B$1080,""))) -> 029/71334 | AC154: 1 | AG154: 31168 | AH154: VPZDC | AI154: 0
A155: =taal!A360 -> STAHLROHR 60X40X2 GALVA | B155: VPV642 | C155: V642 | D155: 4000 | E155: 21514 | K155: =VLOOKUP(L155,'intrek AX'!$A$1:$R$3596,18,FALSE) -> 16.09 | L155: =E155 -> 21514 | M155: =IF(VLOOKUP(L155,'setdet 2'!$B$2:$E$2284,4,FALSE)=0,"",VLOOKUP(L155,'setdet 2'!$B$2:$E$2284,4,FALSE)) ->  | S155: 0 | T155: 0 | U155: =S155 -> 0 | V155: =IF(U155=0,0,VLOOKUP(U155,'intrek AX'!$A$1:$R$3593,18,FALSE)) -> 0 | W155: 0 | AA155: GALVA | AB155: =IF(AC155="","",IF(AC155=1,calcul!$B$1072,IF(AC155=2,calcul!$B$1080,""))) ->  | AG155: 21514 | AH155: VPV642 | AI155: 0
B156: VPV642 | C156: V642 | D156: 5000 | E156: 28964 | K156: =VLOOKUP(L156,'intrek AX'!$A$1:$R$3596,18,FALSE) -> 16.09 | L156: 28964 | M156: =IF(VLOOKUP(L156,'setdet 2'!$B$2:$E$2284,4,FALSE)=0,"",VLOOKUP(L156,'setdet 2'!$B$2:$E$2284,4,FALSE)) ->  | S156: 0 | T156: 0 | U156: 0 | V156: =IF(U156=0,0,VLOOKUP(U156,'intrek AX'!$A$1:$R$3593,18,FALSE)) -> 0 | W156: 0 | AA156: GALVA | AB156: =IF(AC156="","",IF(AC156=1,calcul!$B$1072,IF(AC156=2,calcul!$B$1080,""))) ->  | AG156: 28964 | AH156: VPV642 | AI156: 0
B157: VPV642 | C157: V642 | D157: 6000 | E157: 21515 | K157: =VLOOKUP(L157,'intrek AX'!$A$1:$R$3596,18,FALSE) -> 16.09 | L157: 21515 | M157: =IF(VLOOKUP(L157,'setdet 2'!$B$2:$E$2284,4,FALSE)=0,"",VLOOKUP(L157,'setdet 2'!$B$2:$E$2284,4,FALSE)) ->  | O157: =IF(ISBLANK(N157)=TRUE,M157,N157) ->  | S157: 0 | T157: 0 | U157: 0 | V157: =IF(U157=0,0,VLOOKUP(U157,'intrek AX'!$A$1:$R$3593,18,FALSE)) -> 0 | W157: 0 | AA157: GALVA | AB157: =IF(AC157="","",IF(AC157=1,calcul!$B$1072,IF(AC157=2,calcul!$B$1080,""))) ->  | AG157: 21515 | AH157: VPV642 | AI157: 0
A158: =taal!A361 -> STAHLROHR 80X25X3 GALVA | B158: VPVS | C158: VS | D158: 6000 | E158: 51818 | K158: =VLOOKUP(L158,'intrek AX'!$A$1:$R$3596,18,FALSE) -> 45.09 | L158: 51818 | M158: =IF(VLOOKUP(L158,'setdet 2'!$B$2:$E$2284,4,FALSE)=0,"",VLOOKUP(L158,'setdet 2'!$B$2:$E$2284,4,FALSE)) ->  | S158: =IF(T158=0,0,L158) -> 0 | T158: =IF(ISNUMBER(O158)=FALSE,0,O158) -> 0 | U158: 0 | V158: =IF(U158=0,0,VLOOKUP(U158,'intrek AX'!$A$1:$R$3593,18,FALSE)) -> 0 | W158: =T158*D158/1000*V158 -> 0 | AA158: GALVA | AB158: =IF(AC158="","",IF(AC158=1,calcul!$B$1072,IF(AC158=2,calcul!$B$1080,""))) ->  | AG158: 51818 | AH158: VPVS | AI158: 0
A159: =taal!A362 -> STAHLROHR 80X50X3 GALVA | B159: VPV853 | C159: V853 | D159: 6000 | E159: 108544 | K159: =VLOOKUP(L159,'intrek AX'!$A$1:$R$3596,18,FALSE) -> 60.21 | L159: =E159 -> 108544 | M159: =IF(VLOOKUP(L159,'setdet 2'!$B$2:$E$2284,4,FALSE)=0,"",VLOOKUP(L159,'setdet 2'!$B$2:$E$2284,4,FALSE)) ->  | O159: =IF(ISBLANK(N159)=TRUE,M159,N159) ->  | S159: 0 | T159: 0 | U159: =S159 -> 0 | V159: =IF(U159=0,0,VLOOKUP(U159,'intrek AX'!$A$1:$R$3593,18,FALSE)) -> 0 | W159: 0 | AA159: GALVA | AB159: =IF(AC159="","",IF(AC159=1,calcul!$B$1072,IF(AC159=2,calcul!$B$1080,""))) ->  | AG159: 108544 | AH159: VPV853 | AI159: 0
A160: =taal!A363 -> STAHLROHR 100X40X4 GALVA | B160: VPV1044 | C160: V1044 | D160: 6000 | E160: 43690 | K160: =VLOOKUP(L160,'intrek AX'!$A$1:$R$3596,18,FALSE) -> 62.95 | L160: =E160 -> 43690 | M160: =IF(VLOOKUP(L160,'setdet 2'!$B$2:$E$2284,4,FALSE)=0,"",VLOOKUP(L160,'setdet 2'!$B$2:$E$2284,4,FALSE)) ->  | O160: =IF(ISBLANK(N160)=TRUE,M160,N160) ->  | S160: 0 | T160: 0 | U160: =S160 -> 0 | V160: =IF(U160=0,0,VLOOKUP(U160,'intrek AX'!$A$1:$R$3593,18,FALSE)) -> 0 | W160: 0 | AA160: GALVA | AB160: =IF(AC160="","",IF(AC160=1,calcul!$B$1072,IF(AC160=2,calcul!$B$1080,""))) ->  | AG160: 43690 | AH160: VPV1044 | AI160: 0
A161: =taal!A364 -> STAHLROHR 120X40X3 GALVA | B161: VPV1243 | C161: V1243 | D161: 6000 | E161: 72217 | K161: =VLOOKUP(L161,'intrek AX'!$A$1:$R$3596,18,FALSE) -> 53.47 | L161: 72217 | M161: =IF(VLOOKUP(L161,'setdet 2'!$B$2:$E$2284,4,FALSE)=0,"",VLOOKUP(L161,'setdet 2'!$B$2:$E$2284,4,FALSE)) ->  | O161: =IF(ISBLANK(N161)=TRUE,M161,N161) ->  | S161: 0 | T161: 0 | U161: 0 | V161: =IF(U161=0,0,VLOOKUP(U161,'intrek AX'!$A$1:$R$3593,18,FALSE)) -> 0 | W161: 0 | AA161: GALVA | AB161: =IF(AC161="","",IF(AC161=1,calcul!$B$1072,IF(AC161=2,calcul!$B$1080,""))) ->  | AG161: 72217 | AH161: VPV1243 | AI161: 0
B162: VPV1244 | C162: V1243 | D162: 7000 | E162: 110027 | K162: =VLOOKUP(L162,'intrek AX'!$A$1:$R$3596,18,FALSE) -> 71.64 | L162: =E162 -> 110027 | M162: =IF(VLOOKUP(L162,'setdet 2'!$B$2:$E$2284,4,FALSE)=0,"",VLOOKUP(L162,'setdet 2'!$B$2:$E$2284,4,FALSE)) ->  | O162: =IF(ISBLANK(N162)=TRUE,M162,N162) ->  | S162: =IF(T162=0,0,L162) -> 0 | T162: =IF(ISNUMBER(O162)=FALSE,0,O162) -> 0 | U162: =S162 -> 0 | V162: =IF(U162=0,0,VLOOKUP(U162,'intrek AX'!$A$1:$R$3593,18,FALSE)) -> 0 | W162: 0 | AA162: GALVA | AB162: =IF(AC162="","",IF(AC162=1,calcul!$B$1072,IF(AC162=2,calcul!$B$1080,""))) ->  | AG162: 110027 | AH162: VPV1244 | AI162: 0
A163: =taal!A365 -> PROFIL IPE120 GALVA | B163: VPIPE120 | C163: IPE120 | D163: 7000 | E163: 109888 | K163: =VLOOKUP(L163,'intrek AX'!$A$1:$R$3596,18,FALSE) -> 60.64 | L163: =E163 -> 109888 | M163: =IF(VLOOKUP(L163,'setdet 2'!$B$2:$E$2284,4,FALSE)=0,"",VLOOKUP(L163,'setdet 2'!$B$2:$E$2284,4,FALSE)) ->  | O163: =IF(ISBLANK(N163)=TRUE,M163,N163) ->  | S163: 0 | T163: 0 | U163: =S163 -> 0 | V163: =IF(U163=0,0,VLOOKUP(U163,'intrek AX'!$A$1:$R$3593,18,FALSE)) -> 0 | W163: 0 | AA163: GALVA | AB163: =IF(AC163="","",IF(AC163=1,calcul!$B$1072,IF(AC163=2,calcul!$B$1080,""))) ->  | AG163: 109888 | AH163: VPIPE120 | AI163: 0
A164: =taal!A366 -> VERSTÄRKUNGSPLATTE PL165 GALVA | B164: VTPLAT | C164: PL165 | D164: 6150 | E164: 36335 | K164: =VLOOKUP(L164,'intrek AX'!$A$1:$R$3596,18,FALSE) -> 50.77 | L164: 36335 | M164: =IF(VLOOKUP(L164,'setdet 2'!$B$2:$E$2284,4,FALSE)=0,"",VLOOKUP(L164,'setdet 2'!$B$2:$E$2284,4,FALSE)) ->  | S164: 0 | T164: 0 | U164: 0 | V164: =IF(U164=0,0,VLOOKUP(U164,'intrek AX'!$A$1:$R$3593,18,FALSE)) -> 0 | W164: 0 | AA164: GALVA | AB164: =IF(AC164="","",IF(AC164=1,calcul!$B$1072,IF(AC164=2,calcul!$B$1080,""))) ->  | AG164: 36335 | AH164: VTPLAT | AI164: 0
A165: =taal!A370 -> L16P | B165: VPL16P | C165: L16P | D165: 2540 | E165: 16718 | F165: 15478 | G165: 21223 | H165: 31347 | I165: 21231 | J165: 21231 | K165: =VLOOKUP(L165,'intrek AX'!$A$1:$R$3596,18,FALSE) -> 13.64 | L165: =INDEX(E165:J165,ral) -> 31347 | M165: =IF(VLOOKUP(L165,'setdet 2'!$B$2:$E$2284,4,FALSE)=0,"",VLOOKUP(L165,'setdet 2'!$B$2:$E$2284,4,FALSE)) ->  | S165: 0 | T165: 0 | U165: =IF(T165=0,0,IF(ralstandout=1,H165,S165)) -> 0 | V165: =IF(U165=0,0,VLOOKUP(U165,'intrek AX'!$A$1:$R$3593,18,FALSE)) -> 0 | W165: 0 | AA165: =IF(SUM(F165:I165)=0,"",IF(ral=1,0,INDEX('input data'!$G$96:$G$101,ral))) -> RAL7016ST | AB165: =IF(AC165="","",IF(AC165=1,calcul!$B$1072,IF(AC165=2,calcul!$B$1080,""))) -> 029/71334 | AC165: 1 | AG165: 31347 | AH165: VPL16P | AI165: 0
B166: VPL16P | C166: L16P | D166: 3040 | E166: 16719 | F166: 15479 | G166: 21224 | H166: 31348 | I166: 21232 | J166: 21232 | K166: =VLOOKUP(L166,'intrek AX'!$A$1:$R$3596,18,FALSE) -> 13.64 | L166: =INDEX(E166:J166,ral) -> 31348 | M166: =IF(VLOOKUP(L166,'setdet 2'!$B$2:$E$2284,4,FALSE)=0,"",VLOOKUP(L166,'setdet 2'!$B$2:$E$2284,4,FALSE)) ->  | S166: 0 | T166: 0 | U166: 0 | V166: =IF(U166=0,0,VLOOKUP(U166,'intrek AX'!$A$1:$R$3593,18,FALSE)) -> 0 | W166: 0 | AA166: =IF(SUM(F166:I166)=0,"",IF(ral=1,0,INDEX('input data'!$G$96:$G$101,ral))) -> RAL7016ST | AB166: =IF(AC166="","",IF(AC166=1,calcul!$B$1072,IF(AC166=2,calcul!$B$1080,""))) -> 029/71334 | AC166: 1 | AG166: 31348 | AH166: VPL16P | AI166: 0
B167: VPL16P | C167: L16P | D167: 3540 | E167: 16720 | F167: 15480 | G167: 21225 | H167: 31349 | I167: 21233 | J167: 21233 | K167: =VLOOKUP(L167,'intrek AX'!$A$1:$R$3596,18,FALSE) -> 13.64 | L167: =INDEX(E167:J167,ral) -> 31349 | M167: =IF(VLOOKUP(L167,'setdet 2'!$B$2:$E$2284,4,FALSE)=0,"",VLOOKUP(L167,'setdet 2'!$B$2:$E$2284,4,FALSE)) ->  | S167: 0 | T167: 0 | U167: 0 | V167: =IF(U167=0,0,VLOOKUP(U167,'intrek AX'!$A$1:$R$3593,18,FALSE)) -> 0 | W167: 0 | AA167: =IF(SUM(F167:I167)=0,"",IF(ral=1,0,INDEX('input data'!$G$96:$G$101,ral))) -> RAL7016ST | AB167: =IF(AC167="","",IF(AC167=1,calcul!$B$1072,IF(AC167=2,calcul!$B$1080,""))) -> 029/71334 | AC167: 1 | AG167: 31349 | AH167: VPL16P | AI167: 0
B168: VPL16P | C168: L16P | D168: 4040 | E168: 16721 | F168: 15481 | G168: 21226 | H168: 31350 | I168: 21234 | J168: 21234 | K168: =VLOOKUP(L168,'intrek AX'!$A$1:$R$3596,18,FALSE) -> 13.64 | L168: =INDEX(E168:J168,ral) -> 31350 | M168: =IF(VLOOKUP(L168,'setdet 2'!$B$2:$E$2284,4,FALSE)=0,"",VLOOKUP(L168,'setdet 2'!$B$2:$E$2284,4,FALSE)) ->  | S168: 0 | T168: 0 | U168: 0 | V168: =IF(U168=0,0,VLOOKUP(U168,'intrek AX'!$A$1:$R$3593,18,FALSE)) -> 0 | W168: =T168*D168/1000*V168 -> 0 | AA168: =IF(SUM(F168:I168)=0,"",IF(ral=1,0,INDEX('input data'!$G$96:$G$101,ral))) -> RAL7016ST | AB168: =IF(AC168="","",IF(AC168=1,calcul!$B$1072,IF(AC168=2,calcul!$B$1080,""))) -> 029/71334 | AC168: 1 | AG168: 31350 | AH168: VPL16P | AI168: 0
B169: VPL16P | C169: L16P | D169: 5040 | E169: 16722 | F169: 15482 | G169: 21227 | H169: 31351 | I169: 21235 | J169: 21235 | K169: =VLOOKUP(L169,'intrek AX'!$A$1:$R$3596,18,FALSE) -> 13.64 | L169: =INDEX(E169:J169,ral) -> 31351 | M169: =IF(VLOOKUP(L169,'setdet 2'!$B$2:$E$2284,4,FALSE)=0,"",VLOOKUP(L169,'setdet 2'!$B$2:$E$2284,4,FALSE)) ->  | S169: 0 | T169: 0 | U169: 0 | V169: =IF(U169=0,0,VLOOKUP(U169,'intrek AX'!$A$1:$R$3593,18,FALSE)) -> 0 | W169: 0 | AA169: =IF(SUM(F169:I169)=0,"",IF(ral=1,0,INDEX('input data'!$G$96:$G$101,ral))) -> RAL7016ST | AB169: =IF(AC169="","",IF(AC169=1,calcul!$B$1072,IF(AC169=2,calcul!$B$1080,""))) -> 029/71334 | AC169: 1 | AG169: 31351 | AH169: VPL16P | AI169: 0
B170: VPL16P | C170: L16P | D170: 7040 | E170: 16723 | F170: 15483 | G170: 21229 | H170: 31353 | I170: 21237 | J170: 21237 | K170: =VLOOKUP(L170,'intrek AX'!$A$1:$R$3596,18,FALSE) -> 13.64 | L170: =INDEX(E170:J170,ral) -> 31353 | M170: =IF(VLOOKUP(L170,'setdet 2'!$B$2:$E$2284,4,FALSE)=0,"",VLOOKUP(L170,'setdet 2'!$B$2:$E$2284,4,FALSE)) ->  | S170: 0 | T170: 0 | U170: 0 | V170: =IF(U170=0,0,VLOOKUP(U170,'intrek AX'!$A$1:$R$3593,18,FALSE)) -> 0 | W170: 0 | AA170: =IF(SUM(F170:I170)=0,"",IF(ral=1,0,INDEX('input data'!$G$96:$G$101,ral))) -> RAL7016ST | AB170: =IF(AC170="","",IF(AC170=1,calcul!$B$1072,IF(AC170=2,calcul!$B$1080,""))) -> 029/71334 | AC170: 1 | AG170: 31353 | AH170: VPL16P | AI170: 0
A171: =taal!A371 -> KLIPS ALU 16 MM | B171: VPCL16 | C171: CL16 | D171: 2040 | E171: 13329 | F171: 13336 | G171: 17093 | H171: 31234 | I171: 16063 | J171: 16063 | K171: =VLOOKUP(L171,'intrek AX'!$A$1:$R$3596,18,FALSE) -> 13.47 | L171: =INDEX(E171:J171,ral) -> 31234 | M171: =IF(VLOOKUP(L171,'setdet 2'!$B$2:$E$2284,4,FALSE)=0,"",VLOOKUP(L171,'setdet 2'!$B$2:$E$2284,4,FALSE)) ->  | S171: 0 | T171: 0 | U171: 0 | V171: =IF(U171=0,0,VLOOKUP(U171,'intrek AX'!$A$1:$R$3593,18,FALSE)) -> 0 | W171: 0 | AA171: =IF(SUM(F171:I171)=0,"",IF(ral=1,0,INDEX('input data'!$G$96:$G$101,ral))) -> RAL7016ST | AB171: =IF(AC171="","",IF(AC171=1,calcul!$B$1072,IF(AC171=2,calcul!$B$1080,""))) -> 029/71334 | AC171: 1 | AE171: =SUMIF('assembly codes'!$A$4:$A$61,articles!C171,'assembly codes'!$H$4:$H$61) -> 0 | AF171: =IF(OR(T171=0,verzagen=2,pc=2,AE171=0),"",AE171&".1") ->  | AG171: 31234 | AH171: VPCL16 | AI171: 0
B172: VPCL16 | C172: CL16 | D172: 2540 | E172: 13330 | F172: 13337 | G172: 17094 | H172: 31235 | I172: 16064 | J172: 16064 | K172: =VLOOKUP(L172,'intrek AX'!$A$1:$R$3596,18,FALSE) -> 13.47 | L172: =INDEX(E172:J172,ral) -> 31235 | M172: =IF(VLOOKUP(L172,'setdet 2'!$B$2:$E$2284,4,FALSE)=0,"",VLOOKUP(L172,'setdet 2'!$B$2:$E$2284,4,FALSE)) ->  | S172: 0 | T172: 0 | U172: 0 | V172: =IF(U172=0,0,VLOOKUP(U172,'intrek AX'!$A$1:$R$3593,18,FALSE)) -> 0 | W172: 0 | AA172: =IF(SUM(F172:I172)=0,"",IF(ral=1,0,INDEX('input data'!$G$96:$G$101,ral))) -> RAL7016ST | AB172: =IF(AC172="","",IF(AC172=1,calcul!$B$1072,IF(AC172=2,calcul!$B$1080,""))) -> 029/71334 | AC172: 1 | AE172: =SUMIF('assembly codes'!$A$4:$A$61,articles!C172,'assembly codes'!$H$4:$H$61) -> 0 | AF172: =IF(OR(T172=0,verzagen=2,pc=2,AE172=0),"",AE172&".2") ->  | AG172: 31235 | AH172: VPCL16 | AI172: 0
B173: VPCL16 | C173: CL16 | D173: 3040 | E173: 13331 | F173: 13338 | G173: 17095 | H173: 31236 | I173: 16065 | J173: 16065 | K173: =VLOOKUP(L173,'intrek AX'!$A$1:$R$3596,18,FALSE) -> 13.47 | L173: =INDEX(E173:J173,ral) -> 31236 | M173: =IF(VLOOKUP(L173,'setdet 2'!$B$2:$E$2284,4,FALSE)=0,"",VLOOKUP(L173,'setdet 2'!$B$2:$E$2284,4,FALSE)) ->  | S173: 0 | T173: 0 | U173: 0 | V173: =IF(U173=0,0,VLOOKUP(U173,'intrek AX'!$A$1:$R$3593,18,FALSE)) -> 0 | W173: 0 | AA173: =IF(SUM(F173:I173)=0,"",IF(ral=1,0,INDEX('input data'!$G$96:$G$101,ral))) -> RAL7016ST | AB173: =IF(AC173="","",IF(AC173=1,calcul!$B$1072,IF(AC173=2,calcul!$B$1080,""))) -> 029/71334 | AC173: 1 | AE173: =SUMIF('assembly codes'!$A$4:$A$61,articles!C173,'assembly codes'!$H$4:$H$61) -> 0 | AF173: =IF(OR(T173=0,verzagen=2,pc=2,AE173=0),"",AE173&".3") ->  | AG173: 31236 | AH173: VPCL16 | AI173: 0
B174: VPCL16 | C174: CL16 | D174: 3540 | E174: 13332 | F174: 13339 | G174: 17096 | H174: 31237 | I174: 16066 | J174: 16066 | K174: =VLOOKUP(L174,'intrek AX'!$A$1:$R$3596,18,FALSE) -> 13.47 | L174: =INDEX(E174:J174,ral) -> 31237 | M174: =IF(VLOOKUP(L174,'setdet 2'!$B$2:$E$2284,4,FALSE)=0,"",VLOOKUP(L174,'setdet 2'!$B$2:$E$2284,4,FALSE)) ->  | S174: 0 | T174: 0 | U174: 0 | V174: =IF(U174=0,0,VLOOKUP(U174,'intrek AX'!$A$1:$R$3593,18,FALSE)) -> 0 | W174: 0 | AA174: =IF(SUM(F174:I174)=0,"",IF(ral=1,0,INDEX('input data'!$G$96:$G$101,ral))) -> RAL7016ST | AB174: =IF(AC174="","",IF(AC174=1,calcul!$B$1072,IF(AC174=2,calcul!$B$1080,""))) -> 029/71334 | AC174: 1 | AE174: =SUMIF('assembly codes'!$A$4:$A$61,articles!C174,'assembly codes'!$H$4:$H$61) -> 0 | AF174: =IF(OR(T174=0,verzagen=2,pc=2,AE174=0),"",AE174&".4") ->  | AG174: 31237 | AH174: VPCL16 | AI174: 0
B175: VPCL16 | C175: CL16 | D175: 4040 | E175: 13333 | F175: 13340 | G175: 17097 | H175: 31238 | I175: 16067 | J175: 16067 | K175: =VLOOKUP(L175,'intrek AX'!$A$1:$R$3596,18,FALSE) -> 13.47 | L175: =INDEX(E175:J175,ral) -> 31238 | M175: =IF(VLOOKUP(L175,'setdet 2'!$B$2:$E$2284,4,FALSE)=0,"",VLOOKUP(L175,'setdet 2'!$B$2:$E$2284,4,FALSE)) ->  | S175: 0 | T175: 0 | U175: 0 | V175: =IF(U175=0,0,VLOOKUP(U175,'intrek AX'!$A$1:$R$3593,18,FALSE)) -> 0 | W175: 0 | AA175: =IF(SUM(F175:I175)=0,"",IF(ral=1,0,INDEX('input data'!$G$96:$G$101,ral))) -> RAL7016ST | AB175: =IF(AC175="","",IF(AC175=1,calcul!$B$1072,IF(AC175=2,calcul!$B$1080,""))) -> 029/71334 | AC175: 1 | AE175: =SUMIF('assembly codes'!$A$4:$A$61,articles!C175,'assembly codes'!$H$4:$H$61) -> 0 | AF175: =IF(OR(T175=0,verzagen=2,pc=2,AE175=0),"",AE175&".5") ->  | AG175: 31238 | AH175: VPCL16 | AI175: 0
B176: VPCL16 | C176: CL16 | D176: 5040 | E176: 13824 | F176: 13928 | G176: 17098 | H176: 31239 | I176: 16070 | J176: 16070 | K176: =VLOOKUP(L176,'intrek AX'!$A$1:$R$3596,18,FALSE) -> 13.47 | L176: =INDEX(E176:J176,ral) -> 31239 | M176: =IF(VLOOKUP(L176,'setdet 2'!$B$2:$E$2284,4,FALSE)=0,"",VLOOKUP(L176,'setdet 2'!$B$2:$E$2284,4,FALSE)) ->  | S176: 0 | T176: 0 | U176: 0 | V176: =IF(U176=0,0,VLOOKUP(U176,'intrek AX'!$A$1:$R$3593,18,FALSE)) -> 0 | W176: 0 | AA176: =IF(SUM(F176:I176)=0,"",IF(ral=1,0,INDEX('input data'!$G$96:$G$101,ral))) -> RAL7016ST | AB176: =IF(AC176="","",IF(AC176=1,calcul!$B$1072,IF(AC176=2,calcul!$B$1080,""))) -> 029/71334 | AC176: 1 | AE176: =SUMIF('assembly codes'!$A$4:$A$61,articles!C176,'assembly codes'!$H$4:$H$61) -> 0 | AF176: =IF(OR(T176=0,verzagen=2,pc=2,AE176=0),"",AE176&".6") ->  | AG176: 31239 | AH176: VPCL16 | AI176: 0
B177: VPCL16 | C177: CL16 | D177: 6040 | E177: 13334 | F177: 13341 | G177: 17099 | H177: 31240 | I177: 16071 | J177: 16071 | K177: =VLOOKUP(L177,'intrek AX'!$A$1:$R$3596,18,FALSE) -> 13.47 | L177: =INDEX(E177:J177,ral) -> 31240 | M177: =IF(VLOOKUP(L177,'setdet 2'!$B$2:$E$2284,4,FALSE)=0,"",VLOOKUP(L177,'setdet 2'!$B$2:$E$2284,4,FALSE)) ->  | S177: 0 | T177: 0 | U177: 0 | V177: =IF(U177=0,0,VLOOKUP(U177,'intrek AX'!$A$1:$R$3593,18,FALSE)) -> 0 | W177: 0 | AA177: =IF(SUM(F177:I177)=0,"",IF(ral=1,0,INDEX('input data'!$G$96:$G$101,ral))) -> RAL7016ST | AB177: =IF(AC177="","",IF(AC177=1,calcul!$B$1072,IF(AC177=2,calcul!$B$1080,""))) -> 029/71334 | AC177: 1 | AE177: =SUMIF('assembly codes'!$A$4:$A$61,articles!C177,'assembly codes'!$H$4:$H$61) -> 0 | AF177: =IF(OR(T177=0,verzagen=2,pc=2,AE177=0),"",AE177&".7") ->  | AG177: 31240 | AH177: VPCL16 | AI177: 0
B178: VPCL16 | C178: CL16 | D178: 7040 | E178: 13335 | F178: 13342 | G178: 17100 | H178: 31241 | I178: 16072 | J178: 16072 | K178: =VLOOKUP(L178,'intrek AX'!$A$1:$R$3596,18,FALSE) -> 13.47 | L178: =INDEX(E178:J178,ral) -> 31241 | M178: =IF(VLOOKUP(L178,'setdet 2'!$B$2:$E$2284,4,FALSE)=0,"",VLOOKUP(L178,'setdet 2'!$B$2:$E$2284,4,FALSE)) ->  | S178: 0 | T178: 0 | U178: 0 | V178: =IF(U178=0,0,VLOOKUP(U178,'intrek AX'!$A$1:$R$3593,18,FALSE)) -> 0 | W178: 0 | AA178: =IF(SUM(F178:I178)=0,"",IF(ral=1,0,INDEX('input data'!$G$96:$G$101,ral))) -> RAL7016ST | AB178: =IF(AC178="","",IF(AC178=1,calcul!$B$1072,IF(AC178=2,calcul!$B$1080,""))) -> 029/71334 | AC178: 1 | AE178: =SUMIF('assembly codes'!$A$4:$A$61,articles!C178,'assembly codes'!$H$4:$H$61) -> 0 | AF178: =IF(OR(T178=0,verzagen=2,pc=2,AE178=0),"",AE178&".8") ->  | AG178: 31241 | AH178: VPCL16 | AI178: 0
A179: =taal!A372 -> KLIPS ALU 25/32 MM | B179: VPCL32 | C179: CL32 | D179: 2040 | E179: 13350 | F179: 13352 | G179: 17102 | H179: 31242 | I179: 16073 | J179: 16073 | K179: =VLOOKUP(L179,'intrek AX'!$A$1:$R$3596,18,FALSE) -> 17.12 | L179: =INDEX(E179:J179,ral) -> 31242 | M179: =IF(VLOOKUP(L179,'setdet 2'!$B$2:$E$2284,4,FALSE)=0,"",VLOOKUP(L179,'setdet 2'!$B$2:$E$2284,4,FALSE)) ->  | S179: 0 | T179: 0 | U179: 0 | V179: =IF(U179=0,0,VLOOKUP(U179,'intrek AX'!$A$1:$R$3593,18,FALSE)) -> 0 | W179: 0 | AA179: =IF(SUM(F179:I179)=0,"",IF(ral=1,0,INDEX('input data'!$G$96:$G$101,ral))) -> RAL7016ST | AB179: =IF(AC179="","",IF(AC179=1,calcul!$B$1072,IF(AC179=2,calcul!$B$1080,""))) -> 029/71334 | AC179: 1 | AE179: =SUMIF('assembly codes'!$A$4:$A$61,articles!C179,'assembly codes'!$H$4:$H$61) -> 0 | AF179: =IF(OR(T179=0,verzagen=2,pc=2,AE179=0),"",AE179&".1") ->  | AG179: 31242 | AH179: VPCL32 | AI179: 0
B180: VPCL32 | C180: CL32 | D180: 2540 | E180: 13351 | F180: 13353 | G180: 17104 | H180: 31243 | I180: 16074 | J180: 16074 | K180: =VLOOKUP(L180,'intrek AX'!$A$1:$R$3596,18,FALSE) -> 17.12 | L180: =INDEX(E180:J180,ral) -> 31243 | M180: =IF(VLOOKUP(L180,'setdet 2'!$B$2:$E$2284,4,FALSE)=0,"",VLOOKUP(L180,'setdet 2'!$B$2:$E$2284,4,FALSE)) ->  | S180: 0 | T180: 0 | U180: 0 | V180: =IF(U180=0,0,VLOOKUP(U180,'intrek AX'!$A$1:$R$3593,18,FALSE)) -> 0 | W180: 0 | AA180: =IF(SUM(F180:I180)=0,"",IF(ral=1,0,INDEX('input data'!$G$96:$G$101,ral))) -> RAL7016ST | AB180: =IF(AC180="","",IF(AC180=1,calcul!$B$1072,IF(AC180=2,calcul!$B$1080,""))) -> 029/71334 | AC180: 1 | AE180: =SUMIF('assembly codes'!$A$4:$A$61,articles!C180,'assembly codes'!$H$4:$H$61) -> 0 | AF180: =IF(OR(T180=0,verzagen=2,pc=2,AE180=0),"",AE180&".2") ->  | AG180: 31243 | AH180: VPCL32 | AI180: 0
B181: VPCL32 | C181: CL32 | D181: 3040 | E181: 13154 | F181: 13159 | G181: 17105 | H181: 31244 | I181: 16075 | J181: 16075 | K181: =VLOOKUP(L181,'intrek AX'!$A$1:$R$3596,18,FALSE) -> 17.12 | L181: =INDEX(E181:J181,ral) -> 31244 | M181: =IF(VLOOKUP(L181,'setdet 2'!$B$2:$E$2284,4,FALSE)=0,"",VLOOKUP(L181,'setdet 2'!$B$2:$E$2284,4,FALSE)) ->  | S181: 0 | T181: 0 | U181: 0 | V181: =IF(U181=0,0,VLOOKUP(U181,'intrek AX'!$A$1:$R$3593,18,FALSE)) -> 0 | W181: 0 | AA181: =IF(SUM(F181:I181)=0,"",IF(ral=1,0,INDEX('input data'!$G$96:$G$101,ral))) -> RAL7016ST | AB181: =IF(AC181="","",IF(AC181=1,calcul!$B$1072,IF(AC181=2,calcul!$B$1080,""))) -> 029/71334 | AC181: 1 | AE181: =SUMIF('assembly codes'!$A$4:$A$61,articles!C181,'assembly codes'!$H$4:$H$61) -> 0 | AF181: =IF(OR(T181=0,verzagen=2,pc=2,AE181=0),"",AE181&".3") ->  | AG181: 31244 | AH181: VPCL32 | AI181: 0
B182: VPCL32 | C182: CL32 | D182: 3540 | E182: 13155 | F182: 13160 | G182: 17106 | H182: 31245 | I182: 16076 | J182: 16076 | K182: =VLOOKUP(L182,'intrek AX'!$A$1:$R$3596,18,FALSE) -> 17.12 | L182: =INDEX(E182:J182,ral) -> 31245 | M182: =IF(VLOOKUP(L182,'setdet 2'!$B$2:$E$2284,4,FALSE)=0,"",VLOOKUP(L182,'setdet 2'!$B$2:$E$2284,4,FALSE)) ->  | O182: =IF(ISBLANK(N182)=TRUE,M182,N182) ->  | S182: 0 | T182: 0 | U182: 0 | V182: =IF(U182=0,0,VLOOKUP(U182,'intrek AX'!$A$1:$R$3593,18,FALSE)) -> 0 | W182: 0 | AA182: =IF(SUM(F182:I182)=0,"",IF(ral=1,0,INDEX('input data'!$G$96:$G$101,ral))) -> RAL7016ST | AB182: =IF(AC182="","",IF(AC182=1,calcul!$B$1072,IF(AC182=2,calcul!$B$1080,""))) -> 029/71334 | AC182: 1 | AE182: =SUMIF('assembly codes'!$A$4:$A$61,articles!C182,'assembly codes'!$H$4:$H$61) -> 0 | AF182: =IF(OR(T182=0,verzagen=2,pc=2,AE182=0),"",AE182&".4") ->  | AG182: 31245 | AH182: VPCL32 | AI182: 0
B183: VPCL32 | C183: CL32 | D183: 4040 | E183: 13156 | F183: 13161 | G183: 17107 | H183: 31246 | I183: 16088 | J183: 16088 | K183: =VLOOKUP(L183,'intrek AX'!$A$1:$R$3596,18,FALSE) -> 17.12 | L183: =INDEX(E183:J183,ral) -> 31246 | M183: =IF(VLOOKUP(L183,'setdet 2'!$B$2:$E$2284,4,FALSE)=0,"",VLOOKUP(L183,'setdet 2'!$B$2:$E$2284,4,FALSE)) ->  | S183: 0 | T183: 0 | U183: 0 | V183: =IF(U183=0,0,VLOOKUP(U183,'intrek AX'!$A$1:$R$3593,18,FALSE)) -> 0 | W183: 0 | AA183: =IF(SUM(F183:I183)=0,"",IF(ral=1,0,INDEX('input data'!$G$96:$G$101,ral))) -> RAL7016ST | AB183: =IF(AC183="","",IF(AC183=1,calcul!$B$1072,IF(AC183=2,calcul!$B$1080,""))) -> 029/71334 | AC183: 1 | AE183: =SUMIF('assembly codes'!$A$4:$A$61,articles!C183,'assembly codes'!$H$4:$H$61) -> 0 | AF183: =IF(OR(T183=0,verzagen=2,pc=2,AE183=0),"",AE183&".5") ->  | AG183: 31246 | AH183: VPCL32 | AI183: 0
B184: VPCL32 | C184: CL32 | D184: 5040 | E184: 14372 | F184: 14373 | G184: 17108 | H184: 31247 | I184: 16089 | J184: 16089 | K184: =VLOOKUP(L184,'intrek AX'!$A$1:$R$3596,18,FALSE) -> 17.12 | L184: =INDEX(E184:J184,ral) -> 31247 | M184: =IF(VLOOKUP(L184,'setdet 2'!$B$2:$E$2284,4,FALSE)=0,"",VLOOKUP(L184,'setdet 2'!$B$2:$E$2284,4,FALSE)) ->  | S184: 0 | T184: 0 | U184: 0 | V184: =IF(U184=0,0,VLOOKUP(U184,'intrek AX'!$A$1:$R$3593,18,FALSE)) -> 0 | W184: 0 | AA184: =IF(SUM(F184:I184)=0,"",IF(ral=1,0,INDEX('input data'!$G$96:$G$101,ral))) -> RAL7016ST | AB184: =IF(AC184="","",IF(AC184=1,calcul!$B$1072,IF(AC184=2,calcul!$B$1080,""))) -> 029/71334 | AC184: 1 | AE184: =SUMIF('assembly codes'!$A$4:$A$61,articles!C184,'assembly codes'!$H$4:$H$61) -> 0 | AF184: =IF(OR(T184=0,verzagen=2,pc=2,AE184=0),"",AE184&".6") ->  | AG184: 31247 | AH184: VPCL32 | AI184: 0
B185: VPCL32 | C185: CL32 | D185: 6040 | E185: 13157 | F185: 13162 | G185: 17109 | H185: 31248 | I185: 16091 | J185: 16091 | K185: =VLOOKUP(L185,'intrek AX'!$A$1:$R$3596,18,FALSE) -> 17.12 | L185: =INDEX(E185:J185,ral) -> 31248 | M185: =IF(VLOOKUP(L185,'setdet 2'!$B$2:$E$2284,4,FALSE)=0,"",VLOOKUP(L185,'setdet 2'!$B$2:$E$2284,4,FALSE)) ->  | S185: 0 | T185: 0 | U185: 0 | V185: =IF(U185=0,0,VLOOKUP(U185,'intrek AX'!$A$1:$R$3593,18,FALSE)) -> 0 | W185: 0 | AA185: =IF(SUM(F185:I185)=0,"",IF(ral=1,0,INDEX('input data'!$G$96:$G$101,ral))) -> RAL7016ST | AB185: =IF(AC185="","",IF(AC185=1,calcul!$B$1072,IF(AC185=2,calcul!$B$1080,""))) -> 029/71334 | AC185: 1 | AE185: =SUMIF('assembly codes'!$A$4:$A$61,articles!C185,'assembly codes'!$H$4:$H$61) -> 0 | AF185: =IF(OR(T185=0,verzagen=2,pc=2,AE185=0),"",AE185&".7") ->  | AG185: 31248 | AH185: VPCL32 | AI185: 0
B186: VPCL32 | C186: CL32 | D186: 7040 | E186: 13158 | F186: 13163 | G186: 17110 | H186: 31249 | I186: 16092 | J186: 16092 | K186: =VLOOKUP(L186,'intrek AX'!$A$1:$R$3596,18,FALSE) -> 17.12 | L186: =INDEX(E186:J186,ral) -> 31249 | M186: =IF(VLOOKUP(L186,'setdet 2'!$B$2:$E$2284,4,FALSE)=0,"",VLOOKUP(L186,'setdet 2'!$B$2:$E$2284,4,FALSE)) ->  | S186: 0 | T186: 0 | U186: 0 | V186: =IF(U186=0,0,VLOOKUP(U186,'intrek AX'!$A$1:$R$3593,18,FALSE)) -> 0 | W186: 0 | AA186: =IF(SUM(F186:I186)=0,"",IF(ral=1,0,INDEX('input data'!$G$96:$G$101,ral))) -> RAL7016ST | AB186: =IF(AC186="","",IF(AC186=1,calcul!$B$1072,IF(AC186=2,calcul!$B$1080,""))) -> 029/71334 | AC186: 1 | AE186: =SUMIF('assembly codes'!$A$4:$A$61,articles!C186,'assembly codes'!$H$4:$H$61) -> 0 | AF186: =IF(OR(T186=0,verzagen=2,pc=2,AE186=0),"",AE186&".8") ->  | AG186: 31249 | AH186: VPCL32 | AI186: 0
A187: =taal!A373 -> CLL | B187: VPCLL | C187: CLL | D187: 2040 | E187: 17713 | F187: 17740 | G187: 21166 | H187: 31354 | I187: 21174 | J187: 21174 | K187: =VLOOKUP(L187,'intrek AX'!$A$1:$R$3596,18,FALSE) -> 23.82 | L187: =INDEX(E187:J187,ral) -> 31354 | M187: =IF(VLOOKUP(L187,'setdet 2'!$B$2:$E$2284,4,FALSE)=0,"",VLOOKUP(L187,'setdet 2'!$B$2:$E$2284,4,FALSE)) ->  | S187: 0 | T187: 0 | U187: 0 | V187: =IF(U187=0,0,VLOOKUP(U187,'intrek AX'!$A$1:$R$3593,18,FALSE)) -> 0 | W187: 0 | AA187: =IF(SUM(F187:I187)=0,"",IF(ral=1,0,INDEX('input data'!$G$96:$G$101,ral))) -> RAL7016ST | AB187: =IF(AC187="","",IF(AC187=1,calcul!$B$1072,IF(AC187=2,calcul!$B$1080,""))) -> 029/71334 | AC187: 1 | AE187: =SUMIF('assembly codes'!$A$4:$A$61,articles!C187,'assembly codes'!$H$4:$H$61) -> 0 | AF187: =IF(OR(T187=0,verzagen=2,pc=2,AE187=0),"",AE187&".1") ->  | AG187: 31354 | AH187: VPCLL | AI187: 0
B188: VPCLL | C188: CLL | D188: 2540 | E188: 17714 | F188: 17741 | G188: 21167 | H188: 31355 | I188: 21175 | J188: 21175 | K188: =VLOOKUP(L188,'intrek AX'!$A$1:$R$3596,18,FALSE) -> 23.82 | L188: =INDEX(E188:J188,ral) -> 31355 | M188: =IF(VLOOKUP(L188,'setdet 2'!$B$2:$E$2284,4,FALSE)=0,"",VLOOKUP(L188,'setdet 2'!$B$2:$E$2284,4,FALSE)) ->  | S188: 0 | T188: 0 | U188: 0 | V188: =IF(U188=0,0,VLOOKUP(U188,'intrek AX'!$A$1:$R$3593,18,FALSE)) -> 0 | W188: 0 | AA188: =IF(SUM(F188:I188)=0,"",IF(ral=1,0,INDEX('input data'!$G$96:$G$101,ral))) -> RAL7016ST | AB188: =IF(AC188="","",IF(AC188=1,calcul!$B$1072,IF(AC188=2,calcul!$B$1080,""))) -> 029/71334 | AC188: 1 | AE188: =SUMIF('assembly codes'!$A$4:$A$61,articles!C188,'assembly codes'!$H$4:$H$61) -> 0 | AF188: =IF(OR(T188=0,verzagen=2,pc=2,AE188=0),"",AE188&".2") ->  | AG188: 31355 | AH188: VPCLL | AI188: 0
B189: VPCLL | C189: CLL | D189: 3040 | E189: 17715 | F189: 17742 | G189: 21168 | H189: 31356 | I189: 21176 | J189: 21176 | K189: =VLOOKUP(L189,'intrek AX'!$A$1:$R$3596,18,FALSE) -> 23.82 | L189: =INDEX(E189:J189,ral) -> 31356 | M189: =IF(VLOOKUP(L189,'setdet 2'!$B$2:$E$2284,4,FALSE)=0,"",VLOOKUP(L189,'setdet 2'!$B$2:$E$2284,4,FALSE)) ->  | S189: 0 | T189: 0 | U189: 0 | V189: =IF(U189=0,0,VLOOKUP(U189,'intrek AX'!$A$1:$R$3593,18,FALSE)) -> 0 | W189: 0 | AA189: =IF(SUM(F189:I189)=0,"",IF(ral=1,0,INDEX('input data'!$G$96:$G$101,ral))) -> RAL7016ST | AB189: =IF(AC189="","",IF(AC189=1,calcul!$B$1072,IF(AC189=2,calcul!$B$1080,""))) -> 029/71334 | AC189: 1 | AE189: =SUMIF('assembly codes'!$A$4:$A$61,articles!C189,'assembly codes'!$H$4:$H$61) -> 0 | AF189: =IF(OR(T189=0,verzagen=2,pc=2,AE189=0),"",AE189&".3") ->  | AG189: 31356 | AH189: VPCLL | AI189: 0
B190: VPCLL | C190: CLL | D190: 3540 | E190: 17716 | F190: 17743 | G190: 21169 | H190: 31357 | I190: 21177 | J190: 21177 | K190: =VLOOKUP(L190,'intrek AX'!$A$1:$R$3596,18,FALSE) -> 23.82 | L190: =INDEX(E190:J190,ral) -> 31357 | M190: =IF(VLOOKUP(L190,'setdet 2'!$B$2:$E$2284,4,FALSE)=0,"",VLOOKUP(L190,'setdet 2'!$B$2:$E$2284,4,FALSE)) ->  | S190: 0 | T190: 0 | U190: 0 | V190: =IF(U190=0,0,VLOOKUP(U190,'intrek AX'!$A$1:$R$3593,18,FALSE)) -> 0 | W190: 0 | AA190: =IF(SUM(F190:I190)=0,"",IF(ral=1,0,INDEX('input data'!$G$96:$G$101,ral))) -> RAL7016ST | AB190: =IF(AC190="","",IF(AC190=1,calcul!$B$1072,IF(AC190=2,calcul!$B$1080,""))) -> 029/71334 | AC190: 1 | AE190: =SUMIF('assembly codes'!$A$4:$A$61,articles!C190,'assembly codes'!$H$4:$H$61) -> 0 | AF190: =IF(OR(T190=0,verzagen=2,pc=2,AE190=0),"",AE190&".4") ->  | AG190: 31357 | AH190: VPCLL | AI190: 0
B191: VPCLL | C191: CLL | D191: 4040 | E191: 17717 | F191: 17744 | G191: 21170 | H191: 31358 | I191: 21178 | J191: 21178 | K191: =VLOOKUP(L191,'intrek AX'!$A$1:$R$3596,18,FALSE) -> 23.82 | L191: =INDEX(E191:J191,ral) -> 31358 | M191: =IF(VLOOKUP(L191,'setdet 2'!$B$2:$E$2284,4,FALSE)=0,"",VLOOKUP(L191,'setdet 2'!$B$2:$E$2284,4,FALSE)) ->  | S191: =IF(T191=0,0,L191) -> 0 | T191: =IF(ISNUMBER(O191)=FALSE,0,O191) -> 0 | U191: 0 | V191: =IF(U191=0,0,VLOOKUP(U191,'intrek AX'!$A$1:$R$3593,18,FALSE)) -> 0 | W191: 0 | AA191: =IF(SUM(F191:I191)=0,"",IF(ral=1,0,INDEX('input data'!$G$96:$G$101,ral))) -> RAL7016ST | AB191: =IF(AC191="","",IF(AC191=1,calcul!$B$1072,IF(AC191=2,calcul!$B$1080,""))) -> 029/71334 | AC191: 1 | AE191: =SUMIF('assembly codes'!$A$4:$A$61,articles!C191,'assembly codes'!$H$4:$H$61) -> 0 | AF191: =IF(OR(T191=0,verzagen=2,pc=2,AE191=0),"",AE191&".5") ->  | AG191: 31358 | AH191: VPCLL | AI191: 0
B192: VPCLL | C192: CLL | D192: 5040 | E192: 17718 | F192: 17745 | G192: 21171 | H192: 31359 | I192: 21179 | J192: 21179 | K192: =VLOOKUP(L192,'intrek AX'!$A$1:$R$3596,18,FALSE) -> 23.82 | L192: =INDEX(E192:J192,ral) -> 31359 | M192: =IF(VLOOKUP(L192,'setdet 2'!$B$2:$E$2284,4,FALSE)=0,"",VLOOKUP(L192,'setdet 2'!$B$2:$E$2284,4,FALSE)) ->  | S192: 0 | T192: 0 | U192: 0 | V192: =IF(U192=0,0,VLOOKUP(U192,'intrek AX'!$A$1:$R$3593,18,FALSE)) -> 0 | W192: 0 | AA192: =IF(SUM(F192:I192)=0,"",IF(ral=1,0,INDEX('input data'!$G$96:$G$101,ral))) -> RAL7016ST | AB192: =IF(AC192="","",IF(AC192=1,calcul!$B$1072,IF(AC192=2,calcul!$B$1080,""))) -> 029/71334 | AC192: 1 | AE192: =SUMIF('assembly codes'!$A$4:$A$61,articles!C192,'assembly codes'!$H$4:$H$61) -> 0 | AF192: =IF(OR(T192=0,verzagen=2,pc=2,AE192=0),"",AE192&".6") ->  | AG192: 31359 | AH192: VPCLL | AI192: 0
B193: VPCLL | C193: CLL | D193: 6040 | E193: 17712 | F193: 17728 | G193: 21172 | H193: 31360 | I193: 21180 | J193: 21180 | K193: =VLOOKUP(L193,'intrek AX'!$A$1:$R$3596,18,FALSE) -> 23.82 | L193: =INDEX(E193:J193,ral) -> 31360 | M193: =IF(VLOOKUP(L193,'setdet 2'!$B$2:$E$2284,4,FALSE)=0,"",VLOOKUP(L193,'setdet 2'!$B$2:$E$2284,4,FALSE)) ->  | S193: 0 | T193: 0 | U193: 0 | V193: =IF(U193=0,0,VLOOKUP(U193,'intrek AX'!$A$1:$R$3593,18,FALSE)) -> 0 | W193: 0 | AA193: =IF(SUM(F193:I193)=0,"",IF(ral=1,0,INDEX('input data'!$G$96:$G$101,ral))) -> RAL7016ST | AB193: =IF(AC193="","",IF(AC193=1,calcul!$B$1072,IF(AC193=2,calcul!$B$1080,""))) -> 029/71334 | AC193: 1 | AE193: =SUMIF('assembly codes'!$A$4:$A$61,articles!C193,'assembly codes'!$H$4:$H$61) -> 0 | AF193: =IF(OR(T193=0,verzagen=2,pc=2,AE193=0),"",AE193&".7") ->  | AG193: 31360 | AH193: VPCLL | AI193: 0
B194: VPCLL | C194: CLL | D194: 7040 | E194: 17719 | F194: 17746 | G194: 21173 | H194: 31361 | I194: 21181 | J194: 21181 | K194: =VLOOKUP(L194,'intrek AX'!$A$1:$R$3596,18,FALSE) -> 23.82 | L194: =INDEX(E194:J194,ral) -> 31361 | M194: =IF(VLOOKUP(L194,'setdet 2'!$B$2:$E$2284,4,FALSE)=0,"",VLOOKUP(L194,'setdet 2'!$B$2:$E$2284,4,FALSE)) ->  | S194: 0 | T194: 0 | U194: 0 | V194: =IF(U194=0,0,VLOOKUP(U194,'intrek AX'!$A$1:$R$3593,18,FALSE)) -> 0 | W194: 0 | AA194: =IF(SUM(F194:I194)=0,"",IF(ral=1,0,INDEX('input data'!$G$96:$G$101,ral))) -> RAL7016ST | AB194: =IF(AC194="","",IF(AC194=1,calcul!$B$1072,IF(AC194=2,calcul!$B$1080,""))) -> 029/71334 | AC194: 1 | AE194: =SUMIF('assembly codes'!$A$4:$A$61,articles!C194,'assembly codes'!$H$4:$H$61) -> 0 | AF194: =IF(OR(T194=0,verzagen=2,pc=2,AE194=0),"",AE194&".8") ->  | AG194: 31361 | AH194: VPCLL | AI194: 0
A195: =taal!A374 -> CLLX | B195: VPCLLX | C195: CLLX | D195: 3040 | E195: 35705 | F195: 35710 | G195: 35720 | H195: 35715 | I195: 35720 | J195: 35720 | K195: =VLOOKUP(L195,'intrek AX'!$A$1:$R$3596,18,FALSE) -> 21.92 | L195: =INDEX(E195:J195,ral) -> 35715 | M195: =IF(VLOOKUP(L195,'setdet 2'!$B$2:$E$2284,4,FALSE)=0,"",VLOOKUP(L195,'setdet 2'!$B$2:$E$2284,4,FALSE)) ->  | O195: =IF(ISBLANK(N195)=TRUE,M195,N195) ->  | S195: =IF(T195=0,0,L195) -> 0 | T195: =IF(ISNUMBER(O195)=FALSE,0,O195) -> 0 | U195: 0 | V195: =IF(U195=0,0,VLOOKUP(U195,'intrek AX'!$A$1:$R$3593,18,FALSE)) -> 0 | W195: 0 | AA195: =IF(SUM(F195:I195)=0,"",IF(ral=1,0,INDEX('input data'!$G$96:$G$101,ral))) -> RAL7016ST | AB195: =IF(AC195="","",IF(AC195=1,calcul!$B$1072,IF(AC195=2,calcul!$B$1080,""))) -> 029/71334 | AC195: 1 | AE195: =SUMIF('assembly codes'!$A$4:$A$61,articles!C195,'assembly codes'!$H$4:$H$61) -> 0 | AF195: =IF(OR(T195=0,verzagen=2,pc=2,AE195=0),"",AE195&".1") ->  | AG195: 35715 | AH195: VPCLLX | AI195: =IF(ISBLANK(N195)=TRUE,0,1) -> 0
B196: VPCLLX | C196: CLLX | D196: 3540 | E196: 35706 | F196: 35711 | G196: 35721 | H196: 35716 | I196: 35721 | J196: 35721 | K196: =VLOOKUP(L196,'intrek AX'!$A$1:$R$3596,18,FALSE) -> 21.92 | L196: =INDEX(E196:J196,ral) -> 35716 | M196: =IF(VLOOKUP(L196,'setdet 2'!$B$2:$E$2284,4,FALSE)=0,"",VLOOKUP(L196,'setdet 2'!$B$2:$E$2284,4,FALSE)) ->  | O196: =IF(ISBLANK(N196)=TRUE,M196,N196) ->  | S196: =IF(T196=0,0,L196) -> 0 | T196: =IF(ISNUMBER(O196)=FALSE,0,O196) -> 0 | U196: 0 | V196: =IF(U196=0,0,VLOOKUP(U196,'intrek AX'!$A$1:$R$3593,18,FALSE)) -> 0 | W196: 0 | AA196: =IF(SUM(F196:I196)=0,"",IF(ral=1,0,INDEX('input data'!$G$96:$G$101,ral))) -> RAL7016ST | AB196: =IF(AC196="","",IF(AC196=1,calcul!$B$1072,IF(AC196=2,calcul!$B$1080,""))) -> 029/71334 | AC196: 1 | AE196: =SUMIF('assembly codes'!$A$4:$A$61,articles!C196,'assembly codes'!$H$4:$H$61) -> 0 | AF196: =IF(OR(T196=0,verzagen=2,pc=2,AE196=0),"",AE196&".2") ->  | AG196: 35716 | AH196: VPCLLX | AI196: 0
B197: VPCLLX | C197: CLLX | D197: 4040 | E197: 35707 | F197: 35712 | G197: 35722 | H197: 35717 | I197: 35722 | J197: 35722 | K197: =VLOOKUP(L197,'intrek AX'!$A$1:$R$3596,18,FALSE) -> 21.92 | L197: =INDEX(E197:J197,ral) -> 35717 | M197: =IF(VLOOKUP(L197,'setdet 2'!$B$2:$E$2284,4,FALSE)=0,"",VLOOKUP(L197,'setdet 2'!$B$2:$E$2284,4,FALSE)) ->  | O197: =IF(ISBLANK(N197)=TRUE,M197,N197) ->  | S197: =IF(T197=0,0,L197) -> 0 | T197: =IF(ISNUMBER(O197)=FALSE,0,O197) -> 0 | U197: 0 | V197: =IF(U197=0,0,VLOOKUP(U197,'intrek AX'!$A$1:$R$3593,18,FALSE)) -> 0 | W197: 0 | AA197: =IF(SUM(F197:I197)=0,"",IF(ral=1,0,INDEX('input data'!$G$96:$G$101,ral))) -> RAL7016ST | AB197: =IF(AC197="","",IF(AC197=1,calcul!$B$1072,IF(AC197=2,calcul!$B$1080,""))) -> 029/71334 | AC197: 1 | AE197: =SUMIF('assembly codes'!$A$4:$A$61,articles!C197,'assembly codes'!$H$4:$H$61) -> 0 | AF197: =IF(OR(T197=0,verzagen=2,pc=2,AE197=0),"",AE197&".3") ->  | AG197: 35717 | AH197: VPCLLX | AI197: 0
B198: VPCLLX | C198: CLLX | D198: 5040 | E198: 35708 | F198: 35713 | G198: 35723 | H198: 35718 | I198: 35723 | J198: 35723 | K198: =VLOOKUP(L198,'intrek AX'!$A$1:$R$3596,18,FALSE) -> 21.92 | L198: =INDEX(E198:J198,ral) -> 35718 | M198: =IF(VLOOKUP(L198,'setdet 2'!$B$2:$E$2284,4,FALSE)=0,"",VLOOKUP(L198,'setdet 2'!$B$2:$E$2284,4,FALSE)) ->  | O198: =IF(ISBLANK(N198)=TRUE,M198,N198) ->  | S198: =IF(T198=0,0,L198) -> 0 | T198: =IF(ISNUMBER(O198)=FALSE,0,O198) -> 0 | U198: 0 | V198: =IF(U198=0,0,VLOOKUP(U198,'intrek AX'!$A$1:$R$3593,18,FALSE)) -> 0 | W198: =T198*D198/1000*V198 -> 0 | AA198: =IF(SUM(F198:I198)=0,"",IF(ral=1,0,INDEX('input data'!$G$96:$G$101,ral))) -> RAL7016ST | AB198: =IF(AC198="","",IF(AC198=1,calcul!$B$1072,IF(AC198=2,calcul!$B$1080,""))) -> 029/71334 | AC198: 1 | AE198: =SUMIF('assembly codes'!$A$4:$A$61,articles!C198,'assembly codes'!$H$4:$H$61) -> 0 | AF198: =IF(OR(T198=0,verzagen=2,pc=2,AE198=0),"",AE198&".4") ->  | AG198: 35718 | AH198: VPCLLX | AI198: 0
B199: VPCLLX | C199: CLLX | D199: 6040 | E199: 109183 | F199: 109185 | G199: 35723 | H199: 109186 | I199: 109184 | J199: 109184 | K199: =VLOOKUP(L199,'intrek AX'!$A$1:$R$3596,18,FALSE) -> 21.92 | L199: =INDEX(E199:J199,ral) -> 109186 | M199: =IF(VLOOKUP(L199,'setdet 2'!$B$2:$E$2284,4,FALSE)=0,"",VLOOKUP(L199,'setdet 2'!$B$2:$E$2284,4,FALSE)) ->  | O199: =IF(ISBLANK(N199)=TRUE,M199,N199) ->  | S199: =IF(T199=0,0,L199) -> 0 | T199: =IF(ISNUMBER(O199)=FALSE,0,O199) -> 0 | U199: =IF(T199=0,0,IF(ralstandout=1,H199,S199)) -> 0 | V199: =IF(U199=0,0,VLOOKUP(U199,'intrek AX'!$A$1:$R$3593,18,FALSE)) -> 0 | W199: =T199*D199/1000*V199 -> 0 | AA199: =IF(SUM(F199:I199)=0,"",IF(ral=1,0,INDEX('input data'!$G$96:$G$101,ral))) -> RAL7016ST | AB199: =IF(AC199="","",IF(AC199=1,calcul!$B$1072,IF(AC199=2,calcul!$B$1080,""))) -> 029/71334 | AC199: 1 | AE199: =SUMIF('assembly codes'!$A$4:$A$61,articles!C199,'assembly codes'!$H$4:$H$61) -> 0 | AF199: =IF(OR(T199=0,verzagen=2,pc=2,AE199=0),"",AE199&".5") ->  | AG199: 109186 | AH199: VPCLLX | AI199: 0
A200: =taal!A712 -> KLIPS ZUM SCHRAUBEN UNTEN | B200: VPCLSB | C200: CLSB | D200: 4040 | E200: 23914 | K200: =VLOOKUP(L200,'intrek AX'!$A$1:$R$3596,18,FALSE) -> 8.34 | L200: =E200 -> 23914 | M200: =IF(VLOOKUP(L200,'setdet 2'!$B$2:$E$2284,4,FALSE)=0,"",VLOOKUP(L200,'setdet 2'!$B$2:$E$2284,4,FALSE)) ->  | S200: 0 | T200: 0 | U200: =S200 -> 0 | V200: =IF(U200=0,0,VLOOKUP(U200,'intrek AX'!$A$1:$R$3593,18,FALSE)) -> 0 | W200: 0 | AA200: =IF(SUM(F200:I200)=0,"",INDEX('input data'!$G$96:$G$101,ral)) ->  | AB200: =IF(AC200="","",IF(AC200=1,calcul!$B$1072,IF(AC200=2,calcul!$B$1080,""))) ->  | AE200: =SUMIF('assembly codes'!$A$4:$A$61,articles!C200,'assembly codes'!$H$4:$H$61) -> 0 | AF200: =IF(OR(T200=0,verzagen=2,pc=2,AE200=0),"",AE200&".1") ->  | AG200: 23914 | AH200: VPCLSB | AI200: 0
... 648 more rows

Sheet offer
G1: =pckeuze!A1 -> 2024-04-18T15:33:19.580 | K1: 1
A2: =template!B2 -> Skylux | E2: ='input data'!D1 -> 0 | K2: 1 | P2: =INDEX(P3:P9,taal) -> Sehr geehrte Damen und Herren, | Q2: =INDEX(Q3:Q9,taal) -> Anbei finden Sie unser Angebot fur eine Climalux Überdachung. | V2: =INDEX(V3:V9,taal) -> mit freundlichen Grußen
A3: =template!B3 -> Spinnerijstraat 100 | E3: =taal!A1199&" "&'input data'!D2 -> zu Hdn | K3: 1 | N3: ='input data'!D5 -> 0 | P3: Geachte, | Q3: ="In bijlage sturen wij onze offerte voor een "&IF(type<3,"Climax dak.",IF(type=3,"Climalux dak.","Climalite dak.")) -> In bijlage sturen wij onze offerte voor een Climalux dak. | V3: Met vriendelijke groeten
A4: =template!B4 -> BE 8530 Harelbeke | K4: 1 | P4: Bonjour, | Q4: ="En annexe vous trouvez notre offre de prix pour une toiture "&IF(type<3,"Climax.",IF(type=3,"Climalux.","Climalite.")) -> En annexe vous trouvez notre offre de prix pour une toiture Climalux. | V4: meilleures salutations
A5: =template!B5 -> tel. : 0032 (0)56 20.00.00 | K5: 1 | P5: Sehr geehrte Damen und Herren, | Q5: ="Anbei finden Sie unser Angebot fur eine "&IF(type<3,"Climax Überdachung.",IF(type=3,"Climalux Überdachung.","Climalite Überdachung.")) -> Anbei finden Sie unser Angebot fur eine Climalux Überdachung. | V5: mit freundlichen Grußen
A6: =template!B6 ->  | K6: 1 | P6: Dear, | Q6: ="Please find our offer of a "&IF(type<3,"Climax roof ",IF(type=3,"Climalux roof ","Climalite roof "))&"in the attached file." -> Please find our offer of a Climalux roof in the attached file. | V6: best regards
A7: =taal!A281 -> kontakt | B7: =template!B7 -> 0 | K7: 1 | P7: Witam serdecznie, | Q7: ="W załączniku przesyłam ofertę na zadaszenie Skylux® "&IF(type<3,"Climax roof ",IF(type=3,"Climalux roof ","Climalite roof ")) -> W załączniku przesyłam ofertę na zadaszenie Skylux® Climalux roof | V7: Pozdrawiam serdecznie,
A8: e-mail | B8: =IF(template!B8<>"",template!B8,'input data'!F257) -> 0 | E8: e-mail : | F8: ='input data'!D5 -> 0 | K8: 1 | P8: Kedves | Q8: ="Keresse ajánlatunkat a "&IF(type<3,"Climax tető ",IF(type=3,"Climalux tető ","Climalite tető ")&"a csatolt fájlban.") -> Keresse ajánlatunkat a Climalux tető a csatolt fájlban. | V8: Üdvözlettel
K9: 1 | P9: Rakas, | Q9: ="Lähetämme liitteenä tarjouksemme "&IF(type<3,"Climax-katosta.",IF(type=3," Climalux-katosta.","Climalite-katosta..")) -> Lähetämme liitteenä tarjouksemme Climalux-katosta. | V9: Ystävällisin terveisin
A10: =taal!A9&" :" -> KOMMISSION : | B10: ='input data'!D3 -> 0 | K10: 1
K11: 1
A12: =IF(ofob=1,taal!A326,taal!A327) -> ANGEBOT | K12: 1
K13: 1
A14: =taal!B1200 -> UMSCHREIBUNG : | E14: =taal!B1201 -> DATA : | K14: 1
K15: 1
A16: =+taal!A21 -> TYP DER ÜBERDACHUNG | B16: =INDEX('input data'!E105:E110,type_input)&IF(AND(OR(type=1,type=3),spots<3)," + LED","")&IF(AND(type=3,type_input=3,Climacrown=2)," + CLIMACROWN "&IF(calcul!A847>1,"+ LED ","")&calcul!B824&" mm ","")&IF(muur>4," "&taal!A35,"") -> CLIMALUX | E16: =taal!A117 -> B : WINTERGARTENBREITE | G16: =IF(pc=2,0,ROUND('input data'!D16,0)) -> 0 | K16: 1
A17: =+taal!A1205 -> FORM | B17: =IF(zadel=2,taal!A25,taal!A24) -> PULTDACH | E17: =taal!A123 -> D : TIEFE | G17: =IF(pc=2,0,IF(zadel=2,"2 x "&ROUND(calcul!D2,0)&" mm",""&ROUND(calcul!D2+IF(muur>4,3,0),0)&" mm")) -> 0 mm | K17: 1
A18: =taal!A28 -> ANBAU | B18: =INDEX('input data'!E113:E118,muur) -> GEGEN 1 MAUER | E18: =IF(AND(type=3,OR(GD=3,GD=4),calcul!T9>0),taal!A126,"") ->  | G18: =IF(OR(pc=2,E18="")=TRUE,"",IF(calcul!T9>0,ROUND(calcul!T9,0),0)) ->  | K18: 1
A19: =taal!A1204 -> FARBE | B19: =articles!L2&" - "&IF(calcul!B1072=calcul!B1080,calcul!B1072,calcul!B1072&" / "&calcul!B1080) -> RAL7016ST - 029/71334 | E19: =taal!A138 -> H : HÖHENUNTERSCHIED= Hm - Hg | G19: =IF(pc=2,0,ROUND(calcul!D3,0)) -> 1 | K19: 1
A20: =+taal!A57 -> ABSCHLUSS | B20: =(INDEX('input data'!E163:E165,cl)&" "&IF(af=1," - "&taal!A411,"")&" "&IF(AND(omega=1,type<>3)," - "&taal!A173,"")) -> KLIPS - DISTANZHALTER | E20: =IF(AND(type=3,OR(GD=3,GD=4),calcul!T9>0),taal!A130,"") ->  | H20: =IF(OR(pc=2,E20="")=TRUE,"",IF(calcul!T9>0,"Hg "&calcul!T13&" mm / Hm -"&calcul!T14&" mm",0)) ->  | K20: 1
A21: =taal!A1203 -> VERGLASUNG | B21: =IF(plaat=1,INDEX('input data'!E133:E158,ks)&" "&dik&" mm",taal!A49&" "&dik&" mm "&taal!A1206) -> POLYCLEAR TOP X5 KLAR 16 mm | E21: =taal!A150 -> α : WINKEL ALPHA IN ° | G21: =IF(pc=2,0,Helling) -> 5 | K21: 1
B22: =INDEX('input data'!E130:E132,rest) -> RESTSTÜCKE LINKS UND RECHTS | E22: =taal!A151 -> n : ANZAHL DER FELDER | G22: =IF(pc=2,0,IF(zadel=2,"2 x ","")&IF(rest=1,'input data'!D25,IF(OR(SUM(articles!N106:N124)+SUM(articles!N140:N144)=0,SUM(articles!N106:N124)+SUM(articles!N140:N144)=""),calcul!B58,SUM(articles!O106:O124)+SUM(articles!O140:O144)-1))) -> 0 | K22: 1
A23: =taal!A1207 -> BELASTUNG | B23: ='input data'!D28&" N/m²" -> 650 N/m² | E23: =taal!A152 -> p : ANZAHL VON PFEILERN RINNENSEITE | G23: =IF(pc=2,0,IF(SUM(articles!N212:N221)+SUM(articles!N234:N240)+SUM(articles!N242:N248)+SUM(articles!N253:N256)>0,"?",calcul!B94)) -> 0 | K23: 1
A24: =IF(SUM('Calcul triangle'!B18:C18)>0,taal!A896,"") ->  | B24: =sets!Y273&" "&IF('Calcul triangle'!B18+'Calcul triangle'!C18=2,"( "&taal!A985&" + "&taal!A988&" )",IF('Calcul triangle'!B18=1,"( "&taal!A985&" )",IF('Calcul triangle'!C18=1,"( "&taal!A988&" )",""))) ->  | E24: =taal!A154 -> h : HÖHE MAUERPROFIL | G24: =ROUND(calcul!H710,0) -> 144 | K24: 1
A25: =IF(SUM('Calcul triangle'!B128:C128)>0,taal!A914,"") ->  | B25: =sets!Y274&" "&IF('Calcul triangle'!B129+'Calcul triangle'!C129=2,"( "&taal!A985&" + "&taal!A988&" )",IF('Calcul triangle'!B129=1,"( "&taal!A985&" )",IF('Calcul triangle'!C129=1,"( "&taal!A988&" )",""))) ->  | E25: =taal!A155 -> g : TIEFE RINNE | G25: =IF(GD<7,IF(zadel=2,"2 x ","")&ROUND(calcul!P8,0)&" mm","") -> 160 mm | K25: 1
A26: =IF(OR(calcul!G8="geen",zadel=2),"",taal!A1202) -> PRINZIP ZEICHNUNG | E26: =IF(muur>4,taal!A153,"") ->  | G26: =IF(muur>4,IF(pc=2,0,IF(SUM(articles!N253:N256)>0,"?",calcul!B95)),"") ->  | K26: 1
K27: =IF(A26<>"",1,"") -> 1
A28: =IF(AND(Climaglide=2,Climaglide!B7>0),"CLIMAGLIDE "&Climaglide!B4,"") ->  | B28: =IF(AND(Climaglide=2,Climaglide!B7>0),Climaglide!B5&" x "&Climaglide!B6&" mm","") ->  | C28: =IF(AND(Climaglide=2,Climaglide!B7>0),taal!A274&" :","") ->  | D28: =IF(AND(Climaglide=2,Climaglide!B7>0),Climaglide!B7,"") ->  | K28: =IF(A28<>"",1,"") -> 
A29: =IF(AND(Climaglide=2,Climaglide!B7>0),'calcul climaglide'!B52,"") ->  | B29: =IF(A29="","",taal!A989) ->  | K29: =K28 -> 
A30: =IF(AND(Climaglide=2,Climaglide!C7>0),"CLIMAGLIDE "&Climaglide!C4,"") ->  | B30: =IF(AND(Climaglide=2,Climaglide!C7>0),Climaglide!C5&" x "&Climaglide!C6&" mm","") ->  | C30: =IF(AND(Climaglide=2,Climaglide!C7>0),taal!A274&" :","") ->  | D30: =IF(AND(Climaglide=2,Climaglide!C7>0),Climaglide!C7,"") ->  | K30: =IF(A30<>"",1,"") -> 
